Workbook

Sheet CEV CEVE
C1: Sistema de Certificación Térmica de Viviendas de Chile
C3: 1.- Características de la vivienda
C5: 1.1.- Datos generales e identificación del proyecto
B7: 1 | C7: Ubicación del proyecto | F7: =+CONCATENATE("Zona ",'CEV-CEVE'!E10) -> Zona
B9: 2 | C9: Comuna | F9: =+'CEV-CEVE'!E9 -> 0
B11: 3 | C11: Rol vivienda | F11: =+'CEV-CEVE'!E19 -> 0
C13: 1.2.- Datos provenientes del cálculo de la demanda
B15: 4 | C15: Superficie de la vivienda | I15: =+'CEV-CEVE'!D56 -> 0 | K15: [m2]
B16: 5 | C16: Volumen de la vivienda | I16: =+'CEV-CEVE'!F56 -> 0 | K16: [m3]
B17: 6 | C17: Área ventanas | I17: =+SUM('CEV-CEVE'!H169:H177) -> 0 | K17: [m2]
B18: 7 | C18: Potencia referencial del sistema de calefacción | I18: 10 | K18: [kW] | L18: Potencia efectiva | O18: [KW]
F20: Edificio Objeto | I20: Referencia
B21: 8 | C21: Demanda de calefacción | F21: =+Resumen!C8 -> 0 | I21: =+Resumen!C7 -> Prueba no Oficial | K21: (kWh/año)
C24: 2.- Definición de los equipos y sistemas
C26: 2.1.- Descripción general de los sistemas de calefacción y agua caliente sanitaria
B28: 9 | C28: Sistema de calefacción | E28: No posee
B29: 10 | C29: Sistema de agua caliente | E29: Calefont 7 litros tiro forzado
C31: 2.2.- Demanda de Agua Caliente Sanitaria (ACS)
B33: 11 | C33: Demanda de ACS | F33: ='Vivienda Objeto'!H23 -> 0 | I33: =Referencia!G8 -> 0 | K33: (kWh/año)
C35: 2.3.- Demanda de iluminación
B37: 12 | C37: Demanda de iluminación | F37: =+'CEV-CEVE'!G195 -> 0 | I37: =+F37 -> 0 | K37: (kWh/año)
C39: 2.4.- Sistema de calefacción
C41: Tipo de energético utilizado en el sistema de calefacción
B42: 13
C44: Identificación del equipo principal de calefacción | N44: Por defecto | Q44: Propuesto
B45: 14 | N45: ='R2'!D4 -> 0.45 | O45: (-) | Q45: 0 | R45: (-)
B47: 15
C49: Sistema de distribución
B50: 15 | N50: ='R2'!D25 -> 1
C52: Sistema de control
B53: 16 | N53: ='R2'!D32 -> 1
B55: 17 | C55: Rendimiento del sistema completo | N55: =IF(Q45=0,N45*N50*N53,Q45*N50*N53) -> 0.45 | O55: (-)
C57: 2.5.- Sistema de agua caliente sanitaria
C60: Tipo de energético a utilizar
B61: 18
C63: Rendimiento de generación | N63: Por defecto | Q63: Propuesto
B64: 19 | N64: ='R2'!D61 -> 0.7 | O64: (-) | Q64: 0 | R64: (-)
C66: Corrección por distribución
B67: 20 | N67: ='R2'!D73 -> 0.9
C69: Cálculo de la corrección por estanque de almacenamiento para ACS
C70: ¿Tiene estanque de almacenamiento?
B71: 21
B72: 22 | C72: Volumen de estanque de almacenamiento (litros) | O72: ( l )
B73: 23 | C73: Espesor de la aislación del estanque (mm) | O73: ( mm )
B74: 24 | C74: Conductividad térmica del material de aislación (W/mK) | O74: ( W / m K )
C75: Ubicación del estanque de almacenamiento | Q75: Pérdidas totales
B76: 25 | Q76: ='R2'!B220 -> 0 | R76: (kWh/año)
Q78: Propuesto
B79: 26 | C79: Corrección por estanque de almacenamiento | N79: =IF(Q79="",'R2'!B220,IF(Q79=0,'R2'!B220,Q79)) -> 0 | O79: (kWh/año) | R79: (kWh/año)
B81: 27 | C81: Rendimiento del sistema completo | N81: ='R2'!C344 ->  | O81: (-)
C83: 2.6.-Sistema de iluminación
C85: El cálculo se realiza en base a valores por defecto
C87: 2.7.- Consumo de energía en ventiladores
N88: Por defecto | Q88: Propuesta
B89: 28 | C89: Potencia de los ventiladores involucrados en el sistema de ventilación sin incluir recuperador de calor (si existe) | N89: ='R2'!E269 ->  | O89: (W) | Q89: 0 | R89: (W)
N90: Por defecto | Q90: Propuesta
B91: 29 | C91: Potencia de los ventiladores del recuperador de calor (si existe) | N91: ='R2'!E270 ->  | O91: (W) | Q91: 0 | R91: (W)
C93: Resultados | N93: Por defecto | Q93: Propuesta
B94: 30 | C94: Consumo de energía en los ventiladores | N94: ='R2'!B271 ->  | O94: (kWh/año) | Q94: 0 | R94: (kWh/año)
B96: 31 | C96: Valor a usar para el consumo de energia en los ventiladroes | N96: ='R2'!B273 ->  | O96: (kWh/año)
C98: 2.8.- Sistemas de captación de energías renovables no convencionales
K100: ='R1'!D77 -> 1
C102: Sistema solar para aporte en calefacción y agua caliente sanitaria
B104: 32 | C104: ¿Dispone de un sistema de colectores solares - térmicos? | J104: ='R4'!F3 -> 3
B106: 33 | C106: Tipo de colector:
B107: 34 | C107: Tipo de servicio
B109: 35 | C109: Superficie total de colectores solares (bruta) | H109: 8 | I109: (m2)
B110: 36 | C110: Angulo de inclinación de los colectores | H110: 2 | I110: (grados)
B111: 37 | C111: Angulo de azimut de los colectores | H111: 2 | I111: (grados)
B112: 38 | C112: Factor de corrección por obstrucciones | H112: 2 | I112: (-)
C114: Propiedades del colector | H114: Por defecto | J114: A modificar | L114: A usar
B115: 39 | C115: Rendimiento óptico del colector | H115: ='R4'!G3 -> 0 | J115: 0 | L115: =IF(J115>0,J115,H115) -> 0
B116: 40 | C116: Coeficiente de pérdidas térmicas | H116: ='R4'!H3 -> 0 | J116: 0 | L116: =IF(J116>0,J116,H116) -> 0
B117: 41 | C117: Relación Área Neta / Área Bruta | H117: ='R4'!I3 -> 0 | J117: 0 | L117: =IF(J117>0,J117,H117) -> 0
C119: Pérdidas por distribución para circuitos extendidos
B120: 42 | C120: Calor aportado por el sistema solar antes de la corrección por pérdidas adicionales en cañerías | N120: ='R2'!D226 ->  | O120: [kWh/año]
B122: 43 | C122: Espesor de aislación de las cañerías | N122: 35 | O122: ( mm )
B123: 44 | C123: Distancia entre la placa mas alejada y el estanque solar | N123: 4 | O123: ( m )
B124: 45 | C124: Distancia entre el estanque solar y el primer punto de consumo | N124: 4 | O124: ( m )
N125: Por defecto | Q125: Propuesto
B126: 46 | C126: Factor de corrección por pérdidas de las cañerías | N126: ='R2'!B238 ->  | Q126: 0
B127: 47 | C127: Factor de corrección a usar | N127: ='R2'!B240 -> 
C129: Resultados
B131: 48 | C131: Porcentaje de aporte solar al ACS | L131: ='R4'!B150*N127 ->  | M131: (%)
B132: 49 | C132: Porcentaje de aporte solar a la calefacción | L132: ='R4'!B151*N127 ->  | M132: (%)
C134: Sistema fotovoltaico para aporte de consumo en vivienda
B136: 50 | C136: ¿Dispone de un sistema de paneles fotovoltaicos para generar electricidad? | J136: ='R1'!D81 -> 1
B138: 51
B139: 52 | C139: Potencia nominal total de los captadores solares | H139: 750 | I139: (W)
B140: 53 | C140: Angulo de inclinación de los paneles | H140: 60 | I140: (grados)
B141: 54 | C141: Angulo de azimut de los paneles | H141: 10 | I141: (grados)
B142: 55 | C142: Corrección por elementos de sombra | H142: 1 | I142: (-)
H143: Por defecto | J143: Propuesto
B144: 56 | C144: Eficiencia nominal de inversor | H144: ='R5'!I2 -> 0.92 | I144: (-)
B146: 57 | C146: Aporte solar fotovoltaico | L146: ='R5'!I4 -> 2028.859987 | M146: (kWh/año)
C151: 3.- Resultados del consumo de energía de la vivienda
C152: Todos los resultados están en energía primaria
B153: 58 | C153: Aporte de energía solar térmica a la calefacción | J153: ='R2'!C302 ->  | K153: (kWh/año)
B154: 59 | C154: Aporte de energía solar térmica al agua caliente sanitaria | J154: ='R2'!C303 ->  | K154: (kWh/año)
C156: Consumos sin incluir fotovoltaicos
B157: 60 | C157: Consumo de energía primaria en calefacción | J157: ='R2'!H302 ->  | K157: (kWh/año)
B158: 61 | C158: Consumo de energía primaria en agua caliente sanitaria | J158: ='R2'!H303 ->  | K158: (kWh/año)
B159: 62 | C159: Consumo de energía primaria en iluminación | J159: ='R2'!H304 -> 0 | K159: (kWh/año)
B160: 63 | C160: Consumo de energía primaria en ventiladores | J160: ='R2'!H305 ->  | K160: (kWh/año)
B162: 64 | C162: Generación de energía primaria en fotovoltaicos | J162: ='R2'!H312 -> 0 | K162: (kWh/año)
B163: 65 | C163: Aporte de energía solar fotovoltaica a consumos básicos | J163: ='R2'!B324 ->  | K163: (kWh/año)
B164: 66 | C164: Aporte de energía solar fotovoltaica a consumo de electrodomésticos | J164: ='R2'!C326 ->  | K164: (kWh/año)
C166: Balance general de energía
B167: 67 | C167: Total consumo de energía primaria antes de fotovoltaicos | J167: =SUM(J157:J160) ->  | K167: (kWh/año)
B168: 68 | C168: Aporte de fotovoltaicos a consumos básicos | J168: ='R2'!H314 ->  | K168: (kWh/año)
B169: 69 | C169: Consumos básicos a suplir con energía externa | J169: =J167-J168 ->  | K169: (kWh/año)
C170: Resumen de consumos finales de referencia y objeto
B171: 70 | C171: Consumo total de energía primaria | J171: ='R2'!H317 ->  | K171: (kWh/año)
B172: 71 | C172: Consumo de energía de referencia | J172: ='R2'!O308 ->  | K172: (kWh/año)
B173: 72 | C173: Coeficiente energético : C | J173: ='R2'!F325 ->  | N173: Ahorro | O173: ='R2'!F326 -> 
B176: 73 | C176: Aporte fotovoltaico al consumo de electrodomésticos | J176: ='R2'!H315 ->  | K176: (kWh/año) | L176: Porcentaje del consumo medio | O176: ='R2'!K315 -> 

Sheet Anexo Calculos
C2: Procedimientos de cálculo
C4: Índice con link a las secciones correspondientes
C5: Bombas de calor
D6: Bomba de calor Aire - Aire con flujo de refrigerante variable
D7: Bomba de calor Aire - Aire convencional
D8: Bomba de calor Aire - Agua
D9: Bomba de calor agua - agua
C10: Calderas
D11: Caldera de Condensación (corrige el valor por defecto debido a temperatura de uso diferente)
D12: Caldera a leña
D13: Caldera a pellet
C14: Equipos localizados
D15: Equipo localizado sin evacuación de gases al exterior
D16: Equipo localizado a gas con evacuación de gases al exterior
D17: Calefactor localizado a leña
D18: Calefactor localizado a pellet
C23: Bombas de calor
C25: Bomba de calor Aire - Aire con flujo de refrigerante variable
B26: A1 | C26: COP nominal | N26: 4.2 | O26: ( - )
B27: A2 | C27: Temperatura a la cual se tiene el COP nominal | N27: 7 | O27: ( C)
B29: A3 | C29: COP nominal a 7 C | N29: ='R2'!B89 -> 4.193709436
B30: A4 | C30: SCOP | N30: ='R2'!B102 -> 3.313030454
C33: Bomba de calor Aire - Aire convencional
B34: A5 | C34: COP nominal | N34: 2.7 | O34: ( - )
B35: A6 | C35: Temperatura a la cual se tiene el COP nominal | N35: 7 | O35: ( C)
B37: A7 | C37: COP nominal a 7 C | N37: ='R2'!B110 -> 2.67843857
B38: A8 | C38: SCOP | N38: ='R2'!B123 -> 2.008828927
C41: Bomba de calor Aire - Agua
B42: A9 | C42: COP nominal | N42: 3.8 | O42: ( - )
B43: A10 | C43: Temperatura a la cual se tiene el COP nominal | N43: 7 | O43: ( C)
B44: A11 | C44: Temperatura de suministro del agua (entre 35 a 55 C) | N44: 40 | O44: ( C)
B46: A12 | C46: SCOP | N46: ='R2'!B146 -> 2.055597633
C49: Bomba de calor agua - agua
B50: A13 | C50: COP nominal | N50: 6.6 | O50: ( - )
B51: A14 | C51: Temperatura a la cual se tiene el COP nominal | N51: 10 | O51: ( C )
B52: A15 | C52: Temperatura de uso del agua | N52: 35 | O52: ( C )
C54: Tipo de bomba de calor
B55: A16
C57: Forma de entregar el calor al recinto
B58: A17
B60: A18 | C60: Porcentaje del flujo nominal | N60: 100 | O60: ( % )
B62: A19 | C62: SCOP | N62: ='R2'!B188 -> 3.862804546
C65: Calderas
C67: Caldera de Condensación (corrige el valor por defecto debido a temperatura de uso diferente)
B68: A20 | C68: Temperatura de uso | N68: 80
B69: A21 | C69: Rendimiento estacional corregido | N69: ='CEV CEVE'!$N$45*(1-((N68-40)/300)) -> 0.39
C72: Caldera a leña
B73: A22 | C73: Rendimiento nominal | N73: 0.75
B74: A23 | C74: Rendimiento estacional | N74: =N73*0.84 -> 0.63
C77: Caldera a pellet
B78: A24 | C78: Rendimiento nominal | N78: 0.75
B79: A25 | C79: Rendimiento estacional | N79: =N78*0.87 -> 0.6525
C83: Equipos localizados
C85: Equipo localizado sin evacuación de gases al exterior
B86: A26 | C86: Rendimiento nominal | N86: 1
B87: A27 | C87: Rendimiento estacional | N87: =N86*0.45 -> 0.45
C90: Equipo localizado a gas con evacuación de gases al exterior
B91: A28 | C91: Rendimiento nominal | N91: 0.75
B92: A29 | C92: Rendimiento estacional | N92: =N91*0.87 -> 0.6525
C95: Calefactor localizado a leña
B96: A30 | C96: Rendimiento nominal | N96: 0.75
B97: A31 | C97: Rendimiento estacional | N97: =N96*0.75 -> 0.5625
C100: Calefactor localizado a pellet
B101: A32 | C101: Rendimiento nominal | N101: 0.75
B102: A33 | C102: Rendimiento estacional | N102: =N101*0.82 -> 0.615

Sheet Vivienda Objeto (hidden)
C1: Sistema de Certificación Termica de Viviendas de Chile
C2: Ubicación del proyecto | F2: ='R1'!#REF! -> 
C5: Dimensiones de la vivienda
D6: Area (m²) | F6: Altura (m) | H6: Volumen (m³)
C9: Area total (At) | D9: ='CEV CEVE'!I15 -> 0 | F9: Volumen total | H9: ='CEV CEVE'!I16 -> 0
C11: Ventilación
C13: Renovaciones por hora (Naire) | H13: 1 | I13: (ren/hr)
C14: Pérdidas especificas por ventilación (Qinf) | H14: =H13*0.33*H9 -> 0 | I14: (W/K)
C16: Demanda de calefacción a utilizar en certificación
C17: Demanda de calefacción | H17: ='CEV CEVE'!F21 -> 0 | I17: (kWh/año)
C19: Demanda ACS
C21: Número ocupantes (N) | H21: =IF(D9<350,7.704*(D9/100)-3.6518*(D9/100)^2+0.99408*(D9/100)^3-0.1122751*(D9/100)^4,8) -> 0
C23: Demanda anual ACS | H23: ='R1'!J31*H21 -> 0 | I23: (kWh/año)
H24: =H23/D9 ->  | I24: (kWh/m2 año)
H25: =100*H23/Referencia!G8 ->  | I25: % de demanda de referencia
C27: Demanda iluminación
C29: Av/Apiso | H29: ='CEV CEVE'!I17/'CEV CEVE'!I15 ->  | I29: [-]
C30: Fv | H30: =0.5*0.65 -> 0.325 | I30: [-]
C31: Ilumn Exterior necesaria | H31: =300/(H29*H30*0.4) ->  | I31: [Lux]
C32: Horas de iluminación natural al año | H32: =IF(L32<0,0,L32) ->  | I32: [h] | L32: =IF(H31>9000,'R1'!J44+'R1'!K44*(H31/1000)+'R1'!L44*(H31/1000)^2+'R1'!M44*(H31/1000)^3+'R1'!N44*(H31/1000)^4,'R1'!J55+'R1'!K55*(H31/1000)+'R1'!L55*(H31/1000)^2+'R1'!M55*(H31/1000)^3+'R1'!N55*(H31/1000)^4) ->  | N32: =IF(L32<0,0,L32) -> 
C34: Demanda Iluminación | H34: =H35*D9 ->  | I34: (kWh/año)
H35: =(5475-N32)*0.67/1000 ->  | I35: (kWh/ m2 año)
H36: =100*H34/Referencia!G17 ->  | I36: % de demanda de referencia
C38: Demanda energética (calefacción - Agua caliente sanitaria - iluminación)
C40: Demanda vivienda | H40: =H17+H23+H34 ->  | I40: (kWh/año)
H41: =H40/D9 ->  | I41: (kWh/ m2 año)
C45: Sistema de iluminación
C48: Generación de CO2 equivalente
J49: Factor | N49: total
C50: Generación por la calefacción | J50: ='R2'!F37 -> 0.228 | L50: kgCO2/kWh | N50: =#REF!*J50 ->  | O50: kgCO2/ año
C51: Generación por agua caliente sanitaria | J51: ='R2'!F50 -> 0.228 | N51: =J51*#REF! ->  | O51: kgCO2/ año
C52: Genración por iluminación | J52: ='R2'!E37 -> 0.307 | N52: =J52*#REF! ->  | O52: kgCO2/ año
J54: % Ref | L54: kgCO2/m2año | N54: kgCO2/año
C55: Total | J55: =100*N55/Referencia!M51 ->  | L55: =N55/D9 ->  | N55: =N50+N51+N52 -> 

Sheet Referencia (hidden)
B2: Edificio de referencia
B4: Area total (At) | C4: ='Vivienda Objeto'!D9 -> 0 | E4: Volumen total | G4: ='Vivienda Objeto'!H9 -> 0
B5: Pérdidas especificas por ventilación (Qinf) | G5: ='Vivienda Objeto'!H14 -> 0 | H5: (W/K)
B7: Demanda ACS
B8: Demanda anual por zona | G8: ='Vivienda Objeto'!H23 -> 0 | H8: (kWh/año)
B9: Demanda ACS | G9: =G8/C4 ->  | H9: (kWh/m2 año)
B11: Demanda iluminación
B12: Av/Apiso | G12: ='Vivienda Objeto'!H29 ->  | H12: [-]
B13: Fv | G13: ='Vivienda Objeto'!H30 -> 0.325 | H13: [-]
B14: Ilumn Exterior necesaria | G14: =300/(G12*G13*0.4) ->  | H14: [Lux]
B15: Horas de iluminación natural al año | G15: =K15 ->  | H15: [h] | I15: =IF(G14>9000,'R1'!J44+'R1'!K44*(G14/1000)+'R1'!L44*(G14/1000)^2+'R1'!M44*(G14/1000)^3+'R1'!N44*(G14/1000)^4,'R1'!J55+'R1'!K55*(G14/1000)+'R1'!L55*(G14/1000)^2+'R1'!M55*(G14/1000)^3+'R1'!N55*(G14/1000)^4) ->  | K15: =IF(I15<0,0,I15) -> 
B17: Demanda Iluminación | G17: =G18*C4 ->  | H17: (kWh/año)
G18: =(5475-G15)*0.67/1000 ->  | H18: (kWh/ m2 año)
B20: Consumo Energético
B22: Sistema de calefacción
B23: Rendimiento global | M23: ='R2'!$B$4*'R2'!$B$29*'R2'!$B$34 -> 0.36
B25: Sistema de agua caliente sanitaria
B26: Rendimiento del sistema completo | M26: ='R2'!B61 -> 0.7 | N26: [-]
B28: Consumo total de energía en la vivienda
K29: kWh/m2 año | M29: kWh/año
B30: Consumo de energía en calefacción | K30: =M30/'CEV CEVE'!I15 ->  | M30: ='CEV CEVE'!I21 -> Prueba no Oficial
B31: Consumo de energia en agua caliente sanitaria | K31: =M31/C4 ->  | M31: =G8/M26 -> 0
B32: Consumo de energía en iluminación | K32: =M32/C4 ->  | M32: =G17 -> 
B34: Consumo total de energía | K34: =K30+K31+K32 ->  | M34: =M30+M31+M32 -> 
B36: Consumo de energía primaria
K37: kWh/m2 año | M37: kWh/año
B38: Consumo de energía en calefacción | K38: =M38/C4 ->  | M38: =M30*'R2'!B53 -> 
B39: Consumo de energia en agua caliente sanitaria | K39: =M39/C4 ->  | M39: =M31*'R2'!B53 -> 0
B40: Consumo de energía en iluminación | K40: =M40/C4 ->  | M40: =M32*'R2'!B37 -> 
B42: Consumo total de energía | K42: =K38+K39+K40 ->  | M42: =M38+M39+M40 -> 
B44: Generación de CO2 equivalente
I46: Factor | M46: total
B47: Generación por la calefacción | I47: ='R2'!E41 -> 0.26 | K47: kgCO2/kWh | M47: =M38*I47 ->  | N47: kgCO2/ año
B48: Generación por agua caliente sanitaria | I48: ='R2'!E53 -> 0.228 | M48: =I48*M39 -> 0 | N48: kgCO2/ año
B49: Genración por iluminación | I49: ='R2'!E50 -> 0.307 | M49: =I49*M40 ->  | N49: kgCO2/ año
B51: Total | M51: =M47+M48+M49 ->  | N51: kgCO2/ año

Sheet R1 (hidden)
A1: Radiación solar | B1: N | C1: NE / NO | D1: E / O | E1: SE / SO | F1: S | G1: Techo | H1: Ref | I1: Zona Numero | J1: Zona num | K1: N | L1: NE / NO | M1: E / O | N1: SE / SO | O1: S | P1: Techo | Q1: Ref | R1: Indice clima
A2: Zona A | B2: 108 | C2: 94 | D2: 72 | E2: 48 | F2: 44 | G2: 121 | H2: =(B2+2*C2+2*D2+2*E2+F2)/8 -> 72.5 | I2: 1 | J2: =IF(J3="Zona A",1,IF(J3="Zona B",2,IF(J3="Zona C",3,IF(J3="Zona D",4,IF(J3="Zona E",5,IF(J3="Zona F",6,IF(J3="Zona G",7,IF(J3="Zona H",8,IF(J3="Zona I",9,10))))))))) -> 10 | K2: =CHOOSE(J2,B2,B3,B4,B5,B6,B7,B8,B9,B10,B11) -> 156.4 | L2: =CHOOSE(J2,C2,C3,C4,C5,C6,C7,C8,C9,C10,C11) -> 135.1 | M2: =CHOOSE(J2,D2,D3,D4,D5,D6,D7,D8,D9,D10,D11) -> 96.3 | N2: =CHOOSE(J2,E2,E3,E4,E5,E6,E7,E8,E9,E10,E11) -> 62.4 | O2: =CHOOSE(J2,F2,F3,F4,F5,F6,F7,F8,F9,F10,F11) -> 56 | P2: =CHOOSE(J2,G2,G3,G4,G5,G6,G7,G8,G9,G10,G11) -> 157.6 | Q2: =CHOOSE(J2,H2,H3,H4,H5,H6,H7,H8,H9,H10,H11) -> 100 | R2: =IF(K5=1,10,K6) -> 10
A3: Zona B | B3: 160 | C3: 135 | D3: 94 | E3: 50 | F3: 40 | G3: 154 | H3: =(B3+2*C3+2*D3+2*E3+F3)/8 -> 94.75 | I3: 2 | J3: ='CEV CEVE'!F7 -> Zona
A4: Zona C | B4: 97.09824544 | C4: 83.92648972 | D4: 59.81409738 | E4: 38.73071901 | F4: 34.76702843 | G4: 97.30457699 | H4: =(B4+2*C4+2*D4+2*E4+F4)/8 -> 62.10098576 | I4: 3
A5: Zona D | B5: 91.12087788 | C5: 80.60152402 | D5: 60.98134421 | E5: 42.01051549 | F5: 36.74090974 | G5: 106.3587567 | H5: 61.88106938 | I5: 4 | K5: =IF('R6'!P2=19,1,0) -> 0 | L5: Calama? (1/0)
A6: Zona E | B6: 110.0664841 | C6: 95.47778006 | D6: 68.65960964 | E6: 43.51735375 | F6: 37.27473896 | G6: 116.3209151 | H6: 70.33133875 | I6: 5 | K6: =J2 -> 10
A7: Zona F | B7: 88.34665502 | C7: 79.89819834 | D7: 62.49801333 | E7: 44.10436173 | F7: 37.48412423 | G7: 107.3049219 | H7: =(B7+2*C7+2*D7+2*E7+F7)/8 -> 62.35399076 | I7: 6
A8: Zona G | B8: 73 | C8: 68 | D8: 55 | E8: 41 | F8: 34 | G8: 86 | H8: =(B8+2*C8+2*D8+2*E8+F8)/8 -> 54.375 | I8: 7
A9: Zona H | B9: 123 | C9: 117 | D9: 97 | E9: 64 | F9: 47 | G9: 153 | H9: =(B9+2*C9+2*D9+2*E9+F9)/8 -> 90.75 | I9: 8
A10: Zona I | B10: 102.8852111 | C10: 95.94243613 | D10: 74.57761204 | E10: 51.41190328 | F10: 40.46628727 | G10: 115.5106318 | H10: =(B10+2*C10+2*D10+2*E10+F10)/8 -> 73.40192516 | I10: 9
A11: Calama | B11: 156.4 | C11: 135.1 | D11: 96.3 | E11: 62.4 | F11: 56 | G11: 157.6 | H11: =(B11+2*C11+2*D11+2*E11+F11)/8 -> 100 | I11: 2
A14: Grados dia | B14: a | C14: b | D14: c | E14: d | G14: TEC | J14: =CHOOSE(J2,B15,B16,B17,B18,B19,B20,B21,B22,B23,B24) -> -43.7 | K14: =CHOOSE(J2,C15,C16,C17,C18,C19,C20,C21,C22,C23,C24) -> 9.346 | L14: =CHOOSE(J2,D15,D16,D17,D18,D19,D20,D21,D22,D23,D24) -> -0.084136 | M14: =CHOOSE(J2,E15,E16,E17,E18,E19,E20,E21,E22,E23,E24) -> -0.00260247 | O14: =CHOOSE(J2,G15,G16,G17,G18,G19,G20,G21,G22,G23,G24) -> 1
A15: Zona A | B15: 305.2 | C15: -57.55 | D15: 3.45 | E15: -0.06414 | G15: 12.9
A16: Zona B | B16: 82.6 | C16: -23.76 | D16: 2.026 | E16: -0.045 | G16: 7
A17: Zona C | B17: 173 | C17: -42.646 | D17: 3.22361 | E17: -0.0692376 | G17: 7
A18: Zona D | B18: -26.49 | C18: 0.21116 | D18: 0.623923 | E18: -0.0175109 | G18: 3
A19: Zona E | B19: -51.66 | C19: 2.98006 | D19: 0.671136 | E19: -0.021220205 | G19: 5
A20: Zona F | B20: -44.88 | C20: 1.336415 | D20: 0.83624851 | E20: -0.024565453 | G20: 3
A21: Zona G | B21: -49.28 | C21: 4.279 | D21: 0.6302 | E21: -0.02 | G21: 3
A22: Zona H | B22: -19.35 | C22: 9.663 | D22: 0.1511 | E22: -0.009 | G22: -1
A23: Zona I | B23: -83.24 | C23: 28.248 | D23: -0.69877 | E23: 0.004479 | G23: -1
A24: Calama | B24: -43.7 | C24: 9.346 | D24: -0.084136 | E24: -0.00260247 | G24: 1
A30: ACS
A31: Zona A | B31: 446.7 | J31: =CHOOSE(J2,B31,B32,B33,B34,B35,B36,B37,B38,B39,B40) -> 512.7
A32: Zona B | B32: 575.4
A33: Zona C | B33: 501.7
A34: Zona D | B34: 468.6
A35: Zona E | B35: 522.9
A36: Zona F | B36: 544.3
A37: Zona G | B37: 562.5
A38: Zona H | B38: 603.2
A39: Zona I | B39: 638.3
A40: Calama | B40: 512.7
A42: Horas de iluminación natural
A43: Mayor a 9000 Lux | B43: A | C43: B | D43: C | E43: D | F43: E
A44: Zona A | B44: 6239 | C44: -370.82 | D44: 7.727856 | E44: -0.05621021 | F44: 0 | J44: =CHOOSE($R$2,B44,B45,B46,B47,B48,B49,B50,B51,B52,B53) -> 6239 | K44: =CHOOSE($R$2,C44,C45,C46,C47,C48,C49,C50,C51,C52,C53) -> -370.82 | L44: =CHOOSE($R$2,D44,D45,D46,D47,D48,D49,D50,D51,D52,D53) -> 7.727856 | M44: =CHOOSE($R$2,E44,E45,E46,E47,E48,E49,E50,E51,E52,E53) -> -0.05621021 | N44: =CHOOSE($R$2,F44,F45,F46,F47,F48,F49,F50,F51,F52,F53) -> 0
A45: Zona B | B45: 6239 | C45: -370.82 | D45: 7.727856 | E45: -0.05621021 | F45: 0
A46: Zona C | B46: 5142 | C46: -240.93 | D46: 1.7691602 | E46: 0.06626923 | F46: -0.000937512182
A47: Zona D | B47: 5396 | C47: -268.46 | D47: 2.2305539 | E47: 0.0763877 | F47: -0.0011460777
A48: Zona E | B48: 5249 | C48: -244.94 | D48: -0.09327 | E48: 0.15679582 | F48: -0.002001436
A49: Zona F | B49: 4883 | C49: -209.83 | D49: -1.4649513 | E49: 0.182686208 | F49: -0.002198571
A50: Zona G | B50: 4891 | C50: -240.98 | D50: 0.9920186 | E50: 0.120279 | F50: -0.00169213735
A51: Zona H | B51: 5396 | C51: -268.46 | D51: 2.2305539 | E51: 0.0763877 | F51: -0.0011460777
A52: Zona I | B52: 5669 | C52: -492.316 | D52: 18.660876 | E52: -0.3558077 | F52: 0.00271628
A53: Calama | B53: 6239 | C53: -370.82 | D53: 7.727856 | E53: -0.05621021 | F53: 0
A54: Menor a 9000 lux
A55: Zona A | B55: 4642 | C55: -464.98 | D55: 122.3371 | E55: -14.61139 | F55: 0.5677879 | J55: =CHOOSE($R$2,B55,B56,B57,B58,B59,B60,B61,B61,B62,B63,B64) -> 4576 | K55: =CHOOSE($R$2,C55,C56,C57,C58,C59,C60,C61,C62,C63,C64) -> -464.98 | L55: =CHOOSE($R$2,D55,D56,D57,D58,D59,D60,D61,D62,D63,D64) -> 122.3371 | M55: =CHOOSE($R$2,E55,E56,E57,E58,E59,E60,E61,E62,E63,E64) -> -14.61139 | N55: =CHOOSE($R$2,F55,F56,F57,F58,F59,F60,F61,F62,F63,F64) -> 0.5677879
A56: Zona B | B56: 4642 | C56: -464.98 | D56: 122.3371 | E56: -14.61139 | F56: 0.5677879
A57: Zona C | B57: 4541 | C57: -349.25 | D57: 67.706521 | E57: -8.666216 | F57: 0.3896532
A58: Zona D | B58: 4554 | C58: -387.84 | D58: 92.247687 | E58: -13.263945 | F58: 0.66112806
A59: Zona E | B59: 4555 | C59: -408.23 | D59: 99.54249 | E59: -13.808214 | F59: 0.654821254
A60: Zona F | B60: 4558 | C60: -482.049 | D60: 131.872497 | E60: -19.4549921 | F60: 0.95638882
A61: Zona G | B61: 4576 | C61: -551.96 | D61: 153.7439 | E61: -21.6874031 | F61: 1.006153
A62: Zona H | B62: 4554 | C62: -387.84 | D62: 92.247687 | E62: -13.263945 | F62: 0.66112806
A63: Zona I | B63: 4576 | C63: -551.96 | D63: 153.7439 | E63: -21.6874031 | F63: 1.006153
A64: Calama | B64: 4642 | C64: -464.98 | D64: 122.3371 | E64: -14.61139 | F64: 0.5677879
A67: Tipo de certificado
A68: Pre Calificación Energética | B68: 2 | C68: =CHOOSE($B68,A68,A69) -> Calificación Energética | E68: Pre Calificación Energética | I68: =CHOOSE($B68,E68,E69) -> Calificación Energética
A69: Calificación Energética | E69: Calificación Energética
A71: Tipo de metodologia de cálculo a utilizar
A72: Cálculo Estático de la Demanda | D72: 1 | F72: =CHOOSE($D72,A72,A73) -> Cálculo Estático de la Demanda
A73: Cálculo Dinámico de la Demanda (CCTE)
A76: Dispone de sista solar para calentar agua
A77: No | D77: 1 | F77: =CHOOSE($D77,A77,A78) -> No
A78: Si
A80: Existencia de paneles fotovoltaicos
A81: No | D81: 1 | F81: =CHOOSE($D81,A81,A82) -> No
A82: Si
A84: Valor minimo sobre el cual se calcula calefaccion | E84: 30 | F84: kWh/m2 año

Sheet R2 (hidden)
A1: Sistema de Calefacción | D1: Factor de energía primaria de la electricidad | H1: 1.9
A2: Rendimientos
A3: Rendimientos generales
A4: Sistema por defecto - No se dispone de sistema de calefacción | B4: 0.45 | C4: 1 | D4: =CHOOSE(C4,B4,B5,B6,B7,B8,B9,B10,B11,B12,B13,B14,B15,B16, B17,B18,B19,B20,B21) -> 0.45
A5: Caldera a gas sin condensación encendido piloto control on/of | B5: 0.705
A6: Caldera a gas sin condensación encendido electrónico control on/of | B6: 0.745
A7: Caldera a gas sin condensación encendido piloto control modulado | B7: 0.71
A8: Caldera a gas sin condensación encendido electrónico control modulado | B8: 0.75
A9: Caldera a gas con condensación encendido electrónico control modulado | B9: 0.853
A10: Caldera a petróleo | B10: 0.8
A11: Equipo localizado sin evacuación de gases al exterior | B11: 0.45
A12: Calefactor electrico por resistencia fijo | B12: 1
A13: Equipo localizado a gas con evacuación de gases | B13: 0.62
A14: Calefactor localizado a leña | B14: 0.45
A15: Calefactor a pellet | B15: 0.6
A16: Caldera a leña | B16: 0.55
A17: Caldera a pellet | B17: 0.65
A18: Bomba de calor tradicional agua - agua o agua - aire | B18: 2.4
A19: Bomba de calor de flujo de refrigerante variable agua - agua o agua - aire | B19: 2.7
A20: Bomba de calor tradicional aire - agua o aire - aire | B20: 2.2
A21: Bomba de calor de flujo de refrigerante variable aire - agua o aire - aire | B21: 2.5
A24: Rendimiento de distribución
A25: Sistema unitario autocontenido | B25: 1 | C25: 1 | D25: =CHOOSE(C25,B25,B26,B27,B28,B29) -> 1
A26: Vivienda unifamiliar con sistema centralizado | B26: 0.97
A27: Edificio con sistema centralizado | B27: 0.95
A28: Sistema de calefacción distrital | B28: 0.8
A29: Valor por defecto si no tiene sistema de calefacción | B29: 1
A31: Rendimiento de control
A32: Control automático | B32: 1 | C32: 1 | D32: =CHOOSE(C32,B32,B33,B34) -> 1
A33: Control manual | B33: 0.8
A34: Sin sistema de calefacción | B34: 0.8
A36: Tipo de combustible a utilizar | B36: FEP | E36: FCO2
A37: Electricidad | B37: =H1 -> 1.9 | C37: 4 | D37: =CHOOSE(C37,B37,B38,B39,B40,B41,B42,B43,B44) -> 1.1 | E37: 0.307 | F37: =CHOOSE(C37,E37,E38,E39,E40,E41,E42,E43,E44,E45) -> 0.228
A38: Petróleo | B38: 1.1 | E38: 0.24
A39: Gas natural | B39: 1.1 | E39: 0.202
A40: Gas licuado | B40: 1.1 | E40: 0.228
A41: Kerosene domestico | B41: 1.1 | E41: 0.26
A42: Leña | B42: 1.1 | E42: 0.43
A43: Pellets de madera | B43: 1.1 | E43: 0.43
A44: Carbón | B44: 1.1 | E44: 0.5
A47: Sistema de agua caliente sanitaria
A49: Tipo de combustible a utilizar | B49: FEP
A50: Electricidad | B50: =H1 -> 1.9 | C50: 4 | D50: =CHOOSE(C50,B50,B51,B52,B53,B54,B55,B56,B57) -> 1.1 | E50: 0.307 | F50: =CHOOSE(C50,E50,E51,E52,E53,E54,E55,E56,E57,E58) -> 0.228
A51: Petróleo | B51: 1.1 | E51: 0.24
A52: Gas natural | B52: 1.1 | E52: 0.202
A53: Gas licuado | B53: 1.1 | E53: 0.228
A54: Kerosene domestico | B54: 1.1 | E54: 0.26
A55: Leña | B55: 1.1 | E55: 0
A56: Pellets de madera | B56: 1.1 | E56: 0
A57: Carbón | B57: 1.1 | E57: 0.5
A60: Rendimiento de generación
A61: Sistema por defecto - No se dispone de sistema de ACS | B61: 0.7 | C61: 1 | D61: =CHOOSE(C61,B61,B62,B63,B64,B65,B66, B67,B68,B69,B70) -> 0.7
A62: Sistema de calentamiento de agua directo a gas | B62: 0.7
A63: Sistema de calentamiento de agua directo a electricidad | B63: 1
A64: Sistema de calentamiento de agua con estanque eléctrico | B64: 1
A65: Sistema de calentamiento de agua con caldera convencional | B65: 0.7
A66: Sistema de calentamiento de agua con caldera a condensación | B66: 0.8
A67: Calentamiento de agua con bomba de calor tradicional agua - agua | B67: 1.8
A68: Calentamiento de agua con bomba de calor de flujo de refrigerante varaible agua - agua | B68: 2
A69: Calentamiento de agua con bomba de calor aire - agua | B69: 1.8
A70: Calentamiento de agua con bomba de calor de flujo de refrigerante variable aire - agua | B70: 2
A72: Rendimiento de distribución
A73: Red de cañerías con aislación | B73: 1 | C73: 2 | D73: =CHOOSE(C73,B73,B74,B75) -> 0.9
A74: Red de cañerías sin aislación | B74: 0.9
A75: No tiene sistema de ACS | B75: 1
A78: Rendimiento de control
A79: Sistema de control por potencia | B79: 0.92 | C79: 2 | D79: =CHOOSE(C79,B79,B80) -> 1
A80: Control automático basado en la medición de la temperatura del agua | B80: 1
A82: Formulas y datos para la hoja Anexo Cálculos
A84: Bomba de calor aire - aire flujo de refrigerante variable
A85: COP nominal | B85: ='Anexo Calculos'!N26 -> 4.2
A86: Temperatura para COP nominal | B86: ='Anexo Calculos'!N27 -> 7
A88: COPte/COP7 | B88: =0.9+0.0145*B86 -> 1.0015
A89: COP nominal a 7 C | B89: =B85/B88 -> 4.193709436
A90: Zona térmica | B90: ='R1'!K6 -> 10
B91: Zona
B92: A | C92: 1.1 | D92: =CHOOSE(B90,C92,C93,C94,C95,C96,C97,C98,C99,C100,C101) -> 0.79
B93: B | C93: 0.96
B94: C | C94: 1.06
B95: D | C95: 0.95
B96: E | C96: 0.98
B97: F | C97: 0.97
B98: G | C98: 0.96
B99: H | C99: 0.83
B100: I | C100: 0.86
B101: Cal | C101: 0.79
A102: SCOP | B102: =B89*D92 -> 3.313030454
A105: Bomba de calor aire - aire convencional
A106: COP nominal | B106: ='Anexo Calculos'!N34 -> 2.7
A107: Temperatura para COP nominal | B107: ='Anexo Calculos'!N35 -> 7
A109: COPte/COP7 | B109: =0.888+0.0252*B107-0.00115*B107*B107 -> 1.00805
A110: COP nominal a 7 C | B110: =B106/B109 -> 2.67843857
A111: Zona térmica | B111: ='R1'!K6 -> 10
B112: Zona
B113: A | C113: 1.05 | D113: =CHOOSE(B111,C113,C114,C115,C116,C117,C118,C119,C120,C121,C122) -> 0.75
B114: B | C114: 0.93
B115: C | C115: 1.02
B116: D | C116: 0.86
B117: E | C117: 0.95
B118: F | C118: 0.95
B119: G | C119: 0.93
B120: H | C120: 0.8
B121: I | C121: 0.83
B122: Cal | C122: 0.75
A123: SCOP | B123: =B110*D113 -> 2.008828927
A126: Bomba de calor aire - agua
A127: COP nominal | B127: ='Anexo Calculos'!N42 -> 3.8
A128: Temperatura para COP nominal | B128: ='Anexo Calculos'!N43 -> 7
A129: Temperatura de uso | B129: =IF(C129<35,35,C129) -> 40 | C129: ='Anexo Calculos'!N44 -> 40
A130: COPte/COP7 | B130: =C130 -> 1.014 | C130: =0.867+0.0245*B128-0.0005*B128*B128 -> 1.014
A131: COP nominal a 7 C | B131: =B127/B130 -> 3.747534517
A132: Zona térmica | B132: ='R1'!K6 -> 10
B133: Zona
B134: A | C134: 0.96 | D134: =CHOOSE(B132,C134,C135,C136,C137,C138,C139,C140,C141,C142,C143) -> 0.6
B135: B | C135: 0.76
B136: C | C136: 0.89
B137: D | C137: 0.76
B138: E | C138: 0.79
B139: F | C139: 0.78
B140: G | C140: 0.76
B141: H | C141: 0.65
B142: I | C142: 0.66
B143: Cal | C143: 0.6
A144: COP corrección 1 | B144: =B131*D134 -> 2.24852071
A145: Corrección 2 | B145: =1.5902-0.0169*B129 -> 0.9142
A146: SCOP | B146: =B144*B145 -> 2.055597633
A149: Bomba de calor agua - agua
A150: COP nominal | B150: ='Anexo Calculos'!N50 -> 6.6
A151: Temperatura para COP nominal | B151: ='Anexo Calculos'!N51 -> 10
A152: Temperatura de uso | B152: ='Anexo Calculos'!N52 -> 35
A153: COPte/COP10 | B153: =C153 -> 1 | C153: =0.805+0.0195*B151 -> 1
A154: COP nominal a 10 C | B154: =B150/B153 -> 6.6
A156: Tipo de bomba de calor | C156: 2
A157: Se extrae el agua de una napa a mas de 15 m de profundidad
A158: Se extrae el agua de una napa a menos de 15 m de profundidad
A159: Se extrae el agua de un cuerpo de agua superficial
A161: Lado condensador | C161: 1
A162: Sistema de calefacción por radiadores, losa o cielo radiante
A163: Circuito de agua caliente con ventiloconvectores
A165: Zona térmica | B165: ='R1'!K6 -> 10
B166: Zona | C166: =CHOOSE(B165,C167,C168,C169,C170,C171,C172,C173,C174,C175,C176) -> 0.98 | D166: =CHOOSE(B165,D167,D168,D169,D170,D171,D172,D173,D174,D175,D176) -> 0.91 | E166: =CHOOSE(B165,E167,E168,E169,E170,E171,E172,E173,E174,E175,E176) -> 0.86 | F166: =CHOOSE(C156,C166,D166,E166) -> 0.91
B167: A | C167: 1.1 | D167: 1.05 | E167: 0.94
B168: B | C168: 1.04 | D168: 0.97 | E168: 0.9
B169: C | C169: 1.04 | D169: 0.99 | E169: 0.9
B170: D | C170: 1.02 | D170: 0.92 | E170: 0.9
B171: E | C171: 0.99 | D171: 0.91 | E171: 0.86
B172: F | C172: 0.99 | D172: 0.91 | E172: 0.84
B173: G | C173: 0.98 | D173: 0.9 | E173: 0.84
B174: H | C174: 0.94 | D174: 0.83 | E174: 0.8
B175: I | C175: 0.88 | D175: 0.81 | E175: 0.8
B176: Cal | C176: 0.98 | D176: 0.91 | E176: 0.86
A178: F1 | B178: =F166 -> 0.91
A179: F2 | B179: =1.686-0.0196*B152 -> 1
C180: =IF(C156=2,2,1) -> 2 | D180: =C161 -> 1
B181: =IF(C180=1,0.74,0.77) -> 0.77 | C181: =IF(C180=1,0.66,0.68) -> 0.68
A182: F3 | B182: =IF(D1900,B181,C181) -> 0.68
A183: F4 | B183: 0.95
A185: % del flujo nominal | B185: ='Anexo Calculos'!N60 -> 100
A186: DT | B186: =10.7-0.225*B185+0.0012*B185*B185 -> 0.2
A187: F5 | B187: =1-0.022*B186 -> 0.9956
A188: SCOP | B188: =B154*B178*B179*B182*B183*B187 -> 3.862804546
A190: Perdidas en el estanque de almacenamiento | B190: 1
A191: ubicación del estanque
A192: Local acondicionado
A193: Local interior pero no acondicionado
A194: Exterior
A196: Tiene estanque | B196: 2
A197: Si. Hay un estanque de almacenamiento
A198: No hay estanque de almacenamiento o e tiene el sistema por defecto
A200: Volumen de estanque de almacenamiento (litros) | B200: ='CEV CEVE'!N72 -> 0
A201: Espesor de la aislación del estanque (m) | B201: ='CEV CEVE'!N73/1000 -> 0
A202: Conductividad térmica del material de aislación (W/mK) | B202: ='CEV CEVE'!N74 -> 0
A204: RSE | B204: =IF(B190=3,0,0.1) -> 0.1
A205: Ti | B205: 65
A206: Te | B206: =IF(B190=1,20,C207) -> 20
B207: Zona | C207: =CHOOSE(B165,C208,C209,C210,C211,C212,C213,C214,C215,C216,C217) -> 11.4
B208: A | C208: 17.7
B209: B | C209: 14.9
B210: C | C210: 14.8
B211: D | C211: 13.9
B212: E | C212: 12.2
B213: F | C213: 12
B214: G | C214: 11.5
B215: H | C215: 9.5
B216: I | C216: 6.7
B217: CAL | C217: 11.4
A219: FPACS | B219: =0.05782*(B205-B206)/(POWER((B200/1000)/1.23,0.3333)*(B201/B202)) -> 
A220: Valor a considerar | B220: =IF(B196=1,B219*B200,0) -> 0
A222: Pérdidas por distribución en sistemas solares
A223: Espesor de aislación e las cañerías | B223: ='CEV CEVE'!N122 -> 35
A224: Distancia entre la placa mas alejada y el estanque solar | B224: ='CEV CEVE'!N123 -> 4
A225: Distancia entre el estanque solar y el primer punto de consumo | B225: ='CEV CEVE'!N124 -> 4
A226: Aporte solar | B226: ='R4'!N149 ->  | C226: (J año) | D226: =B226/3600000 ->  | E226: ( kWh al año)
A228: Área de colectores | B228: ='CEV CEVE'!H109 -> 8 | C228: (m2)
A229: ri | B229: =0.0075+0.0123*(B228/1000)-0.0006*(B228/1000)*(B228/1000) -> 0.0075983616 | C229: m | D229: =B229*1000 -> 7.5983616 | E229: mm
A230: Ri a usar | B230: =IF(B229<0.01,0.01,B229) -> 0.01 | C230: m | D230: =B230*1000 -> 10 | E230: mm
A231: re | B231: =B230+B223/1000 -> 0.045 | C231: m | D231: =B231*1000 -> 45 | E231: mm
A232: Lec | B232: =2*(B224+B225) -> 16 | C232: m
A233: Lex | B233: =5+1.2*B228 -> 14.6 | C233: m
A234: Ltot | B234: =IF(C234>0,C234,0) -> 1.4 | C234: =B232-B233 -> 1.4
... 82 more rows

Sheet R4 (hidden)
A1: Sistema solar para calefacción
A2: Tipo de colector | B2: A | C2: B | D2: A/A
A3: Tubos al vacio | B3: 0.6 | C3: 3 | D3: 0.72 | E3: 2 | F3: =IF('R1'!D77=1,3,'R4'!E3) -> 3 | G3: =CHOOSE($F3,B3,B4,B5) -> 0 | H3: =CHOOSE($F3,C3,C4,C5) -> 0 | I3: =CHOOSE($F3,D3,D4,D5) -> 0 | J3: Referencia
A4: Plano | B4: 0.75 | C4: 6 | D4: 0.9 | G4: ='CEV CEVE'!L115 -> 0 | H4: ='CEV CEVE'!L116 -> 0 | I4: ='CEV CEVE'!L117 -> 0 | J4: A usar
A5: No hay | B5: 0 | C5: 0 | D5: 0
A7: Area neta | B7: ='CEV CEVE'!H109*'R4'!I4*G9 -> 0 | C7: m2 | E7: Area indicada planilla | G7: ='CEV CEVE'!$H$109 -> 8 | H7: =G7*'R4'!I4 -> 0
A8: FRp/Fr | B8: 0.86 | E8: Existe sistema | G8: ='R1'!D77 -> 1 | H8: ='R1'!F77 -> No
A9: Ta/Tan | B9: 0.84 | E9: Factor multiplicador | G9: =IF(G8=1,0,1) -> 0
A10: ropiso | B10: 0.2
A11: Inclinacion colectores | B11: ='CEV CEVE'!H110 -> 2 | C11: grados
B12: Datos de temperatura del aire | M12: Clima seleccionado
A13: Tempertura del aire | B13: Zona A | C13: Zona B | D13: Zona C | E13: Zona D | F13: Zona E | G13: Zona F | H13: Zona G | I13: Zona H | J13: Zona I | K13: Calama
A14: Ene | B14: 20.8 | C14: 19.4 | D14: 18 | E14: 19.9 | F14: 16.8 | G14: 16.9 | H14: 16.5 | I14: 15.5 | J14: 11.7 | K14: 15.5 | M14: =(CHOOSE('R1'!$R$2,B14,C14,D14,E14,F14,G14,H14,I14,J14,K14)) -> 15.5
A15: Feb | B15: 20.8 | C15: 18.9 | D15: 17.9 | E15: 19.2 | F15: 16.3 | G15: 16.6 | H15: 15.6 | I15: 14.6 | J15: 10.6 | K15: 14.6 | M15: =(CHOOSE('R1'!$R$2,B15,C15,D15,E15,F15,G15,H15,I15,J15,K15)) -> 14.6
A16: Mar | B16: 19.7 | C16: 17.4 | D16: 16.7 | E16: 17.2 | F16: 14.6 | G16: 14.8 | H16: 14.1 | I16: 13.2 | J16: 8.9 | K16: 13.2 | M16: =(CHOOSE('R1'!$R$2,B16,C16,D16,E16,F16,G16,H16,I16,J16,K16)) -> 13.2
A17: Abr | B17: 18.1 | C17: 15.2 | D17: 14.9 | E17: 13.9 | F17: 12.1 | G17: 12 | H17: 11.2 | I17: 11.5 | J17: 6.7 | K17: 11.5 | M17: =(CHOOSE('R1'!$R$2,B17,C17,D17,E17,F17,G17,H17,I17,J17,K17)) -> 11.5
A18: May | B18: 17 | C18: 13.1 | D18: 13.5 | E18: 10.8 | F18: 11 | G18: 9.9 | H18: 9.4 | I18: 7.5 | J18: 4.2 | K18: 7.5 | M18: =(CHOOSE('R1'!$R$2,B18,C18,D18,E18,F18,G18,H18,I18,J18,K18)) -> 7.5
A19: Jun | B19: 15.8 | C19: 11.4 | D19: 12.3 | E19: 8.4 | F19: 9 | G19: 7.9 | H19: 7.4 | I19: 4.1 | J19: 2.6 | K19: 4.1 | M19: =(CHOOSE('R1'!$R$2,B19,C19,D19,E19,F19,G19,H19,I19,J19,K19)) -> 4.1
A20: Jul | B20: 15.1 | C20: 10.8 | D20: 11.8 | E20: 8.1 | F20: 6.4 | G20: 7.7 | H20: 6.9 | I20: 4.3 | J20: 2.5 | K20: 4.3 | M20: =(CHOOSE('R1'!$R$2,B20,C20,D20,E20,F20,G20,H20,I20,J20,K20)) -> 4.3
A21: Ago | B21: 15.2 | C21: 11.7 | D21: 12.1 | E21: 9.3 | F21: 8.6 | G21: 8.1 | H21: 7.5 | I21: 4.3 | J21: 2.9 | K21: 4.3 | M21: =(CHOOSE('R1'!$R$2,B21,C21,D21,E21,F21,G21,H21,I21,J21,K21)) -> 4.3
A22: Sep | B22: 16 | C22: 13.2 | D22: 12.9 | E22: 11.4 | F22: 10 | G22: 9.7 | H22: 9.2 | I22: 6.2 | J22: 4.6 | K22: 6.2 | M22: =(CHOOSE('R1'!$R$2,B22,C22,D22,E22,F22,G22,H22,I22,J22,K22)) -> 6.2
A23: Oct | B23: 16.9 | C23: 14.4 | D23: 14.1 | E23: 13.7 | F23: 11.7 | G23: 11.5 | H23: 11.2 | I23: 8.6 | J23: 7.1 | K23: 8.6 | M23: =(CHOOSE('R1'!$R$2,B23,C23,D23,E23,F23,G23,H23,I23,J23,K23)) -> 8.6
A24: Nov | B24: 18.3 | C24: 16.1 | D24: 15.8 | E24: 16.4 | F24: 14.2 | G24: 13.3 | H24: 13.7 | I24: 11.1 | J24: 8.5 | K24: 11.1 | M24: =(CHOOSE('R1'!$R$2,B24,C24,D24,E24,F24,G24,H24,I24,J24,K24)) -> 11.1
A25: Dic | B25: 19.7 | C25: 18 | D25: 17.3 | E25: 18.8 | F25: 16.2 | G25: 15.4 | H25: 15.9 | I25: 14 | J25: 10.2 | K25: 14 | M25: =(CHOOSE('R1'!$R$2,B25,C25,D25,E25,F25,G25,H25,I25,J25,K25)) -> 14
A27: FCSombras | B27: ='CEV CEVE'!H112 -> 2 | E27: kWh/m2 dia | F27: J/m2dia | G27: J/m2mes
A28: Radiación solar | B28: A usar | C28: N | D28: Rad solar por comuna | E28: HT | F28: HT | G28: HT
A29: Ene | B29: =D29/C29 -> 6.918787097 | C29: 31 | D29: ='R6'!Q5 -> 214.4824 | E29: ='R7'!AY8*B$27 -> 17.5039197 | F29: =E29*3600*1000 -> 63014110.94 | G29: =F29*C29 -> 1953437439
A30: Feb | B30: 5.785210714 | C30: 28 | D30: ='R6'!R5 -> 161.9859 | E30: ='R7'!AY9*B$27 -> 14.86904664 | F30: 53528567.91 | G30: 1498799901 | AB30: ='R6'!AC5 -> 0
A31: Mar | B31: 4.6367 | C31: 31 | D31: ='R6'!S5 -> 143.7377 | E31: ='R7'!AY10*B$27 -> 12.30619346 | F31: 44302296.46 | G31: 1373371190
A32: Abr | B32: 3.166431667 | C32: 30 | D32: ='R6'!T5 -> 94.99295 | E32: ='R7'!AY11*B$27 -> 7.901560816 | F32: 28445618.94 | G32: 853368568.2
A33: May | B33: 1.765958387 | C33: 31 | D33: ='R6'!U5 -> 54.74471 | E33: ='R7'!AY12*B$27 -> 4.313319056 | F33: 15527948.6 | G33: 481366406.6
A34: Jun | B34: 1.449882333 | C34: 30 | D34: ='R6'!V5 -> 43.49647 | E34: ='R7'!AY13*B$27 -> 3.529052131 | F34: 12704587.67 | G34: 381137630.2
A35: Jul | B35: 1.540151935 | C35: 31 | D35: ='R6'!W5 -> 47.74471 | E35: ='R7'!AY14*B$27 -> 3.803283558 | F35: 13691820.81 | G35: 424446445
A36: Ago | B36: 2.386869355 | C36: 31 | D36: ='R6'!X5 -> 73.99295 | E36: ='R7'!AY15*B$27 -> 5.77952608 | F36: 20806293.89 | G36: 644995110.5
A37: Sep | B37: 3.641373333 | C37: 30 | D37: ='R6'!Y5 -> 109.2412 | E37: ='R7'!AY16*B$27 -> 8.9301461 | F37: 32148525.96 | G37: 964455778.8
A38: Oct | B38: 5.128577419 | C38: 31 | D38: ='R6'!Z5 -> 158.9859 | E38: ='R7'!AY17*B$27 -> 13.129605 | F38: 47266577.98 | G38: 1465263918
A39: Nov | B39: 6.19953 | C39: 30 | D39: ='R6'!AA5 -> 185.9859 | E39: ='R7'!AY18*B$27 -> 15.99844739 | F39: 57594410.59 | G39: 1727832318
A40: Dic | B40: 6.700987097 | C40: 31 | D40: ='R6'!AB5 -> 207.7306 | E40: ='R7'!AY19*B$27 -> 17.45587371 | F40: 62841145.35 | G40: 1948075506
E41: =((SUM(E29:E40))/12)*365*B7 -> 0 | F41: kWh/año
M43: ='R1'!J2 -> 10
B44: Zona A | C44: Zona B | D44: Zona C | E44: Zona D | F44: Zona E | G44: Zona F | H44: Zona G | I44: Zona H | J44: Zona I | K44: Calama | M44: Zona selec
A45: Lat | B45: -20 | C45: -27.5 | D45: -33 | E45: -33 | F45: -37 | G45: -39 | H45: -40 | I45: -34 | J45: -53 | K45: -22 | M45: =(CHOOSE(M43,B45,C45,D45,E45,F45,G45,H45,I45,J45,K45))/57.3 -> -0.3839441536
A47: Tipo de servicio
A48: Solo ACS | B48: 0 | D48: 1 | E48: =CHOOSE(D48,B48,B49) -> 0
A49: ACS + Calefacción | B49: 1
A52: Perfil mensual de carga de calefacción (se considera el perfil fijo para la certificación)
A53: Mes | B53: Zona A | C53: Zona B | D53: Zona C | E53: Zona D | F53: Zona E | G53: Zona F | H53: Zona G | I53: Zona H | J53: Zona I | K53: Calama | M53: Zona elegida
A54: Ene | B54: 0 | C54: 0 | D54: 0 | E54: 0 | F54: 0 | G54: 0 | H54: 0 | I54: 0 | J54: 0.03812432712 | K54: 0 | M54: =(CHOOSE('R1'!$R$2,B54,C54,D54,E54,F54,G54,H54,I54,J54,K54)) -> 0
A55: Feb | B55: 0 | C55: 0 | D55: 0 | E55: 0 | F55: 0 | G55: 0 | H55: 0 | I55: 0 | J55: 0.04043075629 | K55: 0 | M55: =(CHOOSE('R1'!$R$2,B55,C55,D55,E55,F55,G55,H55,I55,J55,K55)) -> 0
A56: Mar | B56: 0 | C56: 0 | D56: 0 | E56: 0 | F56: 0 | G56: 0 | H56: 0.04749532721 | I56: 0.04752963861 | J56: 0.06019557294 | K56: 0 | M56: =(CHOOSE('R1'!$R$2,B56,C56,D56,E56,F56,G56,H56,I56,J56,K56)) -> 0
A57: Abr | B57: 0 | C57: 0.07058240557 | D57: 0 | E57: 0 | F57: 0.08776459458 | G57: 0.07998233302 | H57: 0.08314559935 | I57: 0.06704038671 | J57: 0.08331139719 | K57: 0.07058240557 | M57: =(CHOOSE('R1'!$R$2,B57,C57,D57,E57,F57,G57,H57,I57,J57,K57)) -> 0.07058240557
A58: May | B58: 0 | C58: 0.13111072 | D58: 0.1352577597 | E58: 0.1535664598 | F58: 0.1239031889 | G58: 0.1294629566 | H58: 0.1127472744 | I58: 0.1143340626 | J58: 0.1075860071 | K58: 0.13111072 | M58: =(CHOOSE('R1'!$R$2,B58,C58,D58,E58,F58,G58,H58,I58,J58,K58)) -> 0.13111072
A59: Jun | B59: 0 | C59: 0.1889761592 | D59: 0.2006036662 | E59: 0.2302140172 | F59: 0.1644329694 | G59: 0.1673455366 | H59: 0.1524317717 | I59: 0.1561517173 | J59: 0.1245722451 | K59: 0.1889761592 | M59: =(CHOOSE('R1'!$R$2,B59,C59,D59,E59,F59,G59,H59,I59,J59,K59)) -> 0.1889761592
A60: Jul | B60: 0.3898533247 | C60: 0.2081210752 | D60: 0.2528957715 | E60: 0.2488874856 | F60: 0.1859868343 | G60: 0.1820974628 | H60: 0.1594998876 | I60: 0.1556359702 | J60: 0.1298021011 | K60: 0.2081210752 | M60: =(CHOOSE('R1'!$R$2,B60,C60,D60,E60,F60,G60,H60,I60,J60,K60)) -> 0.2081210752
A61: Ago | B61: 0.3831225285 | C61: 0.1831641443 | D61: 0.235545174 | E61: 0.1996457715 | F61: 0.1769167094 | G61: 0.1700381149 | H61: 0.1567784301 | I61: 0.1554657399 | J61: 0.1207964423 | K61: 0.1831641443 | M61: =(CHOOSE('R1'!$R$2,B61,C61,D61,E61,F61,G61,H61,I61,J61,K61)) -> 0.1831641443
A62: Sep | B62: 0.2270241467 | C62: 0.1300224145 | D62: 0.1756976286 | E62: 0.1196779382 | F62: 0.152717884 | G62: 0.1319461484 | H62: 0.131931769 | I62: 0.1309492107 | J62: 0.1041695393 | K62: 0.1300224145 | M62: =(CHOOSE('R1'!$R$2,B62,C62,D62,E62,F62,G62,H62,I62,J62,K62)) -> 0.1300224145
A63: Oct | B63: 0 | C63: 0.08802308134 | D63: 0 | E63: 0.04800832782 | F63: 0.1082778194 | G63: 0.09535914675 | H63: 0.09901939826 | I63: 0.1007527212 | J63: 0.07946874134 | K63: 0.08802308134 | M63: =(CHOOSE('R1'!$R$2,B63,C63,D63,E63,F63,G63,H63,I63,J63,K63)) -> 0.08802308134
A64: Nov | B64: 0 | C64: 0 | D64: 0 | E64: 0 | F64: 0 | G64: 0.04376830086 | H64: 0.05695054237 | I64: 0.07214055289 | J64: 0.06383488418 | K64: 0 | M64: =(CHOOSE('R1'!$R$2,B64,C64,D64,E64,F64,G64,H64,I64,J64,K64)) -> 0
A65: Dic | B65: 0 | C65: 0 | D65: 0 | E65: 0 | F65: 0 | G65: 0 | H65: 0 | I65: 0 | J65: 0.04770798601 | K65: 0 | M65: =(CHOOSE('R1'!$R$2,B65,C65,D65,E65,F65,G65,H65,I65,J65,K65)) -> 0
A67: Demanda calefacción | B67: ='CEV CEVE'!F21 -> 0 | C67: kWh/año
B69: Carga calefacción | C69: Carga calefacción mes
A70: Mes | B70: L[kWh/mes] | C70: J
A71: Ene | B71: =B$67*M54 -> 0 | C71: =B71*3600*1000 -> 0
A72: Feb | B72: 0 | C72: 0
A73: Mar | B73: 0 | C73: 0
A74: Abr | B74: 0 | C74: 0
A75: May | B75: 0 | C75: 0
A76: Jun | B76: 0 | C76: 0
A77: Jul | B77: 0 | C77: 0
A78: Ago | B78: 0 | C78: 0
A79: Sep | B79: 0 | C79: 0
A80: Oct | B80: 0 | C80: 0
A81: Nov | B81: 0 | C81: 0
A82: Dic | B82: 0 | C82: 0
A84: Agua caiente Sanitaria
B85: Zona A | C85: Zona B | D85: Zona C | E85: Zona D | F85: Zona E | G85: Zona F | H85: Zona G | I85: Zona H | J85: Zona I | K85: Calama | M85: Elegido
A86: Ene | B86: 18.7 | C86: 12.5 | D86: 16 | E86: 20.7 | F86: 15.7 | G86: 14.8 | H86: 12.7 | I86: 12.4 | J86: 9.6 | K86: 14.5 | M86: =(CHOOSE('R1'!$R$2,B86,C86,D86,E86,F86,G86,H86,I86,J86,K86)) -> 14.5
A87: Feb | B87: 19.6 | C87: 11.4 | D87: 16.9 | E87: 20.3 | F87: 16.4 | G87: 15.8 | H87: 11.8 | I87: 10.5 | J87: 10.2 | K87: 14.2 | M87: =(CHOOSE('R1'!$R$2,B87,C87,D87,E87,F87,G87,H87,I87,J87,K87)) -> 14.2
A88: Mar | B88: 19.7 | C88: 11.4 | D88: 16.9 | E88: 20 | F88: 16 | G88: 15.5 | H88: 11.8 | I88: 10.5 | J88: 9.8 | K88: 14.2 | M88: =(CHOOSE('R1'!$R$2,B88,C88,D88,E88,F88,G88,H88,I88,J88,K88)) -> 14.2
A89: Abr | B89: 18.7 | C89: 9.8 | D89: 16 | E89: 18.4 | F89: 14.7 | G89: 13.9 | H89: 10.7 | I89: 8 | J89: 8.6 | K89: 13.7 | M89: =(CHOOSE('R1'!$R$2,B89,C89,D89,E89,F89,G89,H89,I89,J89,K89)) -> 13.7
A90: May | B90: 17.3 | C90: 8.1 | D90: 14.5 | E90: 16.1 | F90: 13 | G90: 11.7 | H90: 10.2 | I90: 6.1 | J90: 6.5 | K90: 12.4 | M90: =(CHOOSE('R1'!$R$2,B90,C90,D90,E90,F90,G90,H90,I90,J90,K90)) -> 12.4
A91: Jun | B91: 15.8 | C91: 6.9 | D91: 13 | E91: 13.4 | F91: 11.4 | G91: 9.8 | H91: 8.8 | I91: 4.8 | J91: 4.3 | K91: 11.5 | M91: =(CHOOSE('R1'!$R$2,B91,C91,D91,E91,F91,G91,H91,I91,J91,K91)) -> 11.5
A92: Jul | B92: 14.8 | C92: 6.8 | D92: 12 | E92: 11.6 | F92: 10.2 | G92: 8.5 | H92: 8.8 | I92: 4.5 | J92: 2.5 | K92: 11.5 | M92: =(CHOOSE('R1'!$R$2,B92,C92,D92,E92,F92,G92,H92,I92,J92,K92)) -> 11.5
A93: Ago | B93: 14.3 | C93: 8 | D93: 11.6 | E93: 10.8 | F93: 9.8 | G93: 8 | H93: 9.3 | I93: 5.5 | J93: 2 | K93: 12.6 | M93: =(CHOOSE('R1'!$R$2,B93,C93,D93,E93,F93,G93,H93,I93,J93,K93)) -> 12.6
A94: Sep | B94: 14.4 | C94: 9.2 | D94: 11.8 | E94: 11.5 | F94: 10.1 | G94: 8.4 | H94: 9.7 | I94: 6.6 | J94: 2.9 | K94: 13.3 | M94: =(CHOOSE('R1'!$R$2,B94,C94,D94,E94,F94,G94,H94,I94,J94,K94)) -> 13.3
A95: Oct | B95: 15 | C95: 10.8 | D95: 12.6 | E95: 13.6 | F95: 11.1 | G95: 9.7 | H95: 10.3 | I95: 8.8 | J95: 4.5 | K95: 14.3 | M95: =(CHOOSE('R1'!$R$2,B95,C95,D95,E95,F95,G95,H95,I95,J95,K95)) -> 14.3
A96: Nov | B96: 16 | C96: 11.6 | D96: 13.6 | E96: 17 | F96: 12.5 | G96: 11.2 | H96: 11.3 | I96: 10.3 | J96: 6.4 | K96: 14.6 | M96: =(CHOOSE('R1'!$R$2,B96,C96,D96,E96,F96,G96,H96,I96,J96,K96)) -> 14.6
A97: Dic | B97: 17.3 | C97: 12.2 | D97: 14.8 | E97: 19.3 | F97: 14.2 | G97: 13.1 | H97: 12.2 | I97: 11.5 | J97: 8.2 | K97: 14.7 | M97: =(CHOOSE('R1'!$R$2,B97,C97,D97,E97,F97,G97,H97,I97,J97,K97)) -> 14.7
B98: =AVERAGE(B86:B97) -> 16.8 | C98: 9.891666667 | D98: 14.14166667 | E98: 16.05833333 | F98: 12.925 | G98: 11.7 | H98: 10.63333333
B99: Ocupantes | C99: ='Vivienda Objeto'!H21 -> 0
A101: Tconsumo | B101: 40 | C101: J | D101: J
B102: Tred | C102: Qconsumo ACS | D102: Q Calef | E102: Qtotal | G102: Q perdido | H102: Q abs | J102: FC ACS Prima
A103: Ene | B103: =M86 -> 14.5 | C103: =C$99*41*C29*4180*(43-M86) -> 0 | D103: =C71*E$48 -> 0 | E103: =C103+D103*E$48 -> 0 | G103: =B$7*H$4*B$8*(100-M14)*C29*24*3600 -> 0 | H103: =B$7*G$4*B$8*B$9*G29 -> 0 | J103: =(11.6+1.18*50+3.86*M86-2.32*M14)/(100-M14) -> 1.072307692
A104: Feb | B104: 14.2 | C104: 0 | D104: 0 | E104: 0 | G104: 0 | H104: 0 | J104: 1.071896956
A105: Mar | B105: 14.2 | C105: 0 | D105: 0 | E105: 0 | G105: 0 | H105: 0 | J105: 1.09202765
A106: Abr | B106: 13.7 | C106: 0 | D106: 0 | E106: 0 | G106: 0 | H106: 0 | J106: 1.09380791
A107: May | B107: 12.4 | C107: 0 | D107: 0 | E107: 0 | G107: 0 | H107: 0 | J107: 1.092583784
A108: Jun | B108: 11.5 | C108: 0 | D108: 0 | E108: 0 | G108: 0 | H108: 0 | J108: 1.09987487
A109: Jul | B109: 11.5 | C109: 0 | D109: 0 | E109: 0 | G109: 0 | H109: 0 | J109: 1.097324974
A110: Ago | B110: 12.6 | C110: 0 | D110: 0 | E110: 0 | G110: 0 | H110: 0 | J110: 1.14169279
A111: Sep | B111: 13.3 | C111: 0 | D111: 0 | E111: 0 | G111: 0 | H111: 0 | J111: 1.14663113
A112: Oct | B112: 14.3 | C112: 0 | D112: 0 | E112: 0 | G112: 0 | H112: 0 | J112: 1.158052516
A113: Nov | B113: 14.6 | C113: 0 | D113: 0 | E113: 0 | G113: 0 | H113: 0 | J113: 1.1384027
A114: Dic | B114: 14.7 | C114: 0 | D114: 0 | E114: 0 | G114: 0 | H114: 0 | J114: 1.103046512
C115: =SUM(C103:C114) -> 0 | D115: =SUM(D103:D114) -> 0 | E115: =SUM(E103:E114) -> 0 | G115: =SUM(G103:G114) -> 0 | H115: =SUM(H103:H114) -> 0
C116: =100*C115/E115 ->  | D116: =100*D115/E115 -> 
C117: =C115/(3600*1000) -> 0 | D117: =D115/(3600*1000) -> 0
A119: ACS | G119: J/mes | J119: J/mes
B120: X | C120: Y | D120: fp | E120: fp corr | F120: f | G120: Qsol disp | H120: Qsol/QACS | I120: % Qsol ACS | J120: Qsol ACS
A121: Ene | B121: =G103*J103/C103 ->  | C121: =H103/C103 ->  | D121: =1.029*C121-0.065*B121-0.245*C121^2+0.0018*B121^2+0.0215*C121^3 ->  | E121: =IF(D121<0,0,D121) ->  | F121: =IF(E121>0.9,0.9,E121) ->  | G121: =C103*F121 ->  | H121: =G121/C103 ->  | I121: =IF(H121>0.9,0.9,H121) ->  | J121: =C103*I121 -> 
A122: Feb
A123: Mar
A124: Abr
A125: May
A126: Jun
A127: Jul
A128: Ago
A129: Sep
A130: Oct
A131: Nov
A132: Dic
J133: =SUM(J121:J132) -> 
A135: CALEFA | G135: J/mes | K135: J/mes
B136: X | C136: Y | D136: fp | E136: f | F136: f cor | G136: Qsol disp total | H136: Q sol disp calefa | I136: Q sol dip cal corr | J136: Qsol/Qcalefa | K136: % Qsol calefa | L136: Q sol calefa | N136: Q sol total | O136: Rend sistema solar
A137: Ene | B137: =G103*J103/E103 ->  | C137: =H103/E103 ->  | D137: =1.029*C137-0.065*B137-0.245*C137^2+0.0018*B137^2+0.0215*C137^3 ->  | E137: =IF(D137>0.9,0.9,D137) ->  | F137: =IF(E137<0,0,E137) ->  | G137: =E103*F137 ->  | H137: =G137-J121 ->  | I137: =IF(H137<0,0,H137) ->  | J137: =I137/(D103+0.0001) ->  | K137: =IF(J137>0.9,0.9,J137) ->  | L137: =D103*K137 ->  | N137: =L137+J121 ->  | O137: =100*N137/(G29*B$7) -> 
A138: Feb
A139: Mar
A140: Abr
A141: May
A142: Jun
A143: Jul
A144: Ago
A145: Sep
A146: Oct
A147: Nov
A148: Dic
K149: =SUM(L137:L148) ->  | L149: =SUM(L137:L148) ->  | N149: =SUM(N137:N148) -> 
A150: % Qsol ACS | B150: =100*J133/C115 ->  | C150: % | D150: =J133/3600000 -> 
A151: % Q sol CALEF | B151: =100*(K149)/(D115+0.0001) ->  | C151: % | D151: =L149/3600000 -> 

Sheet R5 (hidden)
A1: Sistema solar para electricidad | I1: Defecto | J1: Propiuesto | N1: Existe sistema | P1: ='R1'!D81 -> 1 | Q1: Si
A2: Potencia nominal | B2: ='CEV CEVE'!H139 -> 750 | C2: W | E2: Eficiencia nominal inversor | I2: 0.92 | J2: ='CEV CEVE'!J144 -> 0 | N2: Factor multiplicador | P2: =IF(P1=1,0,1) -> 0
A3: Ta/Tan | B3: 0.87 | E3: Eficiencia inversor a usar | I3: =IF(J2=0,I2,J2) -> 0.92
A4: ropiso | B4: 0.2 | E4: Aporte solar maximo [kWh/año] | I4: =F23*I3*J8 -> 2028.859987
I7: TRUE | J7: Sistema on grid
I8: Factor on grid | J8: =IF(I7=TRUE,1,0.5) -> 1
A9: FCSombras | B9: ='CEV CEVE'!H112 -> 2 | E9: kWh/m2 dia | F9: kWh/año
A10: Radiación solar | B10: A usar | C10: N | D10: Rad solar por comuna | E10: HT | F10: HT
A11: Ene | B11: =D11/C11 -> 6.918787097 | C11: 31 | D11: ='R6'!Q5 -> 214.4824 | E11: ='R7'!BR8*B$9 -> 11.16261202 | F11: =E11*C11*B$2/1000 -> 259.5307295
A12: Feb | B12: 5.785210714 | C12: 28 | D12: ='R6'!R5 -> 161.9859 | E12: ='R7'!BR9*B$9 -> 10.51606469 | F12: 220.8373584
A13: Mar | B13: 4.6367 | C13: 31 | D13: ='R6'!S5 -> 143.7377 | E13: ='R7'!BR10*B$9 -> 9.999747694 | F13: 232.4941339
A14: Abr | B14: 3.166431667 | C14: 30 | D14: ='R6'!T5 -> 94.99295 | E14: ='R7'!BR11*B$9 -> 7.515836458 | F14: 169.1063203
A15: May | B15: 1.765958387 | C15: 31 | D15: ='R6'!U5 -> 54.74471 | E15: ='R7'!BR12*B$9 -> 4.680442676 | F15: 108.8202922
A16: Jun | B16: 1.449882333 | C16: 30 | D16: ='R6'!V5 -> 43.49647 | E16: ='R7'!BR13*B$9 -> 4.085837827 | F16: 91.93135111
A17: Jul | B17: 1.540151935 | C17: 31 | D17: ='R6'!W5 -> 47.74471 | E17: ='R7'!BR14*B$9 -> 4.274862405 | F17: 99.39055092
A18: Ago | B18: 2.386869355 | C18: 31 | D18: ='R6'!X5 -> 73.99295 | E18: ='R7'!BR15*B$9 -> 5.830776989 | F18: 135.565565
A19: Sep | B19: 3.641373333 | C19: 30 | D19: ='R6'!Y5 -> 109.2412 | E19: ='R7'!BR16*B$9 -> 7.7400901 | F19: 174.1520272
A20: Oct | B20: 5.128577419 | C20: 31 | D20: ='R6'!Z5 -> 158.9859 | E20: ='R7'!BR17*B$9 -> 9.760682062 | F20: 226.935858
A21: Nov | B21: 6.19953 | C21: 30 | D21: ='R6'!AA5 -> 185.9859 | E21: ='R7'!BR18*B$9 -> 10.46846759 | F21: 235.5405208
A22: Dic | B22: 6.700987097 | C22: 31 | D22: ='R6'!AB5 -> 207.7306 | E22: ='R7'!BR19*B$9 -> 10.79474782 | F22: 250.9778868
F23: =SUM(F11:F22) -> 2205.282594

Sheet R6 (hidden)
A1: Radiación solar | P1: Indice | AD1: lugar | AE1: indice
B2: Ene | C2: Feb | D2: Mar | E2: Abr | F2: May | G2: Jun | H2: Jul | I2: Ago | J2: Sep | K2: Oct | L2: Nov | M2: Dic | N2: Total | P2: =AF2 -> 62 | AD2: Aisén | AE2: 13 | AF2: =VLOOKUP(AG2,AD2:AE347,2,FALSE) -> 62 | AG2: Concepción
A3: Algarrobo | B3: 193.9412 | C3: 151.0628 | D3: 133.4873 | E3: 88.54609 | F3: 61 | G3: 48 | H3: 56.9706 | I3: 79.45391 | J3: 107.3617 | K3: 146.4539 | L3: 175.3951 | M3: 194.9412 | N3: 1436.6138 | AD3: Algarrobo | AE3: 1
A4: Alhué | B4: 219.9361 | C4: 174.6223 | D4: 151.6976 | E4: 99.17412 | F4: 65.96473 | G4: 49.13347 | H4: 61.14817 | I4: 83.04316 | J4: 114.8629 | K4: 160.7873 | L4: 197.1276 | M4: 219.962 | N4: 1597.45945 | P4: =INDEX($A$3:$M$347,$P$2,1) -> Concepción | Q4: Ene | R4: Feb | S4: Mar | T4: Abr | U4: May | V4: Jun | W4: Jul | X4: Ago | Y4: Sep | Z4: Oct | AA4: Nov | AB4: Dic | AD4: Alhué | AE4: 2
A5: Alto Biobío | B5: 239.4793 | C5: 205.1475 | D5: 165.6626 | E5: 103.8565 | F5: 69.4362 | G5: 48.77239 | H5: 54.60126 | I5: 76.16632 | J5: 102.9627 | K5: 161.8045 | L5: 196.1038 | M5: 225.6593 | N5: 1649.65237 | Q5: =INDEX($A$3:$M$347,$P$2,2) -> 214.4824 | R5: =INDEX($A$3:$M$347,$P$2,3) -> 161.9859 | S5: =INDEX($A$3:$M$347,$P$2,4) -> 143.7377 | T5: =INDEX($A$3:$M$347,$P$2,5) -> 94.99295 | U5: =INDEX($A$3:$M$347,$P$2,6) -> 54.74471 | V5: =INDEX($A$3:$M$347,$P$2,7) -> 43.49647 | W5: =INDEX($A$3:$M$347,$P$2,8) -> 47.74471 | X5: =INDEX($A$3:$M$347,$P$2,9) -> 73.99295 | Y5: =INDEX($A$3:$M$347,$P$2,10) -> 109.2412 | Z5: =INDEX($A$3:$M$347,$P$2,11) -> 158.9859 | AA5: =INDEX($A$3:$M$347,$P$2,12) -> 185.9859 | AB5: =INDEX($A$3:$M$347,$P$2,13) -> 207.7306 | AD5: Alto Biobío | AE5: 3
A6: Alto del Carmen | B6: 258.3535 | C6: 224.0959 | D6: 202.1828 | E6: 152.8144 | F6: 126.8327 | G6: 105.3555 | H6: 114.7859 | I6: 136.919 | J6: 168.5234 | K6: 223.0739 | L6: 242.1464 | M6: 289.5978 | N6: 2244.6812 | AD6: Alto del Carmen | AE6: 4
A7: Alto Hospicio | B7: 215.897 | C7: 192.9954 | D7: 198.8353 | E7: 150.5078 | F7: 136.9586 | G7: 119.9356 | H7: 121.2557 | I7: 132.7111 | J7: 157.0248 | K7: 199.1848 | L7: 214.597 | M7: 229.8077 | N7: 2069.7108 | AD7: Alto Hospicio | AE7: 5
A8: Ancud | B8: 174.5691 | C8: 149.3382 | D8: 109.5329 | E8: 70.51557 | F8: 43.36083 | G8: 30.15257 | H8: 36.82582 | I8: 58.45499 | J8: 84.99639 | K8: 118.6855 | L8: 142.6071 | M8: 170.8181 | N8: 1189.85707 | AD8: Ancud | AE8: 6
A9: Andacollo | B9: 219.7562 | C9: 184.8306 | D9: 167.6513 | E9: 124.0199 | F9: 95.96678 | G9: 80.67414 | H9: 91.71855 | I9: 111.5766 | J9: 143.6052 | K9: 192.7775 | L9: 210.4619 | M9: 232.5595 | N9: 1855.59817 | AD9: Andacollo | AE9: 7
A10: Angol | B10: 211.6423 | C10: 170.3286 | D10: 144.7266 | E10: 91.41635 | F10: 56.9277 | G10: 43.87168 | H10: 48.27617 | I10: 72.39542 | J10: 106.5894 | K10: 153.8711 | L10: 179.4224 | M10: 203.4543 | N10: 1482.92202 | AD10: Angol | AE10: 8
A11: Antofagasta | B11: 244.7186 | C11: 220.7411 | D11: 210.9428 | E11: 164.3767 | F11: 146.4455 | G11: 131.9069 | H11: 142.6546 | I11: 158.9922 | J11: 176.5637 | K11: 228.8719 | L11: 250.6057 | M11: 283.1677 | N11: 2359.9874 | AD11: Antártica | AE11: 325
A12: Antuco | B12: 237.0737 | C12: 200.9541 | D12: 164.5544 | E12: 104.8774 | F12: 68.84496 | G12: 48.1563 | H12: 51.5684 | I12: 72.74756 | J12: 102.6413 | K12: 158.9298 | L12: 192.7742 | M12: 227.012 | N12: 1630.13412 | AD12: Antofagasta | AE12: 9
A13: Arauco | B13: 205.6216 | C13: 156.8735 | D13: 138.4182 | E13: 90.31139 | F13: 52.98486 | G13: 41.65474 | H13: 45.68833 | I13: 70.24422 | J13: 104.8198 | K13: 151.642 | L13: 177.7022 | M13: 199.6463 | N13: 1435.60714 | AD13: Antuco | AE13: 10
A14: Arica | B14: 228.6624 | C14: 200.4651 | D14: 208.5914 | E14: 178.1686 | F14: 161.0418 | G14: 143.5126 | H14: 155.4401 | I14: 170.9396 | J14: 191.7269 | K14: 229.7273 | L14: 235.2776 | M14: 238.1102 | N14: 2341.6636 | AD14: Arauco | AE14: 11
A15: Aysén | B15: 161.3484 | C15: 129.6265 | D15: 104.742 | E15: 60.71536 | F15: 35.25777 | G15: 26.50675 | H15: 31.48047 | I15: 52.50449 | J15: 85.8572 | K15: 127.2175 | L15: 145.633 | M15: 165.2712 | N15: 1126.16064 | AD15: Arica | AE15: 12
A16: Buin | B16: 243.1239 | C16: 194.4653 | D16: 168.0791 | E16: 111.7268 | F16: 76.68197 | G16: 56.72958 | H16: 70.68197 | I16: 93.01275 | J16: 127.9777 | K16: 178.1626 | L16: 218.6832 | M16: 246.2942 | N16: 1785.61907 | AD16: Buin | AE16: 14
A17: Bulnes | B17: 217.9927 | C17: 166.6618 | D17: 146.6618 | E17: 96.66178 | F17: 56.33089 | G17: 44 | H17: 49 | I17: 74.33089 | J17: 111.6618 | K17: 160.9927 | L17: 188.9927 | M17: 210.3236 | N17: 1523.61066 | AD17: Bulnes | AE17: 15
A18: Cabildo | B18: 243.9705 | C18: 200.7906 | D18: 169.6414 | E18: 120.2066 | F18: 90.95986 | G18: 67.08388 | H18: 78.96742 | I18: 100.1288 | J18: 133.6861 | K18: 183.4354 | L18: 220.2014 | M18: 252.6575 | N18: 1861.72946 | AD18: Cabildo | AE18: 16
A19: Cabo de Hornos | B19: 131.002 | C19: 92.88631 | D19: 71.98101 | E19: 37.90606 | F19: 19.59859 | G19: 10.2778 | H19: 14.04806 | I19: 30.73188 | J19: 63.03713 | K19: 100.2287 | L19: 131.6774 | M19: 144.7601 | N19: 848.13504 | AD19: Cabo de Hornos | AE19: 17
A20: Cabrero | B20: 216.1702 | C20: 165.5072 | D20: 144.9536 | E20: 95.16997 | F20: 56.0002 | G20: 43.50679 | H20: 48.01357 | I20: 73.44658 | J20: 109.6768 | K20: 159.6634 | L20: 187.1702 | M20: 208.88 | N20: 1508.15851 | AD20: Cabrero | AE20: 18
A21: Calama | B21: 235.3783 | C21: 218.024 | D21: 215.7562 | E21: 180.8399 | F21: 168.4143 | G21: 153.8232 | H21: 161.9645 | I21: 177.5164 | J21: 193.0809 | K21: 246.7781 | L21: 263.4117 | M21: 290.9502 | N21: 2505.9377 | AD21: Calama | AE21: 19
A22: Calbuco | B22: 181.6139 | C22: 155.3524 | D22: 113.3181 | E22: 73.30011 | F22: 44.81116 | G22: 31.18042 | H22: 38.18042 | I22: 60.88827 | J22: 88.76016 | K22: 122.9488 | L22: 145.6649 | M22: 176.76 | N22: 1232.77864 | AD22: Calbuco | AE22: 20
A23: Caldera | B23: 202.1027 | C23: 170.0939 | D23: 158.2961 | E23: 114.4704 | F23: 96.75346 | G23: 82.87185 | H23: 95.50485 | I23: 117.88 | J23: 143.5882 | K23: 179.8841 | L23: 187.3014 | M23: 211.4096 | N23: 1760.15656 | AD23: Caldera | AE23: 21
A24: Calera | B24: 205 | C24: 158 | D24: 142 | E24: 94 | F24: 66 | G24: 51 | H24: 61 | I24: 86 | J24: 117 | K24: 154 | L24: 186 | M24: 205 | N24: 1525 | AD24: Calera | AE24: 22
A25: Calera de Tango | B25: 245 | C25: 195 | D25: 170 | E25: 110 | F25: 75 | G25: 57 | H25: 69 | I25: 92 | J25: 126 | K25: 180 | L25: 221 | M25: 248 | N25: 1788 | AD25: Calera de Tango | AE25: 23
A26: Calle Larga | B26: 248.6986 | C26: 207.8894 | D26: 173.9011 | E26: 124.1571 | F26: 93.6368 | G26: 68.0919 | H26: 83.14745 | I26: 103.9642 | J26: 138.7425 | K26: 186.142 | L26: 225.689 | M26: 254.2168 | N26: 1908.27685 | AD26: Calle Larga | AE26: 24
A27: Camarones | B27: 226.7672 | C27: 195.9755 | D27: 206.2419 | E27: 181.1796 | F27: 167.9821 | G27: 149.7299 | H27: 161.5342 | I27: 178.4845 | J27: 199.458 | K27: 240.0625 | L27: 248.8951 | M27: 244.5381 | N27: 2400.8486 | AD27: Camarones | AE27: 25
A28: Camiña | B28: 229.4903 | C28: 197.5368 | D28: 208.3339 | E28: 184.126 | F28: 169.9033 | G28: 151.664 | H28: 163.3494 | I28: 181.4142 | J28: 200.1776 | K28: 242.7069 | L28: 250.6761 | M28: 255.5642 | N28: 2434.9427 | AD28: Camiña | AE28: 26
A29: Canela | B29: 210.0665 | C29: 172.1666 | D29: 153.6274 | E29: 109.0546 | F29: 81.42494 | G29: 66.99138 | H29: 76.44855 | I29: 96.56439 | J29: 125.5678 | K29: 171.3715 | L29: 197.1913 | M29: 219.5115 | N29: 1679.98646 | AD29: Canela | AE29: 27
A30: Cañete | B30: 205.2995 | C30: 159.0049 | D30: 139.0339 | E30: 90.2521 | F30: 53.87014 | G30: 41.55117 | H30: 46.1832 | I30: 70.68694 | J30: 103.9725 | K30: 150.3755 | L30: 175.5177 | M30: 199.4762 | N30: 1435.22375 | AD30: Cañete | AE30: 28
A31: Carahue | B31: 194.8909 | C31: 164.7362 | D31: 140.0747 | E31: 87.98762 | F31: 55.38809 | G31: 40.48516 | H31: 46.81843 | I31: 70.21908 | J31: 100.4877 | K31: 138.5899 | L31: 162.1373 | M31: 185.9212 | N31: 1387.73628 | AD31: Carahue | AE31: 29
A32: Cartagena | B32: 194.0743 | C32: 150.0681 | D32: 133.0557 | E32: 88.03095 | F32: 61.02476 | G32: 48.01857 | H32: 57.01857 | I32: 80.03095 | J32: 109.0371 | K32: 147.0433 | L32: 176.0619 | M32: 195.0743 | N32: 1438.5385 | AD32: Cartagena | AE32: 30
A33: Casablanca | B33: 200.3812 | C33: 156.6568 | D33: 138.1834 | E33: 91.52444 | F33: 63.18322 | G33: 49.40178 | H33: 58.93235 | I33: 81.55287 | J33: 110.2148 | K33: 150.7025 | L33: 181.2853 | M33: 201.7307 | N33: 1483.74936 | AD33: Casablanca | AE33: 31
A34: Castro | B34: 168.2614 | C34: 145.4041 | D34: 106.5532 | E34: 67.84495 | F34: 42.42247 | G34: 29.42247 | H34: 35.42247 | I34: 55.98167 | J34: 83.98167 | K34: 118.4165 | L34: 143.5409 | M34: 166.1001 | N34: 1163.3519 | AD34: Castro | AE34: 32
A35: Catemu | B35: 245.9944 | C35: 196.3014 | D35: 171.2173 | E35: 115.1786 | F35: 82.36407 | G35: 62.97057 | H35: 75.58013 | I35: 100.4297 | J35: 134.9951 | K35: 185.2351 | L35: 223.5365 | M35: 250.3045 | N35: 1844.10737 | AD35: Catemu | AE35: 33
A36: Cauquenes | B36: 222.3391 | C36: 175.0483 | D36: 151.5909 | E36: 98.33379 | F36: 58.90417 | G36: 44.4237 | H36: 51.99803 | I36: 76.91738 | J36: 113.345 | K36: 162.5156 | L36: 195.3298 | M36: 215.9002 | N36: 1566.64597 | AD36: Cauquenes | AE36: 34
A37: Cerrillos | B37: 245 | C37: 195 | D37: 170 | E37: 110 | F37: 75 | G37: 57 | H37: 69 | I37: 92 | J37: 126 | K37: 180 | L37: 221 | M37: 248 | N37: 1788 | AD37: Cerrillos | AE37: 35
A38: Cerro Navia | B38: 245 | C38: 195 | D38: 170 | E38: 110 | F38: 75 | G38: 57 | H38: 69 | I38: 92 | J38: 126 | K38: 180 | L38: 221 | M38: 248 | N38: 1788 | AD38: Cerro Navia | AE38: 36
A39: Chaitén | B39: 170.6415 | C39: 144.8046 | D39: 111.1236 | E39: 66.78914 | F39: 41.03111 | G39: 30.62526 | H39: 33.26063 | I39: 55.6036 | J39: 87.30324 | K39: 126.3263 | L39: 154.1271 | M39: 166.2908 | N39: 1187.92688 | AD39: Chaitén | AE39: 37
A40: Chanco | B40: 220.1886 | C40: 172.2877 | D40: 149.6438 | E40: 98.63465 | F40: 59.99694 | G40: 44.36229 | H40: 52.72457 | I40: 77 | J40: 112.6377 | K40: 161.2754 | L40: 193.6438 | M40: 214.6438 | N40: 1557.03925 | AD40: Chanco | AE40: 38
A41: Chañaral | B41: 233.1069 | C41: 196.187 | D41: 181.5157 | E41: 133.8934 | F41: 116.3256 | G41: 100.8693 | H41: 113.7931 | I41: 137.3073 | J41: 165.2165 | K41: 208.8419 | L41: 219.9829 | M41: 248.1282 | N41: 2055.1678 | AD41: Chañaral | AE41: 39
A42: Chépica | B42: 218.5784 | C42: 177.5707 | D42: 151.9962 | E42: 96.00384 | F42: 58.01151 | G42: 39.18742 | H42: 52.59754 | I42: 75.01151 | J42: 109.5899 | K42: 153.5899 | L42: 191.586 | M42: 213.5899 | N42: 1537.31282 | AD42: Chépica | AE42: 40
A43: Chiguayante | B43: 218.1401 | C43: 164.9121 | D43: 146.2981 | E43: 96.45605 | F43: 55.84203 | G43: 44.22802 | H43: 48.84203 | I43: 75.45605 | J43: 111.0701 | K43: 161.9121 | L43: 188.9121 | M43: 211.7541 | N43: 1523.82288 | AD43: Chiguayante | AE43: 41
A44: Chile Chico | B44: 193.1791 | C44: 148.5566 | D44: 120.6881 | E44: 68.59132 | F44: 39.54061 | G44: 29.45572 | H44: 35.17015 | I44: 57.76571 | J44: 95.71774 | K44: 140.836 | L44: 168.7413 | M44: 186.0954 | N44: 1284.33775 | AD44: Chile Chico | AE44: 42
A45: Chillán | B45: 219.0899 | C45: 169.2282 | D45: 147.9413 | E45: 97.06386 | F45: 57.02607 | G45: 44.11084 | H45: 49.8308 | I45: 75.09029 | J45: 111.8671 | K45: 161.0231 | L45: 189.9165 | M45: 211.7618 | N45: 1533.94976 | AD45: Chillán | AE45: 43
A46: Chillán Viejo | B46: 217.8657 | C46: 167.1947 | D46: 146.8271 | E46: 96.44467 | F46: 56.42098 | G46: 44.01486 | H46: 49.38243 | I46: 74.43584 | J46: 111.4447 | K46: 160.4981 | L46: 188.8657 | M46: 210.2718 | N46: 1523.66658 | AD46: Chillán Viejo | AE46: 44
A47: Chimbarongo | B47: 227.0358 | C47: 182.5297 | D47: 157.0436 | E47: 100.6306 | F47: 63.9076 | G47: 44.13306 | H47: 57.46809 | I47: 79.8296 | J47: 113.8031 | K47: 159.5662 | L47: 198.5447 | M47: 221.1832 | N47: 1605.67525 | AD47: Chimbarongo | AE47: 45
A48: Cholchol | B48: 199.6656 | C48: 167.4448 | D48: 140.0972 | E48: 87.85051 | F48: 54.89912 | G48: 40.87665 | H48: 46.85051 | I48: 70.67856 | J48: 101.2824 | K48: 143.12 | L48: 167.9742 | M48: 191.5817 | N48: 1412.32125 | AD48: Cholchol | AE48: 46
A49: Chonchi | B49: 167.804 | C49: 145.8855 | D49: 106.5429 | E49: 67.65307 | F49: 42.13985 | G49: 29.52845 | H49: 34.96089 | I49: 56.76107 | J49: 84.1933 | K49: 118.7796 | L49: 144.6047 | M49: 166.5537 | N49: 1165.40703 | AD49: Chonchi | AE49: 47
A50: Cisnes | B50: 167.3153 | C50: 140.8524 | D50: 108.1005 | E50: 63.70036 | F50: 38.21481 | G50: 28.91448 | H50: 32.49111 | I50: 55.23204 | J50: 88.69533 | K50: 128.9332 | L50: 153.3206 | M50: 168.8758 | N50: 1174.64593 | AD50: Cisnes | AE50: 48
A51: Cobquecura | B51: 222.1998 | C51: 169.8309 | D51: 150.4582 | E51: 98.91356 | F51: 58.91356 | G51: 45.74162 | H51: 51.91356 | I51: 77.91356 | J51: 114.1143 | K51: 164.8559 | L51: 192.8309 | M51: 214.4582 | N51: 1562.14406 | AD51: Cobquecura | AE51: 49
A52: Cochamó | B52: 187.8998 | C52: 156.2175 | D52: 125.0747 | E52: 79.32274 | F52: 48.55622 | G52: 39.08851 | H52: 41.39049 | I52: 61.53807 | J52: 86.09022 | K52: 133.198 | L52: 165.9361 | M52: 187.8104 | N52: 1312.12275 | AD52: Cochamó | AE52: 50
A53: Cochrane | B53: 174.4617 | C53: 137.3782 | D53: 114.4692 | E53: 64.23766 | F53: 38.01441 | G53: 27.23104 | H53: 33.42628 | I53: 54.40226 | J53: 91.69992 | K53: 133.2008 | L53: 154.9613 | M53: 169.0727 | N53: 1192.55547 | AD53: Cochrane | AE53: 51
A54: Codegua | B54: 240.979 | C54: 195.9981 | D54: 166.0723 | E54: 111.1382 | F54: 77.16984 | G54: 56.53065 | H54: 69.52486 | I54: 92.45447 | J54: 126.2832 | K54: 177.23 | L54: 214.9176 | M54: 240.6731 | N54: 1768.97132 | AD54: Codegua | AE54: 52
A55: Coelemu | B55: 215.5087 | C55: 163.5087 | D55: 145.3391 | E55: 96.16955 | F55: 56.16955 | G55: 44.08478 | H55: 49.08478 | I55: 75.16955 | J55: 111.1696 | K55: 160.3391 | L55: 186.5087 | M55: 209.4239 | N55: 1512.47601 | AD55: Coelemu | AE55: 53
A56: Coihueco | B56: 230.2822 | C56: 189.2254 | D56: 157.7092 | E56: 101.8385 | F56: 64.14306 | G56: 46.50873 | H56: 52.15153 | I56: 74.53657 | J56: 107.6465 | K56: 158.9468 | L56: 191.8003 | M56: 219.3829 | N56: 1594.17169 | AD56: Coihaique | AE56: 71
A57: Coinco | B57: 218.5957 | C57: 173.8766 | D57: 150.8766 | E57: 98.87657 | F57: 65.87657 | G57: 48.43829 | H57: 60.43829 | I57: 82.15743 | J57: 113.8766 | K57: 159.5957 | L57: 196.3149 | M57: 219.034 | N57: 1587.95725 | AD57: Coihueco | AE57: 54
A58: Colbún | B58: 233.4803 | C58: 197.4284 | D58: 162.9306 | E58: 107.0774 | F58: 71.1459 | G58: 46.19193 | H58: 55.3534 | I58: 75.83926 | J58: 106.0043 | K58: 152.2535 | L58: 188.502 | M58: 224.5557 | N58: 1620.76269 | AD58: Coinco | AE58: 55
A59: Colchane | B59: 208.8354 | C59: 183.1172 | D59: 183.4839 | E59: 175.6918 | F59: 174.9394 | G59: 148.1461 | H59: 162.8819 | I59: 180.6153 | J59: 203.4455 | K59: 243.6523 | L59: 271.7332 | M59: 238.5338 | N59: 2375.0758 | AD59: Colbún | AE59: 56
A60: Colina | B60: 247.3122 | C60: 201.6977 | D60: 172.4958 | E60: 116.0943 | F60: 82.53283 | G60: 62.17347 | H60: 74.75103 | I60: 95.95274 | J60: 130.676 | K60: 184.5585 | L60: 223.975 | M60: 251.1177 | N60: 1843.33727 | AD60: Colchane | AE60: 57
A61: Collipulli | B61: 218.9786 | C61: 181.5885 | D61: 149.8524 | E61: 94.40834 | F61: 60.09145 | G61: 43.8108 | H61: 51.05353 | I61: 73.83287 | J61: 107.7016 | K61: 160.4577 | L61: 184.5623 | M61: 211.532 | N61: 1537.87009 | AD61: Colina | AE61: 58
A62: Coltauco | B62: 215.6272 | C62: 171.5819 | D62: 148.5819 | E62: 96.46743 | F62: 63.29567 | G62: 47.03332 | H62: 59.03332 | I62: 80.19312 | J62: 111.4102 | K62: 156.4555 | L62: 192.6153 | M62: 214.7751 | N62: 1557.06996 | AD62: Collipulli | AE62: 59
A63: Combarbalá | B63: 260.2966 | C63: 217.315 | D63: 181.052 | E63: 135.2367 | F63: 105.2533 | G63: 82.96195 | H63: 94.41364 | I63: 112.1991 | J63: 148.5162 | K63: 204.8627 | L63: 236.9738 | M63: 274.404 | N63: 2053.48499 | AD63: Coltauco | AE63: 60
A64: Concepción | B64: 214.4824 | C64: 161.9859 | D64: 143.7377 | E64: 94.99295 | F64: 54.74471 | G64: 43.49647 | H64: 47.74471 | I64: 73.99295 | J64: 109.2412 | K64: 158.9859 | L64: 185.9859 | M64: 207.7306 | N64: 1497.12139 | AD64: Combarbalá | AE64: 61
A65: Conchalí | B65: 246.6585 | C65: 196.6585 | D65: 171.2439 | E65: 111.2439 | F65: 75.82927 | G65: 57.62195 | H65: 69.82927 | I65: 93.2439 | J65: 127.2439 | K65: 181.6585 | L65: 222.8659 | M65: 250.0732 | N65: 1804.17069 | AD65: Concepción | AE65: 62
A66: Concón | B66: 188 | C66: 146 | D66: 129 | E66: 87 | F66: 62 | G66: 49 | H66: 57 | I66: 81 | J66: 108 | K66: 144 | L66: 171 | M66: 189 | N66: 1411 | AD66: Conchalí | AE66: 63
A67: Constitución | B67: 218.6569 | C67: 174.0912 | D67: 151.1294 | E67: 97.39993 | F67: 59.38612 | G67: 42.95202 | H67: 53.38612 | I67: 76.87204 | J67: 112.2202 | K67: 158.8684 | L67: 194.3326 | M67: 215.181 | N67: 1554.47593 | AD67: Concón | AE67: 64
A68: Contulmo | B68: 204.2153 | C68: 162.6137 | D68: 137.8204 | E68: 88.61257 | F68: 53.60516 | G68: 41.00247 | H68: 46.60269 | I68: 70.00247 | J68: 102.6101 | K68: 147.1993 | L68: 174.0074 | M68: 197.0099 | N68: 1425.30146 | AD68: Constitución | AE68: 65
A69: Copiapó | B69: 241.5712 | C69: 210.4926 | D69: 193.2244 | E69: 145.5478 | F69: 124.5119 | G69: 109.0312 | H69: 119.8063 | I69: 139.3639 | J69: 165.8251 | K69: 216.7024 | L69: 236.1839 | M69: 272.0832 | N69: 2174.3439 | AD69: Contulmo | AE69: 66
A70: Coquimbo | B70: 195.3291 | C70: 168.1813 | D70: 155.3678 | E70: 115.3066 | F70: 89.10661 | G70: 75.25395 | H70: 86.21268 | I70: 105.9292 | J70: 132.8764 | K70: 176.533 | L70: 189.4685 | M70: 211.101 | N70: 1700.66614 | AD70: Copiapó | AE70: 67
A71: Coronel | B71: 214.0986 | C71: 162.2952 | D71: 143.8349 | E71: 94.1066 | F71: 54.76341 | G71: 43.30315 | H71: 47.76341 | I71: 73.66514 | J71: 109.3796 | K71: 158.7366 | L71: 185.6433 | M71: 208.4061 | N71: 1495.99601 | AD71: Coquimbo | AE71: 68
A72: Corral | B72: 197.7293 | C72: 165.1897 | D72: 126.004 | E72: 80.4149 | F72: 50.81004 | G72: 36.83843 | H72: 43.4141 | I72: 66.40159 | J72: 95.3958 | K72: 131.6697 | L72: 158.8246 | M72: 191.4024 | N72: 1344.09456 | AD72: Coronel | AE72: 69
A73: Coyhaique | B73: 197.0859 | C73: 153.7033 | D73: 122.8772 | E73: 71.6473 | F73: 41.5056 | G73: 31.37572 | H73: 37.82166 | I73: 61.67605 | J73: 101.5283 | K73: 148.5113 | L73: 179.6179 | M73: 200.0426 | N73: 1347.39283 | AD73: Corral | AE73: 70
A74: Cunco | B74: 204.3919 | C74: 177.6321 | D74: 144.4931 | E74: 89.60534 | F74: 58.75782 | G74: 42.62504 | H74: 49.36757 | I74: 71.27046 | J74: 100.116 | K74: 146.9431 | L74: 167.6106 | M74: 195.399 | N74: 1448.21203 | AD74: Cunco | AE74: 72
A75: Curacautín | B75: 230.9202 | C75: 198.2828 | D75: 159.0192 | E75: 98.97349 | F75: 65.96717 | G75: 46.5609 | H75: 53.67102 | I75: 77.01897 | J75: 107.8519 | K75: 164.3277 | L75: 191.4417 | M75: 221.3984 | N75: 1615.43345 | AD75: Curacautín | AE75: 73
A76: Curacaví | B76: 223.1168 | C76: 176.087 | D76: 154.5314 | E76: 101.3279 | F76: 70.1848 | G76: 53.99913 | H76: 65.02032 | I76: 88.56606 | J76: 120.0699 | K76: 165.4385 | L76: 201.654 | M76: 225.2096 | N76: 1645.20541 | AD76: Curacaví | AE76: 74
A77: Curaco de Vélez | B77: 172 | C77: 147 | D77: 109 | E77: 69 | F77: 43 | G77: 30 | H77: 36 | I77: 57 | J77: 85 | K77: 121 | L77: 145 | M77: 168 | N77: 1182 | AD77: Curaco de Vélez | AE77: 75
A78: Curanilahue | B78: 208.2167 | C78: 166.1577 | D78: 141.9504 | E78: 91.47785 | F78: 56.46599 | G78: 42.24412 | H78: 46.99536 | I78: 70.01203 | J78: 105.2305 | K78: 150.7556 | L78: 174.3041 | M78: 199.0104 | N78: 1452.82075 | AD78: Curanilahue | AE78: 76
A79: Curarrehue | B79: 216.6458 | C79: 187.0633 | D79: 149.4775 | E79: 95.28717 | F79: 62.92752 | G79: 47.66144 | H79: 52.60788 | I79: 74.51431 | J79: 98.79501 | K79: 150.834 | L79: 177.5457 | M79: 209.8329 | N79: 1523.19253 | AD79: Curarrehue | AE79: 77
A80: Curepto | B80: 218.5792 | C80: 175.8101 | D80: 151.613 | E80: 96.61158 | F80: 58.41276 | G80: 40.79977 | H80: 53.00487 | I80: 75.43538 | J80: 111.0035 | K80: 155.4099 | L80: 192.0101 | M80: 214.0017 | N80: 1542.69186 | AD80: Curepto | AE80: 78
A81: Curicó | B81: 231.2002 | C81: 193.1503 | D81: 161.8943 | E81: 106.7423 | F81: 70.56173 | G81: 45.80332 | H81: 58.62168 | I81: 78.3032 | J81: 111.3166 | K81: 150.2165 | L81: 186.8434 | M81: 220.2595 | N81: 1614.91303 | AD81: Curicó | AE81: 79
A82: Dalcahue | B82: 172.414 | C82: 147.7007 | D82: 108.73 | E82: 69.60602 | F82: 42.89506 | G82: 30.12478 | H82: 36.48124 | I82: 57.65482 | J82: 84.9108 | K82: 118.7097 | L82: 143.5723 | M82: 169.6122 | N82: 1182.41162 | AD82: Dalcahue | AE82: 80
A83: Diego de Almagro | B83: 258.3312 | C83: 230.8652 | D83: 215.4986 | E83: 166.1566 | F83: 144.7279 | G83: 132.1239 | H83: 142.4712 | I83: 156.0929 | J83: 179.9636 | K83: 235.7774 | L83: 261.6442 | M83: 304.9261 | N83: 2428.5788 | AD83: Diego de Almagro | AE83: 81
A84: Doñihue | B84: 220 | C84: 175 | D84: 152 | E84: 100 | F84: 67 | G84: 49 | H84: 61 | I84: 83 | J84: 115 | K84: 161 | L84: 198 | M84: 221 | N84: 1602 | AD84: Doñihue | AE84: 82
A85: El Bosque | B85: 247.0523 | C85: 197.0523 | D85: 171.5392 | E85: 111.5392 | F85: 76.02613 | G85: 57.7696 | H85: 70.02613 | I85: 93.53919 | J85: 127.5392 | K85: 182.0523 | L85: 223.3088 | M85: 250.5653 | N85: 1808.00965 | AD85: El Bosque | AE85: 83
A86: El Carmen | B86: 220.955 | C86: 174.5627 | D86: 150.502 | E86: 97.41343 | F86: 58.64721 | G86: 44.38039 | H86: 50.04359 | I86: 74.01054 | J86: 110.5245 | K86: 161.7703 | L86: 190.8033 | M86: 211.7318 | N86: 1545.34476 | AD86: El Carmen | AE86: 84
A87: El Monte | B87: 221.5555 | C87: 174.517 | D87: 153.1168 | E87: 100.2485 | F87: 68.41858 | G87: 52.47393 | H87: 63.164 | I87: 87.19167 | J87: 119.0827 | K87: 164.554 | L87: 199.6644 | M87: 222.6551 | N87: 1626.64218 | AD87: El Monte | AE87: 85
A88: El Quisco | B88: 193.1877 | C88: 149.5939 | D88: 132.1877 | E88: 88 | F88: 61 | G88: 48 | H88: 56.59385 | I88: 80 | J88: 109 | K88: 147 | L88: 175.1877 | M88: 194.1877 | N88: 1433.93855 | AD88: El Quisco | AE88: 86
A89: El Tabo | B89: 193.9712 | C89: 149.9856 | D89: 132.9712 | E89: 88 | F89: 61 | G89: 48 | H89: 56.98561 | I89: 80 | J89: 109 | K89: 147 | L89: 175.9712 | M89: 194.9712 | N89: 1437.85601 | AD89: El Tabo | AE89: 87
A90: Empedrado | B90: 219.922 | C90: 174.936 | D90: 151.4074 | E90: 98.02438 | F90: 59.35212 | G90: 43.44907 | H90: 53.09481 | I90: 77 | J90: 112.6723 | K90: 160.4659 | L90: 195.4074 | M90: 215.968 | N90: 1561.69938 | AD90: Empedrado | AE90: 88
A91: Ercilla | B91: 205.9899 | C91: 169.6733 | D91: 142.9413 | E91: 90.6199 | F91: 56.81711 | G91: 42.20479 | H91: 48.30468 | I91: 71.00662 | J91: 103.6112 | K91: 152.2306 | L91: 176.4328 | M91: 200.557 | N91: 1460.3892 | AD91: Ercilla | AE91: 89
A92: Estación Central | B92: 245 | C92: 195 | D92: 170 | E92: 110 | F92: 75 | G92: 57 | H92: 69 | I92: 92 | J92: 126 | K92: 180 | L92: 221 | M92: 248 | N92: 1788 | AD92: Estación Central | AE92: 90
A93: Florida | B93: 214.3055 | C93: 162.3055 | D93: 143.7364 | E93: 95.15743 | F93: 54.87308 | G93: 43.29437 | H93: 47.58852 | I93: 73.58874 | J93: 109.4516 | K93: 158.7364 | L93: 186.0114 | M93: 207.3151 | N93: 1496.36404 | AD93: Florida | AE93: 91
A94: Freire | B94: 198.5939 | C94: 168.0014 | D94: 138.1814 | E94: 85.78738 | F94: 53.56198 | G94: 40.12865 | H94: 45.69553 | I94: 69.44038 | J94: 98.5075 | K94: 137.8028 | L94: 161.8901 | M94: 190.702 | N94: 1388.29302 | AD94: Freire | AE94: 92
A95: Freirina | B95: 207.9729 | C95: 177.9112 | D95: 165.0701 | E95: 120.7853 | F95: 97.99252 | G95: 80.61511 | H95: 95.76174 | I95: 118.2802 | J95: 146.6558 | K95: 187.8616 | L95: 193.222 | M95: 218.2112 | N95: 1810.33967 | AD95: Freirina | AE95: 93
A96: Fresia | B96: 184.6372 | C96: 158.2619 | D96: 116.1431 | E96: 75.42872 | F96: 47.08788 | G96: 32.75054 | H96: 39.74879 | I96: 62.46315 | J96: 90.4614 | K96: 125.1052 | L96: 148.2654 | M96: 179.5683 | N96: 1259.92158 | AD96: Fresia | AE96: 94
A97: Frutillar | B97: 177.9164 | C97: 152.2536 | D97: 111.5566 | E97: 72.20343 | F97: 45.08455 | G97: 32.03434 | H97: 39.03434 | I97: 60.08455 | J97: 88.08455 | K97: 119.6068 | L97: 141.9507 | M97: 171.6913 | N97: 1211.50116 | AD97: Frutillar | AE97: 95
A98: Futaleufú | B98: 186.4222 | C98: 155.0982 | D98: 120.7588 | E98: 71.21273 | F98: 43.65517 | G98: 33.45626 | H98: 34.47748 | I98: 58.80892 | J98: 95.15832 | K98: 138.34 | L98: 170.9778 | M98: 182.2508 | N98: 1290.61668 | AD98: Futaleufú | AE98: 96
A99: Futrono | B99: 192.5631 | C99: 160.2871 | D99: 126.99 | E99: 82.06635 | F99: 51.70863 | G99: 40.72499 | H99: 44.43991 | I99: 65.28886 | J99: 90.81642 | K99: 134.7085 | L99: 163.4868 | M99: 190.7169 | N99: 1343.79756 | AD99: Futrono | AE99: 97
A100: Galvarino | B100: 201.3199 | C100: 167.1933 | D100: 140.0968 | E100: 88.0068 | F100: 55.08969 | G100: 40.9997 | H100: 47 | I100: 70.99941 | J100: 101.9162 | K100: 145.1134 | L100: 169.8307 | M100: 194.111 | N100: 1421.6769 | AD100: Galvarino | AE100: 98
A101: General Lagos | B101: 208.5719 | C101: 183.4179 | D101: 189.3695 | E101: 185.4214 | F101: 187.6108 | G101: 163.5395 | H101: 178.6475 | I101: 194.7212 | J101: 211.1693 | K101: 246.7839 | L101: 261.5669 | M101: 229.0797 | N101: 2439.8995 | AD101: General Lagos | AE101: 99
A102: Gorbea | B102: 201 | C102: 170 | D102: 137.9518 | E102: 84.47588 | F102: 53.95175 | G102: 39 | H102: 45.47588 | I102: 68.95175 | J102: 98.47588 | K102: 135.9518 | L102: 160 | M102: 192.5724 | N102: 1387.80714 | AD102: Gorbea | AE102: 100
A103: Graneros | B103: 220.0753 | C103: 175.0622 | D103: 152.0524 | E103: 100.036 | F103: 67.02946 | G103: 49.02292 | H103: 61.02946 | I103: 83.02946 | J103: 115.0393 | K103: 161.0524 | L103: 198.0655 | M103: 221.0818 | N103: 1602.5762 | AD103: Graneros | AE103: 101
A104: Guaitecas | B104: 176.1419 | C104: 148.7873 | D104: 108.9172 | E104: 67.02388 | F104: 39.8797 | G104: 30.58555 | H104: 32.88759 | I104: 57.10281 | J104: 89.61616 | K104: 130.8431 | L104: 159.2747 | M104: 178.3362 | N104: 1219.39609 | AD104: Guaitecas | AE104: 102
A105: Hijuelas | B105: 205 | C105: 158 | D105: 142 | E105: 94 | F105: 66 | G105: 51 | H105: 61 | I105: 86 | J105: 117 | K105: 154 | L105: 186 | M105: 205 | N105: 1525 | AD105: Hijuelas | AE105: 103
A106: Hualaihué | B106: 172.1108 | C106: 146.2426 | D106: 114.3428 | E106: 71.46203 | F106: 44.50563 | G106: 33.82968 | H106: 36.88425 | I106: 57.11475 | J106: 83.88424 | K106: 123.0261 | L106: 149.8855 | M106: 167.7147 | N106: 1201.00308 | AD106: Hualaihué | AE106: 104
A107: Hualañé | B107: 218.6922 | C107: 177.1024 | D107: 152.2706 | E107: 96.4872 | F107: 58.27065 | G107: 40.27065 | H107: 52.79481 | I107: 75.84907 | J107: 110.3846 | K107: 154.8604 | L107: 192.1681 | M107: 214.1681 | N107: 1543.31878 | AD107: Hualañé | AE107: 105
A108: Hualpén | B108: 222 | C108: 168 | D108: 149 | E108: 98 | F108: 57 | G108: 45 | H108: 50 | I108: 77 | J108: 113 | K108: 165 | L108: 192 | M108: 216 | N108: 1552 | AD108: Hualpén | AE108: 106
A109: Hualqui | B109: 214.0757 | C109: 162.0676 | D109: 143.3852 | E109: 94.01616 | F109: 54.69056 | G109: 43.00808 | H109: 47.69056 | I109: 73.6946 | J109: 108.6986 | K109: 158.3892 | L109: 185.3892 | M109: 207.0798 | N109: 1492.18526 | AD109: Hualqui | AE109: 107
A110: Huara | B110: 227.3173 | C110: 198.0029 | D110: 205.8319 | E110: 173.9578 | F110: 159.6775 | G110: 143.959 | H110: 153.1287 | I110: 168.397 | J110: 189.9934 | K110: 232.9617 | L110: 240.7251 | M110: 248.6476 | N110: 2342.5999 | AD110: Huara | AE110: 108
A111: Huasco | B111: 191.4313 | C111: 164.1156 | D111: 153.1132 | E111: 111.4141 | F111: 91.75164 | G111: 75.7642 | H111: 89.75164 | I111: 111.3732 | J111: 136.8557 | K111: 171.9171 | L111: 175.316 | M111: 201.4228 | N111: 1674.22648 | AD111: Huasco | AE111: 109
A112: Huechuraba | B112: 251.5071 | C112: 201.6428 | D112: 174.9128 | E112: 115.0246 | F112: 78.45414 | G112: 59.58911 | H112: 72.4079 | I112: 96.93661 | J112: 130.9784 | K112: 186.5757 | L112: 228.3274 | M112: 256.1253 | N112: 1852.48186 | AD112: Huechuraba | AE112: 110
A113: Illapel | B113: 255.6633 | C113: 212.1141 | D113: 177.2229 | E113: 130.3137 | F113: 99.28143 | G113: 75.58824 | H113: 87.29815 | I113: 105.8922 | J113: 140.1504 | K113: 195.0416 | L113: 232.3403 | M113: 268.135 | N113: 1979.04132 | AD113: Illapel | AE113: 111
A114: Independencia | B114: 249.7207 | C114: 199.7207 | D114: 173.5405 | E114: 113.5405 | F114: 77.36036 | G114: 58.77027 | H114: 71.36036 | I114: 95.54054 | J114: 129.5405 | K114: 184.7207 | L114: 226.3108 | M114: 253.9009 | N114: 1834.02683 | AD114: Independencia | AE114: 112
A115: Iquique | B115: 216.2175 | C115: 192.1478 | D115: 197.253 | E115: 148.4872 | F115: 134.8726 | G115: 119.2942 | H115: 120.1371 | I115: 131.4978 | J115: 157.2278 | K115: 201.6815 | L115: 217.296 | M115: 231.2819 | N115: 2067.3944 | AD115: Iquique | AE115: 113
A116: Isla de Maipo | B116: 237.2943 | C116: 188.7905 | D116: 164.0309 | E116: 108.2712 | F116: 73.76735 | G116: 54.75964 | H116: 68.01543 | I116: 90.51157 | J116: 124.7674 | K116: 173.7751 | L116: 213.0386 | M116: 239.5501 | N116: 1736.57209 | AD116: Isla de Maipo | AE116: 114
A117: Isla de Pascua | B117: 197 | C117: 161 | D117: 150 | E117: 114 | F117: 92 | G117: 75 | H117: 85 | I117: 103 | J117: 128 | K117: 162 | L117: 174 | M117: 189 | N117: 1630 | AD117: Isla de Pascua | AE117: 115
A118: Juan Fernández | B118: 177 | C118: 138 | D118: 149 | E118: 97 | F118: 74 | G118: 56 | H118: 66 | I118: 89 | J118: 118 | K118: 161 | L118: 173 | M118: 177 | N118: 1475 | AD118: Juan Fernández | AE118: 116
A119: La Cisterna | B119: 249.8859 | C119: 199.8859 | D119: 173.6644 | E119: 113.6644 | F119: 77.44295 | G119: 58.83221 | H119: 71.44295 | I119: 95.66443 | J119: 129.6644 | K119: 184.8859 | L119: 226.4966 | M119: 254.1074 | N119: 1835.63744 | AD119: La Cisterna | AE119: 117
A120: La Cruz | B120: 205 | C120: 158 | D120: 142 | E120: 94 | F120: 66 | G120: 51 | H120: 61 | I120: 86 | J120: 117 | K120: 154 | L120: 186 | M120: 205 | N120: 1525 | AD120: La Cruz | AE120: 118
A121: La Estrella | B121: 214.4928 | C121: 169.4928 | D121: 148.4928 | E121: 96 | F121: 63 | G121: 46 | H121: 57.7464 | I121: 80 | J121: 113 | K121: 156.2536 | L121: 191.7464 | M121: 212.7464 | N121: 1548.9712 | AD121: La Estrella | AE121: 119
A122: La Florida | B122: 253 | C122: 203 | D122: 176 | E122: 116 | F122: 79 | G122: 60 | H122: 73 | I122: 98 | J122: 132 | K122: 188 | L122: 230 | M122: 258 | N122: 1866 | AD122: La Florida | AE122: 120
A123: La Granja | B123: 253 | C123: 203 | D123: 176 | E123: 116 | F123: 79 | G123: 60 | H123: 73 | I123: 98 | J123: 132 | K123: 188 | L123: 230 | M123: 258 | N123: 1866 | AD123: La Granja | AE123: 121
A124: La Higuera | B124: 236.4756 | C124: 199.6376 | D124: 179.8677 | E124: 134.1104 | F124: 108.1852 | G124: 90.09216 | H124: 104.141 | I124: 125.9016 | J124: 158.5579 | K124: 210.258 | L124: 226.1265 | M124: 250.6994 | N124: 2024.05306 | AD124: La Higuera | AE124: 122
A125: La Ligua | B125: 203.5536 | C125: 160.4637 | D125: 142.4621 | E125: 96.55961 | F125: 70.32233 | G125: 54.94266 | H125: 63.88209 | I125: 87.29554 | J125: 115.5328 | K125: 155.9506 | L125: 185.9259 | M125: 205.6286 | N125: 1542.51953 | AD125: La Ligua | AE125: 123
A126: La Pintana | B126: 252.9299 | C126: 202.9299 | D126: 175.9474 | E126: 115.9474 | F126: 78.96495 | G126: 59.97371 | H126: 72.96495 | I126: 97.94743 | J126: 131.9474 | K126: 187.9299 | L126: 229.9211 | M126: 257.9124 | N126: 1865.31644 | AD126: La Pintana | AE126: 124
A127: La Reina | B127: 253 | C127: 203 | D127: 176 | E127: 116 | F127: 79 | G127: 60 | H127: 73 | I127: 98 | J127: 132 | K127: 188 | L127: 230 | M127: 258 | N127: 1866 | AD127: La Reina | AE127: 125
A128: La Serena | B128: 213.7164 | C128: 179.9177 | D128: 163.5817 | E128: 119.7837 | F128: 95.21014 | G128: 79.39441 | H128: 92.58168 | I128: 112.2983 | J128: 141.8783 | K128: 189.2199 | L128: 201.6809 | M128: 224.7238 | N128: 1813.98693 | AD128: La Serena | AE128: 126
A129: La Unión | B129: 191.5123 | C129: 160.8947 | D129: 121.9764 | E129: 78.43577 | F129: 49.63248 | G129: 36.21694 | H129: 42.80719 | I129: 65.21016 | J129: 93.07948 | K129: 128.9352 | L129: 154.4622 | M129: 185.317 | N129: 1308.47982 | AD129: La Unión | AE129: 127
A130: Lago Ranco | B130: 190.6242 | C130: 158.8872 | D130: 126.5968 | E130: 81.72099 | F130: 51.13187 | G130: 40.65239 | H130: 43.89235 | I130: 64.28213 | J130: 88.44066 | K130: 133.102 | L130: 163.5056 | M130: 189.4232 | N130: 1332.25939 | AD130: Lago Ranco | AE130: 128
A131: Lago Verde | B131: 192.2086 | C131: 156.8742 | D131: 122.371 | E131: 71.81575 | F131: 42.75017 | G131: 32.58655 | H131: 36.10653 | I131: 60.77663 | J131: 100.4493 | K131: 145.2317 | L131: 174.7869 | M131: 192.1014 | N131: 1328.05873 | AD131: Lago Verde | AE131: 129
A132: Laguna Blanca | B132: 171.3171 | C132: 118.17 | D132: 95.91812 | E132: 50.26208 | F132: 26.11986 | G132: 14.83237 | H132: 18.98918 | I132: 31.36075 | J132: 74.09682 | K132: 111.7336 | L132: 165.0966 | M132: 176.6388 | N132: 1054.53528 | AD132: Laguna Blanca | AE132: 130
A133: Laja | B133: 214.1429 | C133: 163.1704 | D133: 143.1134 | E133: 93.51327 | F133: 54.87487 | G133: 42.78619 | H133: 47.26806 | I133: 72.93602 | J133: 108.2681 | K133: 157.9951 | L133: 185.0543 | M133: 207.1134 | N133: 1490.23601 | AD133: Laja | AE133: 131
A134: Lampa | B134: 250.7984 | C134: 199.9706 | D134: 174.974 | E134: 114.9826 | F134: 78.32348 | G134: 60.32348 | H134: 73.1565 | I134: 96.15478 | J134: 131.8139 | K134: 184.974 | L134: 226.8019 | M134: 253.7984 | N134: 1846.07204 | AD134: Lampa | AE134: 132
A135: Lanco | B135: 192.2553 | C135: 161.2558 | D135: 128.7649 | E135: 80.88272 | F135: 51.25633 | G135: 39.2538 | H135: 44.25532 | I135: 67.25532 | J135: 95.50912 | K135: 134.5096 | L135: 159.5076 | M135: 188.999 | N135: 1343.70481 | AD135: Lanco | AE135: 133
A136: Las Cabras | B136: 215 | C136: 170.4939 | D136: 148.5061 | E136: 96 | F136: 63 | G136: 46.49393 | H136: 58.49393 | I136: 80 | J136: 112.0121 | K136: 156 | L136: 192 | M136: 213.4939 | N136: 1551.49386 | AD136: Las Cabras | AE136: 134
A137: Las Condes | B137: 253 | C137: 203 | D137: 176 | E137: 116 | F137: 79 | G137: 60 | H137: 73 | I137: 98 | J137: 132 | K137: 188 | L137: 230 | M137: 258 | N137: 1866 | AD137: Las Condes | AE137: 135
A138: Lautaro | B138: 206.0032 | C138: 173.1339 | D138: 144.018 | E138: 89.87673 | F138: 57.34409 | G138: 42.26811 | H138: 48.471 | I138: 72.47096 | J138: 102.6738 | K138: 150.3114 | L138: 171.0938 | M138: 198.2968 | N138: 1455.96179 | AD138: Lautaro | AE138: 136
A139: Lebu | B139: 200.1194 | C139: 154.3303 | D139: 136.0447 | E139: 88.7699 | F139: 53.01895 | G139: 40.83132 | H139: 44.83132 | I139: 68.74212 | J139: 101.9575 | K139: 146.4606 | L139: 171.792 | M139: 193.7265 | N139: 1400.62461 | AD139: Lebu | AE139: 137
A140: Licantén | B140: 214.1877 | C140: 171.2593 | D140: 148.9977 | E140: 95.76848 | F140: 59.50687 | G140: 42.22686 | H140: 53.51154 | I140: 76.78222 | J140: 111 | K140: 155.4838 | L140: 190.2292 | M140: 211.7177 | N140: 1530.67137 | AD140: Licantén | AE140: 138
A141: Limache | B141: 215.9807 | C141: 169.8792 | D141: 149.6399 | E141: 99.30747 | F141: 69.21288 | G141: 53.12941 | H141: 64.27685 | I141: 87.19338 | J141: 117.5856 | K141: 161.2102 | L141: 195.7693 | M141: 217.9363 | N141: 1601.12119 | AD141: Limache | AE141: 139
A142: Linares | B142: 224.0091 | C142: 181.738 | D142: 154.8526 | E142: 98.36248 | F142: 60.84238 | G142: 42.57714 | H142: 51.95696 | I142: 76.03835 | J142: 110.1764 | K142: 157.4965 | L142: 190.3408 | M142: 215.1044 | N142: 1563.49511 | AD142: Linares | AE142: 140
A143: Litueche | B143: 213.2384 | C143: 168.2968 | D143: 147.3666 | E143: 95.87728 | F143: 62.98151 | G143: 46.04987 | H143: 57.31506 | I143: 80.02255 | J143: 112.9394 | K143: 156.5489 | L143: 191.0393 | M143: 211.9983 | N143: 1543.67397 | AD143: Litueche | AE143: 141
A144: Llaillay | B144: 253.1979 | C144: 201.7351 | D144: 176.8096 | E144: 117.2064 | F144: 82.06597 | G144: 62.6032 | H144: 76.17342 | I144: 102.066 | J144: 137.5287 | K144: 189.7022 | L144: 229.7351 | M144: 256.7681 | N144: 1885.59169 | AD144: Llaillay | AE144: 142
A145: Llanquihue | B145: 177.8834 | C145: 152 | D145: 111.1166 | E145: 72 | F145: 45 | G145: 32 | H145: 39 | I145: 60 | J145: 88 | K145: 119.1166 | L145: 141.8834 | M145: 171.1166 | N145: 1209.1166 | AD145: Llanquihue | AE145: 143
A146: Lo Barnechea | B146: 235.5351 | C146: 201.138 | D146: 169.3003 | E146: 116.4331 | F146: 85.31832 | G146: 59.61833 | H146: 72.811 | I146: 91.0953 | J146: 122.0458 | K146: 165.3545 | L146: 200.5982 | M146: 232.9359 | N146: 1752.18385 | AD146: Lo Barnechea | AE146: 144
A147: Lo Espejo | B147: 245 | C147: 195 | D147: 170 | E147: 110 | F147: 75 | G147: 57 | H147: 69 | I147: 92 | J147: 126 | K147: 180 | L147: 221 | M147: 248 | N147: 1788 | AD147: Lo Espejo | AE147: 145
A148: Lo Prado | B148: 245 | C148: 195 | D148: 170 | E148: 110 | F148: 75 | G148: 57 | H148: 69 | I148: 92 | J148: 126 | K148: 180 | L148: 221 | M148: 248 | N148: 1788 | AD148: Lo Prado | AE148: 146
A149: Lolol | B149: 219.046 | C149: 177.4996 | D149: 152.5464 | E149: 96.54644 | F149: 58.54644 | G149: 40.54644 | H149: 53.09198 | I149: 76.0009 | J149: 110.5464 | K149: 155.0469 | L149: 192.5004 | M149: 214.5464 | N149: 1546.4643 | AD149: Lolol | AE149: 147
A150: Loncoche | B150: 195.8485 | C150: 164.8536 | D150: 132.8338 | E150: 82.51731 | F150: 52.58064 | G150: 39.21399 | H150: 44.89987 | I150: 68.16829 | J150: 96.91813 | K150: 135.3874 | L150: 159.8301 | M150: 190.1952 | N150: 1363.24683 | AD150: Loncoche | AE150: 148
A151: Longaví | B151: 222.94 | C151: 181.5416 | D151: 153.9551 | E151: 98.42496 | F151: 60.77917 | G151: 42.33729 | H151: 51.16671 | I151: 74.2121 | J151: 108.3827 | K151: 155.7508 | L151: 186.8401 | M151: 211.933 | N151: 1548.26353 | AD151: Longaví | AE151: 149
A152: Lonquimay | B152: 240.8456 | C152: 204.7026 | D152: 163.5007 | E152: 103.7582 | F152: 68.47551 | G152: 50.05162 | H152: 53.11254 | I152: 76.9465 | J152: 104.244 | K152: 166.4975 | L152: 201.5855 | M152: 232.277 | N152: 1665.99727 | AD152: Lonquimay | AE152: 150
A153: Los Alamos | B153: 204.366 | C153: 159.3345 | D153: 138.5312 | E153: 89.94641 | F153: 54.10255 | G153: 41.43302 | H153: 45.85713 | I153: 69.62062 | J153: 103.3705 | K153: 149.2635 | L153: 173.8171 | M153: 197.1787 | N153: 1426.82123 | AD153: Los Álamos | AE153: 151
A154: Los Andes | B154: 222.5205 | C154: 192.0331 | D154: 160.5056 | E154: 114.9972 | F154: 88.15399 | G154: 61.23423 | H154: 75.77314 | I154: 93.48734 | J154: 123.3883 | K154: 158.7473 | L154: 192.2052 | M154: 223.0712 | N154: 1706.1171 | AD154: Los Andes | AE154: 152
A155: Los Angeles | B155: 214.6382 | C155: 165.4827 | D155: 144.3517 | E155: 93.5111 | F155: 55.42149 | G155: 43.21537 | H155: 48.12576 | I155: 72.67095 | J155: 108.7664 | K155: 158.4215 | L155: 185.6223 | M155: 207.4426 | N155: 1497.67007 | AD155: Los Ángeles | AE155: 153
A156: Los Lagos | B156: 189.1498 | C156: 159.5137 | D156: 124.5689 | E156: 79.95075 | F156: 50.48837 | G156: 38.14521 | H156: 43.18291 | I156: 65.33288 | J156: 93.3188 | K156: 131.7405 | L156: 155.4766 | M156: 183.9852 | N156: 1314.85362 | AD156: Los Lagos | AE156: 154
A157: Los Muermos | B157: 185.2115 | C157: 158.6718 | D157: 116.1242 | E157: 75.27901 | F157: 46.22257 | G157: 32.14446 | H157: 39.85227 | I157: 62.85295 | J157: 90.51337 | K157: 124.864 | L157: 148.4186 | M157: 180.1975 | N157: 1260.35223 | AD157: Los Muermos | AE157: 155
A158: Los Sauces | B158: 208.5395 | C158: 169.7838 | D158: 143.3825 | E158: 90.01042 | F158: 56.10163 | G158: 43.05729 | H158: 47.80297 | I158: 71.6921 | J158: 105.1256 | K158: 150.6238 | L158: 175.9321 | M158: 199.9125 | N158: 1461.96421 | AD158: Los Sauces | AE158: 156
A159: Los Vilos | B159: 210.5922 | C159: 169.8829 | D159: 150.1725 | E159: 104.4141 | F159: 76.84845 | G159: 60.35409 | H159: 70.50692 | I159: 93.2756 | J159: 122.3222 | K159: 165.6627 | L159: 194.7574 | M159: 217.2385 | N159: 1636.02756 | AD159: Los Vilos | AE159: 157
A160: Lota | B160: 208 | C160: 158 | D160: 140 | E160: 91 | F160: 53 | G160: 42 | H160: 46 | I160: 71 | J160: 107 | K160: 154 | L160: 181 | M160: 203 | N160: 1454 | AD160: Lota | AE160: 158
A161: Lumaco | B161: 201.3398 | C161: 167.2289 | D161: 140.2636 | E161: 88.66128 | F161: 54.63318 | G161: 40.70681 | H161: 47 | I161: 70.09081 | J161: 101.827 | K161: 143.1106 | L161: 168.536 | M161: 190.4119 | N161: 1413.80988 | AD161: Lumaco | AE161: 159
A162: Machalí | B162: 233.4092 | C162: 202.4596 | D162: 166.1577 | E162: 114.413 | F162: 82.74648 | G162: 55.19506 | H162: 67.29291 | I162: 84.01008 | J162: 112.5135 | K162: 144.2689 | L162: 178.3515 | M162: 217.8338 | N162: 1658.65173 | AD162: Machalí | AE162: 160
A163: Macul | B163: 253 | C163: 203 | D163: 176 | E163: 116 | F163: 79 | G163: 60 | H163: 73 | I163: 98 | J163: 132 | K163: 188 | L163: 230 | M163: 258 | N163: 1866 | AD163: Macul | AE163: 161
A164: Máfil | B164: 191.0645 | C164: 161.6091 | D164: 125.4915 | E164: 79.79106 | F164: 50.09212 | G164: 38.03496 | H164: 43.09212 | I164: 66.57157 | J164: 94.42571 | K164: 132.7121 | L164: 157.2383 | M164: 187.0372 | N164: 1327.16024 | AD164: Máfil | AE164: 162
A165: Maipú | B165: 245 | C165: 195 | D165: 170 | E165: 110 | F165: 75 | G165: 57 | H165: 69 | I165: 92 | J165: 126 | K165: 180 | L165: 221 | M165: 248 | N165: 1788 | AD165: Maipú | AE165: 163
A166: Malloa | B166: 223.5691 | C166: 179.6307 | D166: 154.7538 | E166: 99.81534 | F166: 63.81534 | G166: 45.87689 | H166: 58.81534 | I166: 80.81534 | J166: 114.7538 | K166: 160.6307 | L166: 197.6307 | M166: 220.6307 | N166: 1600.73775 | AD166: Malloa | AE166: 164
A167: Marchigue | B167: 217.3676 | C167: 173.3853 | D167: 151.3676 | E167: 97.0177 | F167: 61.30201 | G167: 43.62173 | H167: 55.78511 | I167: 78.30201 | J167: 112.3197 | K167: 156.5115 | L167: 192.1634 | M167: 214.1811 | N167: 1553.32476 | AD167: Marchihue | AE167: 165
A168: María Elena | B168: 230.4555 | C168: 204.9752 | D168: 200.4766 | E168: 162.2126 | F168: 150.7423 | G168: 136.0215 | H168: 143.5451 | I168: 157.8476 | J168: 173.0459 | K168: 227.9426 | L168: 239.0201 | M168: 262.6673 | N168: 2288.9523 | AD168: María Elena | AE168: 166
A169: María Pinto | B169: 205.6057 | C169: 160.6385 | D169: 141.7043 | E169: 92.8357 | F169: 64.86856 | G169: 50.90142 | H169: 59.90142 | I169: 84.8357 | J169: 114.8028 | K169: 153.77 | L169: 185.6714 | M169: 206.6057 | N169: 1522.1412 | AD169: María Pinto | AE169: 167
A170: Mariquina | B170: 195.7459 | C170: 162.6683 | D170: 127.8013 | E170: 79.83959 | F170: 50.19003 | G170: 38.0666 | H170: 43.13887 | I170: 66.11776 | J170: 94.38254 | K170: 132.7428 | L170: 158.2843 | M170: 192.4586 | N170: 1341.43659 | AD170: Mariquina | AE170: 168
A171: Maule | B171: 216.3806 | C171: 174.3806 | D171: 150 | E171: 95.38056 | F171: 56.69028 | G171: 38.69028 | H171: 51 | I171: 74 | J171: 109.3806 | K171: 153.0708 | L171: 189.0708 | M171: 210.6903 | N171: 1518.73482 | AD171: Maule | AE171: 169
A172: Maullín | B172: 179.9366 | C172: 154.1683 | D172: 112.7568 | E172: 72.72808 | F172: 44.40429 | G172: 30.81052 | H172: 38.35886 | I172: 60.7344 | J172: 87.7712 | K172: 121.383 | L172: 144.1949 | M172: 175.2488 | N172: 1222.49575 | AD172: Maullín | AE172: 170
A173: Mejillones | B173: 229.414 | C173: 201.0932 | D173: 203.0989 | E173: 154.1946 | F173: 131.6082 | G173: 116.6786 | H173: 126.1689 | I173: 143.109 | J173: 169.9815 | K173: 215.0203 | L173: 228.0588 | M173: 240.6355 | N173: 2159.0615 | AD173: Mejillones | AE173: 171
A174: Melipeuco | B174: 225.9349 | C174: 197.8455 | D174: 156.8405 | E174: 98.10195 | F174: 66.31178 | G174: 47.63933 | H174: 52.86996 | I174: 75.26075 | J174: 101.3024 | K174: 155.6069 | L174: 180.7063 | M174: 215.9178 | N174: 1574.33807 | AD174: Melipeuco | AE174: 172
A175: Melipilla | B175: 215.1202 | C175: 168.8893 | D175: 148.4841 | E175: 97.49954 | F175: 66.2292 | G175: 50.8795 | H175: 61.31267 | I175: 85.24977 | J175: 116.5795 | K175: 160.3042 | L175: 193.8149 | M175: 215.5439 | N175: 1579.90678 | AD175: Melipilla | AE175: 173
A176: Molina | B176: 228.6107 | C176: 193.1731 | D176: 161.653 | E176: 107.7982 | F176: 71.88087 | G176: 45.874 | H176: 58.65 | I176: 76.72207 | J176: 107.7841 | K176: 143.6851 | L176: 177.3148 | M176: 214.3651 | N176: 1587.51104 | AD176: Molina | AE176: 174
A177: Monte Patria | B177: 261.7781 | C177: 221.3877 | D177: 185.0003 | E177: 139.1544 | F177: 107.5869 | G177: 84.8637 | H177: 94.80369 | I177: 112.8963 | J177: 146.8625 | K177: 203.8816 | L177: 236.1255 | M177: 278.5788 | N177: 2072.91949 | AD177: Monte Patria | AE177: 175
A178: Mostazal | B178: 241.7708 | C178: 195.3061 | D178: 166.866 | E178: 114.0248 | F178: 79.20275 | G178: 59.14621 | H178: 72.96824 | I178: 96.38207 | J178: 131.1737 | K178: 181.2868 | L178: 219.2205 | M178: 244.8893 | N178: 1802.23727 | AD178: Mostazal | AE178: 176
A179: Mulchén | B179: 222.0372 | C179: 179.184 | D179: 150.0945 | E179: 95.58187 | F179: 59.46853 | G179: 43.66265 | H179: 50.47002 | I179: 74.32768 | J179: 109.0924 | K179: 160.912 | L179: 187.2113 | M179: 211.3517 | N179: 1543.39385 | AD179: Mulchén | AE179: 177
A180: Nacimiento | B180: 223.5751 | C180: 177.3845 | D180: 151.8689 | E180: 97.38031 | F180: 60.36376 | G180: 45.59223 | H180: 51.47254 | I180: 76.41293 | J180: 112.3855 | K180: 163.0429 | L180: 191.6294 | M180: 215.5642 | N180: 1566.67227 | AD180: Nacimiento | AE180: 178
A181: Nancagua | B181: 217.4618 | C181: 175.3854 | D181: 151.4618 | E181: 96.53819 | F181: 59.61456 | G181: 41.22912 | H181: 54.15275 | I181: 76.61456 | J181: 110.0764 | K181: 154.0764 | L181: 191.5382 | M181: 214.0764 | N181: 1542.22558 | AD181: Nancagua | AE181: 179
A182: Natales | B182: 138.8879 | C182: 102.0526 | D182: 86.83191 | E182: 47.81025 | F182: 29.26252 | G182: 16.74791 | H182: 20.50052 | I182: 36.10344 | J182: 70.31665 | K182: 103.0281 | L182: 127.2279 | M182: 143.6233 | N182: 922.393 | AD182: Natales | AE182: 180
A183: Navidad | B183: 205.182 | C183: 161.485 | D183: 141.788 | E183: 93.39401 | F183: 62.56567 | G183: 46.86866 | H183: 57 | I183: 80.43433 | J183: 111.697 | K183: 153.9597 | L183: 185.3537 | M183: 205.485 | N183: 1505.21307 | AD183: Navidad | AE183: 181
A184: Negrete | B184: 212.9845 | C184: 161.9961 | D184: 141.9903 | E184: 91.99418 | F184: 53.99806 | G184: 41.99806 | H184: 46.99612 | I184: 71.99418 | J184: 107.9903 | K184: 156.9884 | L184: 183.9845 | M184: 205.9845 | N184: 1478.8992 | AD184: Negrete | AE184: 182
A185: Ninhue | B185: 221.9458 | C185: 170.908 | D185: 150.3604 | E185: 98.2821 | F185: 58.2821 | G185: 44.96694 | H185: 50.7632 | I185: 77.1826 | J185: 113.5973 | K185: 164.0831 | L185: 193.6425 | M185: 214.8794 | N185: 1558.89344 | AD185: Ninhue | AE185: 183
A186: Nogales | B186: 205 | C186: 158.3526 | D186: 142 | E186: 94.35259 | F186: 66.70517 | G186: 51.70517 | H186: 61.35259 | I186: 86.35259 | J186: 116.6474 | K186: 154.3526 | L186: 186 | M186: 205 | N186: 1527.82071 | AD186: Nogales | AE186: 184
A187: Nueva Imperial | B187: 195.837 | C187: 166.986 | D187: 138.2162 | E187: 86.40888 | F187: 53.03747 | G187: 40.57586 | H187: 45.66913 | I187: 69.87666 | J187: 98.95775 | K187: 137.368 | L187: 163.7425 | M187: 188.7892 | N187: 1385.46465 | AD187: Nueva Imperial | AE187: 185
A188: Ñiquén | B188: 219.341 | C188: 172.9959 | D188: 149.5324 | E188: 97.10522 | F188: 57.13052 | G188: 44.02933 | H188: 50.74292 | I188: 75.05463 | J188: 111.4008 | K188: 158.8471 | L188: 190.173 | M188: 211.2651 | N188: 1537.61792 | AD188: Ñiquén | AE188: 186
A189: Ñuñoa | B189: 253 | C189: 203 | D189: 176 | E189: 116 | F189: 79 | G189: 60 | H189: 73 | I189: 98 | J189: 132 | K189: 188 | L189: 230 | M189: 258 | N189: 1866 | AD189: Ñuñoa | AE189: 187
A190: O'Higgins | B190: 160.8931 | C190: 123.1176 | D190: 105.8386 | E190: 59.78296 | F190: 35.37016 | G190: 24.58303 | H190: 29.73393 | I190: 49.73755 | J190: 86.99266 | K190: 123.5667 | L190: 143.5306 | M190: 155.6848 | N190: 1098.83169 | AD190: O'Higgins | AE190: 188
A191: Olivar | B191: 220 | C191: 175 | D191: 152 | E191: 100 | F191: 67 | G191: 49 | H191: 61 | I191: 83 | J191: 115 | K191: 161 | L191: 198 | M191: 221 | N191: 1602 | AD191: Olivar | AE191: 189
A192: Ollague | B192: 220.9914 | C192: 199.2516 | D192: 198.7873 | E192: 179.2947 | F192: 172.0925 | G192: 150.4439 | H192: 163.015 | I192: 177.506 | J192: 200.0491 | K192: 246.5322 | L192: 268.9575 | M192: 265.6102 | N192: 2442.5314 | AD192: Ollagüe | AE192: 190
A193: Olmué | B193: 226.2851 | C193: 178.5249 | D193: 157.2036 | E193: 103.8824 | F193: 72.08145 | G193: 54.8009 | H193: 67.08145 | I193: 89.8009 | J193: 121.5611 | K193: 167.6833 | L193: 205.0045 | M193: 228.5656 | N193: 1672.4752 | AD193: Olmué | AE193: 191
A194: Osorno | B194: 185.7592 | C194: 158.0597 | D194: 117.532 | E194: 76.86168 | F194: 47.99364 | G194: 33.82885 | H194: 40.65864 | I194: 63.22729 | J194: 91.04447 | K194: 125.4303 | L194: 149.9686 | M194: 180.6273 | N194: 1270.99167 | AD194: Osorno | AE194: 192
A195: Ovalle | B195: 210.4117 | C195: 174.6046 | D195: 159.4764 | E195: 115.9464 | F195: 88.3134 | G195: 74.2186 | H195: 83.59848 | I195: 103.4958 | J195: 133.2428 | K195: 180.5807 | L195: 202.2392 | M195: 223.3622 | N195: 1749.49028 | AD195: Ovalle | AE195: 193
A196: Padre Hurtado | B196: 245 | C196: 195 | D196: 170 | E196: 110 | F196: 75 | G196: 57 | H196: 69 | I196: 92 | J196: 126 | K196: 180 | L196: 221 | M196: 248 | N196: 1788 | AD196: Padre Hurtado | AE196: 194
A197: Padre Las Casas | B197: 198 | C197: 167.2372 | D197: 138 | E197: 86 | F197: 53.52553 | G197: 40.23723 | H197: 45.76277 | I197: 69.23723 | J197: 98.23723 | K197: 138 | L197: 161.4234 | M197: 189.9489 | N197: 1385.60949 | AD197: Padre Las Casas | AE197: 195
A198: Paihuano | B198: 259.9914 | C198: 225.6793 | D198: 192.7397 | E198: 148.2856 | F198: 116.6303 | G198: 90.5739 | H198: 102.9979 | I198: 123.085 | J198: 155.7967 | K198: 208.9717 | L198: 241.0114 | M198: 283.8875 | N198: 2149.6504 | AD198: Paiguano | AE198: 196
A199: Paillaco | B199: 187.087 | C199: 156.7421 | D199: 119.3143 | E199: 76.78797 | F199: 48.52437 | G199: 35.78599 | H199: 42.26218 | I199: 64.341 | J199: 91.76965 | K199: 127.2771 | L199: 151.4264 | M199: 181.2366 | N199: 1282.55466 | AD199: Paillaco | AE199: 197
A200: Paine | B200: 242.6854 | C200: 194.6292 | D200: 167.6854 | E200: 112.5729 | F200: 77.57291 | G200: 57.57291 | H200: 71.57291 | I200: 94.20207 | J200: 129.2021 | K200: 179.2021 | L200: 218.9437 | M200: 246 | N200: 1791.8416 | AD200: Paine | AE200: 198
... 147 more rows

Sheet R7 (hidden)
A1: Zona | B1: ='R1'!R2 -> 10 | AH1: Solar Termico | BA1: Solar Fotovoltaico
A2: lat | B2: ='R4'!M45*57.3 -> -22 | AH2: inc | AI2: ='R4'!B11 -> 2 | BA2: inc | BB2: ='CEV CEVE'!H140 -> 60
AH3: gama | AI3: =180-'CEV CEVE'!H111 -> 178 | BA3: gama | BB3: =180-'CEV CEVE'!H141 -> 170
A5: perfiles
A6: Z1 | D6: Z2 | G6: Z3 | J6: Z4 | M6: Z5 | P6: Z6 | S6: Z7 | V6: Zona H | Y6: Zona I | AB6: Calama | AE6: a usar | AH6: hora | AI6: Dia | AJ6: Pib | AK6: Pid | AL6: HS | AM6: W | AN6: Dec | AO6: Rb' | AP6: Alfa | AQ6: F1 | AR6: F2 | AS6: Rb | AT6: Itot | AW6: Factores | AX6: Ht,h | AY6: Ht,i | BA6: hora | BB6: Dia | BC6: Pib | BD6: Pid | BE6: HS | BF6: W | BG6: Dec | BH6: Rb' | BI6: Alfa | BJ6: F1 | BK6: F2 | BL6: Rb | BM6: Itot | BP6: Factores | BQ6: Ht,h | BR6: Ht,i
A7: Enero | D7: Enero | G7: Enero | J7: Enero | M7: Enero | P7: Enero | S7: Enero | V7: Enero | Y7: Enero | AB7: Enero
A8: 0 | B8: 0 | D8: 7.323574983e-07 | E8: 0 | G8: 7.323574983e-07 | H8: 0 | J8: 0 | K8: 0 | M8: 0.001000382834 | N8: 0.002796058628 | P8: 4.168109075e-06 | Q8: 5.418541797e-05 | S8: 4.541381656e-06 | T8: 0.0001422966252 | V8: 0 | W8: 0 | Y8: 0.0003578888677 | Z8: 0.002367469937 | AB8: 0 | AC8: 0 | AE8: =CHOOSE($B$1,A8,D8,G8,J8,M8,P8,S8,V8,Y8,AB8) -> 0 | AF8: =CHOOSE($B$1,B8,E8,H8,K8,N8,Q8,T8,V8,Y8,AB8) -> 0 | AH8: 5 | AI8: 15 | AJ8: =AE8 -> 0 | AK8: =AF8 -> 0 | AL8: =AH8-0.5 -> 4.5 | AM8: =15*(AL8-12) -> -112.5 | AN8: =23.45*SIN(360*(284+AI8)/365/57.3) -> -21.27321603 | AO8: =((SIN(AN8/57.3)*SIN($B$2/57.3)*COS($AI$2/57.3))-SIN(AN8/57.3)*COS($B$2/57.3)*SIN($AI$2/57.3)*COS($AI$3/57.3)+COS(AN8/57.3)*COS($B$2/57.3)*COS($AI$2/57.3)*COS(AM8/57.3)+COS(AN8/57.3)*SIN($B$2/57.3)*SIN($AI$2/57.3)*COS($AI$3/57.3)*COS(AM8/57.3)+COS(AN8/57.3)*SIN($AI$2/57.3)*SIN($AI$3/57.3)*SIN(AM8/57.3))/(COS($B$2/57.3)*COS(AN8/57.3)*COS(AM8/57.3)+SIN($B$2/57.3)*SIN(AN8/57.3)) -> 1.089012103 | AP8: =57.3*ASIN(SIN($B$2/57.3)*SIN(AN8/57.3)+COS($B$2/57.3)*COS(AM8/57.3)*COS(AN8/57.6)) -> -11.23894552 | AQ8: =IF(AP8<0,0,1) -> 0 | AR8: =IF(AO8<0,0,1) -> 1 | AS8: =AO8*AR8*AQ8 -> 0 | AT8: =AJ8*AS8+((1+COS($AI$2/57.3))/2)*AK8+((1-COS($AI$2/57.3))/2)*(AJ8+AK8)*0.2 -> 0 | AV8: E | AW8: =AT24 -> 1.264955798 | AX8: ='R4'!B29 -> 6.918787097 | AY8: =AW8*AX8 -> 8.751959852 | BA8: 5 | BB8: 15 | BC8: =AE8 -> 0 | BD8: =AF8 -> 0 | BE8: =BA8-0.5 -> 4.5 | BF8: =15*(BE8-12) -> -112.5 | BG8: =23.45*SIN(360*(284+BB8)/365/57.3) -> -21.27321603 | BH8: =((SIN(BG8/57.3)*SIN($B$2/57.3)*COS($BB$2/57.3))-SIN(BG8/57.3)*COS($B$2/57.3)*SIN($BB$2/57.3)*COS($BB$3/57.3)+COS(BG8/57.3)*COS($B$2/57.3)*COS($BB$2/57.3)*COS(BF8/57.3)+COS(BG8/57.3)*SIN($B$2/57.3)*SIN($BB$2/57.3)*COS($BB$3/57.3)*COS(BF8/57.3)+COS(BG8/57.3)*SIN($BB$2/57.3)*SIN($BB$3/57.3)*SIN(BF8/57.3))/(COS($B$2/57.3)*COS(BG8/57.3)*COS(BF8/57.3)+SIN($B$2/57.3)*SIN(BG8/57.3)) -> 3.224969231 | BI8: =57.3*ASIN(SIN($B$2/57.3)*SIN(BG8/57.3)+COS($B$2/57.3)*COS(BF8/57.3)*COS(BG8/57.6)) -> -11.23894552 | BJ8: =IF(BI8<0,0,1) -> 0 | BK8: =IF(BH8<0,0,1) -> 1 | BL8: =BH8*BK8*BJ8 -> 0 | BM8: =BC8*BL8+((1+COS($BB$2/57.3))/2)*BD8+((1-COS($BB$2/57.3))/2)*(BC8+BD8)*0.2 -> 0 | BO8: E | BP8: =BM24 -> 0.8066885038 | BQ8: ='R4'!B29 -> 6.918787097 | BR8: =BP8*BQ8 -> 5.581306011
A9: 0 | B9: 0.0005 | D9: 1.473602705e-06 | E9: 0.002103344945 | G9: 1.473602705e-06 | H9: 0.002103344945 | J9: 3.764395324e-06 | K9: 0.002151961856 | M9: 0.007741003391 | N9: 0.00780480913 | P9: 0.0007898192171 | Q9: 0.004444693179 | S9: 0.001606096526 | T9: 0.005882505714 | V9: 3.764395324e-06 | W9: 0.002151961856 | Y9: 0.004143371493 | Z9: 0.01319592154 | AB9: 0 | AC9: 0.0005 | AE9: 0 | AF9: 0 | AH9: 6 | AI9: 15 | AJ9: 0 | AK9: 0 | AL9: 5.5 | AM9: -97.5 | AN9: -21.27321603 | AO9: 0.3771185122 | AP9: 1.325976404 | AQ9: 1 | AR9: 1 | AS9: 0.3771185122 | AT9: 0 | AV9: F | AW9: =AT42 -> 1.28509119 | AX9: ='R4'!B30 -> 5.785210714 | AY9: 7.434523321 | BA9: 6 | BB9: 15 | BC9: 0 | BD9: 0 | BE9: 5.5 | BF9: -97.5 | BG9: -21.27321603 | BH9: -19.51358829 | BI9: 1.325976404 | BJ9: 1 | BK9: 0 | BL9: 0 | BM9: 0 | BO9: F | BP9: =BM42 -> 0.9088748195 | BQ9: ='R4'!B30 -> 5.785210714 | BR9: 5.258032344
A10: 0.008 | B10: 0.01284838642 | D10: 0.009239986207 | E10: 0.01629379407 | G10: 0.009239986207 | H10: 0.01629379407 | J10: 0.01106148096 | K10: 0.01488626941 | M10: 0.01765823823 | N10: 0.01451580559 | P10: 0.01115628915 | Q10: 0.01680588715 | S10: 0.01067642579 | T10: 0.01920296268 | V10: 0.01106148096 | W10: 0.01488626941 | Y10: 0.01338304144 | Z10: 0.02217202655 | AB10: 0.008 | AC10: 0.01284838642 | AE10: 0.008 | AF10: 0.008 | AH10: 7 | AI10: 15 | AJ10: 0.008 | AK10: 0.008 | AL10: 6.5 | AM10: -82.5 | AN10: -21.27321603 | AO10: 0.9540723271 | AP10: 14.41039338 | AQ10: 1 | AR10: 1 | AS10: 0.9540723271 | AT10: 0.01563111682 | AV10: M | AW10: =AT60 -> 1.327042235 | AX10: ='R4'!B31 -> 4.6367 | AY10: 6.153096731 | BA10: 7 | BB10: 15 | BC10: 0.008 | BD10: 0.008 | BE10: 6.5 | BF10: -82.5 | BG10: -21.27321603 | BH10: -1.055948478 | BI10: 14.41039338 | BJ10: 1 | BK10: 0 | BL10: 0 | BM10: 0.006800160313 | BO10: M | BP10: =BM60 -> 1.078325932 | BQ10: ='R4'!B31 -> 4.6367 | BR10: 4.999873847
A11: 0.03 | B11: 0.02199462475 | D11: 0.02563220684 | E11: 0.02497696113 | G11: 0.02563220684 | H11: 0.02497696113 | J11: 0.03083346829 | K11: 0.02308812199 | M11: 0.03203275969 | N11: 0.02297006599 | P11: 0.02979211919 | Q11: 0.0239425519 | S11: 0.02837084134 | T11: 0.02684625061 | V11: 0.03083346829 | W11: 0.02308812199 | Y11: 0.03158096799 | Z11: 0.02712758776 | AB11: 0.03 | AC11: 0.02199462475 | AE11: 0.03 | AF11: 0.03 | AH11: 8 | AI11: 15 | AJ11: 0.03 | AK11: 0.03 | AL11: 7.5 | AM11: -67.5 | AN11: -21.27321603 | AO11: 0.9819738286 | AP11: 27.83270983 | AQ11: 1 | AR11: 1 | AS11: 0.9819738286 | AT11: 0.05945373311 | AV11: A | AW11: =AT78 -> 1.247707459 | AX11: ='R4'!B32 -> 3.166431667 | AY11: 3.950780408 | BA11: 8 | BB11: 15 | BC11: 0.03 | BD11: 0.03 | BE11: 7.5 | BF11: -67.5 | BG11: -21.27321603 | BH11: -0.1483142504 | BI11: 27.83270983 | BJ11: 1 | BK11: 0 | BL11: 0 | BM11: 0.02550060117 | BO11: A | BP11: =BM78 -> 1.186799093 | BQ11: ='R4'!B32 -> 3.166431667 | BR11: 3.757918229
A12: 0.048 | B12: 0.03053131783 | D12: 0.04612387524 | E12: 0.03374556881 | G12: 0.04612387524 | H12: 0.03374556881 | J12: 0.04983729744 | K12: 0.02891186119 | M12: 0.04687898786 | N12: 0.03220366792 | P12: 0.04675506886 | Q12: 0.03229867722 | S12: 0.04306970673 | T12: 0.03487629732 | V12: 0.04983729744 | W12: 0.02891186119 | Y12: 0.03877262499 | Z12: 0.03670583126 | AB12: 0.048 | AC12: 0.03053131783 | AE12: 0.048 | AF12: 0.048 | AH12: 9 | AI12: 15 | AJ12: 0.048 | AK12: 0.048 | AL12: 8.5 | AM12: -52.5 | AN12: -21.27321603 | AO12: 0.9914957172 | AP12: 41.48016182 | AQ12: 1 | AR12: 1 | AS12: 0.9914957172 | AT12: 0.09558302363 | AV12: M | AW12: =AT96 -> 1.221240287 | AX12: ='R4'!B33 -> 1.765958387 | AY12: 2.156659528 | BA12: 9 | BB12: 15 | BC12: 0.048 | BD12: 0.048 | BE12: 8.5 | BF12: -52.5 | BG12: -21.27321603 | BH12: 0.1723307581 | BI12: 41.48016182 | BJ12: 1 | BK12: 1 | BL12: 0.1723307581 | BM12: 0.04907283827 | BO12: M | BP12: =BM96 -> 1.325184871 | BQ12: ='R4'!B33 -> 1.765958387 | BR12: 2.340221338
A13: 0.065 | B13: 0.03642358434 | D13: 0.06140964095 | E13: 0.03880030026 | G13: 0.06140964095 | H13: 0.03880030026 | J13: 0.07031603759 | K13: 0.03250918346 | M13: 0.05379051664 | N13: 0.0410840595 | P13: 0.06368801198 | Q13: 0.03537126829 | S13: 0.05834615772 | T13: 0.03930641513 | V13: 0.07031603759 | W13: 0.03250918346 | Y13: 0.04691875301 | Z13: 0.04174236302 | AB13: 0.065 | AC13: 0.03642358434 | AE13: 0.065 | AF13: 0.065 | AH13: 10 | AI13: 15 | AJ13: 0.065 | AK13: 0.065 | AL13: 9.5 | AM13: -37.5 | AN13: -21.27321603 | AO13: 0.9960206667 | AP13: 55.28069425 | AQ13: 1 | AR13: 1 | AS13: 0.9960206667 | AT13: 0.1297294662 | AV13: J | AW13: =AT114 -> 1.217013288 | AX13: ='R4'!B34 -> 1.449882333 | AY13: 1.764526066 | BA13: 10 | BB13: 15 | BC13: 0.065 | BD13: 0.065 | BE13: 9.5 | BF13: -37.5 | BG13: -21.27321603 | BH13: 0.3343779926 | BI13: 55.28069425 | BJ13: 1 | BK13: 1 | BL13: 0.3343779926 | BM13: 0.07698587206 | BO13: J | BP13: =BM114 -> 1.409023937 | BQ13: ='R4'!B34 -> 1.449882333 | BR13: 2.042918913
A14: 0.081 | B14: 0.03864222509 | D14: 0.07354626941 | E14: 0.04499531234 | G14: 0.07354626941 | H14: 0.04499531234 | J14: 0.07511752588 | K14: 0.03886783986 | M14: 0.0604536588 | N14: 0.04516762679 | P14: 0.07399435635 | Q14: 0.04009234651 | S14: 0.06791409198 | T14: 0.04500433531 | V14: 0.07511752588 | W14: 0.03886783986 | Y14: 0.06752125951 | Z14: 0.04136940776 | AB14: 0.081 | AC14: 0.03864222509 | AE14: 0.081 | AF14: 0.081 | AH14: 11 | AI14: 15 | AJ14: 0.081 | AK14: 0.081 | AL14: 10.5 | AM14: -22.5 | AN14: -21.27321603 | AO14: 0.9984046689 | AP14: 69.19426672 | AQ14: 1 | AR14: 1 | AS14: 0.9984046689 | AT14: 0.1618559775 | AV14: J | AW14: =AT132 -> 1.234710508 | AX14: ='R4'!B35 -> 1.540151935 | AY14: 1.901641779 | BA14: 11 | BB14: 15 | BC14: 0.081 | BD14: 0.081 | BE14: 10.5 | BF14: -22.5 | BG14: -21.27321603 | BH14: 0.429919714 | BI14: 69.19426672 | BJ14: 1 | BK14: 1 | BL14: 0.429919714 | BM14: 0.10367512 | BO14: J | BP14: =BM132 -> 1.387805419 | BQ14: ='R4'!B35 -> 1.540151935 | BR14: 2.137431203
A15: 0.085 | B15: 0.042 | D15: 0.07495312817 | E15: 0.04785590073 | G15: 0.07495312817 | H15: 0.04785590073 | J15: 0.08355196655 | K15: 0.03863624409 | M15: 0.06634657454 | N15: 0.04755578445 | P15: 0.07922741729 | Q15: 0.04158314018 | S15: 0.0719438113 | T15: 0.04680726383 | V15: 0.08355196655 | W15: 0.03863624409 | Y15: 0.06820255717 | Z15: 0.0444070302 | AB15: 0.085 | AC15: 0.042 | AE15: 0.085 | AF15: 0.085 | AH15: 12 | AI15: 15 | AJ15: 0.085 | AK15: 0.085 | AL15: 11.5 | AM15: -7.5 | AN15: -21.27321603 | AO15: 0.9995814551 | AP15: 83.30682859 | AQ15: 1 | AR15: 1 | AS15: 0.9995814551 | AT15: 0.1699488921 | AV15: A | AW15: =AT150 -> 1.210691752 | AX15: ='R4'!B36 -> 2.386869355 | AY15: 2.88976304 | BA15: 12 | BB15: 15 | BC15: 0.085 | BD15: 0.085 | BE15: 11.5 | BF15: -7.5 | BG15: -21.27321603 | BH15: 0.4899491404 | BI15: 83.30682859 | BJ15: 1 | BK15: 1 | BL15: 0.4899491404 | BM15: 0.1138973803 | BO15: A | BP15: =BM150 -> 1.221427762 | BQ15: ='R4'!B36 -> 2.386869355 | BR15: 2.915388495
A16: 0.085 | B16: 0.042 | D16: 0.07495312817 | E16: 0.04785590073 | G16: 0.07495312817 | H16: 0.04785590073 | J16: 0.08355196655 | K16: 0.03863624409 | M16: 0.06634657454 | N16: 0.04755578445 | P16: 0.07922741729 | Q16: 0.04158314018 | S16: 0.0719438113 | T16: 0.04680726383 | V16: 0.08355196655 | W16: 0.03863624409 | Y16: 0.06820255717 | Z16: 0.0444070302 | AB16: 0.085 | AC16: 0.042 | AE16: 0.085 | AF16: 0.085 | AH16: 13 | AI16: 15 | AJ16: 0.085 | AK16: 0.085 | AL16: 12.5 | AM16: 7.5 | AN16: -21.27321603 | AO16: 0.9998818906 | AP16: 83.30682859 | AQ16: 1 | AR16: 1 | AS16: 0.9998818906 | AT16: 0.1699744291 | AV16: S | AW16: =AT168 -> 1.226205786 | AX16: ='R4'!B37 -> 3.641373333 | AY16: 4.46507305 | BA16: 13 | BB16: 15 | BC16: 0.085 | BD16: 0.085 | BE16: 12.5 | BF16: 7.5 | BG16: -21.27321603 | BH16: 0.5268492724 | BI16: 83.30682859 | BJ16: 1 | BK16: 1 | BL16: 0.5268492724 | BM16: 0.1170338915 | BO16: S | BP16: =BM168 -> 1.062798207 | BQ16: ='R4'!B37 -> 3.641373333 | BR16: 3.87004505
A17: 0.081 | B17: 0.03864222509 | D17: 0.07354626941 | E17: 0.04499531234 | G17: 0.07354626941 | H17: 0.04499531234 | J17: 0.07511752588 | K17: 0.03886783986 | M17: 0.0604536588 | N17: 0.04516762679 | P17: 0.07399435635 | Q17: 0.04009234651 | S17: 0.06791409198 | T17: 0.04500433531 | V17: 0.07511752588 | W17: 0.03886783986 | Y17: 0.06752125951 | Z17: 0.04136940776 | AB17: 0.081 | AC17: 0.03864222509 | AE17: 0.081 | AF17: 0.081 | AH17: 14 | AI17: 15 | AJ17: 0.081 | AK17: 0.081 | AL17: 13.5 | AM17: 22.5 | AN17: -21.27321603 | AO17: 0.9993405423 | AP17: 69.19426672 | AQ17: 1 | AR17: 1 | AS17: 0.9993405423 | AT17: 0.1619317832 | AV17: O | AW17: =AT186 -> 1.28004356 | AX17: ='R4'!B38 -> 5.128577419 | AY17: 6.564802498 | BA17: 14 | BB17: 15 | BC17: 0.081 | BD17: 0.081 | BE17: 13.5 | BF17: 22.5 | BG17: -21.27321603 | BH17: 0.5448656587 | BI17: 69.19426672 | BJ17: 1 | BK17: 1 | BL17: 0.5448656587 | BM17: 0.1129857415 | BO17: O | BP17: =BM186 -> 0.9515974182 | BQ17: ='R4'!B38 -> 5.128577419 | BR17: 4.880341031
A18: 0.065 | B18: 0.03642358434 | D18: 0.06140964095 | E18: 0.03880030026 | G18: 0.06140964095 | H18: 0.03880030026 | J18: 0.07031603759 | K18: 0.03250918346 | M18: 0.05379051664 | N18: 0.0410840595 | P18: 0.06368801198 | Q18: 0.03537126829 | S18: 0.05834615772 | T18: 0.03930641513 | V18: 0.07031603759 | W18: 0.03250918346 | Y18: 0.04691875301 | Z18: 0.04174236302 | AB18: 0.065 | AC18: 0.03642358434 | AE18: 0.065 | AF18: 0.065 | AH18: 15 | AI18: 15 | AJ18: 0.065 | AK18: 0.065 | AL18: 14.5 | AM18: 37.5 | AN18: -21.27321603 | AO18: 0.9977138164 | AP18: 55.28069425 | AQ18: 1 | AR18: 1 | AS18: 0.9977138164 | AT18: 0.1298395209 | AV18: N | AW18: =AT204 -> 1.290295182 | AX18: ='R4'!B39 -> 6.19953 | AY18: 7.999223693 | BA18: 15 | BB18: 15 | BC18: 0.065 | BD18: 0.065 | BE18: 14.5 | BF18: 37.5 | BG18: -21.27321603 | BH18: 0.5423342217 | BI18: 55.28069425 | BJ18: 1 | BK18: 1 | BL18: 0.5423342217 | BM18: 0.09050302695 | BO18: N | BP18: =BM204 -> 0.8442952605 | BQ18: ='R4'!B39 -> 6.19953 | BR18: 5.234233796
A19: 0.048 | B19: 0.03053131783 | D19: 0.04612387524 | E19: 0.03374556881 | G19: 0.04612387524 | H19: 0.03374556881 | J19: 0.04983729744 | K19: 0.02891186119 | M19: 0.04687898786 | N19: 0.03220366792 | P19: 0.04675506886 | Q19: 0.03229867722 | S19: 0.04306970673 | T19: 0.03487629732 | V19: 0.04983729744 | W19: 0.02891186119 | Y19: 0.03877262499 | Z19: 0.03670583126 | AB19: 0.048 | AC19: 0.03053131783 | AE19: 0.048 | AF19: 0.048 | AH19: 16 | AI19: 15 | AJ19: 0.048 | AK19: 0.048 | AL19: 15.5 | AM19: 52.5 | AN19: -21.27321603 | AO19: 0.9942339067 | AP19: 41.48016182 | AQ19: 1 | AR19: 1 | AS19: 0.9942339067 | AT19: 0.09571445672 | AV19: D | AW19: =AT222 -> 1.30248525 | AX19: ='R4'!B40 -> 6.700987097 | AY19: 8.727936855 | BA19: 16 | BB19: 15 | BC19: 0.048 | BD19: 0.048 | BE19: 15.5 | BF19: 52.5 | BG19: -21.27321603 | BH19: 0.508640983 | BI19: 41.48016182 | BJ19: 1 | BK19: 1 | BL19: 0.508640983 | BM19: 0.06521572906 | BO19: D | BP19: =BM222 -> 0.8054595289 | BQ19: ='R4'!B40 -> 6.700987097 | BR19: 5.39737391
A20: 0.03 | B20: 0.02199462475 | D20: 0.02563220684 | E20: 0.02497696113 | G20: 0.02563220684 | H20: 0.02497696113 | J20: 0.03083346829 | K20: 0.02308812199 | M20: 0.03203275969 | N20: 0.02297006599 | P20: 0.02979211919 | Q20: 0.0239425519 | S20: 0.02837084134 | T20: 0.02684625061 | V20: 0.03083346829 | W20: 0.02308812199 | Y20: 0.03158096799 | Z20: 0.02712758776 | AB20: 0.03 | AC20: 0.02199462475 | AE20: 0.03 | AF20: 0.03 | AH20: 17 | AI20: 15 | AJ20: 0.03 | AK20: 0.03 | AL20: 16.5 | AM20: 67.5 | AN20: -21.27321603 | AO20: 0.9864973101 | AP20: 27.83270983 | AQ20: 1 | AR20: 1 | AS20: 0.9864973101 | AT20: 0.05958943755 | AW20: =SUM(AW8:AW19) -> 15.10748229 | AY20: =SUM(AY8:AY19) -> 62.75998682 | BA20: 17 | BB20: 15 | BC20: 0.03 | BD20: 0.03 | BE20: 16.5 | BF20: 67.5 | BG20: -21.27321603 | BH20: 0.4072693162 | BI20: 27.83270983 | BJ20: 1 | BK20: 1 | BL20: 0.4072693162 | BM20: 0.03771868066 | BP20: =SUM(BP8:BP19) -> 12.98828075 | BR20: =SUM(BR8:BR19) -> 48.41508417
A21: 0.008 | B21: 0.01284838642 | D21: 0.009239986207 | E21: 0.01629379407 | G21: 0.009239986207 | H21: 0.01629379407 | J21: 0.01106148096 | K21: 0.01488626941 | M21: 0.01765823823 | N21: 0.01451580559 | P21: 0.01115628915 | Q21: 0.01680588715 | S21: 0.01067642579 | T21: 0.01920296268 | V21: 0.01106148096 | W21: 0.01488626941 | Y21: 0.01338304144 | Z21: 0.02217202655 | AB21: 0.008 | AC21: 0.01284838642 | AE21: 0.008 | AF21: 0.008 | AH21: 18 | AI21: 15 | AJ21: 0.008 | AK21: 0.008 | AL21: 17.5 | AM21: 82.5 | AN21: -21.27321603 | AO21: 0.9631778629 | AP21: 14.41039338 | AQ21: 1 | AR21: 1 | AS21: 0.9631778629 | AT21: 0.0157039611 | BA21: 18 | BB21: 15 | BC21: 0.008 | BD21: 0.008 | BE21: 17.5 | BF21: 82.5 | BG21: -21.27321603 | BH21: 0.0624127107 | BI21: 14.41039338 | BJ21: 1 | BK21: 1 | BL21: 0.0624127107 | BM21: 0.007299461999
A22: 0 | B22: 0.0005 | D22: 1.473602705e-06 | E22: 0.002103344945 | G22: 1.473602705e-06 | H22: 0.002103344945 | J22: 3.764395324e-06 | K22: 0.002151961856 | M22: 0.007741003391 | N22: 0.00780480913 | P22: 0.0007898192171 | Q22: 0.004444693179 | S22: 0.001606096526 | T22: 0.005882505714 | V22: 3.764395324e-06 | W22: 0.002151961856 | Y22: 0.004143371493 | Z22: 0.01319592154 | AB22: 0 | AC22: 0.0005 | AE22: 0 | AF22: 0 | AH22: 19 | AI22: 15 | AJ22: 0 | AK22: 0 | AL22: 18.5 | AM22: 97.5 | AN22: -21.27321603 | AO22: 0.4746571774 | AP22: 1.325976404 | AQ22: 1 | AR22: 1 | AS22: 0.4746571774 | AT22: 0 | BA22: 19 | BB22: 15 | BC22: 0 | BD22: 0 | BE22: 18.5 | BF22: 97.5 | BG22: -21.27321603 | BH22: -7.533682901 | BI22: 1.325976404 | BJ22: 1 | BK22: 0 | BL22: 0 | BM22: 0
A23: 0 | B23: 0 | D23: 7.323574983e-07 | E23: 0 | G23: 7.323574983e-07 | H23: 0 | J23: 0 | K23: 0 | M23: 0.001000382834 | N23: 0.002796058628 | P23: 4.168109075e-06 | Q23: 5.418541797e-05 | S23: 4.541381656e-06 | T23: 0.0001422966252 | V23: 0 | W23: 0 | Y23: 0.0003578888677 | Z23: 0.002367469937 | AB23: 0 | AC23: 0 | AE23: 0 | AF23: 0 | AH23: 20 | AI23: 15 | AJ23: 0 | AK23: 0 | AL23: 19.5 | AM23: 112.5 | AN23: -21.27321603 | AO23: 1.078166824 | AP23: -11.23894552 | AQ23: 0 | AR23: 1 | AS23: 0 | AT23: 0 | BA23: 20 | BB23: 15 | BC23: 0 | BD23: 0 | BE23: 19.5 | BF23: 112.5 | BG23: -21.27321603 | BH23: 1.89292911 | BI23: -11.23894552 | BJ23: 0 | BK23: 1 | BL23: 0 | BM23: 0
AL24: -0.5 | AT24: =SUM(AT8:AT23) -> 1.264955798 | BE24: -0.5 | BM24: =SUM(BM8:BM23) -> 0.8066885038
A25: febrero | D25: febrero | G25: febrero | J25: febrero | M25: febrero | P25: febrero | S25: febrero | V25: febrero | Y25: febrero | AB25: febrero | AL25: -0.5 | BE25: -0.5
A26: 0 | B26: 0 | D26: 0 | E26: 0 | G26: 0 | H26: 0 | J26: 0 | K26: 0 | M26: 0.0003194522298 | N26: 0.001669589956 | P26: 0 | Q26: 0 | S26: 0 | T26: 0 | V26: 0 | W26: 0 | Y26: 3.548008653e-06 | Z26: 0.000163208398 | AB26: 0 | AC26: 0 | AE26: =CHOOSE($B$1,A26,D26,G26,J26,M26,P26,S26,V26,Y26,AB26) -> 0 | AF26: =CHOOSE($B$1,B26,E26,H26,K26,N26,Q26,T26,V26,Y26,AB26) -> 0 | AH26: 5 | AI26: 45 | AJ26: =AE26 -> 0 | AK26: =AF26 -> 0 | AL26: 4.5 | AM26: =15*(AL26-12) -> -112.5 | AN26: =23.45*SIN(360*(284+AI26)/365/57.3) -> -13.62772834 | AO26: =((SIN(AN26/57.3)*SIN($B$2/57.3)*COS($AI$2/57.3))-SIN(AN26/57.3)*COS($B$2/57.3)*SIN($AI$2/57.3)*COS($AI$3/57.3)+COS(AN26/57.3)*COS($B$2/57.3)*COS($AI$2/57.3)*COS(AM26/57.3)+COS(AN26/57.3)*SIN($B$2/57.3)*SIN($AI$2/57.3)*COS($AI$3/57.3)*COS(AM26/57.3)+COS(AN26/57.3)*SIN($AI$2/57.3)*SIN($AI$3/57.3)*SIN(AM26/57.3))/(COS($B$2/57.3)*COS(AN26/57.3)*COS(AM26/57.3)+SIN($B$2/57.3)*SIN(AN26/57.3)) -> 1.052325507 | AP26: =57.3*ASIN(SIN($B$2/57.3)*SIN(AN26/57.3)+COS($B$2/57.3)*COS(AM26/57.3)*COS(AN26/57.6)) -> -14.86758573 | AQ26: =IF(AP26<0,0,1) -> 0 | AR26: =IF(AO26<0,0,1) -> 1 | AS26: =AO26*AR26*AQ26 -> 0 | AT26: =AJ26*AS26+((1+COS($AI$2/57.3))/2)*AK26+((1-COS($AI$2/57.3))/2)*(AJ26+AK26)*0.2 -> 0 | BA26: 5 | BB26: 45 | BC26: =AE26 -> 0 | BD26: =AF26 -> 0 | BE26: 4.5 | BF26: =15*(BE26-12) -> -112.5 | BG26: =23.45*SIN(360*(284+BB26)/365/57.3) -> -13.62772834 | BH26: =((SIN(BG26/57.3)*SIN($B$2/57.3)*COS($BB$2/57.3))-SIN(BG26/57.3)*COS($B$2/57.3)*SIN($BB$2/57.3)*COS($BB$3/57.3)+COS(BG26/57.3)*COS($B$2/57.3)*COS($BB$2/57.3)*COS(BF26/57.3)+COS(BG26/57.3)*SIN($B$2/57.3)*SIN($BB$2/57.3)*COS($BB$3/57.3)*COS(BF26/57.3)+COS(BG26/57.3)*SIN($BB$2/57.3)*SIN($BB$3/57.3)*SIN(BF26/57.3))/(COS($B$2/57.3)*COS(BG26/57.3)*COS(BF26/57.3)+SIN($B$2/57.3)*SIN(BG26/57.3)) -> 2.216659737 | BI26: =57.3*ASIN(SIN($B$2/57.3)*SIN(BG26/57.3)+COS($B$2/57.3)*COS(BF26/57.3)*COS(BG26/57.6)) -> -14.86758573 | BJ26: =IF(BI26<0,0,1) -> 0 | BK26: =IF(BH26<0,0,1) -> 1 | BL26: =BH26*BK26*BJ26 -> 0 | BM26: =BC26*BL26+((1+COS($BB$2/57.3))/2)*BD26+((1-COS($BB$2/57.3))/2)*(BC26+BD26)*0.2 -> 0
A27: 0 | B27: 0.0003219276965 | D27: 0 | E27: 0.0009400546568 | G27: 0 | H27: 0.0009400546568 | J27: 0 | K27: 0.0008466274866 | M27: 0.006970688751 | N27: 0.006271510286 | P27: 0.0001017546114 | Q27: 0.001430308772 | S27: 0.0002150057356 | T27: 0.001732158884 | V27: 0 | W27: 0.0008466274866 | Y27: 0.0005782364949 | Z27: 0.005549193194 | AB27: 0 | AC27: 0.0003219276965 | AE27: 0 | AF27: 0 | AH27: 6 | AI27: 45 | AJ27: 0 | AK27: 0 | AL27: 5.5 | AM27: -97.5 | AN27: -13.62772834 | AO27: 1.356765679 | AP27: -1.678573993 | AQ27: 0 | AR27: 1 | AS27: 0 | AT27: 0 | BA27: 6 | BB27: 45 | BC27: 0 | BD27: 0 | BE27: 5.5 | BF27: -97.5 | BG27: -13.62772834 | BH27: 13.21055084 | BI27: -1.678573993 | BJ27: 0 | BK27: 1 | BL27: 0 | BM27: 0
A28: 0.004166017053 | B28: 0.0101316338 | D28: 0.00630608641 | E28: 0.01464918064 | G28: 0.00630608641 | H28: 0.01464918064 | J28: 0.007806038446 | K28: 0.01328796478 | M28: 0.0160358992 | N28: 0.01197945862 | P28: 0.007207345468 | Q28: 0.01383385087 | S28: 0.004868958673 | T28: 0.01703098246 | V28: 0.007806038446 | W28: 0.01328796478 | Y28: 0.007529677063 | Z28: 0.02054393941 | AB28: 0.004166017053 | AC28: 0.0101316338 | AE28: 0.004166017053 | AF28: 0.004166017053 | AH28: 7 | AI28: 45 | AJ28: 0.004166017053 | AK28: 0.004166017053 | AL28: 6.5 | AM28: -82.5 | AN28: -13.62772834 | AO28: 0.9647195247 | AP28: 11.88868229 | AQ28: 1 | AR28: 1 | AS28: 0.9647195247 | AT28: 0.008184293808 | BA28: 7 | BB28: 45 | BC28: 0.004166017053 | BD28: 0.004166017053 | BE28: 6.5 | BF28: -82.5 | BG28: -13.62772834 | BH28: -0.9118747879 | BI28: 11.88868229 | BJ28: 1 | BK28: 0 | BL28: 0 | BM28: 0.003541197978
A29: 0.02416324122 | B29: 0.02183236688 | D29: 0.02264647972 | E29: 0.02706443574 | G29: 0.02264647972 | H29: 0.02706443574 | J29: 0.03021782003 | K29: 0.02140664867 | M29: 0.02904001591 | N29: 0.0213942583 | P29: 0.02862885863 | Q29: 0.0218794924 | S29: 0.02670415446 | T29: 0.02751562954 | V29: 0.03021782003 | W29: 0.02140664867 | Y29: 0.02807418645 | Z29: 0.02943648894 | AB29: 0.02416324122 | AC29: 0.02183236688 | AE29: 0.02416324122 | AF29: 0.02416324122 | AH29: 8 | AI29: 45 | AJ29: 0.02416324122 | AK29: 0.02416324122 | AL29: 7.5 | AM29: -67.5 | AN29: -13.62772834 | AO29: 0.9904810114 | AP29: 25.67646182 | AQ29: 1 | AR29: 1 | AS29: 0.9904810114 | AT29: 0.04809205759 | BA29: 8 | BB29: 45 | BC29: 0.02416324122 | BD29: 0.02416324122 | BE29: 7.5 | BF29: -67.5 | BG29: -13.62772834 | BH29: 0.03224252461 | BI29: 25.67646182 | BJ29: 1 | BK29: 1 | BL29: 0.03224252461 | BM29: 0.02131832314
A30: 0.04786095652 | B30: 0.03080150576 | D30: 0.04291455672 | E30: 0.03683211871 | G30: 0.04291455672 | H30: 0.03683211871 | J30: 0.04595128312 | K30: 0.03308469763 | M30: 0.04360522937 | N30: 0.03189399008 | P30: 0.05361900495 | Q30: 0.02737391497 | S30: 0.04277503781 | T30: 0.03713643669 | V30: 0.04595128312 | W30: 0.03308469763 | Y30: 0.04286467521 | Z30: 0.03792229916 | AB30: 0.04786095652 | AC30: 0.03080150576 | AE30: 0.04786095652 | AF30: 0.04786095652 | AH30: 9 | AI30: 45 | AJ30: 0.04786095652 | AK30: 0.04786095652 | AL30: 8.5 | AM30: -52.5 | AN30: -13.62772834 | AO30: 0.9980814454 | AP30: 39.57242718 | AQ30: 1 | AR30: 1 | AS30: 0.9980814454 | AT30: 0.09562134378 | BA30: 9 | BB30: 45 | BC30: 0.04786095652 | BD30: 0.04786095652 | BE30: 8.5 | BF30: -52.5 | BG30: -13.62772834 | BH30: 0.3220610819 | BI30: 39.57242718 | BJ30: 1 | BK30: 1 | BL30: 0.3220610819 | BM30: 0.05609692357
A31: 0.06976046938 | B31: 0.03649934163 | D31: 0.0541634553 | E31: 0.04502094414 | G31: 0.0541634553 | H31: 0.04502094414 | J31: 0.0627862297 | K31: 0.03832791604 | M31: 0.05717290804 | N31: 0.04082961141 | P31: 0.06532974294 | Q31: 0.03613191367 | S31: 0.05536750989 | T31: 0.04489885034 | V31: 0.0627862297 | W31: 0.03832791604 | Y31: 0.054804907 | Z31: 0.04533054122 | AB31: 0.06976046938 | AC31: 0.03649934163 | AE31: 0.06976046938 | AF31: 0.06976046938 | AH31: 10 | AI31: 45 | AJ31: 0.06976046938 | AK31: 0.06976046938 | AL31: 9.5 | AM31: -37.5 | AN31: -13.62772834 | AO31: 1.001543944 | AP31: 53.45771852 | AQ31: 1 | AR31: 1 | AS31: 1.001543944 | AT31: 0.139615898 | BA31: 10 | BB31: 45 | BC31: 0.06976046938 | BD31: 0.06976046938 | BE31: 9.5 | BF31: -37.5 | BG31: -13.62772834 | BH31: 0.4638924376 | BI31: 53.45771852 | BJ31: 1 | BK31: 1 | BL31: 0.4638924376 | BM31: 0.09165915109
A32: 0.08401129322 | B32: 0.03967206533 | D32: 0.07000529475 | E32: 0.05128765544 | G32: 0.07000529475 | H32: 0.05128765544 | J32: 0.07808587811 | K32: 0.04045035247 | M32: 0.06501154247 | N32: 0.0470770121 | P32: 0.08131096114 | Q32: 0.0377805025 | S32: 0.06180960662 | T32: 0.05089074727 | V32: 0.07808587811 | W32: 0.04045035247 | Y32: 0.05874792728 | Z32: 0.05202445088 | AB32: 0.08401129322 | AC32: 0.03967206533 | AE32: 0.08401129322 | AF32: 0.08401129322 | AH32: 11 | AI32: 45 | AJ32: 0.08401129322 | AK32: 0.08401129322 | AL32: 10.5 | AM32: -22.5 | AN32: -13.62772834 | AO32: 1.003360967 | AP32: 67.07942611 | AQ32: 1 | AR32: 1 | AS32: 1.003360967 | AT32: 0.1682895946 | BA32: 11 | BB32: 45 | BC32: 0.08401129322 | BD32: 0.08401129322 | BE32: 10.5 | BF32: -22.5 | BG32: -13.62772834 | BH32: 0.5484413002 | BI32: 67.07942611 | BJ32: 1 | BK32: 1 | BL32: 0.5484413002 | BM32: 0.1174865456
A33: 0.09104636023 | B33: 0.03971467341 | D33: 0.07639191098 | E33: 0.05174521266 | G33: 0.07639191098 | H33: 0.05174521266 | J33: 0.08347998491 | K33: 0.04423251407 | M33: 0.06990880543 | N33: 0.05082002785 | P33: 0.08238184636 | Q33: 0.04299050272 | S33: 0.07683881037 | T33: 0.05221611126 | V33: 0.08347998491 | W33: 0.04423251407 | Y33: 0.06218949567 | Z33: 0.05423722561 | AB33: 0.09104636023 | AC33: 0.03971467341 | AE33: 0.09104636023 | AF33: 0.09104636023 | AH33: 12 | AI33: 45 | AJ33: 0.09104636023 | AK33: 0.09104636023 | AL33: 11.5 | AM33: -7.5 | AN33: -13.62772834 | AO33: 1.004294505 | AP33: 79.08932286 | AQ33: 1 | AR33: 1 | AS33: 1.004294505 | AT33: 0.1824670831 | BA33: 12 | BB33: 45 | BC33: 0.09104636023 | BD33: 0.09104636023 | BE33: 11.5 | BF33: -7.5 | BG33: -13.62772834 | BH33: 0.6043910039 | BI33: 79.08932286 | BJ33: 1 | BK33: 1 | BL33: 0.6043910039 | BM33: 0.1324188317
A34: 0.09104636023 | B34: 0.03971467341 | D34: 0.07639191098 | E34: 0.05174521266 | G34: 0.07639191098 | H34: 0.05174521266 | J34: 0.08347998491 | K34: 0.04423251407 | M34: 0.06990880543 | N34: 0.05082002785 | P34: 0.08238184636 | Q34: 0.04299050272 | S34: 0.07683881037 | T34: 0.05221611126 | V34: 0.08347998491 | W34: 0.04423251407 | Y34: 0.06218949567 | Z34: 0.05423722561 | AB34: 0.09104636023 | AC34: 0.03971467341 | AE34: 0.09104636023 | AF34: 0.09104636023 | AH34: 13 | AI34: 45 | AJ34: 0.09104636023 | AK34: 0.09104636023 | AL34: 12.5 | AM34: 7.5 | AN34: -13.62772834 | AO34: 1.004611307 | AP34: 79.08932286 | AQ34: 1 | AR34: 1 | AS34: 1.004611307 | AT34: 0.1824959268 | BA34: 13 | BB34: 45 | BC34: 0.09104636023 | BD34: 0.09104636023 | BE34: 12.5 | BF34: 7.5 | BG34: -13.62772834 | BH34: 0.6433012819 | BI34: 79.08932286 | BJ34: 1 | BK34: 1 | BL34: 0.6433012819 | BM34: 0.1359614709
A35: 0.08401129322 | B35: 0.03967206533 | D35: 0.07000529475 | E35: 0.05128765544 | G35: 0.07000529475 | H35: 0.05128765544 | J35: 0.07808587811 | K35: 0.04045035247 | M35: 0.06501154247 | N35: 0.0470770121 | P35: 0.08131096114 | Q35: 0.0377805025 | S35: 0.06180960662 | T35: 0.05089074727 | V35: 0.07808587811 | W35: 0.04045035247 | Y35: 0.05874792728 | Z35: 0.05202445088 | AB35: 0.08401129322 | AC35: 0.03967206533 | AE35: 0.08401129322 | AF35: 0.08401129322 | AH35: 14 | AI35: 45 | AJ35: 0.08401129322 | AK35: 0.08401129322 | AL35: 13.5 | AM35: 22.5 | AN35: -13.62772834 | AO35: 1.004351193 | AP35: 67.07942611 | AQ35: 1 | AR35: 1 | AS35: 1.004351193 | AT35: 0.1683727848 | BA35: 14 | BB35: 45 | BC35: 0.08401129322 | BD35: 0.08401129322 | BE35: 13.5 | BF35: 22.5 | BG35: -13.62772834 | BH35: 0.6700629385 | BI35: 67.07942611 | BJ35: 1 | BK35: 1 | BL35: 0.6700629385 | BM35: 0.1277041367
A36: 0.06976046938 | B36: 0.03649934163 | D36: 0.0541634553 | E36: 0.04502094414 | G36: 0.0541634553 | H36: 0.04502094414 | J36: 0.0627862297 | K36: 0.03832791604 | M36: 0.05717290804 | N36: 0.04082961141 | P36: 0.06532974294 | Q36: 0.03613191367 | S36: 0.05536750989 | T36: 0.04489885034 | V36: 0.0627862297 | W36: 0.03832791604 | Y36: 0.054804907 | Z36: 0.04533054122 | AB36: 0.06976046938 | AC36: 0.03649934163 | AE36: 0.06976046938 | AF36: 0.06976046938 | AH36: 15 | AI36: 45 | AJ36: 0.06976046938 | AK36: 0.06976046938 | AL36: 14.5 | AM36: 37.5 | AN36: -13.62772834 | AO36: 1.003349824 | AP36: 53.45771852 | AQ36: 1 | AR36: 1 | AS36: 1.003349824 | AT36: 0.1397418771 | BA36: 15 | BB36: 45 | BC36: 0.06976046938 | BD36: 0.06976046938 | BE36: 14.5 | BF36: 37.5 | BG36: -13.62772834 | BH36: 0.6856944929 | BI36: 53.45771852 | BJ36: 1 | BK36: 1 | BL36: 0.6856944929 | BM36: 0.1071321666
A37: 0.04786095652 | B37: 0.03080150576 | D37: 0.04291455672 | E37: 0.03683211871 | G37: 0.04291455672 | H37: 0.03683211871 | J37: 0.04595128312 | K37: 0.03308469763 | M37: 0.04360522937 | N37: 0.03189399008 | P37: 0.05361900495 | Q37: 0.02737391497 | S37: 0.04277503781 | T37: 0.03713643669 | V37: 0.04595128312 | W37: 0.03308469763 | Y37: 0.04286467521 | Z37: 0.03792229916 | AB37: 0.04786095652 | AC37: 0.03080150576 | AE37: 0.04786095652 | AF37: 0.04786095652 | AH37: 16 | AI37: 45 | AJ37: 0.04786095652 | AK37: 0.04786095652 | AL37: 15.5 | AM37: 52.5 | AN37: -13.62772834 | AO37: 1.001049555 | AP37: 39.57242718 | AQ37: 1 | AR37: 1 | AS37: 1.001049555 | AT37: 0.09576340035 | BA37: 16 | BB37: 45 | BC37: 0.04786095652 | BD37: 0.04786095652 | BE37: 15.5 | BF37: 52.5 | BG37: -13.62772834 | BH37: 0.6866105883 | BI37: 39.57242718 | BJ37: 1 | BK37: 1 | BL37: 0.6866105883 | BM37: 0.07354461164
A38: 0.02416324122 | B38: 0.02183236688 | D38: 0.02264647972 | E38: 0.02706443574 | G38: 0.02264647972 | H38: 0.02706443574 | J38: 0.03021782003 | K38: 0.02140664867 | M38: 0.02904001591 | N38: 0.0213942583 | P38: 0.02862885863 | Q38: 0.0218794924 | S38: 0.02670415446 | T38: 0.02751562954 | V38: 0.03021782003 | W38: 0.02140664867 | Y38: 0.02807418645 | Z38: 0.02943648894 | AB38: 0.02416324122 | AC38: 0.02183236688 | AE38: 0.02416324122 | AF38: 0.02416324122 | AH38: 17 | AI38: 45 | AJ38: 0.02416324122 | AK38: 0.02416324122 | AL38: 16.5 | AM38: 67.5 | AN38: -13.62772834 | AO38: 0.9955629362 | AP38: 25.67646182 | AQ38: 1 | AR38: 1 | AS38: 0.9955629362 | AT38: 0.04821485336 | BA38: 17 | BB38: 45 | BC38: 0.02416324122 | BD38: 0.02416324122 | BE38: 16.5 | BF38: 67.5 | BG38: -13.62772834 | BH38: 0.6564152833 | BI38: 25.67646182 | BJ38: 1 | BK38: 1 | BL38: 0.6564152833 | BM38: 0.03640036008
A39: 0.004166017053 | B39: 0.0101316338 | D39: 0.00630608641 | E39: 0.01464918064 | G39: 0.00630608641 | H39: 0.01464918064 | J39: 0.007806038446 | K39: 0.01328796478 | M39: 0.0160358992 | N39: 0.01197945862 | P39: 0.007207345468 | Q39: 0.01383385087 | S39: 0.004868958673 | T39: 0.01703098246 | V39: 0.007806038446 | W39: 0.01328796478 | Y39: 0.007529677063 | Z39: 0.02054393941 | AB39: 0.004166017053 | AC39: 0.0101316338 | AE39: 0.004166017053 | AF39: 0.004166017053 | AH39: 18 | AI39: 45 | AJ39: 0.004166017053 | AK39: 0.004166017053 | AL39: 17.5 | AM39: 82.5 | AN39: -13.62772834 | AO39: 0.9761891921 | AP39: 11.88868229 | AQ39: 1 | AR39: 1 | AS39: 0.9761891921 | AT39: 0.008232076638 | BA39: 18 | BB39: 45 | BC39: 0.004166017053 | BD39: 0.004166017053 | BE39: 17.5 | BF39: 82.5 | BG39: -13.62772834 | BH39: 0.4968540357 | BI39: 11.88868229 | BJ39: 1 | BK39: 1 | BL39: 0.4968540357 | BM39: 0.005611100364
A40: 0 | B40: 0.0003219276965 | D40: 0 | E40: 0.0009400546568 | G40: 0 | H40: 0.0009400546568 | J40: 0 | K40: 0.0008466274866 | M40: 0.006970688751 | N40: 0.006271510286 | P40: 0.0001017546114 | Q40: 0.001430308772 | S40: 0.0002150057356 | T40: 0.001732158884 | V40: 0 | W40: 0.0008466274866 | Y40: 0.0005782364949 | Z40: 0.005549193194 | AB40: 0 | AC40: 0.0003219276965 | AE40: 0 | AF40: 0 | AH40: 19 | AI40: 45 | AJ40: 0 | AK40: 0 | AL40: 18.5 | AM40: 97.5 | AN40: -13.62772834 | AO40: 1.276014889 | AP40: -1.678573993 | AQ40: 0 | AR40: 1 | AS40: 0 | AT40: 0 | BA40: 19 | BB40: 45 | BC40: 0 | BD40: 0 | BE40: 18.5 | BF40: 97.5 | BG40: -13.62772834 | BH40: 3.292567856 | BI40: -1.678573993 | BJ40: 0 | BK40: 1 | BL40: 0 | BM40: 0
A41: 0 | B41: 0 | D41: 0 | E41: 0 | G41: 0 | H41: 0 | J41: 0 | K41: 0 | M41: 0.0003194522298 | N41: 0.001669589956 | P41: 0 | Q41: 0 | S41: 0 | T41: 0 | V41: 0 | W41: 0 | Y41: 3.548008653e-06 | Z41: 0.000163208398 | AB41: 0 | AC41: 0 | AE41: 0 | AF41: 0 | AH41: 20 | AI41: 45 | AJ41: 0 | AK41: 0 | AL41: 19.5 | AM41: 112.5 | AN41: -13.62772834 | AO41: 1.04374156 | AP41: -14.86758573 | AQ41: 0 | AR41: 1 | AS41: 0 | AT41: 0 | BA41: 20 | BB41: 45 | BC41: 0 | BD41: 0 | BE41: 19.5 | BF41: 112.5 | BG41: -13.62772834 | BH41: 1.162361132 | BI41: -14.86758573 | BJ41: 0 | BK41: 1 | BL41: 0 | BM41: 0
AL42: -0.5 | AT42: =SUM(AT26:AT41) -> 1.28509119 | BE42: -0.5 | BM42: =SUM(BM26:BM41) -> 0.9088748195
A43: marzo | D43: marzo | G43: marzo | J43: marzo | M43: marzo | P43: marzo | S43: marzo | V43: marzo | Y43: marzo | AB43: marzo | AL43: -0.5 | BE43: -0.5
A44: 0 | B44: 0 | D44: 0 | E44: 0 | G44: 0 | H44: 0 | J44: 0 | K44: 0 | M44: 0 | N44: 0 | P44: 0 | Q44: 0 | S44: 0 | T44: 0 | V44: 0 | W44: 0 | Y44: 0 | Z44: 0 | AB44: 0 | AC44: 0 | AE44: =CHOOSE($B$1,A44,D44,G44,J44,M44,P44,S44,V44,Y44,AB44) -> 0 | AF44: =CHOOSE($B$1,B44,E44,H44,K44,N44,Q44,T44,V44,Y44,AB44) -> 0 | AH44: 5 | AI44: 74 | AJ44: =AE44 -> 0 | AK44: =AF44 -> 0 | AL44: 4.5 | AM44: =15*(AL44-12) -> -112.5 | AN44: =23.45*SIN(360*(284+AI44)/365/57.3) -> -2.829445568 | AO44: =((SIN(AN44/57.3)*SIN($B$2/57.3)*COS($AI$2/57.3))-SIN(AN44/57.3)*COS($B$2/57.3)*SIN($AI$2/57.3)*COS($AI$3/57.3)+COS(AN44/57.3)*COS($B$2/57.3)*COS($AI$2/57.3)*COS(AM44/57.3)+COS(AN44/57.3)*SIN($B$2/57.3)*SIN($AI$2/57.3)*COS($AI$3/57.3)*COS(AM44/57.3)+COS(AN44/57.3)*SIN($AI$2/57.3)*SIN($AI$3/57.3)*SIN(AM44/57.3))/(COS($B$2/57.3)*COS(AN44/57.3)*COS(AM44/57.3)+SIN($B$2/57.3)*SIN(AN44/57.3)) -> 1.022378637 | AP44: =57.3*ASIN(SIN($B$2/57.3)*SIN(AN44/57.3)+COS($B$2/57.3)*COS(AM44/57.3)*COS(AN44/57.6)) -> -19.62149025 | AQ44: =IF(AP44<0,0,1) -> 0 | AR44: =IF(AO44<0,0,1) -> 1 | AS44: =AO44*AR44*AQ44 -> 0 | AT44: =AJ44*AS44+((1+COS($AI$2/57.3))/2)*AK44+((1-COS($AI$2/57.3))/2)*(AJ44+AK44)*0.2 -> 0 | BA44: 5 | BB44: 74 | BC44: =AE44 -> 0 | BD44: =AF44 -> 0 | BE44: 4.5 | BF44: =15*(BE44-12) -> -112.5 | BG44: =23.45*SIN(360*(284+BB44)/365/57.3) -> -2.829445568 | BH44: =((SIN(BG44/57.3)*SIN($B$2/57.3)*COS($BB$2/57.3))-SIN(BG44/57.3)*COS($B$2/57.3)*SIN($BB$2/57.3)*COS($BB$3/57.3)+COS(BG44/57.3)*COS($B$2/57.3)*COS($BB$2/57.3)*COS(BF44/57.3)+COS(BG44/57.3)*SIN($B$2/57.3)*SIN($BB$2/57.3)*COS($BB$3/57.3)*COS(BF44/57.3)+COS(BG44/57.3)*SIN($BB$2/57.3)*SIN($BB$3/57.3)*SIN(BF44/57.3))/(COS($B$2/57.3)*COS(BG44/57.3)*COS(BF44/57.3)+SIN($B$2/57.3)*SIN(BG44/57.3)) -> 1.393587649 | BI44: =57.3*ASIN(SIN($B$2/57.3)*SIN(BG44/57.3)+COS($B$2/57.3)*COS(BF44/57.3)*COS(BG44/57.6)) -> -19.62149025 | BJ44: =IF(BI44<0,0,1) -> 0 | BK44: =IF(BH44<0,0,1) -> 1 | BL44: =BH44*BK44*BJ44 -> 0 | BM44: =BC44*BL44+((1+COS($BB$2/57.3))/2)*BD44+((1-COS($BB$2/57.3))/2)*(BC44+BD44)*0.2 -> 0
A45: 0 | B45: 1.905945499e-05 | D45: 0 | E45: 4.718298981e-05 | G45: 0 | H45: 4.718298981e-05 | J45: 0 | K45: 4.245802424e-05 | M45: 0.001751900431 | N45: 0.004208369514 | P45: 1.769071379e-05 | Q45: 8.74129387e-05 | S45: 6.742402992e-06 | T45: 0.0001129352501 | V45: 0 | W45: 4.245802424e-05 | Y45: 0.0001377817979 | Z45: 0.0003598536368 | AB45: 0 | AC45: 1.905945499e-05 | AE45: 0 | AF45: 0 | AH45: 6 | AI45: 74 | AJ45: 0 | AK45: 0 | AL45: 5.5 | AM45: -97.5 | AN45: -2.829445568 | AO45: 1.043503541 | AP45: -5.870508358 | AQ45: 0 | AR45: 1 | AS45: 0 | AT45: 0 | BA45: 6 | BB45: 74 | BC45: 0 | BD45: 0 | BE45: 5.5 | BF45: -97.5 | BG45: -2.829445568 | BH45: 2.746340718 | BI45: -5.870508358 | BJ45: 0 | BK45: 1 | BL45: 0 | BM45: 0
A46: 0.001043280731 | B46: 0.004259731096 | D46: 0.0005212634956 | E46: 0.005502177163 | G46: 0.0005212634956 | H46: 0.005502177163 | J46: 0.0006980901862 | K46: 0.005534471296 | M46: 0.01228615389 | N46: 0.01099507944 | P46: 0.00157442714 | Q46: 0.00640796336 | S46: 0.001416991957 | T46: 0.008790550002 | V46: 0.0006980901862 | W46: 0.005534471296 | Y46: 0.0017752151 | Z46: 0.009284675907 | AB46: 0.001043280731 | AC46: 0.004259731096 | AE46: 0.001043280731 | AF46: 0.001043280731 | AH46: 7 | AI46: 74 | AJ46: 0.001043280731 | AK46: 0.001043280731 | AL46: 6.5 | AM46: -82.5 | AN46: -2.829445568 | AO46: 0.9914637479 | AP46: 8.017400465 | AQ46: 1 | AR46: 1 | AS46: 0.9914637479 | AT46: 0.002077465121 | BA46: 7 | BB46: 74 | BC46: 0.001043280731 | BD46: 0.001043280731 | BE46: 6.5 | BF46: -82.5 | BG46: -2.829445568 | BH46: -0.5499824806 | BI46: 8.017400465 | BJ46: 1 | BK46: 0 | BL46: 0 | BM46: 0.0008868095275
A47: 0.01889259644 | B47: 0.01996503705 | D47: 0.01491239493 | E47: 0.02703597634 | G47: 0.01491239493 | H47: 0.02703597634 | J47: 0.01696316428 | K47: 0.02408602741 | M47: 0.02310604329 | N47: 0.02229483723 | P47: 0.01788453683 | Q47: 0.02058789309 | S47: 0.01325115882 | T47: 0.0320755814 | V47: 0.01696316428 | W47: 0.02408602741 | Y47: 0.01669274735 | Z47: 0.02993352303 | AB47: 0.01889259644 | AC47: 0.01996503705 | AE47: 0.01889259644 | AF47: 0.01889259644 | AH47: 8 | AI47: 74 | AJ47: 0.01889259644 | AK47: 0.01889259644 | AL47: 7.5 | AM47: -67.5 | AN47: -2.829445568 | AO47: 1.005469323 | AP47: 21.89972853 | AQ47: 1 | AR47: 1 | AS47: 1.005469323 | AT47: 0.03788507044 | BA47: 8 | BB47: 74 | BC47: 0.01889259644 | BD47: 0.01889259644 | BE47: 7.5 | BF47: -67.5 | BG47: -2.829445568 | BH47: 0.3503550265 | BI47: 21.89972853 | BJ47: 1 | BK47: 1 | BL47: 0.3503550265 | BM47: 0.02267820169
A48: 0.04938898473 | B48: 0.02778751428 | D48: 0.04208070692 | E48: 0.03896673015 | G48: 0.04208070692 | H48: 0.03896673015 | J48: 0.0438574135 | K48: 0.03382910525 | M48: 0.04143625368 | N48: 0.03378882745 | P48: 0.04336537816 | Q48: 0.03131547499 | S48: 0.02788860782 | T48: 0.04755359507 | V48: 0.0438574135 | W48: 0.03382910525 | Y48: 0.03829361404 | Z48: 0.04318405738 | AB48: 0.04938898473 | AC48: 0.02778751428 | AE48: 0.04938898473 | AF48: 0.04938898473 | AH48: 9 | AI48: 74 | AJ48: 0.04938898473 | AK48: 0.04938898473 | AL48: 8.5 | AM48: -52.5 | AN48: -2.829445568 | AO48: 1.008623818 | AP48: 35.61495911 | AQ48: 1 | AR48: 1 | AS48: 1.008623818 | AT48: 0.09919486646 | BA48: 9 | BB48: 74 | BC48: 0.04938898473 | BD48: 0.04938898473 | BE48: 8.5 | BF48: -52.5 | BG48: -2.829445568 | BH48: 0.5617479921 | BI48: 35.61495911 | BJ48: 1 | BK48: 1 | BL48: 0.5617479921 | BM48: 0.06972578973
A49: 0.07442977075 | B49: 0.03528858091 | D49: 0.06056498445 | E49: 0.04719534726 | G49: 0.06056498445 | H49: 0.04719534726 | J49: 0.06367978742 | K49: 0.04343248767 | M49: 0.05539052146 | N49: 0.04532090246 | P49: 0.06922896619 | Q49: 0.0389632768 | S49: 0.04752719869 | T49: 0.06096986465 | V49: 0.06367978742 | W49: 0.04343248767 | Y49: 0.05620933761 | Z49: 0.05178588375 | AB49: 0.07442977075 | AC49: 0.03528858091 | AE49: 0.07442977075 | AF49: 0.07442977075 | AH49: 10 | AI49: 74 | AJ49: 0.07442977075 | AK49: 0.07442977075 | AL49: 9.5 | AM49: -37.5 | AN49: -2.829445568 | AO49: 1.010025932 | AP49: 48.87383185 | AQ49: 1 | AR49: 1 | AS49: 1.010025932 | AT49: 0.1495921692 | BA49: 10 | BB49: 74 | BC49: 0.07442977075 | BD49: 0.07442977075 | BE49: 9.5 | BF49: -37.5 | BG49: -2.829445568 | BH49: 0.662785245 | BI49: 48.87383185 | BJ49: 1 | BK49: 1 | BL49: 0.662785245 | BM49: 0.1125977505
A50: 0.09005505849 | B50: 0.03995208301 | D50: 0.07145414445 | E50: 0.05288876136 | G50: 0.07145414445 | H50: 0.05288876136 | J50: 0.08266887987 | K50: 0.04767621897 | M50: 0.06699495757 | N50: 0.05278552169 | P50: 0.08675213851 | Q50: 0.04356910616 | S50: 0.05322621482 | T50: 0.07094524988 | V50: 0.08266887987 | W50: 0.04767621897 | Y50: 0.06413661643 | Z50: 0.05774516197 | AB50: 0.09005505849 | AC50: 0.03995208301 | AE50: 0.09005505849 | AF50: 0.09005505849 | AH50: 11 | AI50: 74 | AJ50: 0.09005505849 | AK50: 0.09005505849 | AL50: 10.5 | AM50: -22.5 | AN50: -2.829445568 | AO50: 1.010820244 | AP50: 60.94100489 | AQ50: 1 | AR50: 1 | AS50: 1.010820244 | AT50: 0.1810680794 | BA50: 11 | BB50: 74 | BC50: 0.09005505849 | BD50: 0.09005505849 | BE50: 10.5 | BF50: -22.5 | BG50: -2.829445568 | BH50: 0.7268174517 | BI50: 60.94100489 | BJ50: 1 | BK50: 1 | BL50: 0.7268174517 | BM50: 0.1420021925
A51: 0.0961722772 | B51: 0.04274515951 | D51: 0.08313867486 | E51: 0.05569165564 | G51: 0.08313867486 | H51: 0.05569165564 | J51: 0.0898380726 | K51: 0.04769278795 | M51: 0.07294761056 | N51: 0.05669302134 | P51: 0.09359116034 | Q51: 0.04665457477 | S51: 0.05727502781 | T51: 0.07896028143 | V51: 0.0898380726 | W51: 0.04769278795 | Y51: 0.07077121524 | Z51: 0.05969031677 | AB51: 0.0961722772 | AC51: 0.04274515951 | AE51: 0.0961722772 | AF51: 0.0961722772 | AH51: 12 | AI51: 74 | AJ51: 0.0961722772 | AK51: 0.0961722772 | AL51: 11.5 | AM51: -7.5 | AN51: -2.829445568 | AO51: 1.01132752 | AP51: 69.50043349 | AQ51: 1 | AR51: 1 | AS51: 1.01132752 | AT51: 0.1934163747 | BA51: 12 | BB51: 74 | BC51: 0.0961722772 | BD51: 0.0961722772 | BE51: 11.5 | BF51: -7.5 | BG51: -2.829445568 | BH51: 0.7751660295 | BI51: 69.50043349 | BJ51: 1 | BK51: 1 | BL51: 0.7751660295 | BM51: 0.1562978451
A52: 0.0961722772 | B52: 0.04274515951 | D52: 0.08313867486 | E52: 0.05569165564 | G52: 0.08313867486 | H52: 0.05569165564 | J52: 0.0898380726 | K52: 0.04769278795 | M52: 0.07294761056 | N52: 0.05669302134 | P52: 0.09359116034 | Q52: 0.04665457477 | S52: 0.05727502781 | T52: 0.07896028143 | V52: 0.0898380726 | W52: 0.04769278795 | Y52: 0.07077121524 | Z52: 0.05969031677 | AB52: 0.0961722772 | AC52: 0.04274515951 | AE52: 0.0961722772 | AF52: 0.0961722772 | AH52: 13 | AI52: 74 | AJ52: 0.0961722772 | AK52: 0.0961722772 | AL52: 12.5 | AM52: 7.5 | AN52: -2.829445568 | AO52: 1.011668744 | AP52: 69.50043349 | AQ52: 1 | AR52: 1 | AS52: 1.011668744 | AT52: 0.193449191 | BA52: 13 | BB52: 74 | BC52: 0.0961722772 | BD52: 0.0961722772 | BE52: 12.5 | BF52: 7.5 | BG52: -2.829445568 | BH52: 0.8170759331 | BI52: 69.50043349 | BJ52: 1 | BK52: 1 | BL52: 0.8170759331 | BM52: 0.160328416
A53: 0.09005505849 | B53: 0.03995208301 | D53: 0.07145414445 | E53: 0.05288876136 | G53: 0.07145414445 | H53: 0.05288876136 | J53: 0.08266887987 | K53: 0.04767621897 | M53: 0.06699495757 | N53: 0.05278552169 | P53: 0.08675213851 | Q53: 0.04356910616 | S53: 0.05322621482 | T53: 0.07094524988 | V53: 0.08266887987 | W53: 0.04767621897 | Y53: 0.06413661643 | Z53: 0.05774516197 | AB53: 0.09005505849 | AC53: 0.03995208301 | AE53: 0.09005505849 | AF53: 0.09005505849 | AH53: 14 | AI53: 74 | AJ53: 0.09005505849 | AK53: 0.09005505849 | AL53: 13.5 | AM53: 22.5 | AN53: -2.829445568 | AO53: 1.011892271 | AP53: 60.94100489 | AQ53: 1 | AR53: 1 | AS53: 1.011892271 | AT53: 0.1811646208 | BA53: 14 | BB53: 74 | BC53: 0.09005505849 | BD53: 0.09005505849 | BE53: 13.5 | BF53: 22.5 | BG53: -2.829445568 | BH53: 0.8584860743 | BI53: 60.94100489 | BJ53: 1 | BK53: 1 | BL53: 0.8584860743 | BM53: 0.153859618
A54: 0.07442977075 | B54: 0.03528858091 | D54: 0.06056498445 | E54: 0.04719534726 | G54: 0.06056498445 | H54: 0.04719534726 | J54: 0.06367978742 | K54: 0.04343248767 | M54: 0.05539052146 | N54: 0.04532090246 | P54: 0.06922896619 | Q54: 0.0389632768 | S54: 0.04752719869 | T54: 0.06096986465 | V54: 0.06367978742 | W54: 0.04343248767 | Y54: 0.05620933761 | Z54: 0.05178588375 | AB54: 0.07442977075 | AC54: 0.03528858091 | AE54: 0.07442977075 | AF54: 0.07442977075 | AH54: 15 | AI54: 74 | AJ54: 0.07442977075 | AK54: 0.07442977075 | AL54: 14.5 | AM54: 37.5 | AN54: -2.829445568 | AO54: 1.012004931 | AP54: 48.87383185 | AQ54: 1 | AR54: 1 | AS54: 1.012004931 | AT54: 0.1497394656 | BA54: 15 | BB54: 74 | BC54: 0.07442977075 | BD54: 0.07442977075 | BE54: 14.5 | BF54: 37.5 | BG54: -2.829445568 | BH54: 0.9058500658 | BI54: 48.87383185 | BJ54: 1 | BK54: 1 | BL54: 0.9058500658 | BM54: 0.1306890094
A55: 0.04938898473 | B55: 0.02778751428 | D55: 0.04208070692 | E55: 0.03896673015 | G55: 0.04208070692 | H55: 0.03896673015 | J55: 0.0438574135 | K55: 0.03382910525 | M55: 0.04143625368 | N55: 0.03378882745 | P55: 0.04336537816 | Q55: 0.03131547499 | S55: 0.02788860782 | T55: 0.04755359507 | V55: 0.0438574135 | W55: 0.03382910525 | Y55: 0.03829361404 | Z55: 0.04318405738 | AB55: 0.04938898473 | AC55: 0.02778751428 | AE55: 0.04938898473 | AF55: 0.04938898473 | AH55: 16 | AI55: 74 | AJ55: 0.04938898473 | AK55: 0.04938898473 | AL55: 15.5 | AM55: 52.5 | AN55: -2.829445568 | AO55: 1.011959982 | AP55: 35.61495911 | AQ55: 1 | AR55: 1 | AS55: 1.011959982 | AT55: 0.0993596362 | BA55: 16 | BB55: 74 | BC55: 0.04938898473 | BD55: 0.04938898473 | BE55: 15.5 | BF55: 52.5 | BG55: -2.829445568 | BH55: 0.971502678 | BI55: 35.61495911 | BJ55: 1 | BK55: 1 | BL55: 0.971502678 | BM55: 0.08996315766
A56: 0.01889259644 | B56: 0.01996503705 | D56: 0.01491239493 | E56: 0.02703597634 | G56: 0.01491239493 | H56: 0.02703597634 | J56: 0.01696316428 | K56: 0.02408602741 | M56: 0.02310604329 | N56: 0.02229483723 | P56: 0.01788453683 | Q56: 0.02058789309 | S56: 0.01325115882 | T56: 0.0320755814 | V56: 0.01696316428 | W56: 0.02408602741 | Y56: 0.01669274735 | Z56: 0.02993352303 | AB56: 0.01889259644 | AC56: 0.01996503705 | AE56: 0.01889259644 | AF56: 0.01889259644 | AH56: 17 | AI56: 74 | AJ56: 0.01889259644 | AK56: 0.01889259644 | AL56: 16.5 | AM56: 67.5 | AN56: -2.829445568 | AO56: 1.011535137 | AP56: 21.89972853 | AQ56: 1 | AR56: 1 | AS56: 1.011535137 | AT56: 0.0379996694 | BA56: 17 | BB56: 74 | BC56: 0.01889259644 | BD56: 0.01889259644 | BE56: 16.5 | BF56: 67.5 | BG56: -2.829445568 | BH56: 1.095371102 | BI56: 21.89972853 | BJ56: 1 | BK56: 1 | BL56: 1.095371102 | BM56: 0.03675348973
A57: 0.001043280731 | B57: 0.004259731096 | D57: 0.0005212634956 | E57: 0.005502177163 | G57: 0.0005212634956 | H57: 0.005502177163 | J57: 0.0006980901862 | K57: 0.005534471296 | M57: 0.01228615389 | N57: 0.01099507944 | P57: 0.00157442714 | Q57: 0.00640796336 | S57: 0.001416991957 | T57: 0.008790550002 | V57: 0.0006980901862 | W57: 0.005534471296 | Y57: 0.0017752151 | Z57: 0.009284675907 | AB57: 0.001043280731 | AC57: 0.004259731096 | AE57: 0.001043280731 | AF57: 0.001043280731 | AH57: 18 | AI57: 74 | AJ57: 0.001043280731 | AK57: 0.001043280731 | AL57: 17.5 | AM57: 82.5 | AN57: -2.829445568 | AO57: 1.008871772 | AP57: 8.017400465 | AQ57: 1 | AR57: 1 | AS57: 1.008871772 | AT57: 0.002095626577 | BA57: 18 | BB57: 74 | BC57: 0.001043280731 | BD57: 0.001043280731 | BE57: 17.5 | BF57: 82.5 | BG57: -2.829445568 | BH57: 1.588107919 | BI57: 8.017400465 | BJ57: 1 | BK57: 1 | BL57: 1.588107919 | BM57: 0.002543651917
A58: 0 | B58: 1.905945499e-05 | D58: 0 | E58: 4.718298981e-05 | G58: 0 | H58: 4.718298981e-05 | J58: 0 | K58: 4.245802424e-05 | M58: 0.001751900431 | N58: 0.004208369514 | P58: 1.769071379e-05 | Q58: 8.74129387e-05 | S58: 6.742402992e-06 | T58: 0.0001129352501 | V58: 0 | W58: 4.245802424e-05 | Y58: 0.0001377817979 | Z58: 0.0003598536368 | AB58: 0 | AC58: 1.905945499e-05 | AE58: 0 | AF58: 0 | AH58: 19 | AI58: 74 | AJ58: 0 | AK58: 0 | AL58: 18.5 | AM58: 97.5 | AN58: -2.829445568 | AO58: 1.019764436 | AP58: -5.870508358 | AQ58: 0 | AR58: 1 | AS58: 0 | AT58: 0 | BA58: 19 | BB58: 74 | BC58: 0 | BD58: 0 | BE58: 18.5 | BF58: 97.5 | BG58: -2.829445568 | BH58: -0.1693463683 | BI58: -5.870508358 | BJ58: 0 | BK58: 0 | BL58: 0 | BM58: 0
A59: 0 | B59: 0 | D59: 0 | E59: 0 | G59: 0 | H59: 0 | J59: 0 | K59: 0 | M59: 0 | N59: 0 | P59: 0 | Q59: 0 | S59: 0 | T59: 0 | V59: 0 | W59: 0 | Y59: 0 | Z59: 0 | AB59: 0 | AC59: 0 | AE59: 0 | AF59: 0 | AH59: 20 | AI59: 74 | AJ59: 0 | AK59: 0 | AL59: 19.5 | AM59: 112.5 | AN59: -2.829445568 | AO59: 1.01564059 | AP59: -19.62149025 | AQ59: 0 | AR59: 1 | AS59: 0 | AT59: 0 | BA59: 20 | BB59: 74 | BC59: 0 | BD59: 0 | BE59: 19.5 | BF59: 112.5 | BG59: -2.829445568 | BH59: 0.5660064263 | BI59: -19.62149025 | BJ59: 0 | BK59: 1 | BL59: 0 | BM59: 0
AL60: -0.5 | AT60: =SUM(AT44:AT59) -> 1.327042235 | BE60: -0.5 | BM60: =SUM(BM44:BM59) -> 1.078325932
A61: abril | D61: abril | G61: abril | J61: abril | M61: abril | P61: abril | S61: abril | V61: abril | Y61: abril | AB61: abril | AL61: -0.5 | BE61: -0.5
A62: 0 | B62: 0 | D62: 0 | E62: 0 | G62: 0 | H62: 0 | J62: 0 | K62: 0 | M62: 0 | N62: 0 | P62: 0 | Q62: 0 | S62: 0 | T62: 0 | V62: 0 | W62: 0 | Y62: 0 | Z62: 0 | AB62: 0 | AC62: 0 | AE62: =CHOOSE($B$1,A62,D62,G62,J62,M62,P62,S62,V62,Y62,AB62) -> 0 | AF62: =CHOOSE($B$1,B62,E62,H62,K62,N62,Q62,T62,V62,Y62,AB62) -> 0 | AH62: 5 | AI62: 105 | AJ62: =AE62 -> 0 | AK62: =AF62 -> 0 | AL62: 4.5 | AM62: =15*(AL62-12) -> -112.5 | AN62: =23.45*SIN(360*(284+AI62)/365/57.3) -> 9.404299213 | AO62: =((SIN(AN62/57.3)*SIN($B$2/57.3)*COS($AI$2/57.3))-SIN(AN62/57.3)*COS($B$2/57.3)*SIN($AI$2/57.3)*COS($AI$3/57.3)+COS(AN62/57.3)*COS($B$2/57.3)*COS($AI$2/57.3)*COS(AM62/57.3)+COS(AN62/57.3)*SIN($B$2/57.3)*SIN($AI$2/57.3)*COS($AI$3/57.3)*COS(AM62/57.3)+COS(AN62/57.3)*SIN($AI$2/57.3)*SIN($AI$3/57.3)*SIN(AM62/57.3))/(COS($B$2/57.3)*COS(AN62/57.3)*COS(AM62/57.3)+SIN($B$2/57.3)*SIN(AN62/57.3)) -> 1.001250104 | AP62: =57.3*ASIN(SIN($B$2/57.3)*SIN(AN62/57.3)+COS($B$2/57.3)*COS(AM62/57.3)*COS(AN62/57.6)) -> -24.28095668 | AQ62: =IF(AP62<0,0,1) -> 0 | AR62: =IF(AO62<0,0,1) -> 1 | AS62: =AO62*AR62*AQ62 -> 0 | AT62: =AJ62*AS62+((1+COS($AI$2/57.3))/2)*AK62+((1-COS($AI$2/57.3))/2)*(AJ62+AK62)*0.2 -> 0 | BA62: 5 | BB62: 105 | BC62: =AE62 -> 0 | BD62: =AF62 -> 0 | BE62: 4.5 | BF62: =15*(BE62-12) -> -112.5 | BG62: =23.45*SIN(360*(284+BB62)/365/57.3) -> 9.404299213 | BH62: =((SIN(BG62/57.3)*SIN($B$2/57.3)*COS($BB$2/57.3))-SIN(BG62/57.3)*COS($B$2/57.3)*SIN($BB$2/57.3)*COS($BB$3/57.3)+COS(BG62/57.3)*COS($B$2/57.3)*COS($BB$2/57.3)*COS(BF62/57.3)+COS(BG62/57.3)*SIN($B$2/57.3)*SIN($BB$2/57.3)*COS($BB$3/57.3)*COS(BF62/57.3)+COS(BG62/57.3)*SIN($BB$2/57.3)*SIN($BB$3/57.3)*SIN(BF62/57.3))/(COS($B$2/57.3)*COS(BG62/57.3)*COS(BF62/57.3)+SIN($B$2/57.3)*SIN(BG62/57.3)) -> 0.8128823595 | BI62: =57.3*ASIN(SIN($B$2/57.3)*SIN(BG62/57.3)+COS($B$2/57.3)*COS(BF62/57.3)*COS(BG62/57.6)) -> -24.28095668 | BJ62: =IF(BI62<0,0,1) -> 0 | BK62: =IF(BH62<0,0,1) -> 1 | BL62: =BH62*BK62*BJ62 -> 0 | BM62: =BC62*BL62+((1+COS($BB$2/57.3))/2)*BD62+((1-COS($BB$2/57.3))/2)*(BC62+BD62)*0.2 -> 0
A63: 0 | B63: 0 | D63: 0 | E63: 0 | G63: 0 | H63: 0 | J63: 0 | K63: 0 | M63: 1.167285623e-18 | N63: 0.0004559101523 | P63: 0 | Q63: 0 | S63: 0 | T63: 0 | V63: 0 | W63: 0 | Y63: 0 | Z63: 0 | AB63: 0 | AC63: 0 | AE63: 0 | AF63: 0 | AH63: 6 | AI63: 105 | AJ63: 0 | AK63: 0 | AL63: 5.5 | AM63: -97.5 | AN63: 9.404299213 | AO63: 0.9860731246 | AP63: -10.39976539 | AQ63: 0 | AR63: 1 | AS63: 0 | AT63: 0 | BA63: 6 | BB63: 105 | BC63: 0 | BD63: 0 | BE63: 5.5 | BF63: -97.5 | BG63: 9.404299213 | BH63: 0.82793479 | BI63: -10.39976539 | BJ63: 0 | BK63: 1 | BL63: 0 | BM63: 0
A64: 0.0002321654411 | B64: 0.002025778454 | D64: 0.0001592919161 | E64: 0.001680861573 | G64: 0.0001592919161 | H64: 0.001680861573 | J64: 5.629249147e-05 | K64: 0.001426076451 | M64: 0.005148448794 | N64: 0.008517736017 | P64: 6.128867234e-05 | Q64: 0.001076929528 | S64: 1.872507508e-05 | T64: 0.0008543315506 | V64: 5.629249147e-05 | W64: 0.001426076451 | Y64: 1.844513891e-05 | Z64: 0.0003227899309 | AB64: 0.0002321654411 | AC64: 0.002025778454 | AE64: 0.0002321654411 | AF64: 0.0002321654411 | AH64: 7 | AI64: 105 | AJ64: 0.0002321654411 | AK64: 0.0002321654411 | AL64: 6.5 | AM64: -82.5 | AN64: 9.404299213 | AO64: 1.098341236 | AP64: 3.342940565 | AQ64: 1 | AR64: 1 | AS64: 1.098341236 | AT64: 0.0004871198963 | BA64: 7 | BB64: 105 | BC64: 0.0002321654411 | BD64: 0.0002321654411 | BE64: 6.5 | BF64: -82.5 | BG64: 9.404299213 | BH64: 0.8962416494 | BI64: 3.342940565 | BJ64: 1 | BK64: 1 | BL64: 0.8962416494 | BM64: 0.0004054216152
A65: 0.01570182794 | B65: 0.02016918943 | D65: 0.01274636009 | E65: 0.02453406613 | G65: 0.01274636009 | H65: 0.02453406613 | J65: 0.008235495574 | K65: 0.02145890308 | M65: 0.0141387746 | N65: 0.02035472034 | P65: 0.006144627178 | Q65: 0.02237736982 | S65: 0.005756241292 | T65: 0.02417305864 | V65: 0.008235495574 | W65: 0.02145890308 | Y65: 0.003367145403 | Z65: 0.01507531864 | AB65: 0.01570182794 | AC65: 0.02016918943 | AE65: 0.01570182794 | AF65: 0.01570182794 | AH65: 8 | AI65: 105 | AJ65: 0.01570182794 | AK65: 0.01570182794 | AL65: 7.5 | AM65: -67.5 | AN65: 9.404299213 | AO65: 1.030884044 | AP65: 16.79781544 | AQ65: 1 | AR65: 1 | AS65: 1.030884044 | AT65: 0.0318857227 | BA65: 8 | BB65: 105 | BC65: 0.01570182794 | BD65: 0.01570182794 | BE65: 7.5 | BF65: -67.5 | BG65: 9.404299213 | BH65: 0.8897580322 | BI65: 16.79781544 | BJ65: 1 | BK65: 1 | BL65: 0.8897580322 | BM65: 0.02731769593
A66: 0.04392554493 | B66: 0.03106284306 | D66: 0.03937982053 | E66: 0.04080685386 | G66: 0.03937982053 | H66: 0.04080685386 | J66: 0.02857116952 | K66: 0.04028140153 | M66: 0.02650394751 | N66: 0.04081507839 | P66: 0.02938949728 | Q66: 0.04183495102 | S66: 0.01843679896 | T66: 0.04941694772 | V66: 0.02857116952 | W66: 0.04028140153 | Y66: 0.02384717395 | Z66: 0.04062654927 | AB66: 0.04392554493 | AC66: 0.03106284306 | AE66: 0.04392554493 | AF66: 0.04392554493 | AH66: 9 | AI66: 105 | AJ66: 0.04392554493 | AK66: 0.04392554493 | AL66: 8.5 | AM66: -52.5 | AN66: 9.404299213 | AO66: 1.023942741 | AP66: 29.72344327 | AQ66: 1 | AR66: 1 | AS66: 1.023942741 | AT66: 0.08889476153 | BA66: 9 | BB66: 105 | BC66: 0.04392554493 | BD66: 0.04392554493 | BE66: 8.5 | BF66: -52.5 | BG66: 9.404299213 | BH66: 0.9100325367 | BI66: 29.72344327 | BJ66: 1 | BK66: 1 | BL66: 0.9100325367 | BM66: 0.07731126851
A67: 0.06800719682 | B67: 0.04101769433 | D67: 0.05755581973 | E67: 0.06171068388 | G67: 0.05755581973 | H67: 0.06171068388 | J67: 0.05648013311 | K67: 0.05283519429 | M67: 0.04703102413 | N67: 0.05712776604 | P67: 0.05087134915 | Q67: 0.05472202888 | S67: 0.04209162815 | T67: 0.06945832538 | V67: 0.05648013311 | W67: 0.05283519429 | Y67: 0.05097901432 | Z67: 0.06365985577 | AB67: 0.06800719682 | AC67: 0.04101769433 | AE67: 0.06800719682 | AF67: 0.06800719682 | AH67: 10 | AI67: 105 | AJ67: 0.06800719682 | AK67: 0.06800719682 | AL67: 9.5 | AM67: -37.5 | AN67: 9.404299213 | AO67: 1.021620611 | AP67: 41.65741231 | AQ67: 1 | AR67: 1 | AS67: 1.021620611 | AT67: 0.1374723242 | BA67: 10 | BB67: 105 | BC67: 0.06800719682 | BD67: 0.06800719682 | BE67: 9.5 | BF67: -37.5 | BG67: 9.404299213 | BH67: 0.9346670163 | BI67: 41.65741231 | BJ67: 1 | BK67: 1 | BL67: 0.9346670163 | BM67: 0.1213715638
A68: 0.08454817462 | B68: 0.04707559258 | D68: 0.06167252019 | E68: 0.06746344506 | G68: 0.06167252019 | H68: 0.06746344506 | J68: 0.07663597242 | K68: 0.06427195214 | M68: 0.06190370288 | N68: 0.07016012454 | P68: 0.07995720194 | Q68: 0.05807889702 | S68: 0.06194254837 | T68: 0.07485816891 | V68: 0.07663597242 | W68: 0.06427195214 | Y68: 0.06387859022 | Z68: 0.07860395945 | AB68: 0.08454817462 | AC68: 0.04707559258 | AE68: 0.08454817462 | AF68: 0.08454817462 | AH68: 11 | AI68: 105 | AJ68: 0.08454817462 | AK68: 0.08454817462 | AL68: 10.5 | AM68: -22.5 | AN68: 9.404299213 | AO68: 1.020729717 | AP68: 51.63505665 | AQ68: 1 | AR68: 1 | AS68: 1.020729717 | AT68: 0.1708335599 | BA68: 11 | BB68: 105 | BC68: 0.08454817462 | BD68: 0.08454817462 | BE68: 10.5 | BF68: -22.5 | BG68: 9.404299213 | BH68: 0.963785942 | BI68: 51.63505665 | BJ68: 1 | BK68: 1 | BL68: 0.963785942 | BM68: 0.1533539848
A69: 0.09601498773 | B69: 0.05021900467 | D69: 0.06625216278 | E69: 0.06603811427 | G69: 0.06625216278 | H69: 0.06603811427 | J69: 0.08494380595 | K69: 0.06480360345 | M69: 0.07153341488 | N69: 0.07630935172 | P69: 0.08475698053 | Q69: 0.07072887899 | S69: 0.07055842354 | T69: 0.08243480241 | V69: 0.08494380595 | W69: 0.06480360345 | Y69: 0.08170274278 | Z69: 0.07791841512 | AB69: 0.09601498773 | AC69: 0.05021900467 | AE69: 0.09601498773 | AF69: 0.09601498773 | AH69: 12 | AI69: 105 | AJ69: 0.09601498773 | AK69: 0.09601498773 | AL69: 11.5 | AM69: -7.5 | AN69: 9.404299213 | AO69: 1.020560579 | AP69: 57.76590045 | AQ69: 1 | AR69: 1 | AS69: 1.020560579 | AT69: 0.1939865548 | BA69: 12 | BB69: 105 | BC69: 0.09601498773 | BD69: 0.09601498773 | BE69: 11.5 | BF69: -7.5 | BG69: 9.404299213 | BH69: 0.9993623306 | BI69: 57.76590045 | BJ69: 1 | BK69: 1 | BL69: 0.9993623306 | BM69: 0.1775684255
A70: 0.09601498773 | B70: 0.05021900467 | D70: 0.06625216278 | E70: 0.06603811427 | G70: 0.06625216278 | H70: 0.06603811427 | J70: 0.08494380595 | K70: 0.06480360345 | M70: 0.07153341488 | N70: 0.07630935172 | P70: 0.08475698053 | Q70: 0.07072887899 | S70: 0.07055842354 | T70: 0.08243480241 | V70: 0.08494380595 | W70: 0.06480360345 | Y70: 0.08170274278 | Z70: 0.07791841512 | AB70: 0.09601498773 | AC70: 0.05021900467 | AE70: 0.09601498773 | AF70: 0.09601498773 | AH70: 13 | AI70: 105 | AJ70: 0.09601498773 | AK70: 0.09601498773 | AL70: 12.5 | AM70: 7.5 | AN70: 9.404299213 | AO70: 1.020933865 | AP70: 57.76590045 | AQ70: 1 | AR70: 1 | AS70: 1.020933865 | AT70: 0.1940223959 | BA70: 13 | BB70: 105 | BC70: 0.09601498773 | BD70: 0.09601498773 | BE70: 12.5 | BF70: 7.5 | BG70: 9.404299213 | BH70: 1.045210193 | BI70: 57.76590045 | BJ70: 1 | BK70: 1 | BL70: 1.045210193 | BM70: 0.1819705075
A71: 0.08454817462 | B71: 0.04707559258 | D71: 0.06167252019 | E71: 0.06746344506 | G71: 0.06167252019 | H71: 0.06746344506 | J71: 0.07663597242 | K71: 0.06427195214 | M71: 0.06190370288 | N71: 0.07016012454 | P71: 0.07995720194 | Q71: 0.05807889702 | S71: 0.06194254837 | T71: 0.07485816891 | V71: 0.07663597242 | W71: 0.06427195214 | Y71: 0.06387859022 | Z71: 0.07860395945 | AB71: 0.08454817462 | AC71: 0.04707559258 | AE71: 0.08454817462 | AF71: 0.08454817462 | AH71: 14 | AI71: 105 | AJ71: 0.08454817462 | AK71: 0.08454817462 | AL71: 13.5 | AM71: 22.5 | AN71: 9.404299213 | AO71: 1.021910415 | AP71: 51.63505665 | AQ71: 1 | AR71: 1 | AS71: 1.021910415 | AT71: 0.1709333857 | BA71: 14 | BB71: 105 | BC71: 0.08454817462 | BD71: 0.08454817462 | BE71: 13.5 | BF71: 22.5 | BG71: 9.404299213 | BH71: 1.108801745 | BI71: 51.63505665 | BJ71: 1 | BK71: 1 | BL71: 1.108801745 | BM71: 0.1656148063
A72: 0.06800719682 | B72: 0.04101769433 | D72: 0.05755581973 | E72: 0.06171068388 | G72: 0.05755581973 | H72: 0.06171068388 | J72: 0.05648013311 | K72: 0.05283519429 | M72: 0.04703102413 | N72: 0.05712776604 | P72: 0.05087134915 | Q72: 0.05472202888 | S72: 0.04209162815 | T72: 0.06945832538 | V72: 0.05648013311 | W72: 0.05283519429 | Y72: 0.05097901432 | Z72: 0.06365985577 | AB72: 0.06800719682 | AC72: 0.04101769433 | AE72: 0.06800719682 | AF72: 0.06800719682 | AH72: 15 | AI72: 105 | AJ72: 0.06800719682 | AK72: 0.06800719682 | AL72: =AH72-0.5 -> 14.5 | AM72: 37.5 | AN72: 9.404299213 | AO72: 1.023836258 | AP72: 41.65741231 | AQ72: 1 | AR72: 1 | AS72: 1.023836258 | AT72: 0.1376230041 | BA72: 15 | BB72: 105 | BC72: 0.06800719682 | BD72: 0.06800719682 | BE72: =BA72-0.5 -> 14.5 | BF72: 37.5 | BG72: 9.404299213 | BH72: 1.206797535 | BI72: 41.65741231 | BJ72: 1 | BK72: 1 | BL72: 1.206797535 | BM72: 0.1398783976
A73: 0.04392554493 | B73: 0.03106284306 | D73: 0.03937982053 | E73: 0.04080685386 | G73: 0.03937982053 | H73: 0.04080685386 | J73: 0.02857116952 | K73: 0.04028140153 | M73: 0.02650394751 | N73: 0.04081507839 | P73: 0.02938949728 | Q73: 0.04183495102 | S73: 0.01843679896 | T73: 0.04941694772 | V73: 0.02857116952 | W73: 0.04028140153 | Y73: 0.02384717395 | Z73: 0.04062654927 | AB73: 0.04392554493 | AC73: 0.03106284306 | AE73: 0.04392554493 | AF73: 0.04392554493 | AH73: 16 | AI73: 105 | AJ73: 0.04392554493 | AK73: 0.04392554493 | AL73: 15.5 | AM73: 52.5 | AN73: 9.404299213 | AO73: 1.027813717 | AP73: 29.72344327 | AQ73: 1 | AR73: 1 | AS73: 1.027813717 | AT73: 0.08906479626 | BA73: 16 | BB73: 105 | BC73: 0.04392554493 | BD73: 0.04392554493 | BE73: 15.5 | BF73: 52.5 | BG73: 9.404299213 | BH73: 1.385474019 | BI73: 29.72344327 | BJ73: 1 | BK73: 1 | BL73: 1.385474019 | BM73: 0.09819529471
A74: 0.01570182794 | B74: 0.02016918943 | D74: 0.01274636009 | E74: 0.02453406613 | G74: 0.01274636009 | H74: 0.02453406613 | J74: 0.008235495574 | K74: 0.02145890308 | M74: 0.0141387746 | N74: 0.02035472034 | P74: 0.006144627178 | Q74: 0.02237736982 | S74: 0.005756241292 | T74: 0.02417305864 | V74: 0.008235495574 | W74: 0.02145890308 | Y74: 0.003367145403 | Z74: 0.01507531864 | AB74: 0.01570182794 | AC74: 0.02016918943 | AE74: 0.01570182794 | AF74: 0.01570182794 | AH74: 17 | AI74: 105 | AJ74: 0.01570182794 | AK74: 0.01570182794 | AL74: 16.5 | AM74: 67.5 | AN74: 9.404299213 | AO74: 1.038618175 | AP74: 16.79781544 | AQ74: 1 | AR74: 1 | AS74: 1.038618175 | AT74: 0.0320071627 | BA74: 17 | BB74: 105 | BC74: 0.01570182794 | BD74: 0.01570182794 | BE74: 16.5 | BF74: 67.5 | BG74: 9.404299213 | BH74: 1.839680383 | BI74: 16.79781544 | BJ74: 1 | BK74: 1 | BL74: 1.839680383 | BM74: 0.04223321324
A75: 0.0002321654411 | B75: 0.002025778454 | D75: 0.0001592919161 | E75: 0.001680861573 | G75: 0.0001592919161 | H75: 0.001680861573 | J75: 5.629249147e-05 | K75: 0.001426076451 | M75: 0.005148448794 | N75: 0.008517736017 | P75: 6.128867234e-05 | Q75: 0.001076929528 | S75: 1.872507508e-05 | T75: 0.0008543315506 | V75: 5.629249147e-05 | W75: 0.001426076451 | Y75: 1.844513891e-05 | Z75: 0.0003227899309 | AB75: 0.0002321654411 | AC75: 0.002025778454 | AE75: 0.0002321654411 | AF75: 0.0002321654411 | AH75: 18 | AI75: 105 | AJ75: 0.0002321654411 | AK75: 0.0002321654411 | AL75: 17.5 | AM75: 82.5 | AN75: 9.404299213 | AO75: 1.139480617 | AP75: 3.342940565 | AQ75: 1 | AR75: 1 | AS75: 1.139480617 | AT75: 0.0004966710387 | BA75: 18 | BB75: 105 | BC75: 0.0002321654411 | BD75: 0.0002321654411 | BE75: 17.5 | BF75: 82.5 | BG75: 9.404299213 | BH75: 5.949067425 | BI75: 3.342940565 | BJ75: 1 | BK75: 1 | BL75: 5.949067425 | BM75: 0.00157851314
A76: 0 | B76: 0 | D76: 0 | E76: 0 | G76: 0 | H76: 0 | J76: 0 | K76: 0 | M76: 1.167285623e-18 | N76: 0.0004559101523 | P76: 0 | Q76: 0 | S76: 0 | T76: 0 | V76: 0 | W76: 0 | Y76: 0 | Z76: 0 | AB76: 0 | AC76: 0 | AE76: 0 | AF76: 0 | AH76: 19 | AI76: 105 | AJ76: 0 | AK76: 0 | AL76: 18.5 | AM76: 97.5 | AN76: 9.404299213 | AO76: 0.9727859847 | AP76: -10.39976539 | AQ76: 0 | AR76: 1 | AS76: 0 | AT76: 0 | BA76: 19 | BB76: 105 | BC76: 0 | BD76: 0 | BE76: 18.5 | BF76: 97.5 | BG76: 9.404299213 | BH76: -0.8040198597 | BI76: -10.39976539 | BJ76: 0 | BK76: 0 | BL76: 0 | BM76: 0
A77: 0 | B77: 0 | D77: 0 | E77: 0 | G77: 0 | H77: 0 | J77: 0 | K77: 0 | M77: 0 | N77: 0 | P77: 0 | Q77: 0 | S77: 0 | T77: 0 | V77: 0 | W77: 0 | Y77: 0 | Z77: 0 | AB77: 0 | AC77: 0 | AE77: 0 | AF77: 0 | AH77: 20 | AI77: 105 | AJ77: 0 | AK77: 0 | AL77: 19.5 | AM77: 112.5 | AN77: 9.404299213 | AO77: 0.9958144024 | AP77: -24.28095668 | AQ77: 0 | AR77: 1 | AS77: 0 | AT77: 0 | BA77: 20 | BB77: 105 | BC77: 0 | BD77: 0 | BE77: 19.5 | BF77: 112.5 | BG77: 9.404299213 | BH77: 0.1452579439 | BI77: -24.28095668 | BJ77: 0 | BK77: 1 | BL77: 0 | BM77: 0
AL78: -0.5 | AT78: =SUM(AT62:AT77) -> 1.247707459 | BE78: -0.5 | BM78: =SUM(BM62:BM77) -> 1.186799093
A79: mayo | D79: mayo | G79: mayo | J79: mayo | M79: mayo | P79: mayo | S79: mayo | V79: mayo | Y79: mayo | AB79: mayo | AL79: -0.5 | BE79: -0.5
A80: 0 | B80: 0 | D80: 0 | E80: 0 | G80: 0 | H80: 0 | J80: 0 | K80: 0 | M80: 0 | N80: 0 | P80: 0 | Q80: 0 | S80: 0 | T80: 0 | V80: 0 | W80: 0 | Y80: 0 | Z80: 0 | AB80: 0 | AC80: 0 | AE80: =CHOOSE($B$1,A80,D80,G80,J80,M80,P80,S80,V80,Y80,AB80) -> 0 | AF80: =CHOOSE($B$1,B80,E80,H80,K80,N80,Q80,T80,V80,Y80,AB80) -> 0 | AH80: 5 | AI80: 136 | AJ80: =AE80 -> 0 | AK80: =AF80 -> 0 | AL80: 4.5 | AM80: =15*(AL80-12) -> -112.5 | AN80: =23.45*SIN(360*(284+AI80)/365/57.3) -> 19.02329162 | AO80: =((SIN(AN80/57.3)*SIN($B$2/57.3)*COS($AI$2/57.3))-SIN(AN80/57.3)*COS($B$2/57.3)*SIN($AI$2/57.3)*COS($AI$3/57.3)+COS(AN80/57.3)*COS($B$2/57.3)*COS($AI$2/57.3)*COS(AM80/57.3)+COS(AN80/57.3)*SIN($B$2/57.3)*SIN($AI$2/57.3)*COS($AI$3/57.3)*COS(AM80/57.3)+COS(AN80/57.3)*SIN($AI$2/57.3)*SIN($AI$3/57.3)*SIN(AM80/57.3))/(COS($B$2/57.3)*COS(AN80/57.3)*COS(AM80/57.3)+SIN($B$2/57.3)*SIN(AN80/57.3)) -> 0.9890196884 | AP80: =57.3*ASIN(SIN($B$2/57.3)*SIN(AN80/57.3)+COS($B$2/57.3)*COS(AM80/57.3)*COS(AN80/57.6)) -> -27.23535984 | AQ80: =IF(AP80<0,0,1) -> 0 | AR80: =IF(AO80<0,0,1) -> 1 | AS80: =AO80*AR80*AQ80 -> 0 | AT80: =AJ80*AS80+((1+COS($AI$2/57.3))/2)*AK80+((1-COS($AI$2/57.3))/2)*(AJ80+AK80)*0.2 -> 0 | BA80: 5 | BB80: 136 | BC80: =AE80 -> 0 | BD80: =AF80 -> 0 | BE80: 4.5 | BF80: =15*(BE80-12) -> -112.5 | BG80: =23.45*SIN(360*(284+BB80)/365/57.3) -> 19.02329162 | BH80: =((SIN(BG80/57.3)*SIN($B$2/57.3)*COS($BB$2/57.3))-SIN(BG80/57.3)*COS($B$2/57.3)*SIN($BB$2/57.3)*COS($BB$3/57.3)+COS(BG80/57.3)*COS($B$2/57.3)*COS($BB$2/57.3)*COS(BF80/57.3)+COS(BG80/57.3)*SIN($B$2/57.3)*SIN($BB$2/57.3)*COS($BB$3/57.3)*COS(BF80/57.3)+COS(BG80/57.3)*SIN($BB$2/57.3)*SIN($BB$3/57.3)*SIN(BF80/57.3))/(COS($B$2/57.3)*COS(BG80/57.3)*COS(BF80/57.3)+SIN($B$2/57.3)*SIN(BG80/57.3)) -> 0.476736581 | BI80: =57.3*ASIN(SIN($B$2/57.3)*SIN(BG80/57.3)+COS($B$2/57.3)*COS(BF80/57.3)*COS(BG80/57.6)) -> -27.23535984 | BJ80: =IF(BI80<0,0,1) -> 0 | BK80: =IF(BH80<0,0,1) -> 1 | BL80: =BH80*BK80*BJ80 -> 0 | BM80: =BC80*BL80+((1+COS($BB$2/57.3))/2)*BD80+((1-COS($BB$2/57.3))/2)*(BC80+BD80)*0.2 -> 0
A81: 0 | B81: 0 | D81: 0 | E81: 0 | G81: 0 | H81: 0 | J81: 0 | K81: 0 | M81: 0 | N81: 0 | P81: 0 | Q81: 0 | S81: 0 | T81: 0 | V81: 0 | W81: 0 | Y81: 0 | Z81: 0 | AB81: 0 | AC81: 0 | AE81: 0 | AF81: 0 | AH81: 6 | AI81: 136 | AJ81: 0 | AK81: 0 | AL81: 5.5 | AM81: -97.5 | AN81: 19.02329162 | AO81: 0.9664803487 | AP81: -13.67872984 | AQ81: 0 | AR81: 1 | AS81: 0 | AT81: =AJ81*AS81+((1+COS($AI$2/57.3))/2)*AK81+((1-COS($AI$2/57.3))/2)*(AJ81+AK81)*0.15 -> 0 | BA81: 6 | BB81: 136 | BC81: 0 | BD81: 0 | BE81: 5.5 | BF81: -97.5 | BG81: 19.02329162 | BH81: 0.1734576026 | BI81: -13.67872984 | BJ81: 0 | BK81: 1 | BL81: 0 | BM81: 0
A82: 4.447723826e-05 | B82: 0.0006617673936 | D82: 1.446029084e-05 | E82: 0.0001229124721 | G82: 1.446029084e-05 | H82: 0.0001229124721 | J82: 6.717510953e-06 | K82: 0.0001097193456 | M82: 0.0006996038863 | N82: 0.005320930966 | P82: 0 | Q82: 9.098176289e-06 | S82: 0 | T82: 0 | V82: 6.717510953e-06 | W82: 0.0001097193456 | Y82: 0 | Z82: 0 | AB82: 4.447723826e-05 | AC82: 0.0006617673936 | AE82: 4.447723826e-05 | AF82: 4.447723826e-05 | AH82: 7 | AI82: 136 | AJ82: 4.447723826e-05 | AK82: 4.447723826e-05 | AL82: 6.5 | AM82: -82.5 | AN82: 19.02329162 | AO82: -0.4522832271 | AP82: -0.4304360553 | AQ82: 0 | AR82: 0 | AS82: 0 | AT82: 4.446775664e-05 | BA82: 7 | BB82: 136 | BC82: 4.447723826e-05 | BD82: 4.447723826e-05 | BE82: 6.5 | BF82: -82.5 | BG82: 19.02329162 | BH82: -20.08619859 | BI82: -0.4304360553 | BJ82: 0 | BK82: 0 | BL82: 0 | BM82: 3.780654381e-05
A83: 0.008465854983 | B83: 0.0202055949 | D83: 0.001403363465 | E83: 0.01664188759 | G83: 0.001403363465 | H83: 0.01664188759 | J83: 0.003054228313 | K83: 0.01472926235 | M83: 0.009163825552 | N83: 0.01897798711 | P83: 0.0004245815602 | Q83: 0.009122438093 | S83: 0.0004666933329 | T83: 0.005422322229 | V83: 0.003054228313 | W83: 0.01472926235 | Y83: 1.802652001e-05 | Z83: 0.0005648309603 | AB83: 0.008465854983 | AC83: 0.0202055949 | AE83: 0.008465854983 | AF83: 0.008465854983 | AH83: 8 | AI83: 136 | AJ83: 0.008465854983 | AK83: 0.008465854983 | AL83: 7.5 | AM83: -67.5 | AN83: 19.02329162 | AO83: 1.065904067 | AP83: 12.3360514 | AQ83: 1 | AR83: 1 | AS83: 1.065904067 | AT83: 0.0174878395 | BA83: 8 | BB83: 136 | BC83: 0.008465854983 | BD83: 0.008465854983 | BE83: 7.5 | BF83: -67.5 | BG83: 19.02329162 | BH83: 1.633024359 | BI83: 12.3360514 | BJ83: 1 | BK83: 1 | BL83: 1.633024359 | BM83: 0.0210210938
A84: 0.03920390089 | B84: 0.03418679847 | D84: 0.0211014602 | E84: 0.04586704218 | G84: 0.0211014602 | H84: 0.04586704218 | J84: 0.02845378412 | K84: 0.03924880654 | M84: 0.02153006326 | N84: 0.04291232288 | P84: 0.01368178312 | Q84: 0.0418485277 | S84: 0.01132994937 | T84: 0.04596174349 | V84: 0.02845378412 | W84: 0.03924880654 | Y84: 0.00347243806 | Z84: 0.02403510188 | AB84: 0.03920390089 | AC84: 0.03418679847 | AE84: 0.03920390089 | AF84: 0.03920390089 | AH84: 9 | AI84: 136 | AJ84: 0.03920390089 | AK84: 0.03920390089 | AL84: 8.5 | AM84: -52.5 | AN84: 19.02329162 | AO84: 1.041032988 | AP84: 24.32578516 | AQ84: 1 | AR84: 1 | AS84: 1.041032988 | AT84: 0.08000809752 | BA84: 9 | BB84: 136 | BC84: 0.03920390089 | BD84: 0.03920390089 | BE84: 8.5 | BF84: -52.5 | BG84: 19.02329162 | BH84: 1.298589145 | BI84: 24.32578516 | BJ84: 1 | BK84: 1 | BL84: 1.298589145 | BM84: 0.08423386152
A85: 0.07471097792 | B85: 0.03908740566 | D85: 0.05235348298 | E85: 0.06537738493 | G85: 0.05235348298 | H85: 0.06537738493 | J85: 0.05981600495 | K85: 0.05632399057 | M85: 0.03531521589 | N85: 0.07305441145 | P85: 0.04287617219 | Q85: 0.0684577267 | S85: 0.04204870375 | T85: 0.07327930679 | V85: 0.05981600495 | W85: 0.05632399057 | Y85: 0.04013553597 | Z85: 0.06893627184 | AB85: 0.07471097792 | AC85: 0.03908740566 | AE85: 0.07471097792 | AF85: 0.07471097792 | AH85: 10 | AI85: 136 | AJ85: 0.07471097792 | AK85: 0.07471097792 | AL85: 9.5 | AM85: -37.5 | AN85: 19.02329162 | AO85: 1.033631597 | AP85: 35.01665336 | AQ85: 1 | AR85: 1 | AS85: 1.033631597 | AT85: 0.1519186785 | BA85: 10 | BB85: 136 | BC85: 0.07471097792 | BD85: 0.07471097792 | BE85: 9.5 | BF85: -37.5 | BG85: 19.02329162 | BH85: 1.216310711 | BI85: 35.01665336 | BJ85: 1 | BK85: 1 | BL85: 1.216310711 | BM85: 0.154377591
A86: 0.08880487127 | B86: 0.0516448126 | D86: 0.06284201393 | E86: 0.07483923523 | G86: 0.06284201393 | H86: 0.07483923523 | J86: 0.06678549389 | K86: 0.07261181506 | M86: 0.05272648444 | N86: 0.08424807363 | P86: 0.06847590748 | Q86: 0.08472525033 | S86: 0.06061815005 | T86: 0.09125567192 | V86: 0.06678549389 | W86: 0.07261181506 | Y86: 0.074924226 | Z86: 0.09466326541 | AB86: 0.08880487127 | AC86: 0.0516448126 | AE86: 0.08880487127 | AF86: 0.08880487127 | AH86: 11 | AI86: 136 | AJ86: 0.08880487127 | AK86: 0.08880487127 | AL86: 10.5 | AM86: -22.5 | AN86: 19.02329162 | AO86: 1.030660687 | AP86: 43.49448786 | AQ86: 1 | AR86: 1 | AS86: 1.030660687 | AT86: 0.1803136296 | BA86: 11 | BB86: 136 | BC86: 0.08880487127 | BD86: 0.08880487127 | BE86: 10.5 | BF86: -22.5 | BG86: 19.02329162 | BH86: 1.201268518 | BI86: 43.49448786 | BJ86: 1 | BK86: 1 | BL86: 1.201268518 | BM86: 0.1821644162
A87: 0.08896391109 | B87: 0.05401962756 | D87: 0.07546584783 | E87: 0.08397090889 | G87: 0.07546584783 | H87: 0.08397090889 | J87: 0.08141847192 | K87: 0.07744170543 | M87: 0.06240269594 | N87: 0.093648385 | P87: 0.07723138579 | Q87: 0.09314712885 | S87: 0.06066319419 | T87: 0.1089542649 | V87: 0.08141847192 | W87: 0.07744170543 | Y87: 0.08912311493 | Z87: 0.1041271884 | AB87: 0.08896391109 | AC87: 0.05401962756 | AE87: 0.08896391109 | AF87: 0.08896391109 | AH87: 12 | AI87: 136 | AJ87: 0.08896391109 | AK87: 0.08896391109 | AL87: 11.5 | AM87: -7.5 | AN87: 19.02329162 | AO87: 1.029689908 | AP87: 48.37751598 | AQ87: 1 | AR87: 1 | AS87: 1.029689908 | AT87: 0.1805501872 | BA87: 12 | BB87: 136 | BC87: 0.08896391109 | BD87: 0.08896391109 | BE87: 11.5 | BF87: -7.5 | BG87: 19.02329162 | BH87: 1.221039882 | BI87: 48.37751598 | BJ87: 1 | BK87: 1 | BL87: 1.221039882 | BM87: 0.1842495907
A88: 0.08896391109 | B88: 0.05401962756 | D88: 0.07546584783 | E88: 0.08397090889 | G88: 0.07546584783 | H88: 0.08397090889 | J88: 0.08141847192 | K88: 0.07744170543 | M88: 0.06240269594 | N88: 0.093648385 | P88: 0.07723138579 | Q88: 0.09314712885 | S88: 0.06066319419 | T88: 0.1089542649 | V88: 0.08141847192 | W88: 0.07744170543 | Y88: 0.08912311493 | Z88: 0.1041271884 | AB88: 0.08896391109 | AC88: 0.05401962756 | AE88: 0.08896391109 | AF88: 0.08896391109 | AH88: 13 | AI88: 136 | AJ88: 0.08896391109 | AK88: 0.08896391109 | AL88: 12.5 | AM88: 7.5 | AN88: 19.02329162 | AO88: 1.030094896 | AP88: 48.37751598 | AQ88: 1 | AR88: 1 | AS88: 1.030094896 | AT88: 0.1805862166 | BA88: 13 | BB88: 136 | BC88: 0.08896391109 | BD88: 0.08896391109 | BE88: 12.5 | BF88: 7.5 | BG88: 19.02329162 | BH88: 1.270781461 | BI88: 48.37751598 | BJ88: 1 | BK88: 1 | BL88: 1.270781461 | BM88: 0.1886747961
A89: 0.08880487127 | B89: 0.0516448126 | D89: 0.06284201393 | E89: 0.07483923523 | G89: 0.06284201393 | H89: 0.07483923523 | J89: 0.06678549389 | K89: 0.07261181506 | M89: 0.05272648444 | N89: 0.08424807363 | P89: 0.06847590748 | Q89: 0.08472525033 | S89: 0.06061815005 | T89: 0.09125567192 | V89: 0.06678549389 | W89: 0.07261181506 | Y89: 0.074924226 | Z89: 0.09466326541 | AB89: 0.08880487127 | AC89: 0.0516448126 | AE89: 0.08880487127 | AF89: 0.08880487127 | AH89: 14 | AI89: 136 | AJ89: 0.08880487127 | AK89: 0.08880487127 | AL89: 13.5 | AM89: 22.5 | AN89: 19.02329162 | AO89: 1.031950292 | AP89: 43.49448786 | AQ89: 1 | AR89: 1 | AS89: 1.031950292 | AT89: 0.1804281528 | BA89: 14 | BB89: 136 | BC89: 0.08880487127 | BD89: 0.08880487127 | BE89: 13.5 | BF89: 22.5 | BG89: 19.02329162 | BH89: 1.359660457 | BI89: 43.49448786 | BJ89: 1 | BK89: 1 | BL89: 1.359660457 | BM89: 0.196230392
A90: 0.07471097792 | B90: 0.03908740566 | D90: 0.05235348298 | E90: 0.06537738493 | G90: 0.05235348298 | H90: 0.06537738493 | J90: 0.05981600495 | K90: 0.05632399057 | M90: 0.03531521589 | N90: 0.07305441145 | P90: 0.04287617219 | Q90: 0.0684577267 | S90: 0.04204870375 | T90: 0.07327930679 | V90: 0.05981600495 | W90: 0.05632399057 | Y90: 0.04013553597 | Z90: 0.06893627184 | AB90: 0.07471097792 | AC90: 0.03908740566 | AE90: 0.07471097792 | AF90: 0.07471097792 | AH90: 15 | AI90: 136 | AJ90: 0.07471097792 | AK90: 0.07471097792 | AL90: 14.5 | AM90: 37.5 | AN90: 19.02329162 | AO90: 1.03609239 | AP90: 35.01665336 | AQ90: 1 | AR90: 1 | AS90: 1.03609239 | AT90: 0.1521025267 | BA90: 15 | BB90: 136 | BC90: 0.07471097792 | BD90: 0.07471097792 | BE90: 14.5 | BF90: 37.5 | BG90: 19.02329162 | BH90: 1.518550533 | BI90: 35.01665336 | BJ90: 1 | BK90: 1 | BL90: 1.518550533 | BM90: 0.1769582237
A91: 0.03920390089 | B91: 0.03418679847 | D91: 0.0211014602 | E91: 0.04586704218 | G91: 0.0211014602 | H91: 0.04586704218 | J91: 0.02845378412 | K91: 0.03924880654 | M91: 0.02153006326 | N91: 0.04291232288 | P91: 0.01368178312 | Q91: 0.0418485277 | S91: 0.01132994937 | T91: 0.04596174349 | V91: 0.02845378412 | W91: 0.03924880654 | Y91: 0.00347243806 | Z91: 0.02403510188 | AB91: 0.03920390089 | AC91: 0.03418679847 | AE91: 0.03920390089 | AF91: 0.03920390089 | AH91: 16 | AI91: 136 | AJ91: 0.03920390089 | AK91: 0.03920390089 | AL91: 15.5 | AM91: 52.5 | AN91: 19.02329162 | AO91: 1.045500617 | AP91: 24.32578516 | AQ91: 1 | AR91: 1 | AS91: 1.045500617 | AT91: 0.080183246 | BA91: 16 | BB91: 136 | BC91: 0.03920390089 | BD91: 0.03920390089 | BE91: 15.5 | BF91: 52.5 | BG91: 19.02329162 | BH91: 1.847312774 | BI91: 24.32578516 | BJ91: 1 | BK91: 1 | BL91: 1.847312774 | BM91: 0.1057459683
A92: 0.008465854983 | B92: 0.0202055949 | D92: 0.001403363465 | E92: 0.01664188759 | G92: 0.001403363465 | H92: 0.01664188759 | J92: 0.003054228313 | K92: 0.01472926235 | M92: 0.009163825552 | N92: 0.01897798711 | P92: 0.0004245815602 | Q92: 0.009122438093 | S92: 0.0004666933329 | T92: 0.005422322229 | V92: 0.003054228313 | W92: 0.01472926235 | Y92: 1.802652001e-05 | Z92: 0.0005648309603 | AB92: 0.008465854983 | AC92: 0.0202055949 | AE92: 0.008465854983 | AF92: 0.008465854983 | AH92: 17 | AI92: 136 | AJ92: 0.008465854983 | AK92: 0.008465854983 | AL92: 16.5 | AM92: 67.5 | AN92: 19.02329162 | AO92: 1.075937044 | AP92: 12.3360514 | AQ92: 1 | AR92: 1 | AS92: 1.075937044 | AT92: 0.01757277722 | BA92: 17 | BB92: 136 | BC92: 0.008465854983 | BD92: 0.008465854983 | BE92: 16.5 | BF92: 67.5 | BG92: 19.02329162 | BH92: 2.865295777 | BI92: 12.3360514 | BJ92: 1 | BK92: 1 | BL92: 2.865295777 | BM92: 0.03145332492
A93: 4.447723826e-05 | B93: 0.0006617673936 | D93: 1.446029084e-05 | E93: 0.0001229124721 | G93: 1.446029084e-05 | H93: 0.0001229124721 | J93: 6.717510953e-06 | K93: 0.0001097193456 | M93: 0.0006996038863 | N93: 0.005320930966 | P93: 0 | Q93: 9.098176289e-06 | S93: 0 | T93: 0 | V93: 6.717510953e-06 | W93: 0.0001097193456 | Y93: 0 | Z93: 0 | AB93: 4.447723826e-05 | AC93: 0.0006617673936 | AE93: 4.447723826e-05 | AF93: 4.447723826e-05 | AH93: 18 | AI93: 136 | AJ93: 4.447723826e-05 | AK93: 4.447723826e-05 | AL93: 17.5 | AM93: 82.5 | AN93: 19.02329162 | AO93: -0.7554485412 | AP93: -0.4304360553 | AQ93: 0 | AR93: 0 | AS93: 0 | AT93: 4.446775664e-05 | BA93: 18 | BB93: 136 | BC93: 4.447723826e-05 | BD93: 4.447723826e-05 | BE93: 17.5 | BF93: 82.5 | BG93: 19.02329162 | BH93: -57.32160434 | BI93: -0.4304360553 | BJ93: 0 | BK93: 0 | BL93: 0 | BM93: 3.780654381e-05
A94: 0 | B94: 0 | D94: 0 | E94: 0 | G94: 0 | H94: 0 | J94: 0 | K94: 0 | M94: 0 | N94: 0 | P94: 0 | Q94: 0 | S94: 0 | T94: 0 | V94: 0 | W94: 0 | Y94: 0 | Z94: 0 | AB94: 0 | AC94: 0 | AE94: 0 | AF94: 0 | AH94: 19 | AI94: 136 | AJ94: 0 | AK94: 0 | AL94: 18.5 | AM94: 97.5 | AN94: 19.02329162 | AO94: 0.9567589675 | AP94: -13.67872984 | AQ94: 0 | AR94: 1 | AS94: 0 | AT94: 0 | BA94: 19 | BB94: 136 | BC94: 0 | BD94: 0 | BE94: 18.5 | BF94: 97.5 | BG94: 19.02329162 | BH94: -1.020543024 | BI94: -13.67872984 | BJ94: 0 | BK94: 0 | BL94: 0 | BM94: 0
A95: 0 | B95: 0 | D95: 0 | E95: 0 | G95: 0 | H95: 0 | J95: 0 | K95: 0 | M95: 0 | N95: 0 | P95: 0 | Q95: 0 | S95: 0 | T95: 0 | V95: 0 | W95: 0 | Y95: 0 | Z95: 0 | AB95: 0 | AC95: 0 | AE95: 0 | AF95: 0 | AH95: 20 | AI95: 136 | AJ95: 0 | AK95: 0 | AL95: 19.5 | AM95: 112.5 | AN95: 19.02329162 | AO95: 0.9843378592 | AP95: -27.23535984 | AQ95: 0 | AR95: 1 | AS95: 0 | AT95: 0 | BA95: 20 | BB95: 136 | BC95: 0 | BD95: 0 | BE95: 19.5 | BF95: 112.5 | BG95: 19.02329162 | BH95: -0.09829559131 | BI95: -27.23535984 | BJ95: 0 | BK95: 0 | BL95: 0 | BM95: 0
AL96: -0.5 | AT96: =SUM(AT80:AT95) -> 1.221240287 | BE96: -0.5 | BM96: =SUM(BM80:BM95) -> 1.325184871
A97: junio | D97: junio | G97: junio | J97: junio | M97: junio | P97: junio | S97: junio | V97: junio | Y97: junio | AB97: junio | AL97: -0.5 | BE97: -0.5
A98: 0 | B98: 0 | D98: 0 | E98: 0 | G98: 0 | H98: 0 | J98: 0 | K98: 0 | M98: 0 | N98: 0 | P98: 0 | Q98: 0 | S98: 0 | T98: 0 | V98: 0 | W98: 0 | Y98: 0 | Z98: 0 | AB98: 0 | AC98: 0 | AE98: =CHOOSE($B$1,A98,D98,G98,J98,M98,P98,S98,V98,Y98,AB98) -> 0 | AF98: =CHOOSE($B$1,B98,E98,H98,K98,N98,Q98,T98,V98,Y98,AB98) -> 0 | AH98: 5 | AI98: 166 | AJ98: =AE98 -> 0 | AK98: =AF98 -> 0 | AL98: 4.5 | AM98: =15*(AL98-12) -> -112.5 | AN98: =23.45*SIN(360*(284+AI98)/365/57.3) -> 23.31296938 | AO98: =((SIN(AN98/57.3)*SIN($B$2/57.3)*COS($AI$2/57.3))-SIN(AN98/57.3)*COS($B$2/57.3)*SIN($AI$2/57.3)*COS($AI$3/57.3)+COS(AN98/57.3)*COS($B$2/57.3)*COS($AI$2/57.3)*COS(AM98/57.3)+COS(AN98/57.3)*SIN($B$2/57.3)*SIN($AI$2/57.3)*COS($AI$3/57.3)*COS(AM98/57.3)+COS(AN98/57.3)*SIN($AI$2/57.3)*SIN($AI$3/57.3)*SIN(AM98/57.3))/(COS($B$2/57.3)*COS(AN98/57.3)*COS(AM98/57.3)+SIN($B$2/57.3)*SIN(AN98/57.3)) -> 0.9842707123 | AP98: =57.3*ASIN(SIN($B$2/57.3)*SIN(AN98/57.3)+COS($B$2/57.3)*COS(AM98/57.3)*COS(AN98/57.6)) -> -28.31400974 | AQ98: =IF(AP98<0,0,1) -> 0 | AR98: =IF(AO98<0,0,1) -> 1 | AS98: =AO98*AR98*AQ98 -> 0 | AT98: =AJ98*AS98+((1+COS($AI$2/57.3))/2)*AK98+((1-COS($AI$2/57.3))/2)*(AJ98+AK98)*0.2 -> 0 | BA98: 5 | BB98: 166 | BC98: =AE98 -> 0 | BD98: =AF98 -> 0 | BE98: 4.5 | BF98: =15*(BE98-12) -> -112.5 | BG98: =23.45*SIN(360*(284+BB98)/365/57.3) -> 23.31296938 | BH98: =((SIN(BG98/57.3)*SIN($B$2/57.3)*COS($BB$2/57.3))-SIN(BG98/57.3)*COS($B$2/57.3)*SIN($BB$2/57.3)*COS($BB$3/57.3)+COS(BG98/57.3)*COS($B$2/57.3)*COS($BB$2/57.3)*COS(BF98/57.3)+COS(BG98/57.3)*SIN($B$2/57.3)*SIN($BB$2/57.3)*COS($BB$3/57.3)*COS(BF98/57.3)+COS(BG98/57.3)*SIN($BB$2/57.3)*SIN($BB$3/57.3)*SIN(BF98/57.3))/(COS($B$2/57.3)*COS(BG98/57.3)*COS(BF98/57.3)+SIN($B$2/57.3)*SIN(BG98/57.3)) -> 0.3462137679 | BI98: =57.3*ASIN(SIN($B$2/57.3)*SIN(BG98/57.3)+COS($B$2/57.3)*COS(BF98/57.3)*COS(BG98/57.6)) -> -28.31400974 | BJ98: =IF(BI98<0,0,1) -> 0 | BK98: =IF(BH98<0,0,1) -> 1 | BL98: =BH98*BK98*BJ98 -> 0 | BM98: =BC98*BL98+((1+COS($BB$2/57.3))/2)*BD98+((1-COS($BB$2/57.3))/2)*(BC98+BD98)*0.2 -> 0
A99: 0 | B99: 0 | D99: 0 | E99: 0 | G99: 0 | H99: 0 | J99: 0 | K99: 0 | M99: 0 | N99: 0 | P99: 0 | Q99: 0 | S99: 0 | T99: 0 | V99: 0 | W99: 0 | Y99: 0 | Z99: 0 | AB99: 0 | AC99: 0 | AE99: 0 | AF99: 0 | AH99: 6 | AI99: 166 | AJ99: 0 | AK99: 0 | AL99: 5.5 | AM99: -97.5 | AN99: 23.31296938 | AO99: 0.9603749015 | AP99: -15.03381138 | AQ99: 0 | AR99: 1 | AS99: 0 | AT99: 0 | BA99: 6 | BB99: 166 | BC99: 0 | BD99: 0 | BE99: 5.5 | BF99: -97.5 | BG99: 23.31296938 | BH99: -0.0304887898 | BI99: -15.03381138 | BJ99: 0 | BK99: 0 | BL99: 0 | BM99: 0
A100: 2.873913489e-05 | B100: 0.0003267185861 | D100: 0 | E100: 0 | G100: 0 | H100: 0 | J100: 0 | K100: 0 | M100: 1.749441641e-17 | N100: 0.003428326548 | P100: 0 | Q100: 0 | S100: 0 | T100: 0 | V100: 0 | W100: 0 | Y100: 0 | Z100: 0 | AB100: 2.873913489e-05 | AC100: 0.0003267185861 | AE100: 2.873913489e-05 | AF100: 2.873913489e-05 | AH100: 7 | AI100: 166 | AJ100: 2.873913489e-05 | AK100: 2.873913489e-05 | AL100: 6.5 | AM100: -82.5 | AN100: 23.31296938 | AO100: 0.6413320861 | AP100: -2.114644198 | AQ100: 0 | AR100: 1 | AS100: 0 | AT100: 2.873388353e-05 | BA100: 7 | BB100: 166 | BC100: 2.873913489e-05 | BD100: 2.873913489e-05 | BE100: 6.5 | BF100: -82.5 | BG100: 23.31296938 | BH100: -5.28782639 | BI100: -2.114644198 | BJ100: 0 | BK100: 0 | BL100: 0 | BM100: 2.442884056e-05
A101: 0.00610136034 | B101: 0.01667251898 | D101: 0.0005090432833 | E101: 0.006236542262 | G101: 0.0005090432833 | H101: 0.006236542262 | J101: 0.0005613209489 | K101: 0.005443760836 | M101: 0.008523200724 | N101: 0.01768921268 | P101: 0.0003959822146 | Q101: 0.00343184586 | S101: 0.0001108933406 | T101: 0.001893401112 | V101: 0.0005613209489 | W101: 0.005443760836 | Y101: 0 | Z101: 0 | AB101: 0.00610136034 | AC101: 0.01667251898 | AE101: 0.00610136034 | AF101: 0.00610136034 | AH101: 8 | AI101: 166 | AJ101: 0.00610136034 | AK101: 0.00610136034 | AL101: 7.5 | AM101: -67.5 | AN101: 23.31296938 | AO101: 1.091393426 | AP101: 10.2535394 | AQ101: 1 | AR101: 1 | AS101: 1.091393426 | AT101: 0.01275923003 | BA101: 8 | BB101: 166 | BC101: 0.00610136034 | BD101: 0.00610136034 | BE101: 7.5 | BF101: -67.5 | BG101: 23.31296938 | BH101: 2.174011487 | BI101: 10.2535394 | BJ101: 1 | BK101: 1 | BL101: 2.174011487 | BM101: 0.01845070602
A102: 0.03924439053 | B102: 0.03318193977 | D102: 0.01922922195 | E102: 0.04517603936 | G102: 0.01922922195 | H102: 0.04517603936 | J102: 0.01320295039 | K102: 0.04286354546 | M102: 0.01974858939 | N102: 0.03752112944 | P102: 0.009012720198 | Q102: 0.04599993393 | S102: 0.008895910864 | T102: 0.03597329753 | V102: 0.01320295039 | W102: 0.04286354546 | Y102: 0.001151721246 | Z102: 0.005856209724 | AB102: 0.03924439053 | AC102: 0.03318193977 | AE102: 0.03924439053 | AF102: 0.03924439053 | AH102: 9 | AI102: 166 | AJ102: 0.03924439053 | AK102: 0.03924439053 | AL102: 8.5 | AM102: -52.5 | AN102: 23.31296938 | AO102: 1.051277443 | AP102: 21.75736601 | AQ102: 1 | AR102: 1 | AS102: 1.051277443 | AT102: 0.08049396213 | BA102: 9 | BB102: 166 | BC102: 0.03924439053 | BD102: 0.03924439053 | BE102: 8.5 | BF102: -52.5 | BG102: 23.31296938 | BH102: 1.531502726 | BI102: 21.75736601 | BJ102: 1 | BK102: 1 | BL102: 1.531502726 | BM102: 0.09346140945
A103: 0.07077541371 | B103: 0.04367743468 | D103: 0.03925729608 | E103: 0.07394539527 | G103: 0.03925729608 | H103: 0.07394539527 | J103: 0.04721704062 | K103: 0.07081139506 | M103: 0.03856867367 | N103: 0.06474537533 | P103: 0.03424475981 | Q103: 0.07545289544 | S103: 0.04148212823 | T103: 0.0712003374 | V103: 0.04721704062 | W103: 0.07081139506 | Y103: 0.0334393815 | Z103: 0.05856337996 | AB103: 0.07077541371 | AC103: 0.04367743468 | AE103: 0.07077541371 | AF103: 0.07077541371 | AH103: 10 | AI103: 166 | AJ103: 0.07077541371 | AK103: 0.07077541371 | AL103: 9.5 | AM103: -37.5 | AN103: 23.31296938 | AO103: 1.040407012 | AP103: 31.86970643 | AQ103: 1 | AR103: 1 | AS103: 1.040407012 | AT103: 0.144397718 | BA103: 10 | BB103: 166 | BC103: 0.07077541371 | BD103: 0.07077541371 | BE103: 9.5 | BF103: -37.5 | BG103: 23.31296938 | BH103: 1.37518636 | BI103: 31.86970643 | BJ103: 1 | BK103: 1 | BL103: 1.37518636 | BM103: 0.1574899035
A104: 0.08569707506 | B104: 0.05169262814 | D104: 0.05965255721 | E104: 0.08292223641 | G104: 0.05965255721 | H104: 0.08292223641 | J104: 0.05875159513 | K104: 0.09378651917 | M104: 0.05840059043 | N104: 0.09198152513 | P104: 0.06454510099 | Q104: 0.08892688089 | S104: 0.07907199604 | T104: 0.08943807156 | V104: 0.05875159513 | W104: 0.09378651917 | Y104: 0.08543944188 | Z104: 0.09315054108 | AB104: 0.08569707506 | AC104: 0.05169262814 | AE104: 0.08569707506 | AF104: 0.08569707506 | AH104: 11 | AI104: 166 | AJ104: 0.08569707506 | AK104: 0.08569707506 | AL104: 10.5 | AM104: -22.5 | AN104: 23.31296938 | AO104: 1.036118915 | AP104: 39.73393606 | AQ104: 1 | AR104: 1 | AS104: 1.036118915 | AT104: 0.1744737765 | BA104: 11 | BB104: 166 | BC104: 0.08569707506 | BD104: 0.08569707506 | BE104: 10.5 | BF104: -22.5 | BG104: 23.31296938 | BH104: 1.331792922 | BI104: 39.73393606 | BJ104: 1 | BK104: 1 | BL104: 1.331792922 | BM104: 0.1869749891
A105: 0.09636534444 | B105: 0.05623643663 | D105: 0.07811833093 | E105: 0.09495333724 | G105: 0.07811833093 | H105: 0.09495333724 | J105: 0.06638990632 | K105: 0.1009719661 | M105: 0.05565078685 | N105: 0.1037425898 | P105: 0.06570004911 | Q105: 0.1122898316 | S105: 0.07404800142 | T105: 0.0978859625 | V105: 0.06638990632 | W105: 0.1009719661 | Y105: 0.09264523783 | Z105: 0.1297540868 | AB105: 0.09636534444 | AC105: 0.05623643663 | AE105: 0.09636534444 | AF105: 0.09636534444 | AH105: 12 | AI105: 166 | AJ105: 0.09636534444 | AK105: 0.09636534444 | AL105: 11.5 | AM105: -7.5 | AN105: 23.31296938 | AO105: 1.034655677 | AP105: 44.17092506 | AQ105: 1 | AR105: 1 | AS105: 1.034655677 | AT105: 0.1960526867 | BA105: 12 | BB105: 166 | BC105: 0.09636534444 | BD105: 0.09636534444 | BE105: 11.5 | BF105: -7.5 | BG105: 23.31296938 | BH105: 1.341618236 | BI105: 44.17092506 | BJ105: 1 | BK105: 1 | BL105: 1.341618236 | BM105: 0.2111979773
A106: 0.09636534444 | B106: 0.05623643663 | D106: 0.07811833093 | E106: 0.09495333724 | G106: 0.07811833093 | H106: 0.09495333724 | J106: 0.06638990632 | K106: 0.1009719661 | M106: 0.05565078685 | N106: 0.1037425898 | P106: 0.06570004911 | Q106: 0.1122898316 | S106: 0.07404800142 | T106: 0.0978859625 | V106: 0.06638990632 | W106: 0.1009719661 | Y106: 0.09264523783 | Z106: 0.1297540868 | AB106: 0.09636534444 | AC106: 0.05623643663 | AE106: 0.09636534444 | AF106: 0.09636534444 | AH106: 13 | AI106: 166 | AJ106: 0.09636534444 | AK106: 0.09636534444 | AL106: 12.5 | AM106: 7.5 | AN106: 23.31296938 | AO106: 1.035077909 | AP106: 44.17092506 | AQ106: 1 | AR106: 1 | AS106: 1.035077909 | AT106: 0.1960933753 | BA106: 13 | BB106: 166 | BC106: 0.09636534444 | BD106: 0.09636534444 | BE106: 12.5 | BF106: 7.5 | BG106: 23.31296938 | BH106: 1.393477747 | BI106: 44.17092506 | BJ106: 1 | BK106: 1 | BL106: 1.393477747 | BM106: 0.216195437
A107: 0.08569707506 | B107: 0.05169262814 | D107: 0.05965255721 | E107: 0.08292223641 | G107: 0.05965255721 | H107: 0.08292223641 | J107: 0.05875159513 | K107: 0.09378651917 | M107: 0.05840059043 | N107: 0.09198152513 | P107: 0.06454510099 | Q107: 0.08892688089 | S107: 0.07907199604 | T107: 0.08943807156 | V107: 0.05875159513 | W107: 0.09378651917 | Y107: 0.08543944188 | Z107: 0.09315054108 | AB107: 0.08569707506 | AC107: 0.05169262814 | AE107: 0.08569707506 | AF107: 0.08569707506 | AH107: 14 | AI107: 166 | AJ107: 0.08569707506 | AK107: 0.08569707506 | AL107: 13.5 | AM107: 22.5 | AN107: 23.31296938 | AO107: 1.037468377 | AP107: 39.73393606 | AQ107: 1 | AR107: 1 | AS107: 1.037468377 | AT107: 0.1745894214 | BA107: 14 | BB107: 166 | BC107: 0.08569707506 | BD107: 0.08569707506 | BE107: 13.5 | BF107: 22.5 | BG107: 23.31296938 | BH107: 1.49753661 | BI107: 39.73393606 | BJ107: 1 | BK107: 1 | BL107: 1.49753661 | BM107: 0.2011787384
A108: 0.07077541371 | B108: 0.04367743468 | D108: 0.03925729608 | E108: 0.07394539527 | G108: 0.03925729608 | H108: 0.07394539527 | J108: 0.04721704062 | K108: 0.07081139506 | M108: 0.03856867367 | N108: 0.06474537533 | P108: 0.03424475981 | Q108: 0.07545289544 | S108: 0.04148212823 | T108: 0.0712003374 | V108: 0.04721704062 | W108: 0.07081139506 | Y108: 0.0334393815 | Z108: 0.05856337996 | AB108: 0.07077541371 | AC108: 0.04367743468 | AE108: 0.07077541371 | AF108: 0.07077541371 | AH108: 15 | AI108: 166 | AJ108: 0.07077541371 | AK108: 0.07077541371 | AL108: 14.5 | AM108: 37.5 | AN108: 23.31296938 | AO108: 1.043006092 | AP108: 31.86970643 | AQ108: 1 | AR108: 1 | AS108: 1.043006092 | AT108: 0.144581669 | BA108: 15 | BB108: 166 | BC108: 0.07077541371 | BD108: 0.07077541371 | BE108: 14.5 | BF108: 37.5 | BG108: 23.31296938 | BH108: 1.694410887 | BI108: 31.86970643 | BJ108: 1 | BK108: 1 | BL108: 1.694410887 | BM108: 0.1800831514
A109: 0.03924439053 | B109: 0.03318193977 | D109: 0.01922922195 | E109: 0.04517603936 | G109: 0.01922922195 | H109: 0.04517603936 | J109: 0.01320295039 | K109: 0.04286354546 | M109: 0.01974858939 | N109: 0.03752112944 | P109: 0.009012720198 | Q109: 0.04599993393 | S109: 0.008895910864 | T109: 0.03597329753 | V109: 0.01320295039 | W109: 0.04286354546 | Y109: 0.001151721246 | Z109: 0.005856209724 | AB109: 0.03924439053 | AC109: 0.03318193977 | AE109: 0.03924439053 | AF109: 0.03924439053 | AH109: 16 | AI109: 166 | AJ109: 0.03924439053 | AK109: 0.03924439053 | AL109: 15.5 | AM109: 52.5 | AN109: 23.31296938 | AO109: 1.056102725 | AP109: 21.75736601 | AQ109: 1 | AR109: 1 | AS109: 1.056102725 | AT109: 0.08068332738 | BA109: 16 | BB109: 166 | BC109: 0.03924439053 | BD109: 0.03924439053 | BE109: 15.5 | BF109: 52.5 | BG109: 23.31296938 | BH109: 2.124154078 | BI109: 21.75736601 | BJ109: 1 | BK109: 1 | BL109: 2.124154078 | BM109: 0.1167196505
A110: 0.00610136034 | B110: 0.01667251898 | D110: 0.0005090432833 | E110: 0.006236542262 | G110: 0.0005090432833 | H110: 0.006236542262 | J110: 0.0005613209489 | K110: 0.005443760836 | M110: 0.008523200724 | N110: 0.01768921268 | P110: 0.0003959822146 | Q110: 0.00343184586 | S110: 0.0001108933406 | T110: 0.001893401112 | V110: 0.0005613209489 | W110: 0.005443760836 | Y110: 0 | Z110: 0 | AB110: 0.00610136034 | AC110: 0.01667251898 | AE110: 0.00610136034 | AF110: 0.00610136034 | AH110: 17 | AI110: 166 | AJ110: 0.00610136034 | AK110: 0.00610136034 | AL110: 16.5 | AM110: 67.5 | AN110: 23.31296938 | AO110: 1.103099619 | AP110: 10.2535394 | AQ110: 1 | AR110: 1 | AS110: 1.103099619 | AT110: 0.01283065374 | BA110: 17 | BB110: 166 | BC110: 0.00610136034 | BD110: 0.00610136034 | BE110: 16.5 | BF110: 67.5 | BG110: 23.31296938 | BH110: 3.611790951 | BI110: 10.2535394 | BJ110: 1 | BK110: 1 | BL110: 3.611790951 | BM110: 0.02722311662
A111: 2.873913489e-05 | B111: 0.0003267185861 | D111: 0 | E111: 0 | G111: 0 | H111: 0 | J111: 0 | K111: 0 | M111: 1.749441641e-17 | N111: 0.003428326548 | P111: 0 | Q111: 0 | S111: 0 | T111: 0 | V111: 0 | W111: 0 | Y111: 0 | Z111: 0 | AB111: 2.873913489e-05 | AC111: 0.0003267185861 | AE111: 2.873913489e-05 | AF111: 2.873913489e-05 | AH111: 18 | AI111: 166 | AJ111: 2.873913489e-05 | AK111: 2.873913489e-05 | AL111: 17.5 | AM111: 82.5 | AN111: 23.31296938 | AO111: 0.5809959644 | AP111: -2.114644198 | AQ111: 0 | AR111: 1 | AS111: 0 | AT111: 2.873388353e-05 | BA111: 18 | BB111: 166 | BC111: 2.873913489e-05 | BD111: 2.873913489e-05 | BE111: 17.5 | BF111: 82.5 | BG111: 23.31296938 | BH111: -12.69843661 | BI111: -2.114644198 | BJ111: 0 | BK111: 0 | BL111: 0 | BM111: 2.442884056e-05
A112: 0 | B112: 0 | D112: 0 | E112: 0 | G112: 0 | H112: 0 | J112: 0 | K112: 0 | M112: 0 | N112: 0 | P112: 0 | Q112: 0 | S112: 0 | T112: 0 | V112: 0 | W112: 0 | Y112: 0 | Z112: 0 | AB112: 0 | AC112: 0 | AE112: 0 | AF112: 0 | AH112: 19 | AI112: 166 | AJ112: 0 | AK112: 0 | AL112: 18.5 | AM112: 97.5 | AN112: 23.31296938 | AO112: 0.9517646722 | AP112: -15.03381138 | AQ112: 0 | AR112: 1 | AS112: 0 | AT112: 0 | BA112: 19 | BB112: 166 | BC112: 0 | BD112: 0 | BE112: 18.5 | BF112: 97.5 | BG112: 23.31296938 | BH112: -1.08801538 | BI112: -15.03381138 | BJ112: 0 | BK112: 0 | BL112: 0 | BM112: 0
A113: 0 | B113: 0 | D113: 0 | E113: 0 | G113: 0 | H113: 0 | J113: 0 | K113: 0 | M113: 0 | N113: 0 | P113: 0 | Q113: 0 | S113: 0 | T113: 0 | V113: 0 | W113: 0 | Y113: 0 | Z113: 0 | AB113: 0 | AC113: 0 | AE113: 0 | AF113: 0 | AH113: 20 | AI113: 166 | AJ113: 0 | AK113: 0 | AL113: 19.5 | AM113: 112.5 | AN113: 23.31296938 | AO113: 0.979881606 | AP113: -28.31400974 | AQ113: 0 | AR113: 1 | AS113: 0 | AT113: 0 | BA113: 20 | BB113: 166 | BC113: 0 | BD113: 0 | BE113: 19.5 | BF113: 112.5 | BG113: 23.31296938 | BH113: -0.1928655505 | BI113: -28.31400974 | BJ113: 0 | BK113: 0 | BL113: 0 | BM113: 0
AL114: -0.5 | AT114: =SUM(AT98:AT113) -> 1.217013288 | BE114: -0.5 | BM114: =SUM(BM98:BM113) -> 1.409023937
A115: julio | D115: julio | G115: julio | J115: julio | M115: julio | P115: julio | S115: julio | V115: julio | Y115: julio | AB115: julio | AL115: -0.5 | BE115: -0.5
A116: 0 | B116: 0 | D116: 0 | E116: 0 | G116: 0 | H116: 0 | J116: 0 | K116: 0 | M116: 0 | N116: 0 | P116: 0 | Q116: 0 | S116: 0 | T116: 0 | V116: 0 | W116: 0 | Y116: 0 | Z116: 0 | AB116: 0 | AC116: 0 | AE116: =CHOOSE($B$1,A116,D116,G116,J116,M116,P116,S116,V116,Y116,AB116) -> 0 | AF116: =CHOOSE($B$1,B116,E116,H116,K116,N116,Q116,T116,V116,Y116,AB116) -> 0 | AH116: 5 | AI116: 196 | AJ116: =AE116 -> 0 | AK116: =AF116 -> 0 | AL116: 4.5 | AM116: =15*(AL116-12) -> -112.5 | AN116: =23.45*SIN(360*(284+AI116)/365/57.3) -> 21.5230057 | AO116: =((SIN(AN116/57.3)*SIN($B$2/57.3)*COS($AI$2/57.3))-SIN(AN116/57.3)*COS($B$2/57.3)*SIN($AI$2/57.3)*COS($AI$3/57.3)+COS(AN116/57.3)*COS($B$2/57.3)*COS($AI$2/57.3)*COS(AM116/57.3)+COS(AN116/57.3)*SIN($B$2/57.3)*SIN($AI$2/57.3)*COS($AI$3/57.3)*COS(AM116/57.3)+COS(AN116/57.3)*SIN($AI$2/57.3)*SIN($AI$3/57.3)*SIN(AM116/57.3))/(COS($B$2/57.3)*COS(AN116/57.3)*COS(AM116/57.3)+SIN($B$2/57.3)*SIN(AN116/57.3)) -> 0.9862115676 | AP116: =57.3*ASIN(SIN($B$2/57.3)*SIN(AN116/57.3)+COS($B$2/57.3)*COS(AM116/57.3)*COS(AN116/57.6)) -> -27.88307624 | AQ116: =IF(AP116<0,0,1) -> 0 | AR116: =IF(AO116<0,0,1) -> 1 | AS116: =AO116*AR116*AQ116 -> 0 | AT116: =AJ116*AS116+((1+COS($AI$2/57.3))/2)*AK116+((1-COS($AI$2/57.3))/2)*(AJ116+AK116)*0.2 -> 0 | BA116: 5 | BB116: 196 | BC116: =AE116 -> 0 | BD116: =AF116 -> 0 | BE116: 4.5 | BF116: =15*(BE116-12) -> -112.5 | BG116: =23.45*SIN(360*(284+BB116)/365/57.3) -> 21.5230057 | BH116: =((SIN(BG116/57.3)*SIN($B$2/57.3)*COS($BB$2/57.3))-SIN(BG116/57.3)*COS($B$2/57.3)*SIN($BB$2/57.3)*COS($BB$3/57.3)+COS(BG116/57.3)*COS($B$2/57.3)*COS($BB$2/57.3)*COS(BF116/57.3)+COS(BG116/57.3)*SIN($B$2/57.3)*SIN($BB$2/57.3)*COS($BB$3/57.3)*COS(BF116/57.3)+COS(BG116/57.3)*SIN($BB$2/57.3)*SIN($BB$3/57.3)*SIN(BF116/57.3))/(COS($B$2/57.3)*COS(BG116/57.3)*COS(BF116/57.3)+SIN($B$2/57.3)*SIN(BG116/57.3)) -> 0.3995570331 | BI116: =57.3*ASIN(SIN($B$2/57.3)*SIN(BG116/57.3)+COS($B$2/57.3)*COS(BF116/57.3)*COS(BG116/57.6)) -> -27.88307624 | BJ116: =IF(BI116<0,0,1) -> 0 | BK116: =IF(BH116<0,0,1) -> 1 | BL116: =BH116*BK116*BJ116 -> 0 | BM116: =BC116*BL116+((1+COS($BB$2/57.3))/2)*BD116+((1-COS($BB$2/57.3))/2)*(BC116+BD116)*0.2 -> 0
A117: 0 | B117: 0 | D117: 0 | E117: 0 | G117: 0 | H117: 0 | J117: 0 | K117: 0 | M117: 0 | N117: 0 | P117: 0 | Q117: 0 | S117: 0 | T117: 0 | V117: 0 | W117: 0 | Y117: 0 | Z117: 0 | AB117: 0 | AC117: 0 | AE117: 0 | AF117: 0 | AH117: 6 | AI117: 196 | AJ117: 0 | AK117: 0 | AL117: 5.5 | AM117: -97.5 | AN117: 21.5230057 | AO117: 0.962786761 | AP117: -14.47735397 | AQ117: 0 | AR117: 1 | AS117: 0 | AT117: 0 | BA117: 6 | BB117: 196 | BC117: 0 | BD117: 0 | BE117: 5.5 | BF117: -97.5 | BG117: 21.5230057 | BH117: 0.05007697743 | BI117: -14.47735397 | BJ117: 0 | BK117: 1 | BL117: 0 | BM117: 0
A118: 2.23912397e-05 | B118: 0.0005583815399 | D118: 2.627846654e-06 | E118: 3.153415985e-05 | G118: 2.627846654e-06 | H118: 3.153415985e-05 | J118: 0 | K118: 1.771285602e-05 | M118: 0.0009839658296 | N118: 0.005344723483 | P118: 0 | Q118: 0 | S118: 0 | T118: 0 | V118: 0 | W118: 1.771285602e-05 | Y118: 0 | Z118: 0 | AB118: 2.23912397e-05 | AC118: 0.0005583815399 | AE118: 2.23912397e-05 | AF118: 2.23912397e-05 | AH118: 7 | AI118: 196 | AJ118: 2.23912397e-05 | AK118: 2.23912397e-05 | AL118: 6.5 | AM118: -82.5 | AN118: 21.5230057 | AO118: 0.5013995629 | AP118: -1.412677435 | AQ118: 0 | AR118: 1 | AS118: 0 | AT118: 2.238714826e-05 | BA118: 7 | BB118: 196 | BC118: 2.23912397e-05 | BD118: 2.23912397e-05 | BE118: 6.5 | BF118: -82.5 | BG118: 21.5230057 | BH118: -7.181338246 | BI118: -1.412677435 | BJ118: 0 | BK118: 0 | BL118: 0 | BM118: 1.903300244e-05
A119: 0.007441967472 | B119: 0.01824681 | D119: 0.002162302245 | E119: 0.007387427263 | G119: 0.002162302245 | H119: 0.007387427263 | J119: 0.0007911742354 | K119: 0.007610623802 | M119: 0.01034282264 | N119: 0.01875125791 | P119: 0.0005987089834 | Q119: 0.004793717198 | S119: 0.000106002203 | T119: 0.002506808854 | V119: 0.0007911742354 | W119: 0.007610623802 | Y119: 3.538318824e-05 | Z119: 9.907292707e-05 | AB119: 0.007441967472 | AC119: 0.01824681 | AE119: 0.007441967472 | AF119: 0.007441967472 | AH119: 8 | AI119: 196 | AJ119: 0.007441967472 | AK119: 0.007441967472 | AL119: 7.5 | AM119: -67.5 | AN119: 21.5230057 | AO119: 1.079606502 | AP119: 11.12830669 | AQ119: 1 | AR119: 1 | AS119: 1.079606502 | AT119: 0.01547500411 | BA119: 8 | BB119: 196 | BC119: 0.007441967472 | BD119: 0.007441967472 | BE119: 7.5 | BF119: -67.5 | BG119: 21.5230057 | BH119: 1.92384536 | BI119: 11.12830669 | BJ119: 1 | BK119: 1 | BL119: 1.92384536 | BM119: 0.02064301607
A120: 0.03638589815 | B120: 0.03242837019 | D120: 0.01917110969 | E120: 0.04444174771 | G120: 0.01917110969 | H120: 0.04444174771 | J120: 0.01044777106 | K120: 0.04500087291 | M120: 0.02045083525 | N120: 0.04140483485 | P120: 0.01482595533 | Q120: 0.04532873497 | S120: 0.01504345486 | T120: 0.03282820503 | V120: 0.01044777106 | W120: 0.04500087291 | Y120: 0.002255543825 | Z120: 0.01326826543 | AB120: 0.03638589815 | AC120: 0.03242837019 | AE120: 0.03638589815 | AF120: 0.03638589815 | AH120: 9 | AI120: 196 | AJ120: 0.03638589815 | AK120: 0.03638589815 | AL120: 8.5 | AM120: -52.5 | AN120: 21.5230057 | AO120: 1.046736158 | AP120: 22.83947515 | AQ120: 1 | AR120: 1 | AS120: 1.046736158 | AT120: 0.07446568477 | BA120: 9 | BB120: 196 | BC120: 0.03638589815 | BD120: 0.03638589815 | BE120: 8.5 | BF120: -52.5 | BG120: 21.5230057 | BH120: 1.428253996 | BI120: 22.83947515 | BJ120: 1 | BK120: 1 | BL120: 1.428253996 | BM120: 0.08289704699
A121: 0.06929528905 | B121: 0.04292960431 | D121: 0.05405599514 | E121: 0.06254309769 | G121: 0.05405599514 | H121: 0.06254309769 | J121: 0.03537257347 | K121: 0.07193190829 | M121: 0.03347720106 | N121: 0.07053245969 | P121: 0.04035943316 | Q121: 0.08293246042 | S121: 0.06361857012 | T121: 0.04614971526 | V121: 0.03537257347 | W121: 0.07193190829 | Y121: 0.03078507343 | Z121: 0.06208746637 | AB121: 0.06929528905 | AC121: 0.04292960431 | AE121: 0.06929528905 | AF121: 0.06929528905 | AH121: 10 | AI121: 196 | AJ121: 0.06929528905 | AK121: 0.06929528905 | AL121: 9.5 | AM121: -37.5 | AN121: 21.5230057 | AO121: 1.037440826 | AP121: 33.1943594 | AQ121: 1 | AR121: 1 | AS121: 1.037440826 | AT121: 0.141172389 | BA121: 10 | BB121: 196 | BC121: 0.06929528905 | BD121: 0.06929528905 | BE121: 9.5 | BF121: -37.5 | BG121: 21.5230057 | BH121: 1.305632717 | BI121: 33.1943594 | BJ121: 1 | BK121: 1 | BL121: 1.305632717 | BM121: 0.1493765809
A122: 0.09138424701 | B122: 0.04760377559 | D122: 0.06146270539 | E122: 0.07945294358 | G122: 0.06146270539 | H122: 0.07945294358 | J122: 0.07092522764 | K122: 0.08541139172 | M122: 0.04750989557 | N122: 0.09054721918 | P122: 0.05835939667 | Q122: 0.1022020119 | S122: 0.09928556585 | T122: 0.06808490624 | V122: 0.07092522764 | W122: 0.08541139172 | Y122: 0.08349103851 | Z122: 0.09127735827 | AB122: 0.09138424701 | AC122: 0.04760377559 | AE122: 0.09138424701 | AF122: 0.09138424701 | AH122: 11 | AI122: 196 | AJ122: 0.09138424701 | AK122: 0.09138424701 | AL122: 10.5 | AM122: -22.5 | AN122: 21.5230057 | AO122: 1.033741868 | AP122: 41.31065566 | AQ122: 1 | AR122: 1 | AS122: 1.033741868 | AT122: 0.185835271 | BA122: 11 | BB122: 196 | BC122: 0.09138424701 | BD122: 0.09138424701 | BE122: 10.5 | BF122: -22.5 | BG122: 21.5230057 | BH122: 1.274949799 | BI122: 41.31065566 | BJ122: 1 | BK122: 1 | BL122: 1.274949799 | BM122: 0.1941887686
A123: 0.09845428095 | B123: 0.0552489845 | D123: 0.08775168331 | E123: 0.08153682597 | G123: 0.08775168331 | H123: 0.08153682597 | J123: 0.0883576301 | K123: 0.08413311394 | M123: 0.06026790706 | N123: 0.1003868775 | P123: 0.03823242299 | Q123: 0.1123671583 | S123: 0.09112178561 | T123: 0.08125498596 | V123: 0.0883576301 | W123: 0.08413311394 | Y123: 0.1168282109 | Z123: 0.09987258712 | AB123: 0.09845428095 | AC123: 0.0552489845 | AE123: 0.09845428095 | AF123: 0.09845428095 | AH123: 12 | AI123: 196 | AJ123: 0.09845428095 | AK123: 0.09845428095 | AL123: 11.5 | AM123: -7.5 | AN123: 21.5230057 | AO123: 1.032497577 | AP123: 45.92727246 | AQ123: 1 | AR123: 1 | AS123: 1.032497577 | AT123: 0.2000900974 | BA123: 12 | BB123: 196 | BC123: 0.09845428095 | BD123: 0.09845428095 | BE123: 11.5 | BF123: -7.5 | BG123: 21.5230057 | BH123: 1.289215445 | BI123: 45.92727246 | BJ123: 1 | BK123: 1 | BL123: 1.289215445 | BM123: 0.2106168913
A124: 0.09845428095 | B124: 0.0552489845 | D124: 0.08775168331 | E124: 0.08153682597 | G124: 0.08775168331 | H124: 0.08153682597 | J124: 0.0883576301 | K124: 0.08413311394 | M124: 0.06026790706 | N124: 0.1003868775 | P124: 0.03823242299 | Q124: 0.1123671583 | S124: 0.09112178561 | T124: 0.08125498596 | V124: 0.0883576301 | W124: 0.08413311394 | Y124: 0.1168282109 | Z124: 0.09987258712 | AB124: 0.09845428095 | AC124: 0.0552489845 | AE124: 0.09845428095 | AF124: 0.09845428095 | AH124: 13 | AI124: 196 | AJ124: 0.09845428095 | AK124: 0.09845428095 | AL124: 12.5 | AM124: 7.5 | AN124: 21.5230057 | AO124: 1.032912315 | AP124: 45.92727246 | AQ124: 1 | AR124: 1 | AS124: 1.032912315 | AT124: 0.2001309302 | BA124: 13 | BB124: 196 | BC124: 0.09845428095 | BD124: 0.09845428095 | BE124: 12.5 | BF124: 7.5 | BG124: 21.5230057 | BH124: 1.340154513 | BI124: 45.92727246 | BJ124: 1 | BK124: 1 | BL124: 1.340154513 | BM124: 0.2156320606
A125: 0.09138424701 | B125: 0.04760377559 | D125: 0.06146270539 | E125: 0.07945294358 | G125: 0.06146270539 | H125: 0.07945294358 | J125: 0.07092522764 | K125: 0.08541139172 | M125: 0.04750989557 | N125: 0.09054721918 | P125: 0.05835939667 | Q125: 0.1022020119 | S125: 0.09928556585 | T125: 0.06808490624 | V125: 0.07092522764 | W125: 0.08541139172 | Y125: 0.08349103851 | Z125: 0.09127735827 | AB125: 0.09138424701 | AC125: 0.04760377559 | AE125: 0.09138424701 | AF125: 0.09138424701 | AH125: 14 | AI125: 196 | AJ125: 0.09138424701 | AK125: 0.09138424701 | AL125: 13.5 | AM125: 22.5 | AN125: 21.5230057 | AO125: 1.035065262 | AP125: 41.31065566 | AQ125: 1 | AR125: 1 | AS125: 1.035065262 | AT125: 0.1859562084 | BA125: 14 | BB125: 196 | BC125: 0.09138424701 | BD125: 0.09138424701 | BE125: 13.5 | BF125: 22.5 | BG125: 21.5230057 | BH125: 1.437491815 | BI125: 41.31065566 | BJ125: 1 | BK125: 1 | BL125: 1.437491815 | BM125: 0.2090425483
A126: 0.06929528905 | B126: 0.04292960431 | D126: 0.05405599514 | E126: 0.06254309769 | G126: 0.05405599514 | H126: 0.06254309769 | J126: 0.03537257347 | K126: 0.07193190829 | M126: 0.03347720106 | N126: 0.07053245969 | P126: 0.04035943316 | Q126: 0.08293246042 | S126: 0.06361857012 | T126: 0.04614971526 | V126: 0.03537257347 | W126: 0.07193190829 | Y126: 0.03078507343 | Z126: 0.06208746637 | AB126: 0.06929528905 | AC126: 0.04292960431 | AE126: 0.06929528905 | AF126: 0.06929528905 | AH126: 15 | AI126: 196 | AJ126: 0.06929528905 | AK126: 0.06929528905 | AL126: 14.5 | AM126: 37.5 | AN126: 21.5230057 | AO126: 1.039979365 | AP126: 33.1943594 | AQ126: 1 | AR126: 1 | AS126: 1.039979365 | AT126: 0.1413482978 | BA126: 15 | BB126: 196 | BC126: 0.06929528905 | BD126: 0.06929528905 | BE126: 14.5 | BF126: 37.5 | BG126: 21.5230057 | BH126: 1.617421567 | BI126: 33.1943594 | BJ126: 1 | BK126: 1 | BL126: 1.617421567 | BM126: 0.1709820793
A127: 0.03638589815 | B127: 0.03242837019 | D127: 0.01917110969 | E127: 0.04444174771 | G127: 0.01917110969 | H127: 0.04444174771 | J127: 0.01044777106 | K127: 0.04500087291 | M127: 0.02045083525 | N127: 0.04140483485 | P127: 0.01482595533 | Q127: 0.04532873497 | S127: 0.01504345486 | T127: 0.03282820503 | V127: 0.01044777106 | W127: 0.04500087291 | Y127: 0.002255543825 | Z127: 0.01326826543 | AB127: 0.03638589815 | AC127: 0.03242837019 | AE127: 0.03638589815 | AF127: 0.03638589815 | AH127: 16 | AI127: 196 | AJ127: 0.03638589815 | AK127: 0.03638589815 | AL127: 15.5 | AM127: 52.5 | AN127: 21.5230057 | AO127: 1.051402895 | AP127: 22.83947515 | AQ127: 1 | AR127: 1 | AS127: 1.051402895 | AT127: 0.07463548819 | BA127: 16 | BB127: 196 | BC127: 0.03638589815 | BD127: 0.03638589815 | BE127: 15.5 | BF127: 52.5 | BG127: 21.5230057 | BH127: 2.001432539 | BI127: 22.83947515 | BJ127: 1 | BK127: 1 | BL127: 2.001432539 | BM127: 0.1037526631
A128: 0.007441967472 | B128: 0.01824681 | D128: 0.002162302245 | E128: 0.007387427263 | G128: 0.002162302245 | H128: 0.007387427263 | J128: 0.0007911742354 | K128: 0.007610623802 | M128: 0.01034282264 | N128: 0.01875125791 | P128: 0.0005987089834 | Q128: 0.004793717198 | S128: 0.000106002203 | T128: 0.002506808854 | V128: 0.0007911742354 | W128: 0.007610623802 | Y128: 3.538318824e-05 | Z128: 9.907292707e-05 | AB128: 0.007441967472 | AC128: 0.01824681 | AE128: 0.007441967472 | AF128: 0.007441967472 | AH128: 17 | AI128: 196 | AJ128: 0.007441967472 | AK128: 0.007441967472 | AL128: 16.5 | AM128: 67.5 | AN128: 21.5230057 | AO128: 1.090538957 | AP128: 11.12830669 | AQ128: 1 | AR128: 1 | AS128: 1.090538957 | AT128: 0.01555636309 | BA128: 17 | BB128: 196 | BC128: 0.007441967472 | BD128: 0.007441967472 | BE128: 16.5 | BF128: 67.5 | BG128: 21.5230057 | BH128: 3.266592707 | BI128: 11.12830669 | BJ128: 1 | BK128: 1 | BL128: 3.266592707 | BM128: 0.03063569816
A129: 2.23912397e-05 | B129: 0.0005583815399 | D129: 2.627846654e-06 | E129: 3.153415985e-05 | G129: 2.627846654e-06 | H129: 3.153415985e-05 | J129: 0 | K129: 1.771285602e-05 | M129: 0.0009839658296 | N129: 0.005344723483 | P129: 0 | Q129: 0 | S129: 0 | T129: 0 | V129: 0 | W129: 1.771285602e-05 | Y129: 0 | Z129: 0 | AB129: 2.23912397e-05 | AC129: 0.0005583815399 | AE129: 2.23912397e-05 | AF129: 2.23912397e-05 | AH129: 18 | AI129: 196 | AJ129: 2.23912397e-05 | AK129: 2.23912397e-05 | AL129: 17.5 | AM129: 82.5 | AN129: 21.5230057 | AO129: 0.4099924592 | AP129: -1.412677435 | AQ129: 0 | AR129: 1 | AS129: 0 | AT129: 2.238714826e-05 | BA129: 18 | BB129: 196 | BC129: 2.23912397e-05 | BD129: 2.23912397e-05 | BE129: 17.5 | BF129: 82.5 | BG129: 21.5230057 | BH129: -18.40815225 | BI129: -1.412677435 | BJ129: 0 | BK129: 0 | BL129: 0 | BM129: 1.903300244e-05
A130: 0 | B130: 0 | D130: 0 | E130: 0 | G130: 0 | H130: 0 | J130: 0 | K130: 0 | M130: 0 | N130: 0 | P130: 0 | Q130: 0 | S130: 0 | T130: 0 | V130: 0 | W130: 0 | Y130: 0 | Z130: 0 | AB130: 0 | AC130: 0 | AE130: 0 | AF130: 0 | AH130: 19 | AI130: 196 | AJ130: 0 | AK130: 0 | AL130: 18.5 | AM130: 97.5 | AN130: 21.5230057 | AO130: 0.9537375888 | AP130: -14.47735397 | AQ130: 0 | AR130: 1 | AS130: 0 | AT130: 0 | BA130: 19 | BB130: 196 | BC130: 0 | BD130: 0 | BE130: 18.5 | BF130: 97.5 | BG130: 21.5230057 | BH130: -1.061361503 | BI130: -14.47735397 | BJ130: 0 | BK130: 0 | BL130: 0 | BM130: 0
A131: 0 | B131: 0 | D131: 0 | E131: 0 | G131: 0 | H131: 0 | J131: 0 | K131: 0 | M131: 0 | N131: 0 | P131: 0 | Q131: 0 | S131: 0 | T131: 0 | V131: 0 | W131: 0 | Y131: 0 | Z131: 0 | AB131: 0 | AC131: 0 | AE131: 0 | AF131: 0 | AH131: 20 | AI131: 196 | AJ131: 0 | AK131: 0 | AL131: 19.5 | AM131: 112.5 | AN131: 21.5230057 | AO131: 0.9817028286 | AP131: -27.88307624 | AQ131: 0 | AR131: 1 | AS131: 0 | AT131: 0 | BA131: 20 | BB131: 196 | BC131: 0 | BD131: 0 | BE131: 19.5 | BF131: 112.5 | BG131: 21.5230057 | BH131: -0.1542158287 | BI131: -27.88307624 | BJ131: 0 | BK131: 0 | BL131: 0 | BM131: 0
AL132: -0.5 | AT132: =SUM(AT116:AT131) -> 1.234710508 | BE132: -0.5 | BM132: =SUM(BM116:BM131) -> 1.387805419
A133: agosto | D133: agosto | G133: agosto | J133: agosto | M133: agosto | P133: agosto | S133: agosto | V133: agosto | Y133: agosto | AB133: agosto | AL133: -0.5 | BE133: -0.5
A134: 0 | B134: 0 | D134: 0 | E134: 0 | G134: 0 | H134: 0 | J134: 0 | K134: 0 | M134: 0 | N134: 0 | P134: 0 | Q134: 0 | S134: 0 | T134: 0 | V134: 0 | W134: 0 | Y134: 0 | Z134: 0 | AB134: 0 | AC134: 0 | AE134: =CHOOSE($B$1,A134,D134,G134,J134,M134,P134,S134,V134,Y134,AB134) -> 0 | AF134: =CHOOSE($B$1,B134,E134,H134,K134,N134,Q134,T134,V134,Y134,AB134) -> 0 | AH134: 5 | AI134: 227 | AJ134: =AE134 -> 0 | AK134: =AF134 -> 0 | AL134: 4.5 | AM134: =15*(AL134-12) -> -112.5 | AN134: =23.45*SIN(360*(284+AI134)/365/57.3) -> 13.7958531 | AO134: =((SIN(AN134/57.3)*SIN($B$2/57.3)*COS($AI$2/57.3))-SIN(AN134/57.3)*COS($B$2/57.3)*SIN($AI$2/57.3)*COS($AI$3/57.3)+COS(AN134/57.3)*COS($B$2/57.3)*COS($AI$2/57.3)*COS(AM134/57.3)+COS(AN134/57.3)*SIN($B$2/57.3)*SIN($AI$2/57.3)*COS($AI$3/57.3)*COS(AM134/57.3)+COS(AN134/57.3)*SIN($AI$2/57.3)*SIN($AI$3/57.3)*SIN(AM134/57.3))/(COS($B$2/57.3)*COS(AN134/57.3)*COS(AM134/57.3)+SIN($B$2/57.3)*SIN(AN134/57.3)) -> 0.9953401505 | AP134: =57.3*ASIN(SIN($B$2/57.3)*SIN(AN134/57.3)+COS($B$2/57.3)*COS(AM134/57.3)*COS(AN134/57.6)) -> -25.71657989 | AQ134: =IF(AP134<0,0,1) -> 0 | AR134: =IF(AO134<0,0,1) -> 1 | AS134: =AO134*AR134*AQ134 -> 0 | AT134: =AJ134*AS134+((1+COS($AI$2/57.3))/2)*AK134+((1-COS($AI$2/57.3))/2)*(AJ134+AK134)*0.2 -> 0 | BA134: 5 | BB134: 227 | BC134: =AE134 -> 0 | BD134: =AF134 -> 0 | BE134: 4.5 | BF134: =15*(BE134-12) -> -112.5 | BG134: =23.45*SIN(360*(284+BB134)/365/57.3) -> 13.7958531 | BH134: =((SIN(BG134/57.3)*SIN($B$2/57.3)*COS($BB$2/57.3))-SIN(BG134/57.3)*COS($B$2/57.3)*SIN($BB$2/57.3)*COS($BB$3/57.3)+COS(BG134/57.3)*COS($B$2/57.3)*COS($BB$2/57.3)*COS(BF134/57.3)+COS(BG134/57.3)*SIN($B$2/57.3)*SIN($BB$2/57.3)*COS($BB$3/57.3)*COS(BF134/57.3)+COS(BG134/57.3)*SIN($BB$2/57.3)*SIN($BB$3/57.3)*SIN(BF134/57.3))/(COS($B$2/57.3)*COS(BG134/57.3)*COS(BF134/57.3)+SIN($B$2/57.3)*SIN(BG134/57.3)) -> 0.6504507595 | BI134: =57.3*ASIN(SIN($B$2/57.3)*SIN(BG134/57.3)+COS($B$2/57.3)*COS(BF134/57.3)*COS(BG134/57.6)) -> -25.71657989 | BJ134: =IF(BI134<0,0,1) -> 0 | BK134: =IF(BH134<0,0,1) -> 1 | BL134: =BH134*BK134*BJ134 -> 0 | BM134: =BC134*BL134+((1+COS($BB$2/57.3))/2)*BD134+((1-COS($BB$2/57.3))/2)*(BC134+BD134)*0.2 -> 0
A135: 0 | B135: 0 | D135: 0 | E135: 0 | G135: 0 | H135: 0 | J135: 0 | K135: 0 | M135: 0 | N135: 0 | P135: 0 | Q135: 0 | S135: 0 | T135: 0 | V135: 0 | W135: 0 | Y135: 0 | Z135: 0 | AB135: 0 | AC135: 0 | AE135: 0 | AF135: 0 | AH135: 6 | AI135: 227 | AJ135: 0 | AK135: 0 | AL135: 5.5 | AM135: -97.5 | AN135: 13.7958531 | AO135: 0.9758067983 | AP135: -11.934227 | AQ135: 0 | AR135: 1 | AS135: 0 | AT135: 0 | BA135: 6 | BB135: 227 | BC135: 0 | BD135: 0 | BE135: 5.5 | BF135: -97.5 | BG135: 13.7958531 | BH135: 0.4849983719 | BI135: -11.934227 | BJ135: 0 | BK135: 1 | BL135: 0 | BM135: 0
A136: 0.0001171457769 | B136: 0.001538595049 | D136: 7.925340349e-05 | E136: 0.0007995787819 | G136: 7.925340349e-05 | H136: 0.0007995787819 | J136: 7.087567967e-05 | K136: 0.0007717574008 | M136: 0.003147370116 | N136: 0.009046859217 | P136: 0.0001544511052 | Q136: 0.000471590708 | S136: 5.287473113e-06 | T136: 0.000278473584 | V136: 7.087567967e-05 | W136: 0.0007717574008 | Y136: 4.010946034e-06 | Z136: 2.807662223e-05 | AB136: 0.0001171457769 | AC136: 0.001538595049 | AE136: 0.0001171457769 | AF136: 0.0001171457769 | AH136: 7 | AI136: 227 | AJ136: 0.0001171457769 | AK136: 0.0001171457769 | AL136: =AH136-0.5 -> 6.5 | AM136: -82.5 | AN136: 13.7958531 | AO136: 1.288599209 | AP136: 1.62444197 | AQ136: 1 | AR136: 1 | AS136: 1.288599209 | AT136: 0.000268078327 | BA136: 7 | BB136: 227 | BC136: 0.0001171457769 | BD136: 0.0001171457769 | BE136: =BA136-0.5 -> 6.5 | BF136: -82.5 | BG136: 13.7958531 | BH136: 3.47073769 | BI136: 1.62444197 | BJ136: 1 | BK136: 1 | BL136: 3.47073769 | BM136: 0.0005061585211
A137: 0.01275703405 | B137: 0.01923656789 | D137: 0.006909791412 | E137: 0.0224142902 | G137: 0.006909791412 | H137: 0.0224142902 | J137: 0.005705513944 | K137: 0.0214743544 | M137: 0.01322627395 | N137: 0.02204622974 | P137: 0.007275808247 | Q137: 0.01813888217 | S137: 0.005759090933 | T137: 0.01322542569 | V137: 0.005705513944 | W137: 0.0214743544 | Y137: 0.0002927990604 | Z137: 0.007131462048 | AB137: 0.01275703405 | AC137: 0.01923656789 | AE137: 0.01275703405 | AF137: 0.01275703405 | AH137: 8 | AI137: 227 | AJ137: 0.01275703405 | AK137: 0.01275703405 | AL137: 7.5 | AM137: -67.5 | AN137: 13.7958531 | AO137: 1.044297919 | AP137: 14.80123788 | AQ137: 1 | AR137: 1 | AS137: 1.044297919 | AT137: 0.02607684713 | BA137: 8 | BB137: 227 | BC137: 0.01275703405 | BD137: 0.01275703405 | BE137: 7.5 | BF137: -67.5 | BG137: 13.7958531 | BH137: 1.17445464 | BI137: 14.80123788 | BJ137: 1 | BK137: 1 | BL137: 1.17445464 | BM137: 0.02582629242
A138: 0.0396426405 | B138: 0.0328335073 | D138: 0.03658748803 | E138: 0.04113636207 | G138: 0.03658748803 | H138: 0.04113636207 | J138: 0.02837063598 | K138: 0.0453209807 | M138: 0.02342228924 | N138: 0.04303113701 | P138: 0.03211092229 | Q138: 0.038449151 | S138: 0.02944870538 | T138: 0.03192670879 | V138: 0.02837063598 | W138: 0.0453209807 | Y138: 0.01244027978 | Z138: 0.03947022551 | AB138: 0.0396426405 | AC138: 0.0328335073 | AE138: 0.0396426405 | AF138: 0.0396426405 | AH138: 9 | AI138: 227 | AJ138: 0.0396426405 | AK138: 0.0396426405 | AL138: 8.5 | AM138: -52.5 | AN138: 13.7958531 | AO138: 1.030966948 | AP138: 27.32840136 | AQ138: 1 | AR138: 1 | AS138: 1.030966948 | AT138: 0.08050564887 | BA138: 9 | BB138: 227 | BC138: 0.0396426405 | BD138: 0.0396426405 | BE138: 8.5 | BF138: -52.5 | BG138: 13.7958531 | BH138: 1.069731917 | BI138: 27.32840136 | BJ138: 1 | BK138: 1 | BL138: 1.069731917 | BM138: 0.07610403665
A139: 0.0620116278 | B139: 0.04358886301 | D139: 0.05860015206 | E139: 0.05431970152 | G139: 0.05860015206 | H139: 0.05431970152 | J139: 0.05306029008 | K139: 0.05858071801 | M139: 0.03724875935 | N139: 0.0646016015 | P139: 0.0506245047 | Q139: 0.05845678231 | S139: 0.06632655589 | T139: 0.0461201379 | V139: 0.05306029008 | W139: 0.05858071801 | Y139: 0.04352581876 | Z139: 0.0671709175 | AB139: 0.0620116278 | AC139: 0.04358886301 | AE139: 0.0620116278 | AF139: 0.0620116278 | AH139: 10 | AI139: 227 | AJ139: 0.0620116278 | AK139: 0.0620116278 | AL139: 9.5 | AM139: -37.5 | AN139: 13.7958531 | AO139: 1.026669264 | AP139: 38.70734401 | AQ139: 1 | AR139: 1 | AS139: 1.026669264 | AT139: 0.125665729 | BA139: 10 | BB139: 227 | BC139: 0.0620116278 | BD139: 0.0620116278 | BE139: 9.5 | BF139: -37.5 | BG139: 13.7958531 | BH139: 1.053052078 | BI139: 38.70734401 | BJ139: 1 | BK139: 1 | BL139: 1.053052078 | BM139: 0.1180125998
A140: 0.08931097417 | B140: 0.04846212099 | D140: 0.0702308438 | E140: 0.06386943728 | G140: 0.0702308438 | H140: 0.06386943728 | J140: 0.06298091646 | K140: 0.07097411811 | M140: 0.0531393187 | N140: 0.07855982199 | P140: 0.07551629373 | Q140: 0.07062122336 | S140: 0.09120538622 | T140: 0.05268085712 | V140: 0.06298091646 | W140: 0.07097411811 | Y140: 0.0711862702 | Z140: 0.08637171189 | AB140: 0.08931097417 | AC140: 0.04846212099 | AE140: 0.08931097417 | AF140: 0.08931097417 | AH140: 11 | AI140: 227 | AJ140: 0.08931097417 | AK140: 0.08931097417 | AL140: 10.5 | AM140: -22.5 | AN140: 13.7958531 | AO140: 1.024944548 | AP140: 47.97879366 | AQ140: 1 | AR140: 1 | AS140: 1.024944548 | AT140: 0.1808334509 | BA140: 11 | BB140: 227 | BC140: 0.08931097417 | BD140: 0.08931097417 | BE140: 10.5 | BF140: -22.5 | BG140: 13.7958531 | BH140: 1.0645766 | BI140: 47.97879366 | BJ140: 1 | BK140: 1 | BL140: 1.0645766 | BM140: 0.170994491
A141: 0.09470571836 | B141: 0.05579520509 | D141: 0.07579619391 | E141: 0.06925690753 | G141: 0.07579619391 | H141: 0.06925690753 | J141: 0.07829203204 | K141: 0.07439780719 | M141: 0.06591910527 | N141: 0.08661123392 | P141: 0.07829435427 | Q141: 0.0698860361 | S141: 0.1091880823 | T141: 0.05383528875 | V141: 0.07829203204 | W141: 0.07439780719 | Y141: 0.07419849067 | Z141: 0.09817993701 | AB141: 0.09470571836 | AC141: 0.05579520509 | AE141: 0.09470571836 | AF141: 0.09470571836 | AH141: 12 | AI141: 227 | AJ141: 0.09470571836 | AK141: 0.09470571836 | AL141: 11.5 | AM141: -7.5 | AN141: 13.7958531 | AO141: 1.024450171 | AP141: 53.48930393 | AQ141: 1 | AR141: 1 | AS141: 1.024450171 | AT141: 0.1917097027 | BA141: 12 | BB141: 227 | BC141: 0.09470571836 | BD141: 0.09470571836 | BE141: 11.5 | BF141: -7.5 | BG141: 13.7958531 | BH141: 1.093809075 | BI141: 53.48930393 | BJ141: 1 | BK141: 1 | BL141: 1.093809075 | BM141: 0.1840917326
A142: 0.09470571836 | B142: 0.05579520509 | D142: 0.07579619391 | E142: 0.06925690753 | G142: 0.07579619391 | H142: 0.06925690753 | J142: 0.07829203204 | K142: 0.07439780719 | M142: 0.06591910527 | N142: 0.08661123392 | P142: 0.07829435427 | Q142: 0.0698860361 | S142: 0.1091880823 | T142: 0.05383528875 | V142: 0.07829203204 | W142: 0.07439780719 | Y142: 0.07419849067 | Z142: 0.09817993701 | AB142: 0.09470571836 | AC142: 0.05579520509 | AE142: 0.09470571836 | AF142: 0.09470571836 | AH142: 13 | AI142: 227 | AJ142: 0.09470571836 | AK142: 0.09470571836 | AL142: 12.5 | AM142: 7.5 | AN142: 13.7958531 | AO142: 1.024836965 | AP142: 53.48930393 | AQ142: 1 | AR142: 1 | AS142: 1.024836965 | AT142: 0.1917463342 | BA142: 13 | BB142: 227 | BC142: 0.09470571836 | BD142: 0.09470571836 | BE142: 12.5 | BF142: 7.5 | BG142: 13.7958531 | BH142: 1.141315873 | BI142: 53.48930393 | BJ142: 1 | BK142: 1 | BL142: 1.141315873 | BM142: 0.188590898
A143: 0.08931097417 | B143: 0.04846212099 | D143: 0.0702308438 | E143: 0.06386943728 | G143: 0.0702308438 | H143: 0.06386943728 | J143: 0.06298091646 | K143: 0.07097411811 | M143: 0.0531393187 | N143: 0.07855982199 | P143: 0.07551629373 | Q143: 0.07062122336 | S143: 0.09120538622 | T143: 0.05268085712 | V143: 0.06298091646 | W143: 0.07097411811 | Y143: 0.0711862702 | Z143: 0.08637171189 | AB143: 0.08931097417 | AC143: 0.04846212099 | AE143: 0.08931097417 | AF143: 0.08931097417 | AH143: 14 | AI143: 227 | AJ143: 0.08931097417 | AK143: 0.08931097417 | AL143: 13.5 | AM143: 22.5 | AN143: 13.7958531 | AO143: 1.026171468 | AP143: 47.97879366 | AQ143: 1 | AR143: 1 | AS143: 1.026171468 | AT143: 0.1809430283 | BA143: 14 | BB143: 227 | BC143: 0.08931097417 | BD143: 0.08931097417 | BE143: 13.5 | BF143: 22.5 | BG143: 13.7958531 | BH143: 1.215269407 | BI143: 47.97879366 | BJ143: 1 | BK143: 1 | BL143: 1.215269407 | BM143: 0.1844530124
A144: 0.0620116278 | B144: 0.04358886301 | D144: 0.05860015206 | E144: 0.05431970152 | G144: 0.05860015206 | H144: 0.05431970152 | J144: 0.05306029008 | K144: 0.05858071801 | M144: 0.03724875935 | N144: 0.0646016015 | P144: 0.0506245047 | Q144: 0.05845678231 | S144: 0.06632655589 | T144: 0.0461201379 | V144: 0.05306029008 | W144: 0.05858071801 | Y144: 0.04352581876 | Z144: 0.0671709175 | AB144: 0.0620116278 | AC144: 0.04358886301 | AE144: 0.0620116278 | AF144: 0.0620116278 | AH144: 15 | AI144: 227 | AJ144: 0.0620116278 | AK144: 0.0620116278 | AL144: 14.5 | AM144: 37.5 | AN144: 13.7958531 | AO144: 1.028987955 | AP144: 38.70734401 | AQ144: 1 | AR144: 1 | AS144: 1.028987955 | AT144: 0.1258095148 | BA144: 15 | BB144: 227 | BC144: 0.0620116278 | BD144: 0.0620116278 | BE144: 14.5 | BF144: 37.5 | BG144: 13.7958531 | BH144: 1.33783863 | BI144: 38.70734401 | BJ144: 1 | BK144: 1 | BL144: 1.33783863 | BM144: 0.1356726775
A145: 0.0396426405 | B145: 0.0328335073 | D145: 0.03658748803 | E145: 0.04113636207 | G145: 0.03658748803 | H145: 0.04113636207 | J145: 0.02837063598 | K145: 0.0453209807 | M145: 0.02342228924 | N145: 0.04303113701 | P145: 0.03211092229 | Q145: 0.038449151 | S145: 0.02944870538 | T145: 0.03192670879 | V145: 0.02837063598 | W145: 0.0453209807 | Y145: 0.01244027978 | Z145: 0.03947022551 | AB145: 0.0396426405 | AC145: 0.0328335073 | AE145: 0.0396426405 | AF145: 0.0396426405 | AH145: 16 | AI145: 227 | AJ145: 0.0396426405 | AK145: 0.0396426405 | AL145: 15.5 | AM145: 52.5 | AN145: 13.7958531 | AO145: 1.035083152 | AP145: 27.32840136 | AQ145: 1 | AR145: 1 | AS145: 1.035083152 | AT145: 0.08066882608 | BA145: 16 | BB145: 227 | BC145: 0.0396426405 | BD145: 0.0396426405 | BE145: 15.5 | BF145: 52.5 | BG145: 13.7958531 | BH145: 1.575292855 | BI145: 27.32840136 | BJ145: 1 | BK145: 1 | BL145: 1.575292855 | BM145: 0.09614580716
A146: 0.01275703405 | B146: 0.01923656789 | D146: 0.006909791412 | E146: 0.0224142902 | G146: 0.006909791412 | H146: 0.0224142902 | J146: 0.005705513944 | K146: 0.0214743544 | M146: 0.01322627395 | N146: 0.02204622974 | P146: 0.007275808247 | Q146: 0.01813888217 | S146: 0.005759090933 | T146: 0.01322542569 | V146: 0.005705513944 | W146: 0.0214743544 | Y146: 0.0002927990604 | Z146: 0.007131462048 | AB146: 0.01275703405 | AC146: 0.01923656789 | AE146: 0.01275703405 | AF146: 0.01275703405 | AH146: 17 | AI146: 227 | AJ146: 0.01275703405 | AK146: 0.01275703405 | AL146: 16.5 | AM146: 67.5 | AN146: 13.7958531 | AO146: 1.052912587 | AP146: 14.80123788 | AQ146: 1 | AR146: 1 | AS146: 1.052912587 | AT146: 0.02618674475 | BA146: 17 | BB146: 227 | BC146: 0.01275703405 | BD146: 0.01275703405 | BE146: 16.5 | BF146: 67.5 | BG146: 13.7958531 | BH146: 2.232526411 | BI146: 14.80123788 | BJ146: 1 | BK146: 1 | BL146: 2.232526411 | BM146: 0.03932415002
A147: 0.0001171457769 | B147: 0.001538595049 | D147: 7.925340349e-05 | E147: 0.0007995787819 | G147: 7.925340349e-05 | H147: 0.0007995787819 | J147: 7.087567967e-05 | K147: 0.0007717574008 | M147: 0.003147370116 | N147: 0.009046859217 | P147: 0.0001544511052 | Q147: 0.000471590708 | S147: 5.287473113e-06 | T147: 0.000278473584 | V147: 7.087567967e-05 | W147: 0.0007717574008 | Y147: 4.010946034e-06 | Z147: 2.807662223e-05 | AB147: 0.0001171457769 | AC147: 0.001538595049 | AE147: 0.0001171457769 | AF147: 0.0001171457769 | AH147: 18 | AI147: 227 | AJ147: 0.0001171457769 | AK147: 0.0001171457769 | AL147: 17.5 | AM147: 82.5 | AN147: 13.7958531 | AO147: 1.371983965 | AP147: 1.62444197 | AQ147: 1 | AR147: 1 | AS147: 1.371983965 | AT147: 0.000277846499 | BA147: 18 | BB147: 227 | BC147: 0.0001171457769 | BD147: 0.0001171457769 | BE147: 17.5 | BF147: 82.5 | BG147: 13.7958531 | BH147: 13.71222996 | BI147: 1.62444197 | BJ147: 1 | BK147: 1 | BL147: 13.71222996 | BM147: 0.00170590609
A148: 0 | B148: 0 | D148: 0 | E148: 0 | G148: 0 | H148: 0 | J148: 0 | K148: 0 | M148: 0 | N148: 0 | P148: 0 | Q148: 0 | S148: 0 | T148: 0 | V148: 0 | W148: 0 | Y148: 0 | Z148: 0 | AB148: 0 | AC148: 0 | AE148: 0 | AF148: 0 | AH148: 19 | AI148: 227 | AJ148: 0 | AK148: 0 | AL148: 18.5 | AM148: 97.5 | AN148: 13.7958531 | AO148: 0.9643880635 | AP148: -11.934227 | AQ148: 0 | AR148: 1 | AS148: 0 | AT148: 0 | BA148: 19 | BB148: 227 | BC148: 0 | BD148: 0 | BE148: 18.5 | BF148: 97.5 | BG148: 13.7958531 | BH148: -0.9174748124 | BI148: -11.934227 | BJ148: 0 | BK148: 0 | BL148: 0 | BM148: 0
A149: 0 | B149: 0 | D149: 0 | E149: 0 | G149: 0 | H149: 0 | J149: 0 | K149: 0 | M149: 0 | N149: 0 | P149: 0 | Q149: 0 | S149: 0 | T149: 0 | V149: 0 | W149: 0 | Y149: 0 | Z149: 0 | AB149: 0 | AC149: 0 | AE149: 0 | AF149: 0 | AH149: 20 | AI149: 227 | AJ149: 0 | AK149: 0 | AL149: 19.5 | AM149: 112.5 | AN149: 13.7958531 | AO149: 0.9902687332 | AP149: -25.71657989 | AQ149: 0 | AR149: 1 | AS149: 0 | AT149: 0 | BA149: 20 | BB149: 227 | BC149: 0 | BD149: 0 | BE149: 19.5 | BF149: 112.5 | BG149: 13.7958531 | BH149: 0.02756855753 | BI149: -25.71657989 | BJ149: 0 | BK149: 1 | BL149: 0 | BM149: 0
AL150: -0.5 | AT150: =SUM(AT134:AT149) -> 1.210691752 | BE150: -0.5 | BM150: =SUM(BM134:BM149) -> 1.221427762
A151: sept | D151: sept | G151: sept | J151: sept | M151: sept | P151: sept | S151: sept | V151: sept | Y151: sept | AB151: sept | AL151: -0.5 | BE151: -0.5
A152: 0 | B152: 0 | D152: 0 | E152: 0 | G152: 0 | H152: 0 | J152: 0 | K152: 0 | M152: 0 | N152: 0 | P152: 0 | Q152: 0 | S152: 0 | T152: 0 | V152: 0 | W152: 0 | Y152: 0 | Z152: 0 | AB152: 0 | AC152: 0 | AE152: =CHOOSE($B$1,A152,D152,G152,J152,M152,P152,S152,V152,Y152,AB152) -> 0 | AF152: =CHOOSE($B$1,B152,E152,H152,K152,N152,Q152,T152,V152,Y152,AB152) -> 0 | AH152: 5 | AI152: 258 | AJ152: =AE152 -> 0 | AK152: =AF152 -> 0 | AL152: 4.5 | AM152: =15*(AL152-12) -> -112.5 | AN152: =23.45*SIN(360*(284+AI152)/365/57.3) -> 2.232929335 | AO152: =((SIN(AN152/57.3)*SIN($B$2/57.3)*COS($AI$2/57.3))-SIN(AN152/57.3)*COS($B$2/57.3)*SIN($AI$2/57.3)*COS($AI$3/57.3)+COS(AN152/57.3)*COS($B$2/57.3)*COS($AI$2/57.3)*COS(AM152/57.3)+COS(AN152/57.3)*SIN($B$2/57.3)*SIN($AI$2/57.3)*COS($AI$3/57.3)*COS(AM152/57.3)+COS(AN152/57.3)*SIN($AI$2/57.3)*SIN($AI$3/57.3)*SIN(AM152/57.3))/(COS($B$2/57.3)*COS(AN152/57.3)*COS(AM152/57.3)+SIN($B$2/57.3)*SIN(AN152/57.3)) -> 1.0125762 | AP152: =57.3*ASIN(SIN($B$2/57.3)*SIN(AN152/57.3)+COS($B$2/57.3)*COS(AM152/57.3)*COS(AN152/57.6)) -> -21.65709054 | AQ152: =IF(AP152<0,0,1) -> 0 | AR152: =IF(AO152<0,0,1) -> 1 | AS152: =AO152*AR152*AQ152 -> 0 | AT152: =AJ152*AS152+((1+COS($AI$2/57.3))/2)*AK152+((1-COS($AI$2/57.3))/2)*(AJ152+AK152)*0.2 -> 0 | BA152: 5 | BB152: 258 | BC152: =AE152 -> 0 | BD152: =AF152 -> 0 | BE152: 4.5 | BF152: =15*(BE152-12) -> -112.5 | BG152: =23.45*SIN(360*(284+BB152)/365/57.3) -> 2.232929335 | BH152: =((SIN(BG152/57.3)*SIN($B$2/57.3)*COS($BB$2/57.3))-SIN(BG152/57.3)*COS($B$2/57.3)*SIN($BB$2/57.3)*COS($BB$3/57.3)+COS(BG152/57.3)*COS($B$2/57.3)*COS($BB$2/57.3)*COS(BF152/57.3)+COS(BG152/57.3)*SIN($B$2/57.3)*SIN($BB$2/57.3)*COS($BB$3/57.3)*COS(BF152/57.3)+COS(BG152/57.3)*SIN($BB$2/57.3)*SIN($BB$3/57.3)*SIN(BF152/57.3))/(COS($B$2/57.3)*COS(BG152/57.3)*COS(BF152/57.3)+SIN($B$2/57.3)*SIN(BG152/57.3)) -> 1.124173424 | BI152: =57.3*ASIN(SIN($B$2/57.3)*SIN(BG152/57.3)+COS($B$2/57.3)*COS(BF152/57.3)*COS(BG152/57.6)) -> -21.65709054 | BJ152: =IF(BI152<0,0,1) -> 0 | BK152: =IF(BH152<0,0,1) -> 1 | BL152: =BH152*BK152*BJ152 -> 0 | BM152: =BC152*BL152+((1+COS($BB$2/57.3))/2)*BD152+((1-COS($BB$2/57.3))/2)*(BC152+BD152)*0.2 -> 0
A153: 0 | B153: 5.822420971e-06 | D153: 0 | E153: 1.543863058e-05 | G153: 0 | H153: 1.543863058e-05 | J153: 0 | K153: 1.369423162e-05 | M153: 9.633447329e-05 | N153: 0.001546168296 | P153: 1.407948418e-06 | Q153: 1.54874326e-05 | S153: 1.307768578e-06 | T153: 1.700099151e-05 | V153: 0 | W153: 1.369423162e-05 | Y153: 1.885148302e-06 | Z153: 3.016237284e-05 | AB153: 0 | AC153: 5.822420971e-06 | AE153: 0 | AF153: 0 | AH153: 6 | AI153: 258 | AJ153: 0 | AK153: 0 | AL153: 5.5 | AM153: -97.5 | AN153: 2.232929335 | AO153: 1.0116272 | AP153: -7.78292901 | AQ153: 0 | AR153: 1 | AS153: 0 | AT153: 0 | BA153: 6 | BB153: 258 | BC153: 0 | BD153: 0 | BE153: 5.5 | BF153: -97.5 | BG153: 2.232929335 | BH153: 1.681543274 | BI153: -7.78292901 | BJ153: 0 | BK153: 1 | BL153: 0 | BM153: 0
A154: 0.0009998865169 | B154: 0.006288490891 | D154: 0.0009559085434 | E154: 0.00671966396 | G154: 0.0009559085434 | H154: 0.00671966396 | J154: 0.0004062449901 | K154: 0.005171841628 | M154: 0.005669283753 | N154: 0.009329993738 | P154: 0.0006856708796 | Q154: 0.0060077159 | S154: 0.0009630349629 | T154: 0.00573455269 | V154: 0.0004062449901 | W154: 0.005171841628 | Y154: 0.00125315672 | Z154: 0.005836491776 | AB154: 0.0009998865169 | AC154: 0.006288490891 | AE154: 0.0009998865169 | AF154: 0.0009998865169 | AH154: 7 | AI154: 258 | AJ154: 0.0009998865169 | AK154: 0.0009998865169 | AL154: 6.5 | AM154: -82.5 | AN154: 2.232929335 | AO154: 1.015838298 | AP154: 6.110373735 | AQ154: 1 | AR154: 1 | AS154: 1.015838298 | AT154: 0.00201542683 | BA154: 7 | BB154: 258 | BC154: 0.0009998865169 | BD154: 0.0009998865169 | BE154: 6.5 | BF154: -82.5 | BG154: 2.232929335 | BH154: -0.2201556589 | BI154: 6.110373735 | BJ154: 1 | BK154: 0 | BL154: 0 | BM154: 0.0008499235762
A155: 0.02089363833 | B155: 0.0217768665 | D155: 0.01487635492 | E155: 0.02633388429 | G155: 0.01487635492 | H155: 0.02633388429 | J155: 0.0147379337 | K155: 0.02683558004 | M155: 0.01738355571 | N155: 0.02294687154 | P155: 0.01354600124 | Q155: 0.02698071606 | S155: 0.01584888597 | T155: 0.02384876414 | V155: 0.0147379337 | W155: 0.02683558004 | Y155: 0.01148723132 | Z155: 0.02743966083 | AB155: 0.02089363833 | AC155: 0.0217768665 | AE155: 0.02089363833 | AF155: 0.02089363833 | AH155: 8 | AI155: 258 | AJ155: 0.02089363833 | AK155: 0.02089363833 | AL155: 7.5 | AM155: -67.5 | AN155: 2.232929335 | AO155: 1.014461882 | AP155: 19.88054888 | AQ155: 1 | AR155: 1 | AS155: 1.014461882 | AT155: 0.04208562021 | BA155: 8 | BB155: 258 | BC155: 0.02089363833 | BD155: 0.02089363833 | BE155: 7.5 | BF155: -67.5 | BG155: 2.232929335 | BH155: 0.5412134473 | BI155: 19.88054888 | BJ155: 1 | BK155: 1 | BL155: 0.5412134473 | BM155: 0.0290679293
A156: 0.0444221608 | B156: 0.03386708198 | D156: 0.04012251136 | E156: 0.03964886869 | G156: 0.04012251136 | H156: 0.03964886869 | J156: 0.03577825387 | K156: 0.04158015247 | M156: 0.03652521555 | N156: 0.03882760946 | P156: 0.03736186097 | Q156: 0.03911988511 | S156: 0.04034073732 | T156: 0.0362461139 | V156: 0.03577825387 | W156: 0.04158015247 | Y156: 0.03389145318 | Z156: 0.04028740738 | AB156: 0.0444221608 | AC156: 0.03386708198 | AE156: 0.0444221608 | AF156: 0.0444221608 | AH156: 9 | AI156: 258 | AJ156: 0.0444221608 | AK156: 0.0444221608 | AL156: 8.5 | AM156: -52.5 | AN156: 2.232929335 | AO156: 1.01437876 | AP156: 33.33327935 | AQ156: 1 | AR156: 1 | AS156: 1.01437876 | AT156: 0.08947494017 | BA156: 9 | BB156: 258 | BC156: 0.0444221608 | BD156: 0.0444221608 | BE156: 8.5 | BF156: -52.5 | BG156: 2.232929335 | BH156: 0.6925899271 | BI156: 33.33327935 | BJ156: 1 | BK156: 1 | BL156: 0.6925899271 | BM156: 0.06852606797
A157: 0.06658520623 | B157: 0.03910629045 | D157: 0.0566443356 | E157: 0.04896490344 | G157: 0.0566443356 | H157: 0.04896490344 | J157: 0.05627136829 | K157: 0.0513964289 | M157: 0.05626414913 | N157: 0.05222773469 | P157: 0.05596594962 | Q157: 0.05401734901 | S157: 0.06460638327 | T157: 0.04488130982 | V157: 0.05627136829 | W157: 0.0513964289 | Y157: 0.0559700531 | Z157: 0.05311593857 | AB157: 0.06658520623 | AC157: 0.03910629045 | AE157: 0.06658520623 | AF157: 0.06658520623 | AH157: 10 | AI157: 258 | AJ157: 0.06658520623 | AK157: 0.06658520623 | AL157: 9.5 | AM157: -37.5 | AN157: 2.232929335 | AO157: 1.014479361 | AP157: 46.09702205 | AQ157: 1 | AR157: 1 | AS157: 1.014479361 | AT157: 0.1341223569 | BA157: 10 | BB157: 258 | BC157: 0.06658520623 | BD157: 0.06658520623 | BE157: 9.5 | BF157: -37.5 | BG157: 2.232929335 | BH157: 0.7672129902 | BI157: 46.09702205 | BJ157: 1 | BK157: 1 | BL157: 0.7672129902 | BM157: 0.1076837948
A158: 0.08143723172 | B158: 0.04472395629 | D158: 0.06700108361 | E158: 0.0584094857 | G158: 0.06700108361 | H158: 0.0584094857 | J158: 0.07323812014 | K158: 0.05796220477 | M158: 0.06220798613 | N158: 0.06306054622 | P158: 0.06921615218 | Q158: 0.05683324584 | S158: 0.07727212195 | T158: 0.05174840262 | V158: 0.07323812014 | W158: 0.05796220477 | Y158: 0.072353877 | Z158: 0.06076210009 | AB158: 0.08143723172 | AC158: 0.04472395629 | AE158: 0.08143723172 | AF158: 0.08143723172 | AH158: 11 | AI158: 258 | AJ158: 0.08143723172 | AK158: 0.08143723172 | AL158: 10.5 | AM158: -22.5 | AN158: 2.232929335 | AO158: 1.014664914 | AP158: 57.29133582 | AQ158: 1 | AR158: 1 | AS158: 1.014664914 | AT158: 0.1640538528 | BA158: 11 | BB158: 258 | BC158: 0.08143723172 | BD158: 0.08143723172 | BE158: 10.5 | BF158: -22.5 | BG158: 2.232929335 | BH158: 0.8187563163 | BI158: 57.29133582 | BJ158: 1 | BK158: 1 | BL158: 0.8187563163 | BM158: 0.1359005267
A159: 0.08986809729 | B159: 0.05002527058 | D159: 0.07725362087 | E159: 0.06305265384 | G159: 0.07725362087 | H159: 0.06305265384 | J159: 0.0732887888 | K159: 0.06331938818 | M159: 0.06736669717 | N159: 0.06654785415 | P159: 0.07627982939 | Q159: 0.06396872842 | S159: 0.0825058118 | T159: 0.05598557281 | V159: 0.0732887888 | W159: 0.06331938818 | Y159: 0.07500251036 | Z159: 0.06256807216 | AB159: 0.08986809729 | AC159: 0.05002527058 | AE159: 0.08986809729 | AF159: 0.08986809729 | AH159: 12 | AI159: 258 | AJ159: 0.08986809729 | AK159: 0.08986809729 | AL159: 11.5 | AM159: -7.5 | AN159: 2.232929335 | AO159: 1.014924561 | AP159: 64.69092835 | AQ159: 1 | AR159: 1 | AS159: 1.014924561 | AT159: 0.1810610153 | BA159: 12 | BB159: 258 | BC159: 0.08986809729 | BD159: 0.08986809729 | BE159: 11.5 | BF159: -7.5 | BG159: 2.232929335 | BH159: 0.8625090534 | BI159: 64.69092835 | BJ159: 1 | BK159: 1 | BL159: 0.8625090534 | BM159: 0.1539017311
A160: 0.08986809729 | B160: 0.05002527058 | D160: 0.07725362087 | E160: 0.06305265384 | G160: 0.07725362087 | H160: 0.06305265384 | J160: 0.0732887888 | K160: 0.06331938818 | M160: 0.06736669717 | N160: 0.06654785415 | P160: 0.07627982939 | Q160: 0.06396872842 | S160: 0.0825058118 | T160: 0.05598557281 | V160: 0.0732887888 | W160: 0.06331938818 | Y160: 0.07500251036 | Z160: 0.06256807216 | AB160: 0.08986809729 | AC160: 0.05002527058 | AE160: 0.08986809729 | AF160: 0.08986809729 | AH160: 13 | AI160: 258 | AJ160: 0.08986809729 | AK160: 0.08986809729 | AL160: 12.5 | AM160: 7.5 | AN160: 2.232929335 | AO160: 1.015278276 | AP160: 64.69092835 | AQ160: 1 | AR160: 1 | AS160: 1.015278276 | AT160: 0.181092803 | BA160: 13 | BB160: 258 | BC160: 0.08986809729 | BD160: 0.08986809729 | BE160: 12.5 | BF160: 7.5 | BG160: 2.232929335 | BH160: 0.905953118 | BI160: 64.69092835 | BJ160: 1 | BK160: 1 | BL160: 0.905953118 | BM160: 0.1578059665
A161: 0.08143723172 | B161: 0.04472395629 | D161: 0.06700108361 | E161: 0.0584094857 | G161: 0.06700108361 | H161: 0.0584094857 | J161: 0.07323812014 | K161: 0.05796220477 | M161: 0.06220798613 | N161: 0.06306054622 | P161: 0.06921615218 | Q161: 0.05683324584 | S161: 0.07727212195 | T161: 0.05174840262 | V161: 0.07323812014 | W161: 0.05796220477 | Y161: 0.072353877 | Z161: 0.06076210009 | AB161: 0.08143723172 | AC161: 0.04472395629 | AE161: 0.08143723172 | AF161: 0.08143723172 | AH161: 14 | AI161: 258 | AJ161: 0.08143723172 | AK161: 0.08143723172 | AL161: 13.5 | AM161: 22.5 | AN161: 2.232929335 | AO161: 1.015779103 | AP161: 57.29133582 | AQ161: 1 | AR161: 1 | AS161: 1.015779103 | AT161: 0.1641445893 | BA161: 14 | BB161: 258 | BC161: 0.08143723172 | BD161: 0.08143723172 | BE161: 13.5 | BF161: 22.5 | BG161: 2.232929335 | BH161: 0.9556033684 | BI161: 57.29133582 | BJ161: 1 | BK161: 1 | BL161: 0.9556033684 | BM161: 0.1470449718
A162: 0.06658520623 | B162: 0.03910629045 | D162: 0.0566443356 | E162: 0.04896490344 | G162: 0.0566443356 | H162: 0.04896490344 | J162: 0.05627136829 | K162: 0.0513964289 | M162: 0.05626414913 | N162: 0.05222773469 | P162: 0.05596594962 | Q162: 0.05401734901 | S162: 0.06460638327 | T162: 0.04488130982 | V162: 0.05627136829 | W162: 0.0513964289 | Y162: 0.0559700531 | Z162: 0.05311593857 | AB162: 0.06658520623 | AC162: 0.03910629045 | AE162: 0.06658520623 | AF162: 0.06658520623 | AH162: 15 | AI162: 258 | AJ162: 0.06658520623 | AK162: 0.06658520623 | AL162: 14.5 | AM162: 37.5 | AN162: 2.232929335 | AO162: 1.016549255 | AP162: 46.09702205 | AQ162: 1 | AR162: 1 | AS162: 1.016549255 | AT162: 0.1342601812 | BA162: 15 | BB162: 258 | BC162: 0.06658520623 | BD162: 0.06658520623 | BE162: 14.5 | BF162: 37.5 | BG162: 2.232929335 | BH162: 1.021441727 | BI162: 46.09702205 | BJ162: 1 | BK162: 1 | BL162: 1.021441727 | BM162: 0.1246116677
A163: 0.0444221608 | B163: 0.03386708198 | D163: 0.04012251136 | E163: 0.03964886869 | G163: 0.04012251136 | H163: 0.03964886869 | J163: 0.03577825387 | K163: 0.04158015247 | M163: 0.03652521555 | N163: 0.03882760946 | P163: 0.03736186097 | Q163: 0.03911988511 | S163: 0.04034073732 | T163: 0.0362461139 | V163: 0.03577825387 | W163: 0.04158015247 | Y163: 0.03389145318 | Z163: 0.04028740738 | AB163: 0.0444221608 | AC163: 0.03386708198 | AE163: 0.0444221608 | AF163: 0.0444221608 | AH163: 16 | AI163: 258 | AJ163: 0.0444221608 | AK163: 0.0444221608 | AL163: 15.5 | AM163: 52.5 | AN163: 2.232929335 | AO163: 1.01791584 | AP163: 33.33327935 | AQ163: 1 | AR163: 1 | AS163: 1.01791584 | AT163: 0.08963206489 | BA163: 16 | BB163: 258 | BC163: 0.0444221608 | BD163: 0.0444221608 | BE163: 15.5 | BF163: 52.5 | BG163: 2.232929335 | BH163: 1.127021526 | BI163: 33.33327935 | BJ163: 1 | BK163: 1 | BL163: 1.127021526 | BM163: 0.08782445834
A164: 0.02089363833 | B164: 0.0217768665 | D164: 0.01487635492 | E164: 0.02633388429 | G164: 0.01487635492 | H164: 0.02633388429 | J164: 0.0147379337 | K164: 0.02683558004 | M164: 0.01738355571 | N164: 0.02294687154 | P164: 0.01354600124 | Q164: 0.02698071606 | S164: 0.01584888597 | T164: 0.02384876414 | V164: 0.0147379337 | W164: 0.02683558004 | Y164: 0.01148723132 | Z164: 0.02743966083 | AB164: 0.02089363833 | AC164: 0.0217768665 | AE164: 0.02089363833 | AF164: 0.02089363833 | AH164: 17 | AI164: 258 | AJ164: 0.02089363833 | AK164: 0.02089363833 | AL164: 16.5 | AM164: 67.5 | AN164: 2.232929335 | AO164: 1.021118001 | AP164: 19.88054888 | AQ164: 1 | AR164: 1 | AS164: 1.021118001 | AT164: 0.04222469075 | BA164: 17 | BB164: 258 | BC164: 0.02089363833 | BD164: 0.02089363833 | BE164: 16.5 | BF164: 67.5 | BG164: 2.232929335 | BH164: 1.358732063 | BI164: 19.88054888 | BJ164: 1 | BK164: 1 | BL164: 1.358732063 | BM164: 0.04614886759
A165: 0.0009998865169 | B165: 0.006288490891 | D165: 0.0009559085434 | E165: 0.00671966396 | G165: 0.0009559085434 | H165: 0.00671966396 | J165: 0.0004062449901 | K165: 0.005171841628 | M165: 0.005669283753 | N165: 0.009329993738 | P165: 0.0006856708796 | Q165: 0.0060077159 | S165: 0.0009630349629 | T165: 0.00573455269 | V165: 0.0004062449901 | W165: 0.005171841628 | Y165: 0.00125315672 | Z165: 0.005836491776 | AB165: 0.0009998865169 | AC165: 0.006288490891 | AE165: 0.0009998865169 | AF165: 0.0009998865169 | AH165: 18 | AI165: 258 | AJ165: 0.0009998865169 | AK165: 0.0009998865169 | AL165: 17.5 | AM165: 82.5 | AN165: 2.232929335 | AO165: 1.038658511 | AP165: 6.110373735 | AQ165: 1 | AR165: 1 | AS165: 1.038658511 | AT165: 0.002038244453 | BA165: 18 | BB165: 258 | BC165: 0.0009998865169 | BD165: 0.0009998865169 | BE165: 17.5 | BF165: 82.5 | BG165: 2.232929335 | BH165: 2.582671198 | BI165: 6.110373735 | BJ165: 1 | BK165: 1 | BL165: 2.582671198 | BM165: 0.003432301685
A166: 0 | B166: 5.822420971e-06 | D166: 0 | E166: 1.543863058e-05 | G166: 0 | H166: 1.543863058e-05 | J166: 0 | K166: 1.369423162e-05 | M166: 9.633447329e-05 | N166: 0.001546168296 | P166: 1.407948418e-06 | Q166: 1.54874326e-05 | S166: 1.307768578e-06 | T166: 1.700099151e-05 | V166: 0 | W166: 1.369423162e-05 | Y166: 1.885148302e-06 | Z166: 3.016237284e-05 | AB166: 0 | AC166: 5.822420971e-06 | AE166: 0 | AF166: 0 | AH166: 19 | AI166: 258 | AJ166: 0 | AK166: 0 | AL166: 18.5 | AM166: 97.5 | AN166: 2.232929335 | AO166: 0.9936893839 | AP166: -7.78292901 | AQ166: 0 | AR166: 1 | AS166: 0 | AT166: 0 | BA166: 19 | BB166: 258 | BC166: 0 | BD166: 0 | BE166: 18.5 | BF166: 97.5 | BG166: 2.232929335 | BH166: -0.5216173353 | BI166: -7.78292901 | BJ166: 0 | BK166: 0 | BL166: 0 | BM166: 0
A167: 0 | B167: 0 | D167: 0 | E167: 0 | G167: 0 | H167: 0 | J167: 0 | K167: 0 | M167: 0 | N167: 0 | P167: 0 | Q167: 0 | S167: 0 | T167: 0 | V167: 0 | W167: 0 | Y167: 0 | Z167: 0 | AB167: 0 | AC167: 0 | AE167: 0 | AF167: 0 | AH167: 20 | AI167: 258 | AJ167: 0 | AK167: 0 | AL167: 19.5 | AM167: 112.5 | AN167: 2.232929335 | AO167: 1.006442367 | AP167: -21.65709054 | AQ167: 0 | AR167: 1 | AS167: 0 | AT167: 0 | BA167: 20 | BB167: 258 | BC167: 0 | BD167: 0 | BE167: 19.5 | BF167: 112.5 | BG167: 2.232929335 | BH167: 0.3708030621 | BI167: -21.65709054 | BJ167: 0 | BK167: 1 | BL167: 0 | BM167: 0
AL168: -0.5 | AT168: =SUM(AT152:AT167) -> 1.226205786 | BE168: -0.5 | BM168: =SUM(BM152:BM167) -> 1.062798207
A169: oct | D169: oct | G169: oct | J169: oct | M169: oct | P169: oct | S169: oct | V169: oct | Y169: oct | AB169: oct | AL169: -0.5 | BE169: -0.5
A170: 0 | B170: 0 | D170: 0 | E170: 0 | G170: 0 | H170: 0 | J170: 0 | K170: 0 | M170: 0 | N170: 0 | P170: 0 | Q170: 0 | S170: 0 | T170: 0 | V170: 0 | W170: 0 | Y170: 2.57193708e-06 | Z170: 4.372293036e-05 | AB170: 0 | AC170: 0 | AE170: =CHOOSE($B$1,A170,D170,G170,J170,M170,P170,S170,V170,Y170,AB170) -> 0 | AF170: =CHOOSE($B$1,B170,E170,H170,K170,N170,Q170,T170,V170,Y170,AB170) -> 0 | AH170: 5 | AI170: 288 | AJ170: =AE170 -> 0 | AK170: =AF170 -> 0 | AL170: 4.5 | AM170: =15*(AL170-12) -> -112.5 | AN170: =23.45*SIN(360*(284+AI170)/365/57.3) -> -9.583877735 | AO170: =((SIN(AN170/57.3)*SIN($B$2/57.3)*COS($AI$2/57.3))-SIN(AN170/57.3)*COS($B$2/57.3)*SIN($AI$2/57.3)*COS($AI$3/57.3)+COS(AN170/57.3)*COS($B$2/57.3)*COS($AI$2/57.3)*COS(AM170/57.3)+COS(AN170/57.3)*SIN($B$2/57.3)*SIN($AI$2/57.3)*COS($AI$3/57.3)*COS(AM170/57.3)+COS(AN170/57.3)*SIN($AI$2/57.3)*SIN($AI$3/57.3)*SIN(AM170/57.3))/(COS($B$2/57.3)*COS(AN170/57.3)*COS(AM170/57.3)+SIN($B$2/57.3)*SIN(AN170/57.3)) -> 1.039155497 | AP170: =57.3*ASIN(SIN($B$2/57.3)*SIN(AN170/57.3)+COS($B$2/57.3)*COS(AM170/57.3)*COS(AN170/57.6)) -> -16.70596889 | AQ170: =IF(AP170<0,0,1) -> 0 | AR170: =IF(AO170<0,0,1) -> 1 | AS170: =AO170*AR170*AQ170 -> 0 | AT170: =AJ170*AS170+((1+COS($AI$2/57.3))/2)*AK170+((1-COS($AI$2/57.3))/2)*(AJ170+AK170)*0.2 -> 0 | BA170: 5 | BB170: 288 | BC170: =AE170 -> 0 | BD170: =AF170 -> 0 | BE170: 4.5 | BF170: =15*(BE170-12) -> -112.5 | BG170: =23.45*SIN(360*(284+BB170)/365/57.3) -> -9.583877735 | BH170: =((SIN(BG170/57.3)*SIN($B$2/57.3)*COS($BB$2/57.3))-SIN(BG170/57.3)*COS($B$2/57.3)*SIN($BB$2/57.3)*COS($BB$3/57.3)+COS(BG170/57.3)*COS($B$2/57.3)*COS($BB$2/57.3)*COS(BF170/57.3)+COS(BG170/57.3)*SIN($B$2/57.3)*SIN($BB$2/57.3)*COS($BB$3/57.3)*COS(BF170/57.3)+COS(BG170/57.3)*SIN($BB$2/57.3)*SIN($BB$3/57.3)*SIN(BF170/57.3))/(COS($B$2/57.3)*COS(BG170/57.3)*COS(BF170/57.3)+SIN($B$2/57.3)*SIN(BG170/57.3)) -> 1.85468975 | BI170: =57.3*ASIN(SIN($B$2/57.3)*SIN(BG170/57.3)+COS($B$2/57.3)*COS(BF170/57.3)*COS(BG170/57.6)) -> -16.70596889 | BJ170: =IF(BI170<0,0,1) -> 0 | BK170: =IF(BH170<0,0,1) -> 1 | BL170: =BH170*BK170*BJ170 -> 0 | BM170: =BC170*BL170+((1+COS($BB$2/57.3))/2)*BD170+((1-COS($BB$2/57.3))/2)*(BC170+BD170)*0.2 -> 0
A171: 0 | B171: 0.0002640969675 | D171: 0 | E171: 0.0005636489515 | G171: 0 | H171: 0.0005636489515 | J171: 0 | K171: 0.0005024160839 | M171: 0.001788462338 | N171: 0.0038091475 | P171: 0.0001098394365 | Q171: 0.00119240109 | S171: 3.419856852e-05 | T171: 0.0012975914 | V171: 0 | W171: 0.0005024160839 | Y171: 0.0003227781036 | Z171: 0.004373579005 | AB171: 0 | AC171: 0.0002640969675 | AE171: 0 | AF171: 0 | AH171: 6 | AI171: 288 | AJ171: 0 | AK171: 0 | AL171: 5.5 | AM171: -97.5 | AN171: -9.583877735 | AO171: 1.144684253 | AP171: -3.260888494 | AQ171: 0 | AR171: 1 | AS171: 0 | AT171: 0 | BA171: 6 | BB171: 288 | BC171: 0 | BD171: 0 | BE171: 5.5 | BF171: -97.5 | BG171: -9.583877735 | BH171: 6.126181763 | BI171: -3.260888494 | BJ171: 0 | BK171: 1 | BL171: 0 | BM171: 0
A172: 0.004581178732 | B172: 0.01161810262 | D172: 0.004748507792 | E172: 0.01449611125 | G172: 0.004748507792 | H172: 0.01449611125 | J172: 0.005991484988 | K172: 0.01434617256 | M172: 0.008515992181 | N172: 0.01250537232 | P172: 0.006255900159 | Q172: 0.01597421643 | S172: 0.008044014192 | T172: 0.01485648894 | V172: 0.005991484988 | W172: 0.01434617256 | Y172: 0.007350596175 | Z172: 0.0190606257 | AB172: 0.004581178732 | AC172: 0.01161810262 | AE172: 0.004581178732 | AF172: 0.004581178732 | AH172: 7 | AI172: 288 | AJ172: 0.004581178732 | AK172: 0.004581178732 | AL172: 6.5 | AM172: -82.5 | AN172: -9.583877735 | AO172: 0.9724422237 | AP172: 10.47584565 | AQ172: 1 | AR172: 1 | AS172: 0.9724422237 | AT172: 0.00903527327 | BA172: 7 | BB172: 288 | BC172: 0.004581178732 | BD172: 0.004581178732 | BE172: 6.5 | BF172: -82.5 | BG172: -9.583877735 | BH172: -0.807374263 | BI172: 10.47584565 | BJ172: 1 | BK172: 0 | BL172: 0 | BM172: 0.003894093725
A173: 0.02629997627 | B173: 0.02222519375 | D173: 0.02135837685 | E173: 0.02792925767 | G173: 0.02135837685 | H173: 0.02792925767 | J173: 0.02535283248 | K173: 0.02409726007 | M173: 0.02348916525 | N173: 0.02391895077 | P173: 0.025943877 | Q173: 0.02714716307 | S173: 0.02640883177 | T173: 0.02502987671 | V173: 0.02535283248 | W173: 0.02409726007 | Y173: 0.02135736551 | Z173: 0.03182386346 | AB173: 0.02629997627 | AC173: 0.02222519375 | AE173: 0.02629997627 | AF173: 0.02629997627 | AH173: 8 | AI173: 288 | AJ173: 0.02629997627 | AK173: 0.02629997627 | AL173: 7.5 | AM173: -67.5 | AN173: -9.583877735 | AO173: 0.9955842162 | AP173: 24.35464305 | AQ173: 1 | AR173: 1 | AS173: 0.9955842162 | AT173: 0.05247901186 | BA173: 8 | BB173: 288 | BC173: 0.02629997627 | BD173: 0.02629997627 | BE173: 7.5 | BF173: -67.5 | BG173: -9.583877735 | BH173: 0.1405531383 | BI173: 24.35464305 | BJ173: 1 | BK173: 1 | BL173: 0.1405531383 | BM173: 0.02605205106
A174: 0.04922978105 | B174: 0.02733565637 | D174: 0.04096250937 | E174: 0.03886766433 | G174: 0.04096250937 | H174: 0.03886766433 | J174: 0.04071347916 | K174: 0.03543670688 | M174: 0.03910008457 | N174: 0.03635500284 | P174: 0.04151238019 | Q174: 0.03542767123 | S174: 0.04520366786 | T174: 0.03383215528 | V174: 0.04071347916 | W174: 0.03543670688 | Y174: 0.03744483195 | Z174: 0.04163194552 | AB174: 0.04922978105 | AC174: 0.02733565637 | AE174: 0.04922978105 | AF174: 0.04922978105 | AH174: 9 | AI174: 288 | AJ174: 0.04922978105 | AK174: 0.04922978105 | AL174: 8.5 | AM174: -52.5 | AN174: -9.583877735 | AO174: 1.001814468 | AP174: 38.24989302 | AQ174: 1 | AR174: 1 | AS174: 1.001814468 | AT174: 0.09853989246 | BA174: 9 | BB174: 288 | BC174: 0.04922978105 | BD174: 0.04922978105 | BE174: 8.5 | BF174: -52.5 | BG174: -9.583877735 | BH174: 0.4069335101 | BI174: 38.24989302 | BJ174: 1 | BK174: 1 | BL174: 0.4069335101 | BM174: 0.06187954801
A175: 0.07135559816 | B175: 0.03512165623 | D175: 0.05268158489 | E175: 0.04833314878 | G175: 0.05268158489 | H175: 0.04833314878 | J175: 0.06286188876 | K175: 0.04270443153 | M175: 0.05412871383 | N175: 0.04755368853 | P175: 0.06407696281 | Q175: 0.04161628236 | S175: 0.05993934249 | T175: 0.04216488078 | V175: 0.06286188876 | W175: 0.04270443153 | Y175: 0.0534499964 | Z175: 0.04946349393 | AB175: 0.07135559816 | AC175: 0.03512165623 | AE175: 0.07135559816 | AF175: 0.07135559816 | AH175: 10 | AI175: 288 | AJ175: 0.07135559816 | AK175: 0.07135559816 | AL175: 9.5 | AM175: -37.5 | AN175: -9.583877735 | AO175: 1.004596755 | AP175: 51.98614138 | AQ175: 1 | AR175: 1 | AS175: 1.004596755 | AT175: 0.1430261621 | BA175: 10 | BB175: 288 | BC175: 0.07135559816 | BD175: 0.07135559816 | BE175: 9.5 | BF175: -37.5 | BG175: -9.583877735 | BH175: 0.5354773242 | BI175: 51.98614138 | BJ175: 1 | BK175: 1 | BL175: 0.5354773242 | BM175: 0.09886299311
A176: 0.0814382695 | B176: 0.04020997848 | D176: 0.07105794732 | E176: 0.05170097638 | G176: 0.07105794732 | H176: 0.05170097638 | J176: 0.07329848357 | K176: 0.04718688118 | M176: 0.06447129449 | N176: 0.05472486794 | P176: 0.06498437509 | Q176: 0.05034802279 | S176: 0.07116233557 | T176: 0.04630974728 | V176: 0.07329848357 | W176: 0.04718688118 | Y176: 0.05711372077 | Z176: 0.05423700915 | AB176: 0.0814382695 | AC176: 0.04020997848 | AE176: 0.0814382695 | AF176: 0.0814382695 | AH176: 11 | AI176: 288 | AJ176: 0.0814382695 | AK176: 0.0814382695 | AL176: 10.5 | AM176: -22.5 | AN176: -9.583877735 | AO176: 1.006066635 | AP176: 65.1200033 | AQ176: 1 | AR176: 1 | AS176: 1.006066635 | AT176: 0.1633557144 | BA176: 11 | BB176: 288 | BC176: 0.0814382695 | BD176: 0.0814382695 | BE176: 10.5 | BF176: -22.5 | BG176: -9.583877735 | BH176: 0.6131428284 | BI176: 65.1200033 | BJ176: 1 | BK176: 1 | BL176: 0.6131428284 | BM176: 0.1191574519
A177: 0.08635484771 | B177: 0.04394946192 | D177: 0.07266751171 | E177: 0.05458151389 | G177: 0.07266751171 | H177: 0.05458151389 | J177: 0.07710730271 | K177: 0.05037914129 | M177: 0.06578144713 | N177: 0.06385781031 | P177: 0.07182113786 | Q177: 0.05358977049 | S177: 0.07504631585 | T177: 0.05067055332 | V177: 0.07710730271 | W177: 0.05037914129 | Y177: 0.06952974702 | Z177: 0.05279415244 | AB177: 0.08635484771 | AC177: 0.04394946192 | AE177: 0.08635484771 | AF177: 0.08635484771 | AH177: 12 | AI177: 288 | AJ177: 0.08635484771 | AK177: 0.08635484771 | AL177: 11.5 | AM177: -7.5 | AN177: -9.583877735 | AO177: 1.00685387 | AP177: 75.68518917 | AQ177: 1 | AR177: 1 | AS177: 1.00685387 | AT177: 0.1732857811 | BA177: 12 | BB177: 288 | BC177: 0.08635484771 | BD177: 0.08635484771 | BE177: 11.5 | BF177: -7.5 | BG177: -9.583877735 | BH177: 0.6665372617 | BI177: 75.68518917 | BJ177: 1 | BK177: 1 | BL177: 0.6665372617 | BM177: 0.1309620748
A178: 0.08635484771 | B178: 0.04394946192 | D178: 0.07266751171 | E178: 0.05458151389 | G178: 0.07266751171 | H178: 0.05458151389 | J178: 0.07710730271 | K178: 0.05037914129 | M178: 0.06578144713 | N178: 0.06385781031 | P178: 0.07182113786 | Q178: 0.05358977049 | S178: 0.07504631585 | T178: 0.05067055332 | V178: 0.07710730271 | W178: 0.05037914129 | Y178: 0.06952974702 | Z178: 0.05279415244 | AB178: 0.08635484771 | AC178: 0.04394946192 | AE178: 0.08635484771 | AF178: 0.08635484771 | AH178: 13 | AI178: 288 | AJ178: 0.08635484771 | AK178: 0.08635484771 | AL178: 12.5 | AM178: 7.5 | AN178: -9.583877735 | AO178: 1.007179559 | AP178: 75.68518917 | AQ178: 1 | AR178: 1 | AS178: 1.007179559 | AT178: 0.173313906 | BA178: 13 | BB178: 288 | BC178: 0.08635484771 | BD178: 0.08635484771 | BE178: 12.5 | BF178: 7.5 | BG178: -9.583877735 | BH178: 0.706539125 | BI178: 75.68518917 | BJ178: 1 | BK178: 1 | BL178: 0.706539125 | BM178: 0.1344164296
A179: 0.0814382695 | B179: 0.04020997848 | D179: 0.07105794732 | E179: 0.05170097638 | G179: 0.07105794732 | H179: 0.05170097638 | J179: 0.07329848357 | K179: 0.04718688118 | M179: 0.06447129449 | N179: 0.05472486794 | P179: 0.06498437509 | Q179: 0.05034802279 | S179: 0.07116233557 | T179: 0.04630974728 | V179: 0.07329848357 | W179: 0.04718688118 | Y179: 0.05711372077 | Z179: 0.05423700915 | AB179: 0.0814382695 | AC179: 0.04020997848 | AE179: 0.0814382695 | AF179: 0.0814382695 | AH179: 14 | AI179: 288 | AJ179: 0.0814382695 | AK179: 0.0814382695 | AL179: 13.5 | AM179: 22.5 | AN179: -9.583877735 | AO179: 1.007086532 | AP179: 65.1200033 | AQ179: 1 | AR179: 1 | AS179: 1.007086532 | AT179: 0.1634387731 | BA179: 14 | BB179: 288 | BC179: 0.0814382695 | BD179: 0.0814382695 | BE179: 13.5 | BF179: 22.5 | BG179: -9.583877735 | BH179: 0.7384087612 | BI179: 65.1200033 | BJ179: 1 | BK179: 1 | BL179: 0.7384087612 | BM179: 0.1293588927
A180: 0.07135559816 | B180: 0.03512165623 | D180: 0.05268158489 | E180: 0.04833314878 | G180: 0.05268158489 | H180: 0.04833314878 | J180: 0.06286188876 | K180: 0.04270443153 | M180: 0.05412871383 | N180: 0.04755368853 | P180: 0.06407696281 | Q180: 0.04161628236 | S180: 0.05993934249 | T180: 0.04216488078 | V180: 0.06286188876 | W180: 0.04270443153 | Y180: 0.0534499964 | Z180: 0.04946349393 | AB180: 0.07135559816 | AC180: 0.03512165623 | AE180: 0.07135559816 | AF180: 0.07135559816 | AH180: 15 | AI180: 288 | AJ180: 0.07135559816 | AK180: 0.07135559816 | AL180: 14.5 | AM180: 37.5 | AN180: -9.583877735 | AO180: 1.006464944 | AP180: 51.98614138 | AQ180: 1 | AR180: 1 | AS180: 1.006464944 | AT180: 0.1431594678 | BA180: 15 | BB180: 288 | BC180: 0.07135559816 | BD180: 0.07135559816 | BE180: 14.5 | BF180: 37.5 | BG180: -9.583877735 | BH180: 0.7649322086 | BI180: 51.98614138 | BJ180: 1 | BK180: 1 | BL180: 0.7649322086 | BM180: 0.1152358836
A181: 0.04922978105 | B181: 0.02733565637 | D181: 0.04096250937 | E181: 0.03886766433 | G181: 0.04096250937 | H181: 0.03886766433 | J181: 0.04071347916 | K181: 0.03543670688 | M181: 0.03910008457 | N181: 0.03635500284 | P181: 0.04151238019 | Q181: 0.03542767123 | S181: 0.04520366786 | T181: 0.03383215528 | V181: 0.04071347916 | W181: 0.03543670688 | Y181: 0.03744483195 | Z181: 0.04163194552 | AB181: 0.04922978105 | AC181: 0.02733565637 | AE181: 0.04922978105 | AF181: 0.04922978105 | AH181: 16 | AI181: 288 | AJ181: 0.04922978105 | AK181: 0.04922978105 | AL181: 15.5 | AM181: 52.5 | AN181: -9.583877735 | AO181: 1.004912905 | AP181: 38.24989302 | AQ181: 1 | AR181: 1 | AS181: 1.004912905 | AT181: 0.09869242781 | BA181: 16 | BB181: 288 | BC181: 0.04922978105 | BD181: 0.04922978105 | BE181: 15.5 | BF181: 52.5 | BG181: -9.583877735 | BH181: 0.7874900373 | BI181: 38.24989302 | BJ181: 1 | BK181: 1 | BL181: 0.7874900373 | BM181: 0.08061426252
A182: 0.02629997627 | B182: 0.02222519375 | D182: 0.02135837685 | E182: 0.02792925767 | G182: 0.02135837685 | H182: 0.02792925767 | J182: 0.02535283248 | K182: 0.02409726007 | M182: 0.02348916525 | N182: 0.02391895077 | P182: 0.025943877 | Q182: 0.02714716307 | S182: 0.02640883177 | T182: 0.02502987671 | V182: 0.02535283248 | W182: 0.02409726007 | Y182: 0.02135736551 | Z182: 0.03182386346 | AB182: 0.02629997627 | AC182: 0.02222519375 | AE182: 0.02629997627 | AF182: 0.02629997627 | AH182: 17 | AI182: 288 | AJ182: 0.02629997627 | AK182: 0.02629997627 | AL182: 16.5 | AM182: 67.5 | AN182: -9.583877735 | AO182: 1.001001134 | AP182: 24.35464305 | AQ182: 1 | AR182: 1 | AS182: 1.001001134 | AT182: 0.05262147668 | BA182: 17 | BB182: 288 | BC182: 0.02629997627 | BD182: 0.02629997627 | BE182: 16.5 | BF182: 67.5 | BG182: -9.583877735 | BH182: 0.8058705037 | BI182: 24.35464305 | BJ182: 1 | BK182: 1 | BL182: 0.8058705037 | BM182: 0.04354988198
A183: 0.004581178732 | B183: 0.01161810262 | D183: 0.004748507792 | E183: 0.01449611125 | G183: 0.004748507792 | H183: 0.01449611125 | J183: 0.005991484988 | K183: 0.01434617256 | M183: 0.008515992181 | N183: 0.01250537232 | P183: 0.006255900159 | Q183: 0.01597421643 | S183: 0.008044014192 | T183: 0.01485648894 | V183: 0.005991484988 | W183: 0.01434617256 | Y183: 0.007350596175 | Z183: 0.0190606257 | AB183: 0.004581178732 | AC183: 0.01161810262 | AE183: 0.004581178732 | AF183: 0.004581178732 | AH183: 18 | AI183: 288 | AJ183: 0.004581178732 | AK183: 0.004581178732 | AL183: 17.5 | AM183: 82.5 | AN183: -9.583877735 | AO183: 0.9856266593 | AP183: 10.47584565 | AQ183: 1 | AR183: 1 | AS183: 0.9856266593 | AT183: 0.009095673525 | BA183: 18 | BB183: 288 | BC183: 0.004581178732 | BD183: 0.004581178732 | BE183: 17.5 | BF183: 82.5 | BG183: -9.583877735 | BH183: 0.8119660216 | BI183: 10.47584565 | BJ183: 1 | BK183: 1 | BL183: 0.8119660216 | BM183: 0.007613855194
A184: 0 | B184: 0.0002640969675 | D184: 0 | E184: 0.0005636489515 | G184: 0 | H184: 0.0005636489515 | J184: 0 | K184: 0.0005024160839 | M184: 0.001788462338 | N184: 0.0038091475 | P184: 0.0001098394365 | Q184: 0.00119240109 | S184: 3.419856852e-05 | T184: 0.0012975914 | V184: 0 | W184: 0.0005024160839 | Y184: 0.0003227781036 | Z184: 0.004373579005 | AB184: 0 | AC184: 0.0002640969675 | AE184: 0 | AF184: 0 | AH184: 19 | AI184: 288 | AJ184: 0 | AK184: 0 | AL184: 18.5 | AM184: 97.5 | AN184: -9.583877735 | AO184: 1.102530913 | AP184: -3.260888494 | AQ184: 0 | AR184: 1 | AS184: 0 | AT184: 0 | BA184: 19 | BB184: 288 | BC184: 0 | BD184: 0 | BE184: 18.5 | BF184: 97.5 | BG184: -9.583877735 | BH184: 0.9488192321 | BI184: -3.260888494 | BJ184: 0 | BK184: 1 | BL184: 0 | BM184: 0
A185: 0 | B185: 0 | D185: 0 | E185: 0 | G185: 0 | H185: 0 | J185: 0 | K185: 0 | M185: 0 | N185: 0 | P185: 0 | Q185: 0 | S185: 0 | T185: 0 | V185: 0 | W185: 0 | Y185: 2.57193708e-06 | Z185: 4.372293036e-05 | AB185: 0 | AC185: 0 | AE185: 0 | AF185: 0 | AH185: 20 | AI185: 288 | AJ185: 0 | AK185: 0 | AL185: 19.5 | AM185: 112.5 | AN185: -9.583877735 | AO185: 1.031383338 | AP185: -16.70596889 | AQ185: 0 | AR185: 1 | AS185: 0 | AT185: 0 | BA185: 20 | BB185: 288 | BC185: 0 | BD185: 0 | BE185: 19.5 | BF185: 112.5 | BG185: -9.583877735 | BH185: 0.9000967348 | BI185: -16.70596889 | BJ185: 0 | BK185: 1 | BL185: 0 | BM185: 0
AL186: -0.5 | AT186: =SUM(AT170:AT185) -> 1.28004356 | BE186: -0.5 | BM186: =SUM(BM170:BM185) -> 0.9515974182
A187: nov | D187: nov | G187: nov | J187: nov | M187: nov | P187: nov | S187: nov | V187: nov | Y187: nov | AB187: nov | AL187: -0.5 | BE187: -0.5
A188: 0 | B188: 0 | D188: 0 | E188: 0 | G188: 0 | H188: 0 | J188: 0 | K188: 0 | M188: 1.144682093e-05 | N188: 0.0008413413385 | P188: 0 | Q188: 2.206682881e-05 | S188: 0 | T188: 6.460208472e-05 | V188: 0 | W188: 0 | Y188: 0.0001002660975 | Z188: 0.002223291727 | AB188: 0 | AC188: 0 | AE188: =CHOOSE($B$1,A188,D188,G188,J188,M188,P188,S188,V188,Y188,AB188) -> 0 | AF188: =CHOOSE($B$1,B188,E188,H188,K188,N188,Q188,T188,V188,Y188,AB188) -> 0 | AH188: 5 | AI188: 319 | AJ188: =AE188 -> 0 | AK188: =AF188 -> 0 | AL188: 4.5 | AM188: =15*(AL188-12) -> -112.5 | AN188: =23.45*SIN(360*(284+AI188)/365/57.3) -> -19.13746147 | AO188: =((SIN(AN188/57.3)*SIN($B$2/57.3)*COS($AI$2/57.3))-SIN(AN188/57.3)*COS($B$2/57.3)*SIN($AI$2/57.3)*COS($AI$3/57.3)+COS(AN188/57.3)*COS($B$2/57.3)*COS($AI$2/57.3)*COS(AM188/57.3)+COS(AN188/57.3)*SIN($B$2/57.3)*SIN($AI$2/57.3)*COS($AI$3/57.3)*COS(AM188/57.3)+COS(AN188/57.3)*SIN($AI$2/57.3)*SIN($AI$3/57.3)*SIN(AM188/57.3))/(COS($B$2/57.3)*COS(AN188/57.3)*COS(AM188/57.3)+SIN($B$2/57.3)*SIN(AN188/57.3)) -> 1.076598257 | AP188: =57.3*ASIN(SIN($B$2/57.3)*SIN(AN188/57.3)+COS($B$2/57.3)*COS(AM188/57.3)*COS(AN188/57.6)) -> -12.27027831 | AQ188: =IF(AP188<0,0,1) -> 0 | AR188: =IF(AO188<0,0,1) -> 1 | AS188: =AO188*AR188*AQ188 -> 0 | AT188: =AJ188*AS188+((1+COS($AI$2/57.3))/2)*AK188+((1-COS($AI$2/57.3))/2)*(AJ188+AK188)*0.2 -> 0 | BA188: 5 | BB188: 319 | BC188: =AE188 -> 0 | BD188: =AF188 -> 0 | BE188: 4.5 | BF188: =15*(BE188-12) -> -112.5 | BG188: =23.45*SIN(360*(284+BB188)/365/57.3) -> -19.13746147 | BH188: =((SIN(BG188/57.3)*SIN($B$2/57.3)*COS($BB$2/57.3))-SIN(BG188/57.3)*COS($B$2/57.3)*SIN($BB$2/57.3)*COS($BB$3/57.3)+COS(BG188/57.3)*COS($B$2/57.3)*COS($BB$2/57.3)*COS(BF188/57.3)+COS(BG188/57.3)*SIN($B$2/57.3)*SIN($BB$2/57.3)*COS($BB$3/57.3)*COS(BF188/57.3)+COS(BG188/57.3)*SIN($BB$2/57.3)*SIN($BB$3/57.3)*SIN(BF188/57.3))/(COS($B$2/57.3)*COS(BG188/57.3)*COS(BF188/57.3)+SIN($B$2/57.3)*SIN(BG188/57.3)) -> 2.883781971 | BI188: =57.3*ASIN(SIN($B$2/57.3)*SIN(BG188/57.3)+COS($B$2/57.3)*COS(BF188/57.3)*COS(BG188/57.6)) -> -12.27027831 | BJ188: =IF(BI188<0,0,1) -> 0 | BK188: =IF(BH188<0,0,1) -> 1 | BL188: =BH188*BK188*BJ188 -> 0 | BM188: =BC188*BL188+((1+COS($BB$2/57.3))/2)*BD188+((1-COS($BB$2/57.3))/2)*(BC188+BD188)*0.2 -> 0
A189: 0 | B189: 0.0007700183982 | D189: 0.0001472181013 | E189: 0.003602370004 | G189: 0.0001472181013 | H189: 0.003602370004 | J189: 0.0001901062049 | K189: 0.004011320467 | M189: 0.003797482844 | N189: 0.00540289948 | P189: 0.0008866596014 | Q189: 0.005941049853 | S189: 0.001439703602 | T189: 0.007232077536 | V189: 0.0001901062049 | W189: 0.004011320467 | Y189: 0.005276612366 | Z189: 0.01280354471 | AB189: 0 | AC189: 0.0007700183982 | AE189: 0 | AF189: 0 | AH189: 6 | AI189: 319 | AJ189: 0 | AK189: 0 | AL189: 5.5 | AM189: -97.5 | AN189: -19.13746147 | AO189: -0.5601615252 | AP189: 0.4868504448 | AQ189: 1 | AR189: 0 | AS189: 0 | AT189: 0 | BA189: 6 | BB189: 319 | BC189: 0 | BD189: 0 | BE189: 5.5 | BF189: -97.5 | BG189: -19.13746147 | BH189: -50.82249558 | BI189: 0.4868504448 | BJ189: 1 | BK189: 0 | BL189: 0 | BM189: 0
A190: 0.009316457718 | B190: 0.01340257162 | D190: 0.0100082685 | E190: 0.0170735083 | G190: 0.0100082685 | H190: 0.0170735083 | J190: 0.01192260212 | K190: 0.01655832999 | M190: 0.01237115172 | N190: 0.01404524928 | P190: 0.01257372435 | Q190: 0.01802436474 | S190: 0.01287091664 | T190: 0.01957527066 | V190: 0.01192260212 | W190: 0.01655832999 | Y190: 0.01676274774 | Z190: 0.02077077601 | AB190: 0.009316457718 | AC190: 0.01340257162 | AE190: 0.009316457718 | AF190: 0.009316457718 | AH190: 7 | AI190: 319 | AJ190: 0.009316457718 | AK190: 0.009316457718 | AL190: 6.5 | AM190: -82.5 | AN190: -19.13746147 | AO190: 0.9566617525 | AP190: 13.72759294 | AQ190: 1 | AR190: 1 | AS190: 0.9566617525 | AT190: 0.01822745413 | BA190: 7 | BB190: 319 | BC190: 0.009316457718 | BD190: 0.009316457718 | BE190: 6.5 | BF190: -82.5 | BG190: -19.13746147 | BH190: -1.020909393 | BI190: 13.72759294 | BJ190: 1 | BK190: 0 | BL190: 0 | BM190: 0.007919175754
A191: 0.03067548751 | B191: 0.02231200567 | D191: 0.02432921462 | E191: 0.02751677119 | G191: 0.02432921462 | H191: 0.02751677119 | J191: 0.0274699489 | K191: 0.02545434588 | M191: 0.02451050532 | N191: 0.0258097195 | P191: 0.02971553116 | Q191: 0.02694869032 | S191: 0.02949798307 | T191: 0.02631737914 | V191: 0.0274699489 | W191: 0.02545434588 | Y191: 0.03184102505 | Z191: 0.02786525632 | AB191: 0.03067548751 | AC191: 0.02231200567 | AE191: 0.03067548751 | AF191: 0.03067548751 | AH191: 8 | AI191: 319 | AJ191: 0.03067548751 | AK191: 0.03067548751 | AL191: 7.5 | AM191: -67.5 | AN191: -19.13746147 | AO191: 0.984227163 | AP191: 27.27816353 | AQ191: 1 | AR191: 1 | AS191: 0.984227163 | AT191: 0.06086153037 | BA191: 8 | BB191: 319 | BC191: 0.03067548751 | BD191: 0.03067548751 | BE191: 7.5 | BF191: -67.5 | BG191: -19.13746147 | BH191: -0.1004893944 | BI191: 27.27816353 | BJ191: 1 | BK191: 0 | BL191: 0 | BM191: 0.02607477909
A192: 0.04895731027 | B192: 0.0295719674 | D192: 0.04431915538 | E192: 0.03351692552 | G192: 0.04431915538 | H192: 0.03351692552 | J192: 0.04729349216 | K192: 0.02998189616 | M192: 0.04009821372 | N192: 0.03523045312 | P192: 0.04089068251 | Q192: 0.03683972197 | S192: 0.04416852922 | T192: 0.03429951204 | V192: 0.04729349216 | W192: 0.02998189616 | Y192: 0.04665425111 | Z192: 0.03351416106 | AB192: 0.04895731027 | AC192: 0.0295719674 | AE192: 0.04895731027 | AF192: 0.04895731027 | AH192: 9 | AI192: 319 | AJ192: 0.04895731027 | AK192: 0.04895731027 | AL192: 8.5 | AM192: -52.5 | AN192: -19.13746147 | AO192: 0.993286374 | AP192: 41.02974323 | AQ192: 1 | AR192: 1 | AS192: 0.993286374 | AT192: 0.09757699374 | BA192: 9 | BB192: 319 | BC192: 0.04895731027 | BD192: 0.04895731027 | BE192: 8.5 | BF192: -52.5 | BG192: -19.13746147 | BH192: 0.2130423715 | BI192: 41.02974323 | BJ192: 1 | BK192: 1 | BL192: 0.2130423715 | BM192: 0.05204467627
A193: 0.06763192393 | B193: 0.03468936589 | D193: 0.06016177514 | E193: 0.04059478142 | G193: 0.06016177514 | H193: 0.04059478142 | J193: 0.05935131627 | K193: 0.03858758249 | M193: 0.05586907126 | N193: 0.04178948152 | P193: 0.0542258369 | Q193: 0.04121065152 | S193: 0.05924262865 | T193: 0.04019843747 | V193: 0.05935131627 | W193: 0.03858758249 | Y193: 0.05027778068 | Z193: 0.04031830563 | AB193: 0.06763192393 | AC193: 0.03468936589 | AE193: 0.06763192393 | AF193: 0.06763192393 | AH193: 10 | AI193: 319 | AJ193: 0.06763192393 | AK193: 0.06763192393 | AL193: 9.5 | AM193: -37.5 | AN193: -19.13746147 | AO193: 0.9975401902 | AP193: 54.90728756 | AQ193: 1 | AR193: 1 | AS193: 0.9975401902 | AT193: 0.1350851281 | BA193: 10 | BB193: 319 | BC193: 0.06763192393 | BD193: 0.06763192393 | BE193: 9.5 | BF193: -37.5 | BG193: -19.13746147 | BH193: 0.3700090575 | BI193: 54.90728756 | BJ193: 1 | BK193: 1 | BL193: 0.3700090575 | BM193: 0.08251291505
A194: 0.08222818221 | B194: 0.03626794067 | D194: 0.07338456339 | E194: 0.04237441239 | G194: 0.07338456339 | H194: 0.04237441239 | J194: 0.07284806139 | K194: 0.04239050201 | M194: 0.06645738062 | N194: 0.0497106816 | P194: 0.06652385034 | Q194: 0.04580140064 | S194: 0.06582700736 | T194: 0.04409973219 | V194: 0.07284806139 | W194: 0.04239050201 | Y194: 0.06590882935 | Z194: 0.03788837855 | AB194: 0.08222818221 | AC194: 0.03626794067 | AE194: 0.08222818221 | AF194: 0.08222818221 | AH194: 11 | AI194: 319 | AJ194: 0.08222818221 | AK194: 0.08222818221 | AL194: 10.5 | AM194: -22.5 | AN194: -19.13746147 | AO194: 0.9997761356 | AP194: 68.84424732 | AQ194: 1 | AR194: 1 | AS194: 0.9997761356 | AT194: 0.1644229313 | BA194: 11 | BB194: 319 | BC194: 0.08222818221 | BD194: 0.08222818221 | BE194: 10.5 | BF194: -22.5 | BG194: -19.13746147 | BH194: 0.4627160476 | BI194: 68.84424732 | BJ194: 1 | BK194: 1 | BL194: 0.4627160476 | BM194: 0.1079439021
A195: 0.0843092329 | B195: 0.03983048007 | D195: 0.07641351483 | E195: 0.04647537188 | G195: 0.07641351483 | H195: 0.04647537188 | J195: 0.07910486226 | K195: 0.04453178194 | M195: 0.07169716291 | N195: 0.05235775894 | P195: 0.07028115231 | Q195: 0.05011461695 | S195: 0.0658882535 | T195: 0.04927796683 | V195: 0.07910486226 | W195: 0.04453178194 | Y195: 0.06632297192 | Z195: 0.04146831417 | AB195: 0.0843092329 | AC195: 0.03983048007 | AE195: 0.0843092329 | AF195: 0.0843092329 | AH195: 12 | AI195: 319 | AJ195: 0.0843092329 | AK195: 0.0843092329 | AL195: 11.5 | AM195: -7.5 | AN195: -19.13746147 | AO195: 1.000888831 | AP195: 82.65575162 | AQ195: 1 | AR195: 1 | AS195: 1.000888831 | AT195: 0.168677997 | BA195: 12 | BB195: 319 | BC195: 0.0843092329 | BD195: 0.0843092329 | BE195: 11.5 | BF195: -7.5 | BG195: -19.13746147 | BH195: 0.5216947219 | BI195: 82.65575162 | BJ195: 1 | BK195: 1 | BL195: 0.5216947219 | BM195: 0.1156482193
A196: 0.0843092329 | B196: 0.03983048007 | D196: 0.07641351483 | E196: 0.04647537188 | G196: 0.07641351483 | H196: 0.04647537188 | J196: 0.07910486226 | K196: 0.04453178194 | M196: 0.07169716291 | N196: 0.05235775894 | P196: 0.07028115231 | Q196: 0.05011461695 | S196: 0.0658882535 | T196: 0.04927796683 | V196: 0.07910486226 | W196: 0.04453178194 | Y196: 0.06632297192 | Z196: 0.04146831417 | AB196: 0.0843092329 | AC196: 0.03983048007 | AE196: 0.0843092329 | AF196: 0.0843092329 | AH196: 13 | AI196: 319 | AJ196: 0.0843092329 | AK196: 0.0843092329 | AL196: 12.5 | AM196: 7.5 | AN196: -19.13746147 | AO196: 1.001193806 | AP196: 82.65575162 | AQ196: 1 | AR196: 1 | AS196: 1.001193806 | AT196: 0.1687037093 | BA196: 13 | BB196: 319 | BC196: 0.0843092329 | BD196: 0.0843092329 | BE196: 12.5 | BF196: 7.5 | BG196: -19.13746147 | BH196: 0.559152458 | BI196: 82.65575162 | BJ196: 1 | BK196: 1 | BL196: 0.559152458 | BM196: 0.1188062523
A197: 0.08222818221 | B197: 0.03626794067 | D197: 0.07338456339 | E197: 0.04237441239 | G197: 0.07338456339 | H197: 0.04237441239 | J197: 0.07284806139 | K197: 0.04239050201 | M197: 0.06645738062 | N197: 0.0497106816 | P197: 0.06652385034 | Q197: 0.04580140064 | S197: 0.06582700736 | T197: 0.04409973219 | V197: 0.07284806139 | W197: 0.04239050201 | Y197: 0.06590882935 | Z197: 0.03788837855 | AB197: 0.08222818221 | AC197: 0.03626794067 | AE197: 0.08222818221 | AF197: 0.08222818221 | AH197: 14 | AI197: 319 | AJ197: 0.08222818221 | AK197: 0.08222818221 | AL197: 13.5 | AM197: 22.5 | AN197: -19.13746147 | AO197: 1.000727049 | AP197: 68.84424732 | AQ197: 1 | AR197: 1 | AS197: 1.000727049 | AT197: 0.1645011232 | BA197: 14 | BB197: 319 | BC197: 0.08222818221 | BD197: 0.08222818221 | BE197: 13.5 | BF197: 22.5 | BG197: -19.13746147 | BH197: 0.5795092362 | BI197: 68.84424732 | BJ197: 1 | BK197: 1 | BL197: 0.5795092362 | BM197: 0.1175475937
A198: 0.06763192393 | B198: 0.03468936589 | D198: 0.06016177514 | E198: 0.04059478142 | G198: 0.06016177514 | H198: 0.04059478142 | J198: 0.05935131627 | K198: 0.03858758249 | M198: 0.05586907126 | N198: 0.04178948152 | P198: 0.0542258369 | Q198: 0.04121065152 | S198: 0.05924262865 | T198: 0.04019843747 | V198: 0.05935131627 | W198: 0.03858758249 | Y198: 0.05027778068 | Z198: 0.04031830563 | AB198: 0.06763192393 | AC198: 0.03468936589 | AE198: 0.06763192393 | AF198: 0.06763192393 | AH198: 15 | AI198: 319 | AJ198: 0.06763192393 | AK198: 0.06763192393 | AL198: 14.5 | AM198: 37.5 | AN198: -19.13746147 | AO198: 0.9992643535 | AP198: 54.90728756 | AQ198: 1 | AR198: 1 | AS198: 0.9992643535 | AT198: 0.1352017366 | BA198: 15 | BB198: 319 | BC198: 0.06763192393 | BD198: 0.06763192393 | BE198: 14.5 | BF198: 37.5 | BG198: -19.13746147 | BH198: 0.5817744488 | BI198: 54.90728756 | BJ198: 1 | BK198: 1 | BL198: 0.5817744488 | BM198: 0.09683501589
A199: 0.04895731027 | B199: 0.0295719674 | D199: 0.04431915538 | E199: 0.03351692552 | G199: 0.04431915538 | H199: 0.03351692552 | J199: 0.04729349216 | K199: 0.02998189616 | M199: 0.04009821372 | N199: 0.03523045312 | P199: 0.04089068251 | Q199: 0.03683972197 | S199: 0.04416852922 | T199: 0.03429951204 | V199: 0.04729349216 | W199: 0.02998189616 | Y199: 0.04665425111 | Z199: 0.03351416106 | AB199: 0.04895731027 | AC199: 0.0295719674 | AE199: 0.04895731027 | AF199: 0.04895731027 | AH199: 16 | AI199: 319 | AJ199: 0.04895731027 | AK199: 0.04895731027 | AL199: 15.5 | AM199: 52.5 | AN199: -19.13746147 | AO199: 0.9960870786 | AP199: 41.02974323 | AQ199: 1 | AR199: 1 | AS199: 0.9960870786 | AT199: 0.0977141087 | BA199: 16 | BB199: 319 | BC199: 0.04895731027 | BD199: 0.04895731027 | BE199: 15.5 | BF199: 52.5 | BG199: -19.13746147 | BH199: 0.5570308455 | BI199: 41.02974323 | BJ199: 1 | BK199: 1 | BL199: 0.5570308455 | BM199: 0.06888542672
A200: 0.03067548751 | B200: 0.02231200567 | D200: 0.02432921462 | E200: 0.02751677119 | G200: 0.02432921462 | H200: 0.02751677119 | J200: 0.0274699489 | K200: 0.02545434588 | M200: 0.02451050532 | N200: 0.0258097195 | P200: 0.02971553116 | Q200: 0.02694869032 | S200: 0.02949798307 | T200: 0.02631737914 | V200: 0.0274699489 | W200: 0.02545434588 | Y200: 0.03184102505 | Z200: 0.02786525632 | AB200: 0.03067548751 | AC200: 0.02231200567 | AE200: 0.03067548751 | AF200: 0.03067548751 | AH200: 17 | AI200: 319 | AJ200: 0.03067548751 | AK200: 0.03067548751 | AL200: =AH200-0.5 -> 16.5 | AM200: 67.5 | AN200: -19.13746147 | AO200: 0.9888985618 | AP200: 27.27816353 | AQ200: 1 | AR200: 1 | AS200: 0.9888985618 | AT200: 0.06100482781 | BA200: 17 | BB200: 319 | BC200: 0.03067548751 | BD200: 0.03067548751 | BE200: =BA200-0.5 -> 16.5 | BF200: 67.5 | BG200: -19.13746147 | BH200: 0.473261689 | BI200: 27.27816353 | BJ200: 1 | BK200: 1 | BL200: 0.473261689 | BM200: 0.04059231212
A201: 0.009316457718 | B201: 0.01340257162 | D201: 0.0100082685 | E201: 0.0170735083 | G201: 0.0100082685 | H201: 0.0170735083 | J201: 0.01192260212 | K201: 0.01655832999 | M201: 0.01237115172 | N201: 0.01404524928 | P201: 0.01257372435 | Q201: 0.01802436474 | S201: 0.01287091664 | T201: 0.01957527066 | V201: 0.01192260212 | W201: 0.01655832999 | Y201: 0.01676274774 | Z201: 0.02077077601 | AB201: 0.009316457718 | AC201: 0.01340257162 | AE201: 0.009316457718 | AF201: 0.009316457718 | AH201: 18 | AI201: 319 | AJ201: 0.009316457718 | AK201: 0.009316457718 | AL201: 17.5 | AM201: 82.5 | AN201: -19.13746147 | AO201: 0.966342251 | AP201: 13.72759294 | AQ201: 1 | AR201: 1 | AS201: 0.966342251 | AT201: 0.01831764209 | BA201: 18 | BB201: 319 | BC201: 0.009316457718 | BD201: 0.009316457718 | BE201: 17.5 | BF201: 82.5 | BG201: -19.13746147 | BH201: 0.1680699376 | BI201: 13.72759294 | BJ201: 1 | BK201: 1 | BL201: 0.1680699376 | BM201: 0.009484992221
... 21 more rows

Sheet Versiones (hidden)
B1: Versiones y cambios realizados
B2: Versión | C2: Hoja, referencia | D2: Comentarios y modificaciones
B3: v2.12 | C3: Referencia M23 | D3: Se modificó fórmula para que contemple rendimiento general, de distribución y control y no solo el general

Sheet Resumen
B2: Demanda | BE2: Valores de flujo promedio mensuales para caso propuesto con climatización | BW2: Enero | CN2: Julio
BF3: Mes | BG3: Q Sol [kWh] | BH3: Q Gen [kWh] | BI3: Q Envolvente [kWh] | BJ3: Q Ventilación[kWh] | BK3: Q Infiltraciones [kWh] | BL3: Q Techo [kWh] | BM3: Q Muros [kWh] | BN3: Q Ventanas [kWh] | BO3: Q Piso Ventilado [kWh] | BP3: Q contra Terreno [kWh] | BQ3: Q Puentes Térmicos [kWh] | BR3: Q Recuperado [kWh] | BS3: Q Demanda Calefacción [kWh] | BT3: Q Demanda Refrigeración [kWh] | BU3: Q Masa Interior [kWh] | BW3: Hora | BX3: Q Sol [kWh] | BY3: Q Gen [kWh] | BZ3: Q Envolvente [kWh] | CA3: Q Ventilación[kWh] | CB3: Q Infiltraciones [kWh] | CC3: Q Techo [kWh] | CD3: Q Muros [kWh] | CE3: Q Ventanas [kWh] | CF3: Q Piso Ventilado [kWh] | CG3: Q contra Terreno [kWh] | CH3: Q Puentes Térmicos [kWh] | CI3: Q Recuperado [kWh] | CJ3: Q Demanda Calefacción [kWh] | CK3: Q Demanda Refrigeración [kWh] | CL3: Q Masa Interior [kWh] | CN3: Hora | CO3: Q Sol [kWh] | CP3: Q Gen [kWh] | CQ3: Q Envolvente [kWh] | CR3: Q Ventilación[kWh] | CS3: Q Infiltraciones [kWh] | CT3: Q Techo [kWh] | CU3: Q Muros [kWh] | CV3: Q Ventanas [kWh] | CW3: Q Piso Ventilado [kWh] | CX3: Q contra Terreno [kWh] | CY3: Q Puentes Térmicos [kWh] | CZ3: Q Recuperado [kWh] | DA3: Q Demanda Calefacción [kWh] | DB3: Q Demanda Refrigeración [kWh] | DC3: Q Masa Interior [kWh]
B4: Caso | C4: Demanda | D4: Demanda | E4: Demanda | F4: Demanda | G4: % ahorro | H4: % ahorro | I4: Demanda | J4: % Ahorro | K4: Letra | O4: 31 | P4: 28 | Q4: 31 | R4: 30 | S4: 31 | T4: 30 | U4: 31 | V4: 31 | W4: 30 | X4: 31 | Y4: 30 | Z4: 31 | AD4: Demandas anuales por m2 | BD4: 1 | BE4: 1 | BF4: Enero | BG4: =+SUMIFS(Resultados!G$6:G$316,Resultados!$E$6:$E$316,Resumen!$BE4,Resultados!$BF$6:$BF$316,">=0")*$BD4/1000 -> 0 | BH4: =+SUMIFS(Resultados!H$6:H$316,Resultados!$E$6:$E$316,Resumen!$BE4,Resultados!$BF$6:$BF$316,">=0")*$BD4/1000 -> 0 | BI4: =+SUMIFS(Resultados!U$6:U$316,Resultados!$E$6:$E$316,Resumen!$BE4,Resultados!$BF$6:$BF$316,">=0")*$BD4/1000 -> 0 | BJ4: =+SUMIFS(Resultados!AA$6:AA$316,Resultados!$E$6:$E$316,Resumen!$BE4,Resultados!$BF$6:$BF$316,">=0")*$BD4/1000 -> 0 | BK4: =+SUMIFS(Resultados!AC$6:AC$316,Resultados!$E$6:$E$316,Resumen!$BE4,Resultados!$BF$6:$BF$316,">=0")*$BD4/1000 -> 0 | BL4: =+SUMIFS(Resultados!X$6:X$316,Resultados!$E$6:$E$316,Resumen!$BE4,Resultados!$BF$6:$BF$316,">=0")*$BD4/1000 -> 0 | BM4: =+SUMIFS(Resultados!Y$6:Y$316,Resultados!$E$6:$E$316,Resumen!$BE4,Resultados!$BF$6:$BF$316,">=0")*$BD4/1000 -> 0 | BN4: =+SUMIFS(Resultados!W$6:W$316,Resultados!$E$6:$E$316,Resumen!$BE4,Resultados!$BF$6:$BF$316,">=0")*$BD4/1000 -> 0 | BO4: =+SUMIFS(Resultados!V$6:V$316,Resultados!$E$6:$E$316,Resumen!$BE4,Resultados!$BF$6:$BF$316,">=0")*$BD4/1000 -> 0 | BP4: =+SUMIFS(Resultados!Z$6:Z$316,Resultados!$E$6:$E$316,Resumen!$BE4,Resultados!$BF$6:$BF$316,">=0")*$BD4/1000 -> 0 | BQ4: =+SUMIFS(Resultados!AE$6:AE$316,Resultados!$E$6:$E$316,Resumen!$BE4,Resultados!$BF$6:$BF$316,">=0")*$BD4/1000 -> 0 | BR4: =+SUMIFS(Resultados!AB$6:AB$316,Resultados!$E$6:$E$316,Resumen!$BE4,Resultados!$BF$6:$BF$316,">=0")*$BD4/1000 -> 0 | BS4: =+SUMIFS(Resultados!AI$6:AI$316,Resultados!$E$6:$E$316,Resumen!$BE4,Resultados!$BF$6:$BF$316,">=0")*$BD4/1000 -> 0 | BT4: =+SUMIFS(Resultados!AJ$6:AJ$316,Resultados!$E$6:$E$316,Resumen!$BE4,Resultados!$BF$6:$BF$316,">=0")*$BD4/1000 -> 0 | BU4: =+SUMIFS(Resultados!AH$6:AH$316,Resultados!$E$6:$E$316,Resumen!$BE4,Resultados!$BF$6:$BF$316,">=0")*$BD4/1000 -> 0 | BW4: 0 | BX4: =+Resultados!G6/1000 -> 0 | BY4: =+Resultados!H6/1000 -> 0 | BZ4: =+Resultados!U6/1000 -> 0 | CA4: =+Resultados!AA6/1000 -> 0 | CB4: =+Resultados!AC6/1000 -> 0 | CC4: =+Resultados!X6/1000 -> 0 | CD4: =+Resultados!Y6/1000 -> 0 | CE4: =+Resultados!W6/1000 -> 0 | CF4: =+Resultados!V6/1000 -> 0 | CG4: =+Resultados!Z6/1000 -> 0 | CH4: =+Resultados!AE6/1000 -> 0 | CI4: =+Resultados!AB6/1000 -> 0 | CJ4: =+Resultados!AI6/1000 -> 0 | CK4: =+Resultados!AJ6/1000 -> 0 | CL4: =+Resultados!AH6/1000 -> 0 | CN4: 0 | CO4: =+Resultados!G162/1000 -> 0 | CP4: =+Resultados!H162/1000 -> 0 | CQ4: =+Resultados!U162/1000 -> 0 | CR4: =+Resultados!AA162/1000 -> 0 | CS4: =+Resultados!AC162/1000 -> 0 | CT4: =+Resultados!X162/1000 -> 0 | CU4: =+Resultados!Y162/1000 -> 0 | CV4: =+Resultados!W162/1000 -> 0 | CW4: =+Resultados!V162/1000 -> 0 | CX4: =+Resultados!Z162/1000 -> 0 | CY4: =+Resultados!AE162/1000 -> 0 | CZ4: =+Resultados!AB162/1000 -> 0 | DA4: =+Resultados!AI162/1000 -> 0 | DB4: =+Resultados!AJ162/1000 -> 0 | DC4: =+Resultados!AH162/1000 -> 0
C5: Calefacción | D5: Refrigeración | E5: Calefacción | F5: Refrigeración | G5: Demanda | H5: Demanda | I5: Total | J5: Total | N5: Caso | O5: 1 | P5: =+O5+1 -> 2 | Q5: =+P5+1 -> 3 | R5: =+Q5+1 -> 4 | S5: =+R5+1 -> 5 | T5: =+S5+1 -> 6 | U5: =+T5+1 -> 7 | V5: =+U5+1 -> 8 | W5: =+V5+1 -> 9 | X5: =+W5+1 -> 10 | Y5: =+X5+1 -> 11 | Z5: =+Y5+1 -> 12 | AA5: Total | AD5: Zona RT - PDA | AE5: Calefacción | AF5: Enfriamiento | AG5: Calefacción | AH5: Enfriamiento | BD5: 1 | BE5: =+BE4+1 -> 2 | BF5: Febrero | BG5: =+SUMIFS(Resultados!G$6:G$316,Resultados!$E$6:$E$316,Resumen!$BE5,Resultados!$BF$6:$BF$316,">=0")*$BD5/1000 -> 0 | BH5: =+SUMIFS(Resultados!H$6:H$316,Resultados!$E$6:$E$316,Resumen!$BE5,Resultados!$BF$6:$BF$316,">=0")*$BD5/1000 -> 0 | BI5: =+SUMIFS(Resultados!U$6:U$316,Resultados!$E$6:$E$316,Resumen!$BE5,Resultados!$BF$6:$BF$316,">=0")*$BD5/1000 -> 0 | BJ5: =+SUMIFS(Resultados!AA$6:AA$316,Resultados!$E$6:$E$316,Resumen!$BE5,Resultados!$BF$6:$BF$316,">=0")*$BD5/1000 -> 0 | BK5: =+SUMIFS(Resultados!AC$6:AC$316,Resultados!$E$6:$E$316,Resumen!$BE5,Resultados!$BF$6:$BF$316,">=0")*$BD5/1000 -> 0 | BL5: =+SUMIFS(Resultados!X$6:X$316,Resultados!$E$6:$E$316,Resumen!$BE5,Resultados!$BF$6:$BF$316,">=0")*$BD5/1000 -> 0 | BM5: =+SUMIFS(Resultados!Y$6:Y$316,Resultados!$E$6:$E$316,Resumen!$BE5,Resultados!$BF$6:$BF$316,">=0")*$BD5/1000 -> 0 | BN5: =+SUMIFS(Resultados!W$6:W$316,Resultados!$E$6:$E$316,Resumen!$BE5,Resultados!$BF$6:$BF$316,">=0")*$BD5/1000 -> 0 | BO5: =+SUMIFS(Resultados!V$6:V$316,Resultados!$E$6:$E$316,Resumen!$BE5,Resultados!$BF$6:$BF$316,">=0")*$BD5/1000 -> 0 | BP5: =+SUMIFS(Resultados!Z$6:Z$316,Resultados!$E$6:$E$316,Resumen!$BE5,Resultados!$BF$6:$BF$316,">=0")*$BD5/1000 -> 0 | BQ5: =+SUMIFS(Resultados!AE$6:AE$316,Resultados!$E$6:$E$316,Resumen!$BE5,Resultados!$BF$6:$BF$316,">=0")*$BD5/1000 -> 0 | BR5: =+SUMIFS(Resultados!AB$6:AB$316,Resultados!$E$6:$E$316,Resumen!$BE5,Resultados!$BF$6:$BF$316,">=0")*$BD5/1000 -> 0 | BS5: =+SUMIFS(Resultados!AI$6:AI$316,Resultados!$E$6:$E$316,Resumen!$BE5,Resultados!$BF$6:$BF$316,">=0")*$BD5/1000 -> 0 | BT5: =+SUMIFS(Resultados!AJ$6:AJ$316,Resultados!$E$6:$E$316,Resumen!$BE5,Resultados!$BF$6:$BF$316,">=0")*$BD5/1000 -> 0 | BU5: =+SUMIFS(Resultados!AH$6:AH$316,Resultados!$E$6:$E$316,Resumen!$BE5,Resultados!$BF$6:$BF$316,">=0")*$BD5/1000 -> 0 | BW5: =+BW4+1 -> 1 | BX5: =+Resultados!G7/1000 -> 0 | BY5: =+Resultados!H7/1000 -> 0 | BZ5: =+Resultados!U7/1000 -> 0 | CA5: =+Resultados!AA7/1000 -> 0 | CB5: =+Resultados!AC7/1000 -> 0 | CC5: =+Resultados!X7/1000 -> 0 | CD5: =+Resultados!Y7/1000 -> 0 | CE5: =+Resultados!W7/1000 -> 0 | CF5: =+Resultados!V7/1000 -> 0 | CG5: =+Resultados!Z7/1000 -> 0 | CH5: =+Resultados!AE7/1000 -> 0 | CI5: =+Resultados!AB7/1000 -> 0 | CJ5: =+Resultados!AI7/1000 -> 0 | CK5: =+Resultados!AJ7/1000 -> 0 | CL5: =+Resultados!AH7/1000 -> 0 | CN5: =+CN4+1 -> 1 | CO5: =+Resultados!G163/1000 -> 0 | CP5: =+Resultados!H163/1000 -> 0 | CQ5: =+Resultados!U163/1000 -> 0 | CR5: =+Resultados!AA163/1000 -> 0 | CS5: =+Resultados!AC163/1000 -> 0 | CT5: =+Resultados!X163/1000 -> 0 | CU5: =+Resultados!Y163/1000 -> 0 | CV5: =+Resultados!W163/1000 -> 0 | CW5: =+Resultados!V163/1000 -> 0 | CX5: =+Resultados!Z163/1000 -> 0 | CY5: =+Resultados!AE163/1000 -> 0 | CZ5: =+Resultados!AB163/1000 -> 0 | DA5: =+Resultados!AI163/1000 -> 0 | DB5: =+Resultados!AJ163/1000 -> 0 | DC5: =+Resultados!AH163/1000 -> 0
C6: [kWh-año] | D6: [kWh-año] | E6: [kWh/m2-año] | F6: [kWh/m2-año] | G6: Calefacción | H6: Refrigeración | I6: [kWh/m2-año] | J6: [kWh/m2-año] | O6: Enero | P6: Febrero | Q6: Marzo | R6: Abril | S6: Mayo | T6: Junio | U6: Julio | V6: Agosto | W6: Septiembre | X6: Octubre | Y6: Noviembre | Z6: Diciembre | AA6: Total | AE6: Casa | AF6: Casa | AG6: Depa | AH6: Depa | BD6: 1 | BE6: =+BE5+1 -> 3 | BF6: Marzo | BG6: =+SUMIFS(Resultados!G$6:G$316,Resultados!$E$6:$E$316,Resumen!$BE6,Resultados!$BF$6:$BF$316,">=0")*$BD6/1000 -> 0 | BH6: =+SUMIFS(Resultados!H$6:H$316,Resultados!$E$6:$E$316,Resumen!$BE6,Resultados!$BF$6:$BF$316,">=0")*$BD6/1000 -> 0 | BI6: =+SUMIFS(Resultados!U$6:U$316,Resultados!$E$6:$E$316,Resumen!$BE6,Resultados!$BF$6:$BF$316,">=0")*$BD6/1000 -> 0 | BJ6: =+SUMIFS(Resultados!AA$6:AA$316,Resultados!$E$6:$E$316,Resumen!$BE6,Resultados!$BF$6:$BF$316,">=0")*$BD6/1000 -> 0 | BK6: =+SUMIFS(Resultados!AC$6:AC$316,Resultados!$E$6:$E$316,Resumen!$BE6,Resultados!$BF$6:$BF$316,">=0")*$BD6/1000 -> 0 | BL6: =+SUMIFS(Resultados!X$6:X$316,Resultados!$E$6:$E$316,Resumen!$BE6,Resultados!$BF$6:$BF$316,">=0")*$BD6/1000 -> 0 | BM6: =+SUMIFS(Resultados!Y$6:Y$316,Resultados!$E$6:$E$316,Resumen!$BE6,Resultados!$BF$6:$BF$316,">=0")*$BD6/1000 -> 0 | BN6: =+SUMIFS(Resultados!W$6:W$316,Resultados!$E$6:$E$316,Resumen!$BE6,Resultados!$BF$6:$BF$316,">=0")*$BD6/1000 -> 0 | BO6: =+SUMIFS(Resultados!V$6:V$316,Resultados!$E$6:$E$316,Resumen!$BE6,Resultados!$BF$6:$BF$316,">=0")*$BD6/1000 -> 0 | BP6: =+SUMIFS(Resultados!Z$6:Z$316,Resultados!$E$6:$E$316,Resumen!$BE6,Resultados!$BF$6:$BF$316,">=0")*$BD6/1000 -> 0 | BQ6: =+SUMIFS(Resultados!AE$6:AE$316,Resultados!$E$6:$E$316,Resumen!$BE6,Resultados!$BF$6:$BF$316,">=0")*$BD6/1000 -> 0 | BR6: =+SUMIFS(Resultados!AB$6:AB$316,Resultados!$E$6:$E$316,Resumen!$BE6,Resultados!$BF$6:$BF$316,">=0")*$BD6/1000 -> 0 | BS6: =+SUMIFS(Resultados!AI$6:AI$316,Resultados!$E$6:$E$316,Resumen!$BE6,Resultados!$BF$6:$BF$316,">=0")*$BD6/1000 -> 0 | BT6: =+SUMIFS(Resultados!AJ$6:AJ$316,Resultados!$E$6:$E$316,Resumen!$BE6,Resultados!$BF$6:$BF$316,">=0")*$BD6/1000 -> 0 | BU6: =+SUMIFS(Resultados!AH$6:AH$316,Resultados!$E$6:$E$316,Resumen!$BE6,Resultados!$BF$6:$BF$316,">=0")*$BD6/1000 -> 0 | BW6: =+BW5+1 -> 2 | BX6: =+Resultados!G8/1000 -> 0 | BY6: =+Resultados!H8/1000 -> 0 | BZ6: =+Resultados!U8/1000 -> 0 | CA6: =+Resultados!AA8/1000 -> 0 | CB6: =+Resultados!AC8/1000 -> 0 | CC6: =+Resultados!X8/1000 -> 0 | CD6: =+Resultados!Y8/1000 -> 0 | CE6: =+Resultados!W8/1000 -> 0 | CF6: =+Resultados!V8/1000 -> 0 | CG6: =+Resultados!Z8/1000 -> 0 | CH6: =+Resultados!AE8/1000 -> 0 | CI6: =+Resultados!AB8/1000 -> 0 | CJ6: =+Resultados!AI8/1000 -> 0 | CK6: =+Resultados!AJ8/1000 -> 0 | CL6: =+Resultados!AH8/1000 -> 0 | CN6: =+CN5+1 -> 2 | CO6: =+Resultados!G164/1000 -> 0 | CP6: =+Resultados!H164/1000 -> 0 | CQ6: =+Resultados!U164/1000 -> 0 | CR6: =+Resultados!AA164/1000 -> 0 | CS6: =+Resultados!AC164/1000 -> 0 | CT6: =+Resultados!X164/1000 -> 0 | CU6: =+Resultados!Y164/1000 -> 0 | CV6: =+Resultados!W164/1000 -> 0 | CW6: =+Resultados!V164/1000 -> 0 | CX6: =+Resultados!Z164/1000 -> 0 | CY6: =+Resultados!AE164/1000 -> 0 | CZ6: =+Resultados!AB164/1000 -> 0 | DA6: =+Resultados!AI164/1000 -> 0 | DB6: =+Resultados!AJ164/1000 -> 0 | DC6: =+Resultados!AH164/1000 -> 0
B7: =IF(+AVERAGE(AA20:AA23)=0,"Caso Base de Prueba NO OFICIAL","Caso Base Oficial") -> Caso Base de Prueba NO OFICIAL | C7: =IF(Resultados!C3000="","Prueba no Oficial",+AVERAGE(AA20:AA23)) -> Prueba no Oficial | D7: =IF(Resultados!C3000=""," Ejecutar 02.PBTD CON Caso Base",+AVERAGE(AA25:AA28)) -> Ejecutar 02.PBTD CON Caso Base | E7: =IF(Resultados!C3000="",AD21,+C7/'CEV CEVE'!$I$15) ->  | F7: =IF(Resultados!C3000="",AD22,+D7/'CEV CEVE'!$I$15) ->  | G7: no aplica | H7: no aplica | I7: =E7-F7 ->  | J7: =IFERROR(1-I8/I7,0) -> 0 | K7: =IF(J7>0.85,"A+",IF(J7>0.7,"A",IF(J7>0.55,"B",IF(J7>0.4,"C",IF(J7>0.2,"D",IF(J7>(-0.1),"E",IF(J7>(-0.35),"F","G"))))))) -> E | M7: Demanda | N7: Calefacción - Vivienda | O7: =+O19 -> 0 | P7: 0 | Q7: 0 | R7: 0 | S7: 0 | T7: 0 | U7: 0 | V7: 0 | W7: 0 | X7: 0 | Y7: 0 | Z7: 0 | AA7: =+SUM(O7:Z7) -> 0 | AD7: A | AE7: 55.3 | AF7: 141.1 | AG7: 12.9 | AH7: 46.8 | BD7: 1 | BE7: 4 | BF7: Abril | BG7: =+SUMIFS(Resultados!G$6:G$316,Resultados!$E$6:$E$316,Resumen!$BE7,Resultados!$BF$6:$BF$316,">=0")*$BD7/1000 -> 0 | BH7: =+SUMIFS(Resultados!H$6:H$316,Resultados!$E$6:$E$316,Resumen!$BE7,Resultados!$BF$6:$BF$316,">=0")*$BD7/1000 -> 0 | BI7: =+SUMIFS(Resultados!U$6:U$316,Resultados!$E$6:$E$316,Resumen!$BE7,Resultados!$BF$6:$BF$316,">=0")*$BD7/1000 -> 0 | BJ7: =+SUMIFS(Resultados!AA$6:AA$316,Resultados!$E$6:$E$316,Resumen!$BE7,Resultados!$BF$6:$BF$316,">=0")*$BD7/1000 -> 0 | BK7: =+SUMIFS(Resultados!AC$6:AC$316,Resultados!$E$6:$E$316,Resumen!$BE7,Resultados!$BF$6:$BF$316,">=0")*$BD7/1000 -> 0 | BL7: =+SUMIFS(Resultados!X$6:X$316,Resultados!$E$6:$E$316,Resumen!$BE7,Resultados!$BF$6:$BF$316,">=0")*$BD7/1000 -> 0 | BM7: =+SUMIFS(Resultados!Y$6:Y$316,Resultados!$E$6:$E$316,Resumen!$BE7,Resultados!$BF$6:$BF$316,">=0")*$BD7/1000 -> 0 | BN7: =+SUMIFS(Resultados!W$6:W$316,Resultados!$E$6:$E$316,Resumen!$BE7,Resultados!$BF$6:$BF$316,">=0")*$BD7/1000 -> 0 | BO7: =+SUMIFS(Resultados!V$6:V$316,Resultados!$E$6:$E$316,Resumen!$BE7,Resultados!$BF$6:$BF$316,">=0")*$BD7/1000 -> 0 | BP7: =+SUMIFS(Resultados!Z$6:Z$316,Resultados!$E$6:$E$316,Resumen!$BE7,Resultados!$BF$6:$BF$316,">=0")*$BD7/1000 -> 0 | BQ7: =+SUMIFS(Resultados!AE$6:AE$316,Resultados!$E$6:$E$316,Resumen!$BE7,Resultados!$BF$6:$BF$316,">=0")*$BD7/1000 -> 0 | BR7: =+SUMIFS(Resultados!AB$6:AB$316,Resultados!$E$6:$E$316,Resumen!$BE7,Resultados!$BF$6:$BF$316,">=0")*$BD7/1000 -> 0 | BS7: =+SUMIFS(Resultados!AI$6:AI$316,Resultados!$E$6:$E$316,Resumen!$BE7,Resultados!$BF$6:$BF$316,">=0")*$BD7/1000 -> 0 | BT7: =+SUMIFS(Resultados!AJ$6:AJ$316,Resultados!$E$6:$E$316,Resumen!$BE7,Resultados!$BF$6:$BF$316,">=0")*$BD7/1000 -> 0 | BU7: =+SUMIFS(Resultados!AH$6:AH$316,Resultados!$E$6:$E$316,Resumen!$BE7,Resultados!$BF$6:$BF$316,">=0")*$BD7/1000 -> 0 | BW7: 3 | BX7: =+Resultados!G9/1000 -> 0 | BY7: =+Resultados!H9/1000 -> 0 | BZ7: =+Resultados!U9/1000 -> 0 | CA7: =+Resultados!AA9/1000 -> 0 | CB7: =+Resultados!AC9/1000 -> 0 | CC7: =+Resultados!X9/1000 -> 0 | CD7: =+Resultados!Y9/1000 -> 0 | CE7: =+Resultados!W9/1000 -> 0 | CF7: =+Resultados!V9/1000 -> 0 | CG7: =+Resultados!Z9/1000 -> 0 | CH7: =+Resultados!AE9/1000 -> 0 | CI7: =+Resultados!AB9/1000 -> 0 | CJ7: =+Resultados!AI9/1000 -> 0 | CK7: =+Resultados!AJ9/1000 -> 0 | CL7: =+Resultados!AH9/1000 -> 0 | CN7: 3 | CO7: =+Resultados!G165/1000 -> 0 | CP7: =+Resultados!H165/1000 -> 0 | CQ7: =+Resultados!U165/1000 -> 0 | CR7: =+Resultados!AA165/1000 -> 0 | CS7: =+Resultados!AC165/1000 -> 0 | CT7: =+Resultados!X165/1000 -> 0 | CU7: =+Resultados!Y165/1000 -> 0 | CV7: =+Resultados!W165/1000 -> 0 | CW7: =+Resultados!V165/1000 -> 0 | CX7: =+Resultados!Z165/1000 -> 0 | CY7: =+Resultados!AE165/1000 -> 0 | CZ7: =+Resultados!AB165/1000 -> 0 | DA7: =+Resultados!AI165/1000 -> 0 | DB7: =+Resultados!AJ165/1000 -> 0 | DC7: =+Resultados!AH165/1000 -> 0
B8: Caso Propuesto | C8: =+AA19 -> 0 | D8: =+AA24 -> 0 | E8: =+C8/'CEV CEVE'!$I$15 ->  | F8: =+D8/'CEV CEVE'!$I$15 ->  | G8: =+IFERROR(1-E8/$E$7,0) -> 0 | H8: =+IFERROR(1-F8/$F$7,0) -> 0 | I8: =E8-F8 ->  | M8: Calefacción [kWh] | N8: Calefacción - Base | O8: =+AVERAGE(O20:O23) -> 0 | P8: 0 | Q8: 0 | R8: 0 | S8: 0 | T8: 0 | U8: 0 | V8: 0 | W8: 0 | X8: 0 | Y8: 0 | Z8: 0 | AA8: =+SUM(O8:Z8) -> 0 | AD8: B | AE8: 205.4 | AF8: 171 | AG8: 66.9 | AH8: 51.6 | BD8: 1 | BE8: 5 | BF8: Mayo | BG8: =+SUMIFS(Resultados!G$6:G$316,Resultados!$E$6:$E$316,Resumen!$BE8,Resultados!$BF$6:$BF$316,">=0")*$BD8/1000 -> 0 | BH8: =+SUMIFS(Resultados!H$6:H$316,Resultados!$E$6:$E$316,Resumen!$BE8,Resultados!$BF$6:$BF$316,">=0")*$BD8/1000 -> 0 | BI8: =+SUMIFS(Resultados!U$6:U$316,Resultados!$E$6:$E$316,Resumen!$BE8,Resultados!$BF$6:$BF$316,">=0")*$BD8/1000 -> 0 | BJ8: =+SUMIFS(Resultados!AA$6:AA$316,Resultados!$E$6:$E$316,Resumen!$BE8,Resultados!$BF$6:$BF$316,">=0")*$BD8/1000 -> 0 | BK8: =+SUMIFS(Resultados!AC$6:AC$316,Resultados!$E$6:$E$316,Resumen!$BE8,Resultados!$BF$6:$BF$316,">=0")*$BD8/1000 -> 0 | BL8: =+SUMIFS(Resultados!X$6:X$316,Resultados!$E$6:$E$316,Resumen!$BE8,Resultados!$BF$6:$BF$316,">=0")*$BD8/1000 -> 0 | BM8: =+SUMIFS(Resultados!Y$6:Y$316,Resultados!$E$6:$E$316,Resumen!$BE8,Resultados!$BF$6:$BF$316,">=0")*$BD8/1000 -> 0 | BN8: =+SUMIFS(Resultados!W$6:W$316,Resultados!$E$6:$E$316,Resumen!$BE8,Resultados!$BF$6:$BF$316,">=0")*$BD8/1000 -> 0 | BO8: =+SUMIFS(Resultados!V$6:V$316,Resultados!$E$6:$E$316,Resumen!$BE8,Resultados!$BF$6:$BF$316,">=0")*$BD8/1000 -> 0 | BP8: =+SUMIFS(Resultados!Z$6:Z$316,Resultados!$E$6:$E$316,Resumen!$BE8,Resultados!$BF$6:$BF$316,">=0")*$BD8/1000 -> 0 | BQ8: =+SUMIFS(Resultados!AE$6:AE$316,Resultados!$E$6:$E$316,Resumen!$BE8,Resultados!$BF$6:$BF$316,">=0")*$BD8/1000 -> 0 | BR8: =+SUMIFS(Resultados!AB$6:AB$316,Resultados!$E$6:$E$316,Resumen!$BE8,Resultados!$BF$6:$BF$316,">=0")*$BD8/1000 -> 0 | BS8: =+SUMIFS(Resultados!AI$6:AI$316,Resultados!$E$6:$E$316,Resumen!$BE8,Resultados!$BF$6:$BF$316,">=0")*$BD8/1000 -> 0 | BT8: =+SUMIFS(Resultados!AJ$6:AJ$316,Resultados!$E$6:$E$316,Resumen!$BE8,Resultados!$BF$6:$BF$316,">=0")*$BD8/1000 -> 0 | BU8: =+SUMIFS(Resultados!AH$6:AH$316,Resultados!$E$6:$E$316,Resumen!$BE8,Resultados!$BF$6:$BF$316,">=0")*$BD8/1000 -> 0 | BW8: 4 | BX8: =+Resultados!G10/1000 -> 0 | BY8: =+Resultados!H10/1000 -> 0 | BZ8: =+Resultados!U10/1000 -> 0 | CA8: =+Resultados!AA10/1000 -> 0 | CB8: =+Resultados!AC10/1000 -> 0 | CC8: =+Resultados!X10/1000 -> 0 | CD8: =+Resultados!Y10/1000 -> 0 | CE8: =+Resultados!W10/1000 -> 0 | CF8: =+Resultados!V10/1000 -> 0 | CG8: =+Resultados!Z10/1000 -> 0 | CH8: =+Resultados!AE10/1000 -> 0 | CI8: =+Resultados!AB10/1000 -> 0 | CJ8: =+Resultados!AI10/1000 -> 0 | CK8: =+Resultados!AJ10/1000 -> 0 | CL8: =+Resultados!AH10/1000 -> 0 | CN8: 4 | CO8: =+Resultados!G166/1000 -> 0 | CP8: =+Resultados!H166/1000 -> 0 | CQ8: =+Resultados!U166/1000 -> 0 | CR8: =+Resultados!AA166/1000 -> 0 | CS8: =+Resultados!AC166/1000 -> 0 | CT8: =+Resultados!X166/1000 -> 0 | CU8: =+Resultados!Y166/1000 -> 0 | CV8: =+Resultados!W166/1000 -> 0 | CW8: =+Resultados!V166/1000 -> 0 | CX8: =+Resultados!Z166/1000 -> 0 | CY8: =+Resultados!AE166/1000 -> 0 | CZ8: =+Resultados!AB166/1000 -> 0 | DA8: =+Resultados!AI166/1000 -> 0 | DB8: =+Resultados!AJ166/1000 -> 0 | DC8: =+Resultados!AH166/1000 -> 0
M9: Demanda | N9: Refrigeración - Vivienda | O9: =+O24 -> 0 | P9: 0 | Q9: 0 | R9: 0 | S9: 0 | T9: 0 | U9: 0 | V9: 0 | W9: 0 | X9: 0 | Y9: 0 | Z9: 0 | AA9: 0 | AD9: C | AE9: 164.2 | AF9: 64.7 | AG9: 63.5 | AH9: 17.6 | BD9: 1 | BE9: 6 | BF9: Junio | BG9: =+SUMIFS(Resultados!G$6:G$316,Resultados!$E$6:$E$316,Resumen!$BE9,Resultados!$BF$6:$BF$316,">=0")*$BD9/1000 -> 0 | BH9: =+SUMIFS(Resultados!H$6:H$316,Resultados!$E$6:$E$316,Resumen!$BE9,Resultados!$BF$6:$BF$316,">=0")*$BD9/1000 -> 0 | BI9: =+SUMIFS(Resultados!U$6:U$316,Resultados!$E$6:$E$316,Resumen!$BE9,Resultados!$BF$6:$BF$316,">=0")*$BD9/1000 -> 0 | BJ9: =+SUMIFS(Resultados!AA$6:AA$316,Resultados!$E$6:$E$316,Resumen!$BE9,Resultados!$BF$6:$BF$316,">=0")*$BD9/1000 -> 0 | BK9: =+SUMIFS(Resultados!AC$6:AC$316,Resultados!$E$6:$E$316,Resumen!$BE9,Resultados!$BF$6:$BF$316,">=0")*$BD9/1000 -> 0 | BL9: =+SUMIFS(Resultados!X$6:X$316,Resultados!$E$6:$E$316,Resumen!$BE9,Resultados!$BF$6:$BF$316,">=0")*$BD9/1000 -> 0 | BM9: =+SUMIFS(Resultados!Y$6:Y$316,Resultados!$E$6:$E$316,Resumen!$BE9,Resultados!$BF$6:$BF$316,">=0")*$BD9/1000 -> 0 | BN9: =+SUMIFS(Resultados!W$6:W$316,Resultados!$E$6:$E$316,Resumen!$BE9,Resultados!$BF$6:$BF$316,">=0")*$BD9/1000 -> 0 | BO9: =+SUMIFS(Resultados!V$6:V$316,Resultados!$E$6:$E$316,Resumen!$BE9,Resultados!$BF$6:$BF$316,">=0")*$BD9/1000 -> 0 | BP9: =+SUMIFS(Resultados!Z$6:Z$316,Resultados!$E$6:$E$316,Resumen!$BE9,Resultados!$BF$6:$BF$316,">=0")*$BD9/1000 -> 0 | BQ9: =+SUMIFS(Resultados!AE$6:AE$316,Resultados!$E$6:$E$316,Resumen!$BE9,Resultados!$BF$6:$BF$316,">=0")*$BD9/1000 -> 0 | BR9: =+SUMIFS(Resultados!AB$6:AB$316,Resultados!$E$6:$E$316,Resumen!$BE9,Resultados!$BF$6:$BF$316,">=0")*$BD9/1000 -> 0 | BS9: =+SUMIFS(Resultados!AI$6:AI$316,Resultados!$E$6:$E$316,Resumen!$BE9,Resultados!$BF$6:$BF$316,">=0")*$BD9/1000 -> 0 | BT9: =+SUMIFS(Resultados!AJ$6:AJ$316,Resultados!$E$6:$E$316,Resumen!$BE9,Resultados!$BF$6:$BF$316,">=0")*$BD9/1000 -> 0 | BU9: =+SUMIFS(Resultados!AH$6:AH$316,Resultados!$E$6:$E$316,Resumen!$BE9,Resultados!$BF$6:$BF$316,">=0")*$BD9/1000 -> 0 | BW9: 5 | BX9: =+Resultados!G11/1000 -> 0 | BY9: =+Resultados!H11/1000 -> 0 | BZ9: =+Resultados!U11/1000 -> 0 | CA9: =+Resultados!AA11/1000 -> 0 | CB9: =+Resultados!AC11/1000 -> 0 | CC9: =+Resultados!X11/1000 -> 0 | CD9: =+Resultados!Y11/1000 -> 0 | CE9: =+Resultados!W11/1000 -> 0 | CF9: =+Resultados!V11/1000 -> 0 | CG9: =+Resultados!Z11/1000 -> 0 | CH9: =+Resultados!AE11/1000 -> 0 | CI9: =+Resultados!AB11/1000 -> 0 | CJ9: =+Resultados!AI11/1000 -> 0 | CK9: =+Resultados!AJ11/1000 -> 0 | CL9: =+Resultados!AH11/1000 -> 0 | CN9: 5 | CO9: =+Resultados!G167/1000 -> 0 | CP9: =+Resultados!H167/1000 -> 0 | CQ9: =+Resultados!U167/1000 -> 0 | CR9: =+Resultados!AA167/1000 -> 0 | CS9: =+Resultados!AC167/1000 -> 0 | CT9: =+Resultados!X167/1000 -> 0 | CU9: =+Resultados!Y167/1000 -> 0 | CV9: =+Resultados!W167/1000 -> 0 | CW9: =+Resultados!V167/1000 -> 0 | CX9: =+Resultados!Z167/1000 -> 0 | CY9: =+Resultados!AE167/1000 -> 0 | CZ9: =+Resultados!AB167/1000 -> 0 | DA9: =+Resultados!AI167/1000 -> 0 | DB9: =+Resultados!AJ167/1000 -> 0 | DC9: =+Resultados!AH167/1000 -> 0
M10: Refrigeración [kWh] | N10: Refrigeración - Base | O10: =+AVERAGE(O25:O28) -> 0 | P10: 0 | Q10: 0 | R10: 0 | S10: 0 | T10: 0 | U10: 0 | V10: 0 | W10: 0 | X10: 0 | Y10: 0 | Z10: 0 | AA10: 0 | AD10: D | AE10: 152.5 | AF10: 72.3 | AG10: 85.1 | AH10: 28.4 | BD10: 1 | BE10: 7 | BF10: Julio | BG10: =+SUMIFS(Resultados!G$6:G$316,Resultados!$E$6:$E$316,Resumen!$BE10,Resultados!$BF$6:$BF$316,">=0")*$BD10/1000 -> 0 | BH10: =+SUMIFS(Resultados!H$6:H$316,Resultados!$E$6:$E$316,Resumen!$BE10,Resultados!$BF$6:$BF$316,">=0")*$BD10/1000 -> 0 | BI10: =+SUMIFS(Resultados!U$6:U$316,Resultados!$E$6:$E$316,Resumen!$BE10,Resultados!$BF$6:$BF$316,">=0")*$BD10/1000 -> 0 | BJ10: =+SUMIFS(Resultados!AA$6:AA$316,Resultados!$E$6:$E$316,Resumen!$BE10,Resultados!$BF$6:$BF$316,">=0")*$BD10/1000 -> 0 | BK10: =+SUMIFS(Resultados!AC$6:AC$316,Resultados!$E$6:$E$316,Resumen!$BE10,Resultados!$BF$6:$BF$316,">=0")*$BD10/1000 -> 0 | BL10: =+SUMIFS(Resultados!X$6:X$316,Resultados!$E$6:$E$316,Resumen!$BE10,Resultados!$BF$6:$BF$316,">=0")*$BD10/1000 -> 0 | BM10: =+SUMIFS(Resultados!Y$6:Y$316,Resultados!$E$6:$E$316,Resumen!$BE10,Resultados!$BF$6:$BF$316,">=0")*$BD10/1000 -> 0 | BN10: =+SUMIFS(Resultados!W$6:W$316,Resultados!$E$6:$E$316,Resumen!$BE10,Resultados!$BF$6:$BF$316,">=0")*$BD10/1000 -> 0 | BO10: =+SUMIFS(Resultados!V$6:V$316,Resultados!$E$6:$E$316,Resumen!$BE10,Resultados!$BF$6:$BF$316,">=0")*$BD10/1000 -> 0 | BP10: =+SUMIFS(Resultados!Z$6:Z$316,Resultados!$E$6:$E$316,Resumen!$BE10,Resultados!$BF$6:$BF$316,">=0")*$BD10/1000 -> 0 | BQ10: =+SUMIFS(Resultados!AE$6:AE$316,Resultados!$E$6:$E$316,Resumen!$BE10,Resultados!$BF$6:$BF$316,">=0")*$BD10/1000 -> 0 | BR10: =+SUMIFS(Resultados!AB$6:AB$316,Resultados!$E$6:$E$316,Resumen!$BE10,Resultados!$BF$6:$BF$316,">=0")*$BD10/1000 -> 0 | BS10: =+SUMIFS(Resultados!AI$6:AI$316,Resultados!$E$6:$E$316,Resumen!$BE10,Resultados!$BF$6:$BF$316,">=0")*$BD10/1000 -> 0 | BT10: =+SUMIFS(Resultados!AJ$6:AJ$316,Resultados!$E$6:$E$316,Resumen!$BE10,Resultados!$BF$6:$BF$316,">=0")*$BD10/1000 -> 0 | BU10: =+SUMIFS(Resultados!AH$6:AH$316,Resultados!$E$6:$E$316,Resumen!$BE10,Resultados!$BF$6:$BF$316,">=0")*$BD10/1000 -> 0 | BW10: 6 | BX10: =+Resultados!G12/1000 -> 0 | BY10: =+Resultados!H12/1000 -> 0 | BZ10: =+Resultados!U12/1000 -> 0 | CA10: =+Resultados!AA12/1000 -> 0 | CB10: =+Resultados!AC12/1000 -> 0 | CC10: =+Resultados!X12/1000 -> 0 | CD10: =+Resultados!Y12/1000 -> 0 | CE10: =+Resultados!W12/1000 -> 0 | CF10: =+Resultados!V12/1000 -> 0 | CG10: =+Resultados!Z12/1000 -> 0 | CH10: =+Resultados!AE12/1000 -> 0 | CI10: =+Resultados!AB12/1000 -> 0 | CJ10: =+Resultados!AI12/1000 -> 0 | CK10: =+Resultados!AJ12/1000 -> 0 | CL10: =+Resultados!AH12/1000 -> 0 | CN10: 6 | CO10: =+Resultados!G168/1000 -> 0 | CP10: =+Resultados!H168/1000 -> 0 | CQ10: =+Resultados!U168/1000 -> 0 | CR10: =+Resultados!AA168/1000 -> 0 | CS10: =+Resultados!AC168/1000 -> 0 | CT10: =+Resultados!X168/1000 -> 0 | CU10: =+Resultados!Y168/1000 -> 0 | CV10: =+Resultados!W168/1000 -> 0 | CW10: =+Resultados!V168/1000 -> 0 | CX10: =+Resultados!Z168/1000 -> 0 | CY10: =+Resultados!AE168/1000 -> 0 | CZ10: =+Resultados!AB168/1000 -> 0 | DA10: =+Resultados!AI168/1000 -> 0 | DB10: =+Resultados!AJ168/1000 -> 0 | DC10: =+Resultados!AH168/1000 -> 0
